Workbook

Sheet Instruktion och Projektinfo
A2: Så här gör du för att fylla i excelverktyget och beräkna utsläppen av växthusgaser för ditt projekt | L2: Här anger du information om ditt projekt. Fetmarkerad information bör alltid fyllas, övrig information är frivilligt.
L3: Projektnamn: | N3: Organisation: | P3: Kontaktperson:
A4: OBS - läs nedan punkter noga då de är viktiga för att verktyget ska fungera optimalt
A5: Alla rader som läggs till i flik "Input - Mängder A1-A3, A4, A5" förs automatiskt över till flikarna "Kommentarer" och "Resultat - enskilt scenario". | L5: Datum: | M5: 202X-XX-XX | N5: Typ av projekt:
A6: Använd inte filterfunktionen på tabellerna i kommande flikar, det kan skapa problem med beräkningarna i verktyget. | P6: Ingår återställning av håtdjorda ytor i projektet (JA/NEJ)?:
A7: Lägg inte till rader ovanför tabellerna i denna eller kommande flikar. Använd istället knappen "lägg till 10 rader till tabell(erna)", i fliken Input. | L7: Projektskede: | N7: Placering:
A8: Skapa inte nya kolumner i tabellerna i denna eller kommande flikar. Använd istället fliken "Kommentarer" för mer utförlig information.
A9: Börja med att fylla i data i fliken "Input - Mängder A1-A3, A4 och A5" överst, rad för rad. | L9: Storlek (m ledning): | N9: Storlek (MSEK): | P9: Storlek (arbetsområde, m²):
A10: Ta inte bort rader om något blir fel, eller behöver ändras. Ta istället bort siffror/text/data och ersätt med rätt information.
A11: Lämna inga tomma rader mellan anläggningsdelarna i fliken "Input - Mängder A1-A3, A4, A5", då kan resultat och diagram visa fel. | L11: Kommentar avseende omfattning och avgränsning (ange vad som ingår och inte ingår i beräkningen)
A12: Byt inte namn på flikar, tabellernas kolumnnamn eller dylikt - det kan förstöra koppling mellan tabellerna och göra så att resultatet blir fel.
A14: Instruktion flik "Input - Mängder A1-A3, A4 och A5
A15: - Klicka på knappen "Skapa nytt scenario".
A16: - Vid behov av fler rader, klicka på knappen "Lägg till 10 rader till tabellen".
A17: - Varje post/anläggningsdel registreras som en rad i tabellen.
A18: - För en rad är det öjligt att ange klimatpåverkan för alla moduler (A1-A3, A4 och A5) eller för endast någon/några av dem.
A19: - Fyll i kolumnerna "Anläggningsdel", "Kategori" och "Kommentar". Informationen i dessa kolumner överförs automatiskt till övriga flikar.
A20: - Under Anläggningsdel fyller du i ett lämpligt namn på aktuell post som ska klimatberäknas.
A21: - Under Kategori fyller du i önskad kategori för posten och resultatet redovisas sedan uppdelat efter valda kategorieri.
A22: - Val av kategori är frivilligt och kan väljas helt fritt. Lämnas cellent tom kommer posten att kategoriseras som "kategori saknas".
A23: - Under Kommentar kan du skriva kort beskrivning eller förtydligande (Tex. AMA-kod). Mer plats att skriva finns i fliken ”Kommentarer”.
A25: A1-A3 (Produktskedet)
A26: - Indata för A1-A3 skriv in i kolumnerna F-L
A27: - Ange mängd och enhet för varje post/anläggningsdel som ska beräknas.
A28: - Ange emissionsfaktor och FU/DU för posten.
A29: - Om enheten för mängd och FU/DU för emissionsfaktorns inte är samma, kommer kollum K att rödmarkeras.
A30: - Ange eventuell omräkningsfaktor som ett värde (ej formel) i kolumn K (rödmarkerad cell).
A32: För modul A4 (Transporter) finns 2 alternativ för indata. För varje rad väljs endast ett av alternativen, för att beräkningen ska bli korrekt.
A33: A4 - Alt 1 - Med alternativ 1 anges emissionsfaktor för A4 från en EPD, och beräkningen baseras på mängd som angivits för A1-A3.
A34: - Skriv in emissionsfaktor för A4 från aktuell EPD som nyttjats för A1-A3. DU/FU fylls i automatiskt (det är samma som för A1-A3).
A36: A4 - Alt 2 - Med alternativ 2 anges projektspecifik data för transporter, som drivmedel, körsträcka, bränsleförbrukning etc.
A37: - Välj typ drivmedel för transporterna från listan, emissionsfaktor och DU/FU anges automatiskt.
A38: - Ange total sträcka (km) för Transporterna (avser alla transporter som behövs för den aktuella posten, och ska räknas med tur/retur).
A39: - Ange bränsleförbrukning per km och enhet för förbrukningen.
A40: - Om enheten inte är samma som för emissionsfaktorn, fyll i omräkningsfaktorn i rödmarkerad cell i kolumn X.
A42: A5.2 (Transporter och arbeten inom arbetsplatsen)
A43: - Välj typ av fordon/maskin från listan eller välj fritt. Observera att detta val inte påverkar kommande beräkningar
A44: - Välj typ av drivmedel från listan, emissionsfaktor och DU/FU anges automatiskt.
A45: - Ange förbrukad mängd och enhet.
A46: - Om enheten inte är samma som för emissionsfaktorn, fyll i omräkningsfaktorn i rödmarkerad cell i kolumn AH.
A47: - I kolumn AI kan du t.ex. ange om A5 avser annat inom Modul A5 än A5.2 (arbetsplatsens fordon och maskiner).

Sheet Input - Mängder A1-A3, A4, A5
B2: I denna flik anger du all indata till ditt VA-projekt.
B4: Varning - lägg inte till rader ovan för tabellen, varken in denna flik eller följande flikar, gäller även kolumner varken i flikarna eller tabellerna.
BY5: Gör förklaringar vad varje kolumn vad som händer
B6: ='Instruktion och Projektinfo'!M3 -> 0 | F6: A1 - A3 (Produktskede) | N6: A4 Alternativ 1- Transporter till (och från) Byggarbetsplats Använd endast ett av alternativen 1 eller 2 (Alternativ 1 - Använd emissionsfaktor för A4 från EPD.) | R6: A4 Alternativ 2 (A4)- Transporter till (och från) Byggarbetsplats Använd endast ett av alternativen 1 eller 2. Alternativ 2 - För alternativ 2 används schablon för emissionsfaktor. | AA6: A5.2 - Arbetsplatsens fordon, maskiner (transporter inom arbetsplatsen och arbetsmoment)
B7: Anläggningsdel | C7: Kategori (egen kategorisering) | D7: Kommentar | E7: A1A3 | F7: Mängd A1A3 | G7: Enhet Mängd (A1A3) | H7: EF A1A3 [kg CO₂-ekv.] | I7: FU/DU (EF A1A3) | J7: *Omräkningsfaktorn (A1A3) behöver vara denna enhet (fylls i automatisk): | K7: Omräkning till FU/DU (Skriv in värde, ej formel) | L7: Kommentar till omräkning A1A3 (Endast text) | M7: A4 - alternativ 1 | N7: EPD - EF A4 | O7: *DU/FU (EPD - ED A4) [kg CO₂-ekv.] (Fylls i automatiskt) | P7: Kommentar till A4 alternativ 1 | Q7: A4 - Alternativ 2 | R7: Drivmedel (A4) (endast förval ur lista) | S7: *DU/FU (EF A4) för valt drivmedel (schablon) | T7: Sträcka - totalt [km], (tur och retur, alla transporter) | U7: (Bränsle-) Förbrukning per km | V7: Enhet (bränsleförbrukning per km) | W7: *Omräkningsfaktorn behöver vara av denna enhet (fylls i automatiskt); | X7: Omräkningsfaktor (A4), (vid behov, värde eller formel) | Y7: Kommentar till A4.2 Alternativ 2 | Z7: A5.2 | AA7: A5.2 Typ av fordon/maskin (behöver ej anges). | AB7: Drivmedel (A5.2) | AC7: Mängd (A5.2) | AD7: Enhet för mängd (A5.2) | AE7: *EF (A5.2) [kg CO₂-ekv.] | AF7: *DU/FU (EF A5.2) | AG7: *Omräkningsfaktorn (A5.5) behöver vara av denna enhet; | AH7: Omräkningsfaktor (A5.2) (ange värde), (vid behov) | AI7: Kommentar tiil A5 | BV7: Finns anläggningsdel-namn. | BW7: True/False A1A3 Enhet | BX7: True/False A1A3 om A1A3 kan beräknas | BY7: Utsläpp A1A3 [kg] | BZ7: TRUE/FALSE - om Al1 är ifyllt | CA7: True/False A4 - Alt 2 | CB7: True/False A4 Enhet - Alt2 | CC7: A4 - Resultat alt 1 [kg] | CD7: A4 - Alt 2 - beräkning utsläpp | CE7: Utsläpp A2 [kg] (alt1 och alt2) | CF7: A4 - Alt 2 TRUE/FALSE auto | CG7: Utsläpp A5[kg] | CH7: True/False A5 | CI7: True/False A5 Enhet | CJ7: TRUE/FALSE om kategori saknas. | CK7: Kategorier
B8: tewwst | C8: Kat1 | D8: test | F8: 8000 | G8: [m] | H8: 65 | I8: [m] | J8: =IF(ISBLANK(InputA1A3[[#This Row],[Anläggningsdel ]]),"",IF(KontrollTabell[[#This Row],[True/False A1A3 Enhet]]=TRUE, "", InputA1A3[[#This Row],[FU/DU (EF A1A3)]] & "/" & InputA1A3[[#This Row],[Enhet Mängd (A1A3)]])) ->  | N8: 456 | O8: =IF(ISBLANK(InputA1A3[[#This Row],[EPD - EF A4]]),"",InputA1A3[[#This Row],[FU/DU (EF A1A3)]]) -> [m] | S8: =IFERROR(INDEX(TabellEFDrivmedel[],MATCH(InputA1A3[[#This Row],[Drivmedel (A4) (endast förval ur lista)]],TabellEFDrivmedel[Drivmedel],0),4),"") ->  | W8: =IF(InputA1A3[[#This Row],[*DU/FU (EF A4) för valt drivmedel (schablon)]]="","",IF(KontrollTabell[[#This Row],[True/False A4 Enhet - Alt2]]=TRUE,"",IF(ISBLANK(InputA1A3[[#This Row],[*DU/FU (EF A4) för valt drivmedel (schablon)]]),,InputA1A3[[#This Row],[Enhet (bränsleförbrukning per km)]]& "/" & InputA1A3[[#This Row],[*DU/FU (EF A4) för valt drivmedel (schablon)]]))) ->  | AE8: =IFERROR(INDEX(TabellEFDrivmedel[],MATCH(InputA1A3[[#This Row],[Drivmedel (A5.2)]],TabellEFDrivmedel[Drivmedel],0),2),"") ->  | AF8: =IFERROR(INDEX(TabellEFDrivmedel[],MATCH(InputA1A3[[#This Row],[Drivmedel (A5.2)]],TabellEFDrivmedel[Drivmedel],0),4),"") ->  | AG8: =IF(KontrollTabell[[#This Row],[True/False A5 Enhet]]=TRUE, "", InputA1A3[[#This Row],[*DU/FU (EF A5.2)]] & "/" & InputA1A3[[#This Row],[Enhet för mängd (A5.2)]]) ->  | BV8: =IF(ISBLANK(InputA1A3[[#This Row],[Anläggningsdel ]]),FALSE,TRUE) -> TRUE | BW8: =IF(ISBLANK(InputA1A3[[#This Row],[Anläggningsdel ]]),"",IF(InputA1A3[[#This Row],[Enhet Mängd (A1A3)]] = InputA1A3[[#This Row],[FU/DU (EF A1A3)]], TRUE, FALSE)) -> TRUE | BX8: =IF(KontrollTabell[[#This Row],[Finns anläggningsdel-namn.]]=FALSE,"",IF(KontrollTabell[[#This Row],[True/False A1A3 Enhet]]=TRUE,TRUE,IF(ISBLANK(InputA1A3[[#This Row],[Omräkning till FU/DU (Skriv in värde, ej formel)]]),FALSE,TRUE))) -> TRUE | BY8: =IF(KontrollTabell[[#This Row],[Finns anläggningsdel-namn.]]=FALSE,,IF(KontrollTabell[[#This Row],[True/False A1A3 Enhet]]=TRUE,InputA1A3[[#This Row],[Mängd A1A3]]*InputA1A3[[#This Row],[EF A1A3 '[kg CO₂-ekv.']]],IF(KontrollTabell[[#This Row],[True/False A1A3 om A1A3 kan beräknas]]=TRUE,InputA1A3[[#This Row],[Mängd A1A3]]*InputA1A3[[#This Row],[EF A1A3 '[kg CO₂-ekv.']]]*InputA1A3[[#This Row],[Omräkning till FU/DU (Skriv in värde, ej formel)]],"Värde Behövs"))) -> 520000 | BZ8: =IF(ISBLANK(InputA1A3[[#This Row],[Anläggningsdel ]]),"",IF(ISBLANK(InputA1A3[[#This Row],[EPD - EF A4]]),FALSE,TRUE)) -> TRUE | CA8: =IF(OR(ISBLANK(InputA1A3[[#This Row],[Enhet (bränsleförbrukning per km)]]),ISBLANK(InputA1A3[[#This Row],[*DU/FU (EF A4) för valt drivmedel (schablon)]])),"",IF(OR(InputA1A3[[#This Row],[Enhet (bränsleförbrukning per km)]]=InputA1A3[[#This Row],[*DU/FU (EF A4) för valt drivmedel (schablon)]],AND(InputA1A3[[#This Row],[Enhet (bränsleförbrukning per km)]]<>InputA1A3[[#This Row],[*DU/FU (EF A4) för valt drivmedel (schablon)]],ISNUMBER(InputA1A3[[#This Row],[Omräkningsfaktor (A4), (vid behov, värde eller formel)]]))),TRUE(),FALSE())) ->  | CB8: =IF(InputA1A3[[#This Row],[Enhet (bränsleförbrukning per km)]] =InputA1A3[[#This Row],[*DU/FU (EF A4) för valt drivmedel (schablon)]],TRUE,IF(ISBLANK(InputA1A3[[#This Row],[Omräkningsfaktor (A4), (vid behov, värde eller formel)]]),FALSE,TRUE)) -> TRUE | CC8: =IF(ISBLANK(InputA1A3[[#This Row],[EPD - EF A4]]),"",IF(ISBLANK(InputA1A3[[#This Row],[Omräkning till FU/DU (Skriv in värde, ej formel)]]),InputA1A3[[#This Row],[EPD - EF A4]]*InputA1A3[[#This Row],[Mängd A1A3]],InputA1A3[[#This Row],[Mängd A1A3]]*InputA1A3[[#This Row],[Omräkning till FU/DU (Skriv in värde, ej formel)]]*InputA1A3[[#This Row],[EPD - EF A4]])) -> 3648000 | CD8: =IF(ISBLANK(KontrollTabell[[#This Row],[True/False A4 - Alt 2]]),"",IF(KontrollTabell[[#This Row],[True/False A4 Enhet - Alt2]]=TRUE,InputA1A3[[#This Row],[Sträcka - totalt '[km'], (tur och retur, alla transporter)]]*InputA1A3[[#This Row],[(Bränsle-) Förbrukning per km]],"Sen då")) -> 0 | CE8: =SUM(KontrollTabell[[#This Row],[A4 - Resultat alt 1 '[kg']]:[A4 - Alt 2 - beräkning utsläpp]]) -> 3648000 | CF8: =IF(ISBLANK(InputA1A3[[#This Row],[EPD - EF A4]]),FALSE,TRUE) -> TRUE | CG8: =IFERROR(IF(KontrollTabell[[#This Row],[True/False A5]]=FALSE(),"Enheter",IF(ISBLANK(InputA1A3[[#This Row],[Omräkningsfaktor (A5.2) (ange värde), (vid behov)]]),InputA1A3[[#This Row],[Mängd (A5.2)]]*InputA1A3[[#This Row],[*EF (A5.2) '[kg CO₂-ekv.']]],InputA1A3[[#This Row],[Mängd (A5.2)]]*InputA1A3[[#This Row],[*EF (A5.2) '[kg CO₂-ekv.']]]*InputA1A3[[#This Row],[Omräkningsfaktor (A5.2) (ange värde), (vid behov)]])),0) -> 0 | CH8: =IF(OR(ISBLANK(InputA1A3[[#This Row],[Enhet för mängd (A5.2)]]),ISBLANK(InputA1A3[[#This Row],[*DU/FU (EF A5.2)]])),"",IF(OR(InputA1A3[[#This Row],[Enhet för mängd (A5.2)]]=InputA1A3[[#This Row],[*DU/FU (EF A5.2)]],AND(InputA1A3[[#This Row],[Enhet för mängd (A5.2)]]<>InputA1A3[[#This Row],[*DU/FU (EF A5.2)]],ISNUMBER(InputA1A3[[#This Row],[Omräkningsfaktor (A5.2) (ange värde), (vid behov)]]))),TRUE,FALSE)) ->  | CI8: =IF(InputA1A3[[#This Row],[Enhet för mängd (A5.2)]] = InputA1A3[[#This Row],[*DU/FU (EF A5.2)]], TRUE, FALSE) -> TRUE | CJ8: =IF(OR(ISBLANK(InputA1A3[[#This Row],[Kategori (egen kategorisering)]])=FALSE,ISBLANK(InputA1A3[[#This Row],[Anläggningsdel ]]))=FALSE,TRUE,FALSE) -> FALSE | CK8: =IF(ISBLANK(InputA1A3[[#This Row],[Anläggningsdel ]]),"",IF(KontrollTabell[[#This Row],[TRUE/FALSE om kategori saknas.]] =FALSE,InputA1A3[[#This Row],[Kategori (egen kategorisering)]],"Kategori saknas")) -> Kat1
B9: agrae | C9: kat2 | D9: test | F9: 258 | G9: [MJ] | H9: 456 | I9: [ton] | J9: =IF(ISBLANK(InputA1A3[[#This Row],[Anläggningsdel ]]),"",IF(KontrollTabell[[#This Row],[True/False A1A3 Enhet]]=TRUE, "", InputA1A3[[#This Row],[FU/DU (EF A1A3)]] & "/" & InputA1A3[[#This Row],[Enhet Mängd (A1A3)]])) -> [ton]/[MJ] | K9: 484 | O9: =IF(ISBLANK(InputA1A3[[#This Row],[EPD - EF A4]]),"",InputA1A3[[#This Row],[FU/DU (EF A1A3)]]) ->  | S9: =IFERROR(INDEX(TabellEFDrivmedel[],MATCH(InputA1A3[[#This Row],[Drivmedel (A4) (endast förval ur lista)]],TabellEFDrivmedel[Drivmedel],0),4),"") ->  | W9: =IF(InputA1A3[[#This Row],[*DU/FU (EF A4) för valt drivmedel (schablon)]]="","",IF(KontrollTabell[[#This Row],[True/False A4 Enhet - Alt2]]=TRUE,"",IF(ISBLANK(InputA1A3[[#This Row],[*DU/FU (EF A4) för valt drivmedel (schablon)]]),,InputA1A3[[#This Row],[Enhet (bränsleförbrukning per km)]]& "/" & InputA1A3[[#This Row],[*DU/FU (EF A4) för valt drivmedel (schablon)]]))) ->  | AB9: Diesel MK1 | AC9: 34 | AD9: [Liter (l)] | AE9: =IFERROR(INDEX(TabellEFDrivmedel[],MATCH(InputA1A3[[#This Row],[Drivmedel (A5.2)]],TabellEFDrivmedel[Drivmedel],0),2),"") -> 2.5769 | AF9: =IFERROR(INDEX(TabellEFDrivmedel[],MATCH(InputA1A3[[#This Row],[Drivmedel (A5.2)]],TabellEFDrivmedel[Drivmedel],0),4),"") -> [Liter (l)] | AG9: =IF(KontrollTabell[[#This Row],[True/False A5 Enhet]]=TRUE, "", InputA1A3[[#This Row],[*DU/FU (EF A5.2)]] & "/" & InputA1A3[[#This Row],[Enhet för mängd (A5.2)]]) ->  | BV9: =IF(ISBLANK(InputA1A3[[#This Row],[Anläggningsdel ]]),FALSE,TRUE) -> TRUE | BW9: =IF(ISBLANK(InputA1A3[[#This Row],[Anläggningsdel ]]),"",IF(InputA1A3[[#This Row],[Enhet Mängd (A1A3)]] = InputA1A3[[#This Row],[FU/DU (EF A1A3)]], TRUE, FALSE)) -> FALSE | BX9: =IF(KontrollTabell[[#This Row],[Finns anläggningsdel-namn.]]=FALSE,"",IF(KontrollTabell[[#This Row],[True/False A1A3 Enhet]]=TRUE,TRUE,IF(ISBLANK(InputA1A3[[#This Row],[Omräkning till FU/DU (Skriv in värde, ej formel)]]),FALSE,TRUE))) -> TRUE | BY9: =IF(KontrollTabell[[#This Row],[Finns anläggningsdel-namn.]]=FALSE,,IF(KontrollTabell[[#This Row],[True/False A1A3 Enhet]]=TRUE,InputA1A3[[#This Row],[Mängd A1A3]]*InputA1A3[[#This Row],[EF A1A3 '[kg CO₂-ekv.']]],IF(KontrollTabell[[#This Row],[True/False A1A3 om A1A3 kan beräknas]]=TRUE,InputA1A3[[#This Row],[Mängd A1A3]]*InputA1A3[[#This Row],[EF A1A3 '[kg CO₂-ekv.']]]*InputA1A3[[#This Row],[Omräkning till FU/DU (Skriv in värde, ej formel)]],"Värde Behövs"))) -> 56941632 | BZ9: =IF(ISBLANK(InputA1A3[[#This Row],[Anläggningsdel ]]),"",IF(ISBLANK(InputA1A3[[#This Row],[EPD - EF A4]]),FALSE,TRUE)) -> FALSE | CA9: =IF(OR(ISBLANK(InputA1A3[[#This Row],[Enhet (bränsleförbrukning per km)]]),ISBLANK(InputA1A3[[#This Row],[*DU/FU (EF A4) för valt drivmedel (schablon)]])),"",IF(OR(InputA1A3[[#This Row],[Enhet (bränsleförbrukning per km)]]=InputA1A3[[#This Row],[*DU/FU (EF A4) för valt drivmedel (schablon)]],AND(InputA1A3[[#This Row],[Enhet (bränsleförbrukning per km)]]<>InputA1A3[[#This Row],[*DU/FU (EF A4) för valt drivmedel (schablon)]],ISNUMBER(InputA1A3[[#This Row],[Omräkningsfaktor (A4), (vid behov, värde eller formel)]]))),TRUE(),FALSE())) ->  | CB9: =IF(InputA1A3[[#This Row],[Enhet (bränsleförbrukning per km)]] =InputA1A3[[#This Row],[*DU/FU (EF A4) för valt drivmedel (schablon)]],TRUE,IF(ISBLANK(InputA1A3[[#This Row],[Omräkningsfaktor (A4), (vid behov, värde eller formel)]]),FALSE,TRUE)) -> TRUE | CC9: =IF(ISBLANK(InputA1A3[[#This Row],[EPD - EF A4]]),"",IF(ISBLANK(InputA1A3[[#This Row],[Omräkning till FU/DU (Skriv in värde, ej formel)]]),InputA1A3[[#This Row],[EPD - EF A4]]*InputA1A3[[#This Row],[Mängd A1A3]],InputA1A3[[#This Row],[Mängd A1A3]]*InputA1A3[[#This Row],[Omräkning till FU/DU (Skriv in värde, ej formel)]]*InputA1A3[[#This Row],[EPD - EF A4]])) ->  | CD9: =IF(ISBLANK(KontrollTabell[[#This Row],[True/False A4 - Alt 2]]),"",IF(KontrollTabell[[#This Row],[True/False A4 Enhet - Alt2]]=TRUE,InputA1A3[[#This Row],[Sträcka - totalt '[km'], (tur och retur, alla transporter)]]*InputA1A3[[#This Row],[(Bränsle-) Förbrukning per km]],"Sen då")) -> 0 | CE9: =SUM(KontrollTabell[[#This Row],[A4 - Resultat alt 1 '[kg']]:[A4 - Alt 2 - beräkning utsläpp]]) -> 0 | CF9: =IF(ISBLANK(InputA1A3[[#This Row],[EPD - EF A4]]),FALSE,TRUE) -> FALSE | CG9: =IFERROR(IF(KontrollTabell[[#This Row],[True/False A5]]=FALSE(),"Enheter",IF(ISBLANK(InputA1A3[[#This Row],[Omräkningsfaktor (A5.2) (ange värde), (vid behov)]]),InputA1A3[[#This Row],[Mängd (A5.2)]]*InputA1A3[[#This Row],[*EF (A5.2) '[kg CO₂-ekv.']]],InputA1A3[[#This Row],[Mängd (A5.2)]]*InputA1A3[[#This Row],[*EF (A5.2) '[kg CO₂-ekv.']]]*InputA1A3[[#This Row],[Omräkningsfaktor (A5.2) (ange värde), (vid behov)]])),0) -> 87.6146 | CH9: =IF(OR(ISBLANK(InputA1A3[[#This Row],[Enhet för mängd (A5.2)]]),ISBLANK(InputA1A3[[#This Row],[*DU/FU (EF A5.2)]])),"",IF(OR(InputA1A3[[#This Row],[Enhet för mängd (A5.2)]]=InputA1A3[[#This Row],[*DU/FU (EF A5.2)]],AND(InputA1A3[[#This Row],[Enhet för mängd (A5.2)]]<>InputA1A3[[#This Row],[*DU/FU (EF A5.2)]],ISNUMBER(InputA1A3[[#This Row],[Omräkningsfaktor (A5.2) (ange värde), (vid behov)]]))),TRUE,FALSE)) -> TRUE | CI9: =IF(InputA1A3[[#This Row],[Enhet för mängd (A5.2)]] = InputA1A3[[#This Row],[*DU/FU (EF A5.2)]], TRUE, FALSE) -> TRUE | CJ9: =IF(OR(ISBLANK(InputA1A3[[#This Row],[Kategori (egen kategorisering)]])=FALSE,ISBLANK(InputA1A3[[#This Row],[Anläggningsdel ]]))=FALSE,TRUE,FALSE) -> FALSE | CK9: =IF(ISBLANK(InputA1A3[[#This Row],[Anläggningsdel ]]),"",IF(KontrollTabell[[#This Row],[TRUE/FALSE om kategori saknas.]] =FALSE,InputA1A3[[#This Row],[Kategori (egen kategorisering)]],"Kategori saknas")) -> kat2
B10: agreg | C10: kat1 | D10: test | F10: 1110 | G10: [m] | H10: 35 | I10: [ton] | J10: =IF(ISBLANK(InputA1A3[[#This Row],[Anläggningsdel ]]),"",IF(KontrollTabell[[#This Row],[True/False A1A3 Enhet]]=TRUE, "", InputA1A3[[#This Row],[FU/DU (EF A1A3)]] & "/" & InputA1A3[[#This Row],[Enhet Mängd (A1A3)]])) -> [ton]/[m] | K10: 34 | O10: =IF(ISBLANK(InputA1A3[[#This Row],[EPD - EF A4]]),"",InputA1A3[[#This Row],[FU/DU (EF A1A3)]]) ->  | R10: ED95 | S10: =IFERROR(INDEX(TabellEFDrivmedel[],MATCH(InputA1A3[[#This Row],[Drivmedel (A4) (endast förval ur lista)]],TabellEFDrivmedel[Drivmedel],0),4),"") -> [Liter (l)] | T10: 12300 | U10: 1.2 | V10: [Liter (l)] | W10: =IF(InputA1A3[[#This Row],[*DU/FU (EF A4) för valt drivmedel (schablon)]]="","",IF(KontrollTabell[[#This Row],[True/False A4 Enhet - Alt2]]=TRUE,"",IF(ISBLANK(InputA1A3[[#This Row],[*DU/FU (EF A4) för valt drivmedel (schablon)]]),,InputA1A3[[#This Row],[Enhet (bränsleförbrukning per km)]]& "/" & InputA1A3[[#This Row],[*DU/FU (EF A4) för valt drivmedel (schablon)]]))) ->  | AB10: Diesel MK1 | AC10: 678 | AD10: [Liter (l)] | AE10: =IFERROR(INDEX(TabellEFDrivmedel[],MATCH(InputA1A3[[#This Row],[Drivmedel (A5.2)]],TabellEFDrivmedel[Drivmedel],0),2),"") -> 2.5769 | AF10: =IFERROR(INDEX(TabellEFDrivmedel[],MATCH(InputA1A3[[#This Row],[Drivmedel (A5.2)]],TabellEFDrivmedel[Drivmedel],0),4),"") -> [Liter (l)] | AG10: =IF(KontrollTabell[[#This Row],[True/False A5 Enhet]]=TRUE, "", InputA1A3[[#This Row],[*DU/FU (EF A5.2)]] & "/" & InputA1A3[[#This Row],[Enhet för mängd (A5.2)]]) ->  | BV10: =IF(ISBLANK(InputA1A3[[#This Row],[Anläggningsdel ]]),FALSE,TRUE) -> TRUE | BW10: =IF(ISBLANK(InputA1A3[[#This Row],[Anläggningsdel ]]),"",IF(InputA1A3[[#This Row],[Enhet Mängd (A1A3)]] = InputA1A3[[#This Row],[FU/DU (EF A1A3)]], TRUE, FALSE)) -> FALSE | BX10: =IF(KontrollTabell[[#This Row],[Finns anläggningsdel-namn.]]=FALSE,"",IF(KontrollTabell[[#This Row],[True/False A1A3 Enhet]]=TRUE,TRUE,IF(ISBLANK(InputA1A3[[#This Row],[Omräkning till FU/DU (Skriv in värde, ej formel)]]),FALSE,TRUE))) -> TRUE | BY10: =IF(KontrollTabell[[#This Row],[Finns anläggningsdel-namn.]]=FALSE,,IF(KontrollTabell[[#This Row],[True/False A1A3 Enhet]]=TRUE,InputA1A3[[#This Row],[Mängd A1A3]]*InputA1A3[[#This Row],[EF A1A3 '[kg CO₂-ekv.']]],IF(KontrollTabell[[#This Row],[True/False A1A3 om A1A3 kan beräknas]]=TRUE,InputA1A3[[#This Row],[Mängd A1A3]]*InputA1A3[[#This Row],[EF A1A3 '[kg CO₂-ekv.']]]*InputA1A3[[#This Row],[Omräkning till FU/DU (Skriv in värde, ej formel)]],"Värde Behövs"))) -> 1320900 | BZ10: =IF(ISBLANK(InputA1A3[[#This Row],[Anläggningsdel ]]),"",IF(ISBLANK(InputA1A3[[#This Row],[EPD - EF A4]]),FALSE,TRUE)) -> FALSE | CA10: =IF(OR(ISBLANK(InputA1A3[[#This Row],[Enhet (bränsleförbrukning per km)]]),ISBLANK(InputA1A3[[#This Row],[*DU/FU (EF A4) för valt drivmedel (schablon)]])),"",IF(OR(InputA1A3[[#This Row],[Enhet (bränsleförbrukning per km)]]=InputA1A3[[#This Row],[*DU/FU (EF A4) för valt drivmedel (schablon)]],AND(InputA1A3[[#This Row],[Enhet (bränsleförbrukning per km)]]<>InputA1A3[[#This Row],[*DU/FU (EF A4) för valt drivmedel (schablon)]],ISNUMBER(InputA1A3[[#This Row],[Omräkningsfaktor (A4), (vid behov, värde eller formel)]]))),TRUE(),FALSE())) -> TRUE | CB10: =IF(InputA1A3[[#This Row],[Enhet (bränsleförbrukning per km)]] =InputA1A3[[#This Row],[*DU/FU (EF A4) för valt drivmedel (schablon)]],TRUE,IF(ISBLANK(InputA1A3[[#This Row],[Omräkningsfaktor (A4), (vid behov, värde eller formel)]]),FALSE,TRUE)) -> TRUE | CC10: =IF(ISBLANK(InputA1A3[[#This Row],[EPD - EF A4]]),"",IF(ISBLANK(InputA1A3[[#This Row],[Omräkning till FU/DU (Skriv in värde, ej formel)]]),InputA1A3[[#This Row],[EPD - EF A4]]*InputA1A3[[#This Row],[Mängd A1A3]],InputA1A3[[#This Row],[Mängd A1A3]]*InputA1A3[[#This Row],[Omräkning till FU/DU (Skriv in värde, ej formel)]]*InputA1A3[[#This Row],[EPD - EF A4]])) ->  | CD10: =IF(ISBLANK(KontrollTabell[[#This Row],[True/False A4 - Alt 2]]),"",IF(KontrollTabell[[#This Row],[True/False A4 Enhet - Alt2]]=TRUE,InputA1A3[[#This Row],[Sträcka - totalt '[km'], (tur och retur, alla transporter)]]*InputA1A3[[#This Row],[(Bränsle-) Förbrukning per km]],"Sen då")) -> 14760 | CE10: =SUM(KontrollTabell[[#This Row],[A4 - Resultat alt 1 '[kg']]:[A4 - Alt 2 - beräkning utsläpp]]) -> 14760 | CF10: =IF(ISBLANK(InputA1A3[[#This Row],[EPD - EF A4]]),FALSE,TRUE) -> FALSE | CG10: =IFERROR(IF(KontrollTabell[[#This Row],[True/False A5]]=FALSE(),"Enheter",IF(ISBLANK(InputA1A3[[#This Row],[Omräkningsfaktor (A5.2) (ange värde), (vid behov)]]),InputA1A3[[#This Row],[Mängd (A5.2)]]*InputA1A3[[#This Row],[*EF (A5.2) '[kg CO₂-ekv.']]],InputA1A3[[#This Row],[Mängd (A5.2)]]*InputA1A3[[#This Row],[*EF (A5.2) '[kg CO₂-ekv.']]]*InputA1A3[[#This Row],[Omräkningsfaktor (A5.2) (ange värde), (vid behov)]])),0) -> 1747.1382 | CH10: =IF(OR(ISBLANK(InputA1A3[[#This Row],[Enhet för mängd (A5.2)]]),ISBLANK(InputA1A3[[#This Row],[*DU/FU (EF A5.2)]])),"",IF(OR(InputA1A3[[#This Row],[Enhet för mängd (A5.2)]]=InputA1A3[[#This Row],[*DU/FU (EF A5.2)]],AND(InputA1A3[[#This Row],[Enhet för mängd (A5.2)]]<>InputA1A3[[#This Row],[*DU/FU (EF A5.2)]],ISNUMBER(InputA1A3[[#This Row],[Omräkningsfaktor (A5.2) (ange värde), (vid behov)]]))),TRUE,FALSE)) -> TRUE | CI10: =IF(InputA1A3[[#This Row],[Enhet för mängd (A5.2)]] = InputA1A3[[#This Row],[*DU/FU (EF A5.2)]], TRUE, FALSE) -> TRUE | CJ10: =IF(OR(ISBLANK(InputA1A3[[#This Row],[Kategori (egen kategorisering)]])=FALSE,ISBLANK(InputA1A3[[#This Row],[Anläggningsdel ]]))=FALSE,TRUE,FALSE) -> FALSE | CK10: =IF(ISBLANK(InputA1A3[[#This Row],[Anläggningsdel ]]),"",IF(KontrollTabell[[#This Row],[TRUE/FALSE om kategori saknas.]] =FALSE,InputA1A3[[#This Row],[Kategori (egen kategorisering)]],"Kategori saknas")) -> kat1
B11: f | C11: kat3 | F11: 508 | G11: [m] | H11: 467 | I11: [m³] | J11: =IF(ISBLANK(InputA1A3[[#This Row],[Anläggningsdel ]]),"",IF(KontrollTabell[[#This Row],[True/False A1A3 Enhet]]=TRUE, "", InputA1A3[[#This Row],[FU/DU (EF A1A3)]] & "/" & InputA1A3[[#This Row],[Enhet Mängd (A1A3)]])) -> [m³]/[m] | K11: 102 | O11: =IF(ISBLANK(InputA1A3[[#This Row],[EPD - EF A4]]),"",InputA1A3[[#This Row],[FU/DU (EF A1A3)]]) ->  | R11: Diesel MK1 | S11: =IFERROR(INDEX(TabellEFDrivmedel[],MATCH(InputA1A3[[#This Row],[Drivmedel (A4) (endast förval ur lista)]],TabellEFDrivmedel[Drivmedel],0),4),"") -> [Liter (l)] | T11: 678 | U11: 47 | V11: [Liter (l)] | W11: =IF(InputA1A3[[#This Row],[*DU/FU (EF A4) för valt drivmedel (schablon)]]="","",IF(KontrollTabell[[#This Row],[True/False A4 Enhet - Alt2]]=TRUE,"",IF(ISBLANK(InputA1A3[[#This Row],[*DU/FU (EF A4) för valt drivmedel (schablon)]]),,InputA1A3[[#This Row],[Enhet (bränsleförbrukning per km)]]& "/" & InputA1A3[[#This Row],[*DU/FU (EF A4) för valt drivmedel (schablon)]]))) ->  | AB11: Diesel MK1 | AC11: 8700 | AD11: [m] | AE11: =IFERROR(INDEX(TabellEFDrivmedel[],MATCH(InputA1A3[[#This Row],[Drivmedel (A5.2)]],TabellEFDrivmedel[Drivmedel],0),2),"") -> 2.5769 | AF11: =IFERROR(INDEX(TabellEFDrivmedel[],MATCH(InputA1A3[[#This Row],[Drivmedel (A5.2)]],TabellEFDrivmedel[Drivmedel],0),4),"") -> [Liter (l)] | AG11: =IF(KontrollTabell[[#This Row],[True/False A5 Enhet]]=TRUE, "", InputA1A3[[#This Row],[*DU/FU (EF A5.2)]] & "/" & InputA1A3[[#This Row],[Enhet för mängd (A5.2)]]) -> [Liter (l)]/[m] | AH11: 302 | BV11: =IF(ISBLANK(InputA1A3[[#This Row],[Anläggningsdel ]]),FALSE,TRUE) -> TRUE | BW11: =IF(ISBLANK(InputA1A3[[#This Row],[Anläggningsdel ]]),"",IF(InputA1A3[[#This Row],[Enhet Mängd (A1A3)]] = InputA1A3[[#This Row],[FU/DU (EF A1A3)]], TRUE, FALSE)) -> FALSE | BX11: =IF(KontrollTabell[[#This Row],[Finns anläggningsdel-namn.]]=FALSE,"",IF(KontrollTabell[[#This Row],[True/False A1A3 Enhet]]=TRUE,TRUE,IF(ISBLANK(InputA1A3[[#This Row],[Omräkning till FU/DU (Skriv in värde, ej formel)]]),FALSE,TRUE))) -> TRUE | BY11: =IF(KontrollTabell[[#This Row],[Finns anläggningsdel-namn.]]=FALSE,,IF(KontrollTabell[[#This Row],[True/False A1A3 Enhet]]=TRUE,InputA1A3[[#This Row],[Mängd A1A3]]*InputA1A3[[#This Row],[EF A1A3 '[kg CO₂-ekv.']]],IF(KontrollTabell[[#This Row],[True/False A1A3 om A1A3 kan beräknas]]=TRUE,InputA1A3[[#This Row],[Mängd A1A3]]*InputA1A3[[#This Row],[EF A1A3 '[kg CO₂-ekv.']]]*InputA1A3[[#This Row],[Omräkning till FU/DU (Skriv in värde, ej formel)]],"Värde Behövs"))) -> 24198072 | BZ11: =IF(ISBLANK(InputA1A3[[#This Row],[Anläggningsdel ]]),"",IF(ISBLANK(InputA1A3[[#This Row],[EPD - EF A4]]),FALSE,TRUE)) -> FALSE | CA11: =IF(OR(ISBLANK(InputA1A3[[#This Row],[Enhet (bränsleförbrukning per km)]]),ISBLANK(InputA1A3[[#This Row],[*DU/FU (EF A4) för valt drivmedel (schablon)]])),"",IF(OR(InputA1A3[[#This Row],[Enhet (bränsleförbrukning per km)]]=InputA1A3[[#This Row],[*DU/FU (EF A4) för valt drivmedel (schablon)]],AND(InputA1A3[[#This Row],[Enhet (bränsleförbrukning per km)]]<>InputA1A3[[#This Row],[*DU/FU (EF A4) för valt drivmedel (schablon)]],ISNUMBER(InputA1A3[[#This Row],[Omräkningsfaktor (A4), (vid behov, värde eller formel)]]))),TRUE(),FALSE())) -> TRUE | CB11: =IF(InputA1A3[[#This Row],[Enhet (bränsleförbrukning per km)]] =InputA1A3[[#This Row],[*DU/FU (EF A4) för valt drivmedel (schablon)]],TRUE,IF(ISBLANK(InputA1A3[[#This Row],[Omräkningsfaktor (A4), (vid behov, värde eller formel)]]),FALSE,TRUE)) -> TRUE | CC11: =IF(ISBLANK(InputA1A3[[#This Row],[EPD - EF A4]]),"",IF(ISBLANK(InputA1A3[[#This Row],[Omräkning till FU/DU (Skriv in värde, ej formel)]]),InputA1A3[[#This Row],[EPD - EF A4]]*InputA1A3[[#This Row],[Mängd A1A3]],InputA1A3[[#This Row],[Mängd A1A3]]*InputA1A3[[#This Row],[Omräkning till FU/DU (Skriv in värde, ej formel)]]*InputA1A3[[#This Row],[EPD - EF A4]])) ->  | CD11: =IF(ISBLANK(KontrollTabell[[#This Row],[True/False A4 - Alt 2]]),"",IF(KontrollTabell[[#This Row],[True/False A4 Enhet - Alt2]]=TRUE,InputA1A3[[#This Row],[Sträcka - totalt '[km'], (tur och retur, alla transporter)]]*InputA1A3[[#This Row],[(Bränsle-) Förbrukning per km]],"Sen då")) -> 31866 | CE11: =SUM(KontrollTabell[[#This Row],[A4 - Resultat alt 1 '[kg']]:[A4 - Alt 2 - beräkning utsläpp]]) -> 31866 | CF11: =IF(ISBLANK(InputA1A3[[#This Row],[EPD - EF A4]]),FALSE,TRUE) -> FALSE | CG11: =IFERROR(IF(KontrollTabell[[#This Row],[True/False A5]]=FALSE(),"Enheter",IF(ISBLANK(InputA1A3[[#This Row],[Omräkningsfaktor (A5.2) (ange värde), (vid behov)]]),InputA1A3[[#This Row],[Mängd (A5.2)]]*InputA1A3[[#This Row],[*EF (A5.2) '[kg CO₂-ekv.']]],InputA1A3[[#This Row],[Mängd (A5.2)]]*InputA1A3[[#This Row],[*EF (A5.2) '[kg CO₂-ekv.']]]*InputA1A3[[#This Row],[Omräkningsfaktor (A5.2) (ange värde), (vid behov)]])),0) -> 6770547.06 | CH11: =IF(OR(ISBLANK(InputA1A3[[#This Row],[Enhet för mängd (A5.2)]]),ISBLANK(InputA1A3[[#This Row],[*DU/FU (EF A5.2)]])),"",IF(OR(InputA1A3[[#This Row],[Enhet för mängd (A5.2)]]=InputA1A3[[#This Row],[*DU/FU (EF A5.2)]],AND(InputA1A3[[#This Row],[Enhet för mängd (A5.2)]]<>InputA1A3[[#This Row],[*DU/FU (EF A5.2)]],ISNUMBER(InputA1A3[[#This Row],[Omräkningsfaktor (A5.2) (ange värde), (vid behov)]]))),TRUE,FALSE)) -> TRUE | CI11: =IF(InputA1A3[[#This Row],[Enhet för mängd (A5.2)]] = InputA1A3[[#This Row],[*DU/FU (EF A5.2)]], TRUE, FALSE) -> FALSE | CJ11: =IF(OR(ISBLANK(InputA1A3[[#This Row],[Kategori (egen kategorisering)]])=FALSE,ISBLANK(InputA1A3[[#This Row],[Anläggningsdel ]]))=FALSE,TRUE,FALSE) -> FALSE | CK11: =IF(ISBLANK(InputA1A3[[#This Row],[Anläggningsdel ]]),"",IF(KontrollTabell[[#This Row],[TRUE/FALSE om kategori saknas.]] =FALSE,InputA1A3[[#This Row],[Kategori (egen kategorisering)]],"Kategori saknas")) -> kat3
B12: fg | C12: kat2 | F12: 970 | G12: [ton] | H12: 2400 | I12: [ton] | J12: =IF(ISBLANK(InputA1A3[[#This Row],[Anläggningsdel ]]),"",IF(KontrollTabell[[#This Row],[True/False A1A3 Enhet]]=TRUE, "", InputA1A3[[#This Row],[FU/DU (EF A1A3)]] & "/" & InputA1A3[[#This Row],[Enhet Mängd (A1A3)]])) ->  | O12: =IF(ISBLANK(InputA1A3[[#This Row],[EPD - EF A4]]),"",InputA1A3[[#This Row],[FU/DU (EF A1A3)]]) ->  | R12: El - svensk elmix | S12: =IFERROR(INDEX(TabellEFDrivmedel[],MATCH(InputA1A3[[#This Row],[Drivmedel (A4) (endast förval ur lista)]],TabellEFDrivmedel[Drivmedel],0),4),"") -> [kWh] | T12: 235 | U12: 0.8 | V12: [kWh] | W12: =IF(InputA1A3[[#This Row],[*DU/FU (EF A4) för valt drivmedel (schablon)]]="","",IF(KontrollTabell[[#This Row],[True/False A4 Enhet - Alt2]]=TRUE,"",IF(ISBLANK(InputA1A3[[#This Row],[*DU/FU (EF A4) för valt drivmedel (schablon)]]),,InputA1A3[[#This Row],[Enhet (bränsleförbrukning per km)]]& "/" & InputA1A3[[#This Row],[*DU/FU (EF A4) för valt drivmedel (schablon)]]))) ->  | AB12: El - grön el | AC12: 685 | AD12: [m²] | AE12: =IFERROR(INDEX(TabellEFDrivmedel[],MATCH(InputA1A3[[#This Row],[Drivmedel (A5.2)]],TabellEFDrivmedel[Drivmedel],0),2),"") -> 0.0012 | AF12: =IFERROR(INDEX(TabellEFDrivmedel[],MATCH(InputA1A3[[#This Row],[Drivmedel (A5.2)]],TabellEFDrivmedel[Drivmedel],0),4),"") -> [kWh] | AG12: =IF(KontrollTabell[[#This Row],[True/False A5 Enhet]]=TRUE, "", InputA1A3[[#This Row],[*DU/FU (EF A5.2)]] & "/" & InputA1A3[[#This Row],[Enhet för mängd (A5.2)]]) -> [kWh]/[m²] | AH12: 0.3 | BV12: =IF(ISBLANK(InputA1A3[[#This Row],[Anläggningsdel ]]),FALSE,TRUE) -> TRUE | BW12: =IF(ISBLANK(InputA1A3[[#This Row],[Anläggningsdel ]]),"",IF(InputA1A3[[#This Row],[Enhet Mängd (A1A3)]] = InputA1A3[[#This Row],[FU/DU (EF A1A3)]], TRUE, FALSE)) -> TRUE | BX12: =IF(KontrollTabell[[#This Row],[Finns anläggningsdel-namn.]]=FALSE,"",IF(KontrollTabell[[#This Row],[True/False A1A3 Enhet]]=TRUE,TRUE,IF(ISBLANK(InputA1A3[[#This Row],[Omräkning till FU/DU (Skriv in värde, ej formel)]]),FALSE,TRUE))) -> TRUE | BY12: =IF(KontrollTabell[[#This Row],[Finns anläggningsdel-namn.]]=FALSE,,IF(KontrollTabell[[#This Row],[True/False A1A3 Enhet]]=TRUE,InputA1A3[[#This Row],[Mängd A1A3]]*InputA1A3[[#This Row],[EF A1A3 '[kg CO₂-ekv.']]],IF(KontrollTabell[[#This Row],[True/False A1A3 om A1A3 kan beräknas]]=TRUE,InputA1A3[[#This Row],[Mängd A1A3]]*InputA1A3[[#This Row],[EF A1A3 '[kg CO₂-ekv.']]]*InputA1A3[[#This Row],[Omräkning till FU/DU (Skriv in värde, ej formel)]],"Värde Behövs"))) -> 2328000 | BZ12: =IF(ISBLANK(InputA1A3[[#This Row],[Anläggningsdel ]]),"",IF(ISBLANK(InputA1A3[[#This Row],[EPD - EF A4]]),FALSE,TRUE)) -> FALSE | CA12: =IF(OR(ISBLANK(InputA1A3[[#This Row],[Enhet (bränsleförbrukning per km)]]),ISBLANK(InputA1A3[[#This Row],[*DU/FU (EF A4) för valt drivmedel (schablon)]])),"",IF(OR(InputA1A3[[#This Row],[Enhet (bränsleförbrukning per km)]]=InputA1A3[[#This Row],[*DU/FU (EF A4) för valt drivmedel (schablon)]],AND(InputA1A3[[#This Row],[Enhet (bränsleförbrukning per km)]]<>InputA1A3[[#This Row],[*DU/FU (EF A4) för valt drivmedel (schablon)]],ISNUMBER(InputA1A3[[#This Row],[Omräkningsfaktor (A4), (vid behov, värde eller formel)]]))),TRUE(),FALSE())) -> TRUE | CB12: =IF(InputA1A3[[#This Row],[Enhet (bränsleförbrukning per km)]] =InputA1A3[[#This Row],[*DU/FU (EF A4) för valt drivmedel (schablon)]],TRUE,IF(ISBLANK(InputA1A3[[#This Row],[Omräkningsfaktor (A4), (vid behov, värde eller formel)]]),FALSE,TRUE)) -> TRUE | CC12: =IF(ISBLANK(InputA1A3[[#This Row],[EPD - EF A4]]),"",IF(ISBLANK(InputA1A3[[#This Row],[Omräkning till FU/DU (Skriv in värde, ej formel)]]),InputA1A3[[#This Row],[EPD - EF A4]]*InputA1A3[[#This Row],[Mängd A1A3]],InputA1A3[[#This Row],[Mängd A1A3]]*InputA1A3[[#This Row],[Omräkning till FU/DU (Skriv in värde, ej formel)]]*InputA1A3[[#This Row],[EPD - EF A4]])) ->  | CD12: =IF(ISBLANK(KontrollTabell[[#This Row],[True/False A4 - Alt 2]]),"",IF(KontrollTabell[[#This Row],[True/False A4 Enhet - Alt2]]=TRUE,InputA1A3[[#This Row],[Sträcka - totalt '[km'], (tur och retur, alla transporter)]]*InputA1A3[[#This Row],[(Bränsle-) Förbrukning per km]],"Sen då")) -> 188 | CE12: =SUM(KontrollTabell[[#This Row],[A4 - Resultat alt 1 '[kg']]:[A4 - Alt 2 - beräkning utsläpp]]) -> 188 | CF12: =IF(ISBLANK(InputA1A3[[#This Row],[EPD - EF A4]]),FALSE,TRUE) -> FALSE | CG12: =IFERROR(IF(KontrollTabell[[#This Row],[True/False A5]]=FALSE(),"Enheter",IF(ISBLANK(InputA1A3[[#This Row],[Omräkningsfaktor (A5.2) (ange värde), (vid behov)]]),InputA1A3[[#This Row],[Mängd (A5.2)]]*InputA1A3[[#This Row],[*EF (A5.2) '[kg CO₂-ekv.']]],InputA1A3[[#This Row],[Mängd (A5.2)]]*InputA1A3[[#This Row],[*EF (A5.2) '[kg CO₂-ekv.']]]*InputA1A3[[#This Row],[Omräkningsfaktor (A5.2) (ange värde), (vid behov)]])),0) -> 0.2466 | CH12: =IF(OR(ISBLANK(InputA1A3[[#This Row],[Enhet för mängd (A5.2)]]),ISBLANK(InputA1A3[[#This Row],[*DU/FU (EF A5.2)]])),"",IF(OR(InputA1A3[[#This Row],[Enhet för mängd (A5.2)]]=InputA1A3[[#This Row],[*DU/FU (EF A5.2)]],AND(InputA1A3[[#This Row],[Enhet för mängd (A5.2)]]<>InputA1A3[[#This Row],[*DU/FU (EF A5.2)]],ISNUMBER(InputA1A3[[#This Row],[Omräkningsfaktor (A5.2) (ange värde), (vid behov)]]))),TRUE,FALSE)) -> TRUE | CI12: =IF(InputA1A3[[#This Row],[Enhet för mängd (A5.2)]] = InputA1A3[[#This Row],[*DU/FU (EF A5.2)]], TRUE, FALSE) -> FALSE | CJ12: =IF(OR(ISBLANK(InputA1A3[[#This Row],[Kategori (egen kategorisering)]])=FALSE,ISBLANK(InputA1A3[[#This Row],[Anläggningsdel ]]))=FALSE,TRUE,FALSE) -> FALSE | CK12: =IF(ISBLANK(InputA1A3[[#This Row],[Anläggningsdel ]]),"",IF(KontrollTabell[[#This Row],[TRUE/FALSE om kategori saknas.]] =FALSE,InputA1A3[[#This Row],[Kategori (egen kategorisering)]],"Kategori saknas")) -> kat2
B13: agh | C13: övrigt | F13: 8645 | G13: [st] | H13: 803 | I13: [st] | J13: =IF(ISBLANK(InputA1A3[[#This Row],[Anläggningsdel ]]),"",IF(KontrollTabell[[#This Row],[True/False A1A3 Enhet]]=TRUE, "", InputA1A3[[#This Row],[FU/DU (EF A1A3)]] & "/" & InputA1A3[[#This Row],[Enhet Mängd (A1A3)]])) ->  | O13: =IF(ISBLANK(InputA1A3[[#This Row],[EPD - EF A4]]),"",InputA1A3[[#This Row],[FU/DU (EF A1A3)]]) ->  | R13: HVO100 | S13: =IFERROR(INDEX(TabellEFDrivmedel[],MATCH(InputA1A3[[#This Row],[Drivmedel (A4) (endast förval ur lista)]],TabellEFDrivmedel[Drivmedel],0),4),"") -> [Liter (l)] | T13: 1000 | U13: 72 | V13: [m³] | W13: =IF(InputA1A3[[#This Row],[*DU/FU (EF A4) för valt drivmedel (schablon)]]="","",IF(KontrollTabell[[#This Row],[True/False A4 Enhet - Alt2]]=TRUE,"",IF(ISBLANK(InputA1A3[[#This Row],[*DU/FU (EF A4) för valt drivmedel (schablon)]]),,InputA1A3[[#This Row],[Enhet (bränsleförbrukning per km)]]& "/" & InputA1A3[[#This Row],[*DU/FU (EF A4) för valt drivmedel (schablon)]]))) ->  | X13: 34 | AE13: =IFERROR(INDEX(TabellEFDrivmedel[],MATCH(InputA1A3[[#This Row],[Drivmedel (A5.2)]],TabellEFDrivmedel[Drivmedel],0),2),"") ->  | AF13: =IFERROR(INDEX(TabellEFDrivmedel[],MATCH(InputA1A3[[#This Row],[Drivmedel (A5.2)]],TabellEFDrivmedel[Drivmedel],0),4),"") ->  | AG13: =IF(KontrollTabell[[#This Row],[True/False A5 Enhet]]=TRUE, "", InputA1A3[[#This Row],[*DU/FU (EF A5.2)]] & "/" & InputA1A3[[#This Row],[Enhet för mängd (A5.2)]]) ->  | BV13: =IF(ISBLANK(InputA1A3[[#This Row],[Anläggningsdel ]]),FALSE,TRUE) -> TRUE | BW13: =IF(ISBLANK(InputA1A3[[#This Row],[Anläggningsdel ]]),"",IF(InputA1A3[[#This Row],[Enhet Mängd (A1A3)]] = InputA1A3[[#This Row],[FU/DU (EF A1A3)]], TRUE, FALSE)) -> TRUE | BX13: =IF(KontrollTabell[[#This Row],[Finns anläggningsdel-namn.]]=FALSE,"",IF(KontrollTabell[[#This Row],[True/False A1A3 Enhet]]=TRUE,TRUE,IF(ISBLANK(InputA1A3[[#This Row],[Omräkning till FU/DU (Skriv in värde, ej formel)]]),FALSE,TRUE))) -> TRUE | BY13: =IF(KontrollTabell[[#This Row],[Finns anläggningsdel-namn.]]=FALSE,,IF(KontrollTabell[[#This Row],[True/False A1A3 Enhet]]=TRUE,InputA1A3[[#This Row],[Mängd A1A3]]*InputA1A3[[#This Row],[EF A1A3 '[kg CO₂-ekv.']]],IF(KontrollTabell[[#This Row],[True/False A1A3 om A1A3 kan beräknas]]=TRUE,InputA1A3[[#This Row],[Mängd A1A3]]*InputA1A3[[#This Row],[EF A1A3 '[kg CO₂-ekv.']]]*InputA1A3[[#This Row],[Omräkning till FU/DU (Skriv in värde, ej formel)]],"Värde Behövs"))) -> 6941935 | BZ13: =IF(ISBLANK(InputA1A3[[#This Row],[Anläggningsdel ]]),"",IF(ISBLANK(InputA1A3[[#This Row],[EPD - EF A4]]),FALSE,TRUE)) -> FALSE | CA13: =IF(OR(ISBLANK(InputA1A3[[#This Row],[Enhet (bränsleförbrukning per km)]]),ISBLANK(InputA1A3[[#This Row],[*DU/FU (EF A4) för valt drivmedel (schablon)]])),"",IF(OR(InputA1A3[[#This Row],[Enhet (bränsleförbrukning per km)]]=InputA1A3[[#This Row],[*DU/FU (EF A4) för valt drivmedel (schablon)]],AND(InputA1A3[[#This Row],[Enhet (bränsleförbrukning per km)]]<>InputA1A3[[#This Row],[*DU/FU (EF A4) för valt drivmedel (schablon)]],ISNUMBER(InputA1A3[[#This Row],[Omräkningsfaktor (A4), (vid behov, värde eller formel)]]))),TRUE(),FALSE())) -> TRUE | CB13: =IF(InputA1A3[[#This Row],[Enhet (bränsleförbrukning per km)]] =InputA1A3[[#This Row],[*DU/FU (EF A4) för valt drivmedel (schablon)]],TRUE,IF(ISBLANK(InputA1A3[[#This Row],[Omräkningsfaktor (A4), (vid behov, värde eller formel)]]),FALSE,TRUE)) -> TRUE | CC13: =IF(ISBLANK(InputA1A3[[#This Row],[EPD - EF A4]]),"",IF(ISBLANK(InputA1A3[[#This Row],[Omräkning till FU/DU (Skriv in värde, ej formel)]]),InputA1A3[[#This Row],[EPD - EF A4]]*InputA1A3[[#This Row],[Mängd A1A3]],InputA1A3[[#This Row],[Mängd A1A3]]*InputA1A3[[#This Row],[Omräkning till FU/DU (Skriv in värde, ej formel)]]*InputA1A3[[#This Row],[EPD - EF A4]])) ->  | CD13: =IF(ISBLANK(KontrollTabell[[#This Row],[True/False A4 - Alt 2]]),"",IF(KontrollTabell[[#This Row],[True/False A4 Enhet - Alt2]]=TRUE,InputA1A3[[#This Row],[Sträcka - totalt '[km'], (tur och retur, alla transporter)]]*InputA1A3[[#This Row],[(Bränsle-) Förbrukning per km]],"Sen då")) -> 72000 | CE13: =SUM(KontrollTabell[[#This Row],[A4 - Resultat alt 1 '[kg']]:[A4 - Alt 2 - beräkning utsläpp]]) -> 72000 | CF13: =IF(ISBLANK(InputA1A3[[#This Row],[EPD - EF A4]]),FALSE,TRUE) -> FALSE | CG13: =IFERROR(IF(KontrollTabell[[#This Row],[True/False A5]]=FALSE(),"Enheter",IF(ISBLANK(InputA1A3[[#This Row],[Omräkningsfaktor (A5.2) (ange värde), (vid behov)]]),InputA1A3[[#This Row],[Mängd (A5.2)]]*InputA1A3[[#This Row],[*EF (A5.2) '[kg CO₂-ekv.']]],InputA1A3[[#This Row],[Mängd (A5.2)]]*InputA1A3[[#This Row],[*EF (A5.2) '[kg CO₂-ekv.']]]*InputA1A3[[#This Row],[Omräkningsfaktor (A5.2) (ange värde), (vid behov)]])),0) -> 0 | CH13: =IF(OR(ISBLANK(InputA1A3[[#This Row],[Enhet för mängd (A5.2)]]),ISBLANK(InputA1A3[[#This Row],[*DU/FU (EF A5.2)]])),"",IF(OR(InputA1A3[[#This Row],[Enhet för mängd (A5.2)]]=InputA1A3[[#This Row],[*DU/FU (EF A5.2)]],AND(InputA1A3[[#This Row],[Enhet för mängd (A5.2)]]<>InputA1A3[[#This Row],[*DU/FU (EF A5.2)]],ISNUMBER(InputA1A3[[#This Row],[Omräkningsfaktor (A5.2) (ange värde), (vid behov)]]))),TRUE,FALSE)) ->  | CI13: =IF(InputA1A3[[#This Row],[Enhet för mängd (A5.2)]] = InputA1A3[[#This Row],[*DU/FU (EF A5.2)]], TRUE, FALSE) -> TRUE | CJ13: =IF(OR(ISBLANK(InputA1A3[[#This Row],[Kategori (egen kategorisering)]])=FALSE,ISBLANK(InputA1A3[[#This Row],[Anläggningsdel ]]))=FALSE,TRUE,FALSE) -> FALSE | CK13: =IF(ISBLANK(InputA1A3[[#This Row],[Anläggningsdel ]]),"",IF(KontrollTabell[[#This Row],[TRUE/FALSE om kategori saknas.]] =FALSE,InputA1A3[[#This Row],[Kategori (egen kategorisering)]],"Kategori saknas")) -> övrigt
B14: ggq | F14: 650 | G14: [Liter (l)] | H14: 1.2 | I14: [m³] | J14: =IF(ISBLANK(InputA1A3[[#This Row],[Anläggningsdel ]]),"",IF(KontrollTabell[[#This Row],[True/False A1A3 Enhet]]=TRUE, "", InputA1A3[[#This Row],[FU/DU (EF A1A3)]] & "/" & InputA1A3[[#This Row],[Enhet Mängd (A1A3)]])) -> [m³]/[Liter (l)] | K14: 45 | N14: 8.42 | O14: =IF(ISBLANK(InputA1A3[[#This Row],[EPD - EF A4]]),"",InputA1A3[[#This Row],[FU/DU (EF A1A3)]]) -> [m³] | S14: =IFERROR(INDEX(TabellEFDrivmedel[],MATCH(InputA1A3[[#This Row],[Drivmedel (A4) (endast förval ur lista)]],TabellEFDrivmedel[Drivmedel],0),4),"") ->  | W14: =IF(InputA1A3[[#This Row],[*DU/FU (EF A4) för valt drivmedel (schablon)]]="","",IF(KontrollTabell[[#This Row],[True/False A4 Enhet - Alt2]]=TRUE,"",IF(ISBLANK(InputA1A3[[#This Row],[*DU/FU (EF A4) för valt drivmedel (schablon)]]),,InputA1A3[[#This Row],[Enhet (bränsleförbrukning per km)]]& "/" & InputA1A3[[#This Row],[*DU/FU (EF A4) för valt drivmedel (schablon)]]))) ->  | AE14: =IFERROR(INDEX(TabellEFDrivmedel[],MATCH(InputA1A3[[#This Row],[Drivmedel (A5.2)]],TabellEFDrivmedel[Drivmedel],0),2),"") ->  | AF14: =IFERROR(INDEX(TabellEFDrivmedel[],MATCH(InputA1A3[[#This Row],[Drivmedel (A5.2)]],TabellEFDrivmedel[Drivmedel],0),4),"") ->  | AG14: =IF(KontrollTabell[[#This Row],[True/False A5 Enhet]]=TRUE, "", InputA1A3[[#This Row],[*DU/FU (EF A5.2)]] & "/" & InputA1A3[[#This Row],[Enhet för mängd (A5.2)]]) ->  | BV14: =IF(ISBLANK(InputA1A3[[#This Row],[Anläggningsdel ]]),FALSE,TRUE) -> TRUE | BW14: =IF(ISBLANK(InputA1A3[[#This Row],[Anläggningsdel ]]),"",IF(InputA1A3[[#This Row],[Enhet Mängd (A1A3)]] = InputA1A3[[#This Row],[FU/DU (EF A1A3)]], TRUE, FALSE)) -> FALSE | BX14: =IF(KontrollTabell[[#This Row],[Finns anläggningsdel-namn.]]=FALSE,"",IF(KontrollTabell[[#This Row],[True/False A1A3 Enhet]]=TRUE,TRUE,IF(ISBLANK(InputA1A3[[#This Row],[Omräkning till FU/DU (Skriv in värde, ej formel)]]),FALSE,TRUE))) -> TRUE | BY14: =IF(KontrollTabell[[#This Row],[Finns anläggningsdel-namn.]]=FALSE,,IF(KontrollTabell[[#This Row],[True/False A1A3 Enhet]]=TRUE,InputA1A3[[#This Row],[Mängd A1A3]]*InputA1A3[[#This Row],[EF A1A3 '[kg CO₂-ekv.']]],IF(KontrollTabell[[#This Row],[True/False A1A3 om A1A3 kan beräknas]]=TRUE,InputA1A3[[#This Row],[Mängd A1A3]]*InputA1A3[[#This Row],[EF A1A3 '[kg CO₂-ekv.']]]*InputA1A3[[#This Row],[Omräkning till FU/DU (Skriv in värde, ej formel)]],"Värde Behövs"))) -> 35100 | BZ14: =IF(ISBLANK(InputA1A3[[#This Row],[Anläggningsdel ]]),"",IF(ISBLANK(InputA1A3[[#This Row],[EPD - EF A4]]),FALSE,TRUE)) -> TRUE | CA14: =IF(OR(ISBLANK(InputA1A3[[#This Row],[Enhet (bränsleförbrukning per km)]]),ISBLANK(InputA1A3[[#This Row],[*DU/FU (EF A4) för valt drivmedel (schablon)]])),"",IF(OR(InputA1A3[[#This Row],[Enhet (bränsleförbrukning per km)]]=InputA1A3[[#This Row],[*DU/FU (EF A4) för valt drivmedel (schablon)]],AND(InputA1A3[[#This Row],[Enhet (bränsleförbrukning per km)]]<>InputA1A3[[#This Row],[*DU/FU (EF A4) för valt drivmedel (schablon)]],ISNUMBER(InputA1A3[[#This Row],[Omräkningsfaktor (A4), (vid behov, värde eller formel)]]))),TRUE(),FALSE())) ->  | CB14: =IF(InputA1A3[[#This Row],[Enhet (bränsleförbrukning per km)]] =InputA1A3[[#This Row],[*DU/FU (EF A4) för valt drivmedel (schablon)]],TRUE,IF(ISBLANK(InputA1A3[[#This Row],[Omräkningsfaktor (A4), (vid behov, värde eller formel)]]),FALSE,TRUE)) -> TRUE | CC14: =IF(ISBLANK(InputA1A3[[#This Row],[EPD - EF A4]]),"",IF(ISBLANK(InputA1A3[[#This Row],[Omräkning till FU/DU (Skriv in värde, ej formel)]]),InputA1A3[[#This Row],[EPD - EF A4]]*InputA1A3[[#This Row],[Mängd A1A3]],InputA1A3[[#This Row],[Mängd A1A3]]*InputA1A3[[#This Row],[Omräkning till FU/DU (Skriv in värde, ej formel)]]*InputA1A3[[#This Row],[EPD - EF A4]])) -> 246285 | CD14: =IF(ISBLANK(KontrollTabell[[#This Row],[True/False A4 - Alt 2]]),"",IF(KontrollTabell[[#This Row],[True/False A4 Enhet - Alt2]]=TRUE,InputA1A3[[#This Row],[Sträcka - totalt '[km'], (tur och retur, alla transporter)]]*InputA1A3[[#This Row],[(Bränsle-) Förbrukning per km]],"Sen då")) -> 0 | CE14: =SUM(KontrollTabell[[#This Row],[A4 - Resultat alt 1 '[kg']]:[A4 - Alt 2 - beräkning utsläpp]]) -> 246285 | CF14: =IF(ISBLANK(InputA1A3[[#This Row],[EPD - EF A4]]),FALSE,TRUE) -> TRUE | CG14: =IFERROR(IF(KontrollTabell[[#This Row],[True/False A5]]=FALSE(),"Enheter",IF(ISBLANK(InputA1A3[[#This Row],[Omräkningsfaktor (A5.2) (ange värde), (vid behov)]]),InputA1A3[[#This Row],[Mängd (A5.2)]]*InputA1A3[[#This Row],[*EF (A5.2) '[kg CO₂-ekv.']]],InputA1A3[[#This Row],[Mängd (A5.2)]]*InputA1A3[[#This Row],[*EF (A5.2) '[kg CO₂-ekv.']]]*InputA1A3[[#This Row],[Omräkningsfaktor (A5.2) (ange värde), (vid behov)]])),0) -> 0 | CH14: =IF(OR(ISBLANK(InputA1A3[[#This Row],[Enhet för mängd (A5.2)]]),ISBLANK(InputA1A3[[#This Row],[*DU/FU (EF A5.2)]])),"",IF(OR(InputA1A3[[#This Row],[Enhet för mängd (A5.2)]]=InputA1A3[[#This Row],[*DU/FU (EF A5.2)]],AND(InputA1A3[[#This Row],[Enhet för mängd (A5.2)]]<>InputA1A3[[#This Row],[*DU/FU (EF A5.2)]],ISNUMBER(InputA1A3[[#This Row],[Omräkningsfaktor (A5.2) (ange värde), (vid behov)]]))),TRUE,FALSE)) ->  | CI14: =IF(InputA1A3[[#This Row],[Enhet för mängd (A5.2)]] = InputA1A3[[#This Row],[*DU/FU (EF A5.2)]], TRUE, FALSE) -> TRUE | CJ14: =IF(OR(ISBLANK(InputA1A3[[#This Row],[Kategori (egen kategorisering)]])=FALSE,ISBLANK(InputA1A3[[#This Row],[Anläggningsdel ]]))=FALSE,TRUE,FALSE) -> TRUE | CK14: =IF(ISBLANK(InputA1A3[[#This Row],[Anläggningsdel ]]),"",IF(KontrollTabell[[#This Row],[TRUE/FALSE om kategori saknas.]] =FALSE,InputA1A3[[#This Row],[Kategori (egen kategorisering)]],"Kategori saknas")) -> Kategori saknas
B15: Test A4_1 | C15: kat 3 | F15: 500 | G15: [st] | H15: 0.65 | I15: [kg] | J15: =IF(ISBLANK(InputA1A3[[#This Row],[Anläggningsdel ]]),"",IF(KontrollTabell[[#This Row],[True/False A1A3 Enhet]]=TRUE, "", InputA1A3[[#This Row],[FU/DU (EF A1A3)]] & "/" & InputA1A3[[#This Row],[Enhet Mängd (A1A3)]])) -> [kg]/[st] | K15: 2 | N15: 0.5 | O15: =IF(ISBLANK(InputA1A3[[#This Row],[EPD - EF A4]]),"",InputA1A3[[#This Row],[FU/DU (EF A1A3)]]) -> [kg] | P15: test | S15: =IFERROR(INDEX(TabellEFDrivmedel[],MATCH(InputA1A3[[#This Row],[Drivmedel (A4) (endast förval ur lista)]],TabellEFDrivmedel[Drivmedel],0),4),"") ->  | W15: =IF(InputA1A3[[#This Row],[*DU/FU (EF A4) för valt drivmedel (schablon)]]="","",IF(KontrollTabell[[#This Row],[True/False A4 Enhet - Alt2]]=TRUE,"",IF(ISBLANK(InputA1A3[[#This Row],[*DU/FU (EF A4) för valt drivmedel (schablon)]]),,InputA1A3[[#This Row],[Enhet (bränsleförbrukning per km)]]& "/" & InputA1A3[[#This Row],[*DU/FU (EF A4) för valt drivmedel (schablon)]]))) ->  | AE15: =IFERROR(INDEX(TabellEFDrivmedel[],MATCH(InputA1A3[[#This Row],[Drivmedel (A5.2)]],TabellEFDrivmedel[Drivmedel],0),2),"") ->  | AF15: =IFERROR(INDEX(TabellEFDrivmedel[],MATCH(InputA1A3[[#This Row],[Drivmedel (A5.2)]],TabellEFDrivmedel[Drivmedel],0),4),"") ->  | AG15: =IF(KontrollTabell[[#This Row],[True/False A5 Enhet]]=TRUE, "", InputA1A3[[#This Row],[*DU/FU (EF A5.2)]] & "/" & InputA1A3[[#This Row],[Enhet för mängd (A5.2)]]) ->  | BV15: =IF(ISBLANK(InputA1A3[[#This Row],[Anläggningsdel ]]),FALSE,TRUE) -> TRUE | BW15: =IF(ISBLANK(InputA1A3[[#This Row],[Anläggningsdel ]]),"",IF(InputA1A3[[#This Row],[Enhet Mängd (A1A3)]] = InputA1A3[[#This Row],[FU/DU (EF A1A3)]], TRUE, FALSE)) -> FALSE | BX15: =IF(KontrollTabell[[#This Row],[Finns anläggningsdel-namn.]]=FALSE,"",IF(KontrollTabell[[#This Row],[True/False A1A3 Enhet]]=TRUE,TRUE,IF(ISBLANK(InputA1A3[[#This Row],[Omräkning till FU/DU (Skriv in värde, ej formel)]]),FALSE,TRUE))) -> TRUE | BY15: =IF(KontrollTabell[[#This Row],[Finns anläggningsdel-namn.]]=FALSE,,IF(KontrollTabell[[#This Row],[True/False A1A3 Enhet]]=TRUE,InputA1A3[[#This Row],[Mängd A1A3]]*InputA1A3[[#This Row],[EF A1A3 '[kg CO₂-ekv.']]],IF(KontrollTabell[[#This Row],[True/False A1A3 om A1A3 kan beräknas]]=TRUE,InputA1A3[[#This Row],[Mängd A1A3]]*InputA1A3[[#This Row],[EF A1A3 '[kg CO₂-ekv.']]]*InputA1A3[[#This Row],[Omräkning till FU/DU (Skriv in värde, ej formel)]],"Värde Behövs"))) -> 650 | BZ15: =IF(ISBLANK(InputA1A3[[#This Row],[Anläggningsdel ]]),"",IF(ISBLANK(InputA1A3[[#This Row],[EPD - EF A4]]),FALSE,TRUE)) -> TRUE | CA15: =IF(OR(ISBLANK(InputA1A3[[#This Row],[Enhet (bränsleförbrukning per km)]]),ISBLANK(InputA1A3[[#This Row],[*DU/FU (EF A4) för valt drivmedel (schablon)]])),"",IF(OR(InputA1A3[[#This Row],[Enhet (bränsleförbrukning per km)]]=InputA1A3[[#This Row],[*DU/FU (EF A4) för valt drivmedel (schablon)]],AND(InputA1A3[[#This Row],[Enhet (bränsleförbrukning per km)]]<>InputA1A3[[#This Row],[*DU/FU (EF A4) för valt drivmedel (schablon)]],ISNUMBER(InputA1A3[[#This Row],[Omräkningsfaktor (A4), (vid behov, värde eller formel)]]))),TRUE(),FALSE())) ->  | CB15: =IF(InputA1A3[[#This Row],[Enhet (bränsleförbrukning per km)]] =InputA1A3[[#This Row],[*DU/FU (EF A4) för valt drivmedel (schablon)]],TRUE,IF(ISBLANK(InputA1A3[[#This Row],[Omräkningsfaktor (A4), (vid behov, värde eller formel)]]),FALSE,TRUE)) -> TRUE | CC15: =IF(ISBLANK(InputA1A3[[#This Row],[EPD - EF A4]]),"",IF(ISBLANK(InputA1A3[[#This Row],[Omräkning till FU/DU (Skriv in värde, ej formel)]]),InputA1A3[[#This Row],[EPD - EF A4]]*InputA1A3[[#This Row],[Mängd A1A3]],InputA1A3[[#This Row],[Mängd A1A3]]*InputA1A3[[#This Row],[Omräkning till FU/DU (Skriv in värde, ej formel)]]*InputA1A3[[#This Row],[EPD - EF A4]])) -> 500 | CD15: =IF(ISBLANK(KontrollTabell[[#This Row],[True/False A4 - Alt 2]]),"",IF(KontrollTabell[[#This Row],[True/False A4 Enhet - Alt2]]=TRUE,InputA1A3[[#This Row],[Sträcka - totalt '[km'], (tur och retur, alla transporter)]]*InputA1A3[[#This Row],[(Bränsle-) Förbrukning per km]],"Sen då")) -> 0 | CE15: =SUM(KontrollTabell[[#This Row],[A4 - Resultat alt 1 '[kg']]:[A4 - Alt 2 - beräkning utsläpp]]) -> 500 | CF15: =IF(ISBLANK(InputA1A3[[#This Row],[EPD - EF A4]]),FALSE,TRUE) -> TRUE | CG15: =IFERROR(IF(KontrollTabell[[#This Row],[True/False A5]]=FALSE(),"Enheter",IF(ISBLANK(InputA1A3[[#This Row],[Omräkningsfaktor (A5.2) (ange värde), (vid behov)]]),InputA1A3[[#This Row],[Mängd (A5.2)]]*InputA1A3[[#This Row],[*EF (A5.2) '[kg CO₂-ekv.']]],InputA1A3[[#This Row],[Mängd (A5.2)]]*InputA1A3[[#This Row],[*EF (A5.2) '[kg CO₂-ekv.']]]*InputA1A3[[#This Row],[Omräkningsfaktor (A5.2) (ange värde), (vid behov)]])),0) -> 0 | CH15: =IF(OR(ISBLANK(InputA1A3[[#This Row],[Enhet för mängd (A5.2)]]),ISBLANK(InputA1A3[[#This Row],[*DU/FU (EF A5.2)]])),"",IF(OR(InputA1A3[[#This Row],[Enhet för mängd (A5.2)]]=InputA1A3[[#This Row],[*DU/FU (EF A5.2)]],AND(InputA1A3[[#This Row],[Enhet för mängd (A5.2)]]<>InputA1A3[[#This Row],[*DU/FU (EF A5.2)]],ISNUMBER(InputA1A3[[#This Row],[Omräkningsfaktor (A5.2) (ange värde), (vid behov)]]))),TRUE,FALSE)) ->  | CI15: =IF(InputA1A3[[#This Row],[Enhet för mängd (A5.2)]] = InputA1A3[[#This Row],[*DU/FU (EF A5.2)]], TRUE, FALSE) -> TRUE | CJ15: =IF(OR(ISBLANK(InputA1A3[[#This Row],[Kategori (egen kategorisering)]])=FALSE,ISBLANK(InputA1A3[[#This Row],[Anläggningsdel ]]))=FALSE,TRUE,FALSE) -> FALSE | CK15: =IF(ISBLANK(InputA1A3[[#This Row],[Anläggningsdel ]]),"",IF(KontrollTabell[[#This Row],[TRUE/FALSE om kategori saknas.]] =FALSE,InputA1A3[[#This Row],[Kategori (egen kategorisering)]],"Kategori saknas")) -> kat 3
J16: =IF(ISBLANK(InputA1A3[[#This Row],[Anläggningsdel ]]),"",IF(KontrollTabell[[#This Row],[True/False A1A3 Enhet]]=TRUE, "", InputA1A3[[#This Row],[FU/DU (EF A1A3)]] & "/" & InputA1A3[[#This Row],[Enhet Mängd (A1A3)]])) ->  | O16: =IF(ISBLANK(InputA1A3[[#This Row],[EPD - EF A4]]),"",InputA1A3[[#This Row],[FU/DU (EF A1A3)]]) ->  | S16: =IFERROR(INDEX(TabellEFDrivmedel[],MATCH(InputA1A3[[#This Row],[Drivmedel (A4) (endast förval ur lista)]],TabellEFDrivmedel[Drivmedel],0),4),"") ->  | W16: =IF(InputA1A3[[#This Row],[*DU/FU (EF A4) för valt drivmedel (schablon)]]="","",IF(KontrollTabell[[#This Row],[True/False A4 Enhet - Alt2]]=TRUE,"",IF(ISBLANK(InputA1A3[[#This Row],[*DU/FU (EF A4) för valt drivmedel (schablon)]]),,InputA1A3[[#This Row],[Enhet (bränsleförbrukning per km)]]& "/" & InputA1A3[[#This Row],[*DU/FU (EF A4) för valt drivmedel (schablon)]]))) ->  | AE16: =IFERROR(INDEX(TabellEFDrivmedel[],MATCH(InputA1A3[[#This Row],[Drivmedel (A5.2)]],TabellEFDrivmedel[Drivmedel],0),2),"") ->  | AF16: =IFERROR(INDEX(TabellEFDrivmedel[],MATCH(InputA1A3[[#This Row],[Drivmedel (A5.2)]],TabellEFDrivmedel[Drivmedel],0),4),"") ->  | AG16: =IF(KontrollTabell[[#This Row],[True/False A5 Enhet]]=TRUE, "", InputA1A3[[#This Row],[*DU/FU (EF A5.2)]] & "/" & InputA1A3[[#This Row],[Enhet för mängd (A5.2)]]) ->  | BV16: =IF(ISBLANK(InputA1A3[[#This Row],[Anläggningsdel ]]),FALSE,TRUE) -> FALSE | BW16: =IF(ISBLANK(InputA1A3[[#This Row],[Anläggningsdel ]]),"",IF(InputA1A3[[#This Row],[Enhet Mängd (A1A3)]] = InputA1A3[[#This Row],[FU/DU (EF A1A3)]], TRUE, FALSE)) ->  | BX16: =IF(KontrollTabell[[#This Row],[Finns anläggningsdel-namn.]]=FALSE,"",IF(KontrollTabell[[#This Row],[True/False A1A3 Enhet]]=TRUE,TRUE,IF(ISBLANK(InputA1A3[[#This Row],[Omräkning till FU/DU (Skriv in värde, ej formel)]]),FALSE,TRUE))) ->  | BY16: =IF(KontrollTabell[[#This Row],[Finns anläggningsdel-namn.]]=FALSE,,IF(KontrollTabell[[#This Row],[True/False A1A3 Enhet]]=TRUE,InputA1A3[[#This Row],[Mängd A1A3]]*InputA1A3[[#This Row],[EF A1A3 '[kg CO₂-ekv.']]],IF(KontrollTabell[[#This Row],[True/False A1A3 om A1A3 kan beräknas]]=TRUE,InputA1A3[[#This Row],[Mängd A1A3]]*InputA1A3[[#This Row],[EF A1A3 '[kg CO₂-ekv.']]]*InputA1A3[[#This Row],[Omräkning till FU/DU (Skriv in värde, ej formel)]],"Värde Behövs"))) -> 0 | BZ16: =IF(ISBLANK(InputA1A3[[#This Row],[Anläggningsdel ]]),"",IF(ISBLANK(InputA1A3[[#This Row],[EPD - EF A4]]),FALSE,TRUE)) ->  | CA16: =IF(OR(ISBLANK(InputA1A3[[#This Row],[Enhet (bränsleförbrukning per km)]]),ISBLANK(InputA1A3[[#This Row],[*DU/FU (EF A4) för valt drivmedel (schablon)]])),"",IF(OR(InputA1A3[[#This Row],[Enhet (bränsleförbrukning per km)]]=InputA1A3[[#This Row],[*DU/FU (EF A4) för valt drivmedel (schablon)]],AND(InputA1A3[[#This Row],[Enhet (bränsleförbrukning per km)]]<>InputA1A3[[#This Row],[*DU/FU (EF A4) för valt drivmedel (schablon)]],ISNUMBER(InputA1A3[[#This Row],[Omräkningsfaktor (A4), (vid behov, värde eller formel)]]))),TRUE(),FALSE())) ->  | CB16: =IF(InputA1A3[[#This Row],[Enhet (bränsleförbrukning per km)]] =InputA1A3[[#This Row],[*DU/FU (EF A4) för valt drivmedel (schablon)]],TRUE,IF(ISBLANK(InputA1A3[[#This Row],[Omräkningsfaktor (A4), (vid behov, värde eller formel)]]),FALSE,TRUE)) -> TRUE | CC16: =IF(ISBLANK(InputA1A3[[#This Row],[EPD - EF A4]]),"",IF(ISBLANK(InputA1A3[[#This Row],[Omräkning till FU/DU (Skriv in värde, ej formel)]]),InputA1A3[[#This Row],[EPD - EF A4]]*InputA1A3[[#This Row],[Mängd A1A3]],InputA1A3[[#This Row],[Mängd A1A3]]*InputA1A3[[#This Row],[Omräkning till FU/DU (Skriv in värde, ej formel)]]*InputA1A3[[#This Row],[EPD - EF A4]])) ->  | CD16: =IF(ISBLANK(KontrollTabell[[#This Row],[True/False A4 - Alt 2]]),"",IF(KontrollTabell[[#This Row],[True/False A4 Enhet - Alt2]]=TRUE,InputA1A3[[#This Row],[Sträcka - totalt '[km'], (tur och retur, alla transporter)]]*InputA1A3[[#This Row],[(Bränsle-) Förbrukning per km]],"Sen då")) -> 0 | CE16: =SUM(KontrollTabell[[#This Row],[A4 - Resultat alt 1 '[kg']]:[A4 - Alt 2 - beräkning utsläpp]]) -> 0 | CF16: =IF(ISBLANK(InputA1A3[[#This Row],[EPD - EF A4]]),FALSE,TRUE) -> FALSE | CG16: =IFERROR(IF(KontrollTabell[[#This Row],[True/False A5]]=FALSE(),"Enheter",IF(ISBLANK(InputA1A3[[#This Row],[Omräkningsfaktor (A5.2) (ange värde), (vid behov)]]),InputA1A3[[#This Row],[Mängd (A5.2)]]*InputA1A3[[#This Row],[*EF (A5.2) '[kg CO₂-ekv.']]],InputA1A3[[#This Row],[Mängd (A5.2)]]*InputA1A3[[#This Row],[*EF (A5.2) '[kg CO₂-ekv.']]]*InputA1A3[[#This Row],[Omräkningsfaktor (A5.2) (ange värde), (vid behov)]])),0) -> 0 | CH16: =IF(OR(ISBLANK(InputA1A3[[#This Row],[Enhet för mängd (A5.2)]]),ISBLANK(InputA1A3[[#This Row],[*DU/FU (EF A5.2)]])),"",IF(OR(InputA1A3[[#This Row],[Enhet för mängd (A5.2)]]=InputA1A3[[#This Row],[*DU/FU (EF A5.2)]],AND(InputA1A3[[#This Row],[Enhet för mängd (A5.2)]]<>InputA1A3[[#This Row],[*DU/FU (EF A5.2)]],ISNUMBER(InputA1A3[[#This Row],[Omräkningsfaktor (A5.2) (ange värde), (vid behov)]]))),TRUE,FALSE)) ->  | CI16: =IF(InputA1A3[[#This Row],[Enhet för mängd (A5.2)]] = InputA1A3[[#This Row],[*DU/FU (EF A5.2)]], TRUE, FALSE) -> TRUE | CJ16: =IF(OR(ISBLANK(InputA1A3[[#This Row],[Kategori (egen kategorisering)]])=FALSE,ISBLANK(InputA1A3[[#This Row],[Anläggningsdel ]]))=FALSE,TRUE,FALSE) -> FALSE | CK16: =IF(ISBLANK(InputA1A3[[#This Row],[Anläggningsdel ]]),"",IF(KontrollTabell[[#This Row],[TRUE/FALSE om kategori saknas.]] =FALSE,InputA1A3[[#This Row],[Kategori (egen kategorisering)]],"Kategori saknas")) -> 
J17: =IF(ISBLANK(InputA1A3[[#This Row],[Anläggningsdel ]]),"",IF(KontrollTabell[[#This Row],[True/False A1A3 Enhet]]=TRUE, "", InputA1A3[[#This Row],[FU/DU (EF A1A3)]] & "/" & InputA1A3[[#This Row],[Enhet Mängd (A1A3)]])) ->  | O17: =IF(ISBLANK(InputA1A3[[#This Row],[EPD - EF A4]]),"",InputA1A3[[#This Row],[FU/DU (EF A1A3)]]) ->  | S17: =IFERROR(INDEX(TabellEFDrivmedel[],MATCH(InputA1A3[[#This Row],[Drivmedel (A4) (endast förval ur lista)]],TabellEFDrivmedel[Drivmedel],0),4),"") ->  | W17: =IF(InputA1A3[[#This Row],[*DU/FU (EF A4) för valt drivmedel (schablon)]]="","",IF(KontrollTabell[[#This Row],[True/False A4 Enhet - Alt2]]=TRUE,"",IF(ISBLANK(InputA1A3[[#This Row],[*DU/FU (EF A4) för valt drivmedel (schablon)]]),,InputA1A3[[#This Row],[Enhet (bränsleförbrukning per km)]]& "/" & InputA1A3[[#This Row],[*DU/FU (EF A4) för valt drivmedel (schablon)]]))) ->  | AE17: =IFERROR(INDEX(TabellEFDrivmedel[],MATCH(InputA1A3[[#This Row],[Drivmedel (A5.2)]],TabellEFDrivmedel[Drivmedel],0),2),"") ->  | AF17: =IFERROR(INDEX(TabellEFDrivmedel[],MATCH(InputA1A3[[#This Row],[Drivmedel (A5.2)]],TabellEFDrivmedel[Drivmedel],0),4),"") ->  | AG17: =IF(KontrollTabell[[#This Row],[True/False A5 Enhet]]=TRUE, "", InputA1A3[[#This Row],[*DU/FU (EF A5.2)]] & "/" & InputA1A3[[#This Row],[Enhet för mängd (A5.2)]]) ->  | BV17: =IF(ISBLANK(InputA1A3[[#This Row],[Anläggningsdel ]]),FALSE,TRUE) -> FALSE | BW17: =IF(ISBLANK(InputA1A3[[#This Row],[Anläggningsdel ]]),"",IF(InputA1A3[[#This Row],[Enhet Mängd (A1A3)]] = InputA1A3[[#This Row],[FU/DU (EF A1A3)]], TRUE, FALSE)) ->  | BX17: =IF(KontrollTabell[[#This Row],[Finns anläggningsdel-namn.]]=FALSE,"",IF(KontrollTabell[[#This Row],[True/False A1A3 Enhet]]=TRUE,TRUE,IF(ISBLANK(InputA1A3[[#This Row],[Omräkning till FU/DU (Skriv in värde, ej formel)]]),FALSE,TRUE))) ->  | BY17: =IF(KontrollTabell[[#This Row],[Finns anläggningsdel-namn.]]=FALSE,,IF(KontrollTabell[[#This Row],[True/False A1A3 Enhet]]=TRUE,InputA1A3[[#This Row],[Mängd A1A3]]*InputA1A3[[#This Row],[EF A1A3 '[kg CO₂-ekv.']]],IF(KontrollTabell[[#This Row],[True/False A1A3 om A1A3 kan beräknas]]=TRUE,InputA1A3[[#This Row],[Mängd A1A3]]*InputA1A3[[#This Row],[EF A1A3 '[kg CO₂-ekv.']]]*InputA1A3[[#This Row],[Omräkning till FU/DU (Skriv in värde, ej formel)]],"Värde Behövs"))) -> 0 | BZ17: =IF(ISBLANK(InputA1A3[[#This Row],[Anläggningsdel ]]),"",IF(ISBLANK(InputA1A3[[#This Row],[EPD - EF A4]]),FALSE,TRUE)) ->  | CA17: =IF(OR(ISBLANK(InputA1A3[[#This Row],[Enhet (bränsleförbrukning per km)]]),ISBLANK(InputA1A3[[#This Row],[*DU/FU (EF A4) för valt drivmedel (schablon)]])),"",IF(OR(InputA1A3[[#This Row],[Enhet (bränsleförbrukning per km)]]=InputA1A3[[#This Row],[*DU/FU (EF A4) för valt drivmedel (schablon)]],AND(InputA1A3[[#This Row],[Enhet (bränsleförbrukning per km)]]<>InputA1A3[[#This Row],[*DU/FU (EF A4) för valt drivmedel (schablon)]],ISNUMBER(InputA1A3[[#This Row],[Omräkningsfaktor (A4), (vid behov, värde eller formel)]]))),TRUE(),FALSE())) ->  | CB17: =IF(InputA1A3[[#This Row],[Enhet (bränsleförbrukning per km)]] =InputA1A3[[#This Row],[*DU/FU (EF A4) för valt drivmedel (schablon)]],TRUE,IF(ISBLANK(InputA1A3[[#This Row],[Omräkningsfaktor (A4), (vid behov, värde eller formel)]]),FALSE,TRUE)) -> TRUE | CC17: =IF(ISBLANK(InputA1A3[[#This Row],[EPD - EF A4]]),"",IF(ISBLANK(InputA1A3[[#This Row],[Omräkning till FU/DU (Skriv in värde, ej formel)]]),InputA1A3[[#This Row],[EPD - EF A4]]*InputA1A3[[#This Row],[Mängd A1A3]],InputA1A3[[#This Row],[Mängd A1A3]]*InputA1A3[[#This Row],[Omräkning till FU/DU (Skriv in värde, ej formel)]]*InputA1A3[[#This Row],[EPD - EF A4]])) ->  | CD17: =IF(ISBLANK(KontrollTabell[[#This Row],[True/False A4 - Alt 2]]),"",IF(KontrollTabell[[#This Row],[True/False A4 Enhet - Alt2]]=TRUE,InputA1A3[[#This Row],[Sträcka - totalt '[km'], (tur och retur, alla transporter)]]*InputA1A3[[#This Row],[(Bränsle-) Förbrukning per km]],"Sen då")) -> 0 | CE17: =SUM(KontrollTabell[[#This Row],[A4 - Resultat alt 1 '[kg']]:[A4 - Alt 2 - beräkning utsläpp]]) -> 0 | CF17: =IF(ISBLANK(InputA1A3[[#This Row],[EPD - EF A4]]),FALSE,TRUE) -> FALSE | CG17: =IFERROR(IF(KontrollTabell[[#This Row],[True/False A5]]=FALSE(),"Enheter",IF(ISBLANK(InputA1A3[[#This Row],[Omräkningsfaktor (A5.2) (ange värde), (vid behov)]]),InputA1A3[[#This Row],[Mängd (A5.2)]]*InputA1A3[[#This Row],[*EF (A5.2) '[kg CO₂-ekv.']]],InputA1A3[[#This Row],[Mängd (A5.2)]]*InputA1A3[[#This Row],[*EF (A5.2) '[kg CO₂-ekv.']]]*InputA1A3[[#This Row],[Omräkningsfaktor (A5.2) (ange värde), (vid behov)]])),0) -> 0 | CH17: =IF(OR(ISBLANK(InputA1A3[[#This Row],[Enhet för mängd (A5.2)]]),ISBLANK(InputA1A3[[#This Row],[*DU/FU (EF A5.2)]])),"",IF(OR(InputA1A3[[#This Row],[Enhet för mängd (A5.2)]]=InputA1A3[[#This Row],[*DU/FU (EF A5.2)]],AND(InputA1A3[[#This Row],[Enhet för mängd (A5.2)]]<>InputA1A3[[#This Row],[*DU/FU (EF A5.2)]],ISNUMBER(InputA1A3[[#This Row],[Omräkningsfaktor (A5.2) (ange värde), (vid behov)]]))),TRUE,FALSE)) ->  | CI17: =IF(InputA1A3[[#This Row],[Enhet för mängd (A5.2)]] = InputA1A3[[#This Row],[*DU/FU (EF A5.2)]], TRUE, FALSE) -> TRUE | CJ17: =IF(OR(ISBLANK(InputA1A3[[#This Row],[Kategori (egen kategorisering)]])=FALSE,ISBLANK(InputA1A3[[#This Row],[Anläggningsdel ]]))=FALSE,TRUE,FALSE) -> FALSE | CK17: =IF(ISBLANK(InputA1A3[[#This Row],[Anläggningsdel ]]),"",IF(KontrollTabell[[#This Row],[TRUE/FALSE om kategori saknas.]] =FALSE,InputA1A3[[#This Row],[Kategori (egen kategorisering)]],"Kategori saknas")) -> 
J18: =IF(ISBLANK(InputA1A3[[#This Row],[Anläggningsdel ]]),"",IF(KontrollTabell[[#This Row],[True/False A1A3 Enhet]]=TRUE, "", InputA1A3[[#This Row],[FU/DU (EF A1A3)]] & "/" & InputA1A3[[#This Row],[Enhet Mängd (A1A3)]])) ->  | O18: =IF(ISBLANK(InputA1A3[[#This Row],[EPD - EF A4]]),"",InputA1A3[[#This Row],[FU/DU (EF A1A3)]]) ->  | S18: =IFERROR(INDEX(TabellEFDrivmedel[],MATCH(InputA1A3[[#This Row],[Drivmedel (A4) (endast förval ur lista)]],TabellEFDrivmedel[Drivmedel],0),4),"") ->  | W18: =IF(InputA1A3[[#This Row],[*DU/FU (EF A4) för valt drivmedel (schablon)]]="","",IF(KontrollTabell[[#This Row],[True/False A4 Enhet - Alt2]]=TRUE,"",IF(ISBLANK(InputA1A3[[#This Row],[*DU/FU (EF A4) för valt drivmedel (schablon)]]),,InputA1A3[[#This Row],[Enhet (bränsleförbrukning per km)]]& "/" & InputA1A3[[#This Row],[*DU/FU (EF A4) för valt drivmedel (schablon)]]))) ->  | AE18: =IFERROR(INDEX(TabellEFDrivmedel[],MATCH(InputA1A3[[#This Row],[Drivmedel (A5.2)]],TabellEFDrivmedel[Drivmedel],0),2),"") ->  | AF18: =IFERROR(INDEX(TabellEFDrivmedel[],MATCH(InputA1A3[[#This Row],[Drivmedel (A5.2)]],TabellEFDrivmedel[Drivmedel],0),4),"") ->  | AG18: =IF(KontrollTabell[[#This Row],[True/False A5 Enhet]]=TRUE, "", InputA1A3[[#This Row],[*DU/FU (EF A5.2)]] & "/" & InputA1A3[[#This Row],[Enhet för mängd (A5.2)]]) ->  | BV18: =IF(ISBLANK(InputA1A3[[#This Row],[Anläggningsdel ]]),FALSE,TRUE) -> FALSE | BW18: =IF(ISBLANK(InputA1A3[[#This Row],[Anläggningsdel ]]),"",IF(InputA1A3[[#This Row],[Enhet Mängd (A1A3)]] = InputA1A3[[#This Row],[FU/DU (EF A1A3)]], TRUE, FALSE)) ->  | BX18: =IF(KontrollTabell[[#This Row],[Finns anläggningsdel-namn.]]=FALSE,"",IF(KontrollTabell[[#This Row],[True/False A1A3 Enhet]]=TRUE,TRUE,IF(ISBLANK(InputA1A3[[#This Row],[Omräkning till FU/DU (Skriv in värde, ej formel)]]),FALSE,TRUE))) ->  | BY18: =IF(KontrollTabell[[#This Row],[Finns anläggningsdel-namn.]]=FALSE,,IF(KontrollTabell[[#This Row],[True/False A1A3 Enhet]]=TRUE,InputA1A3[[#This Row],[Mängd A1A3]]*InputA1A3[[#This Row],[EF A1A3 '[kg CO₂-ekv.']]],IF(KontrollTabell[[#This Row],[True/False A1A3 om A1A3 kan beräknas]]=TRUE,InputA1A3[[#This Row],[Mängd A1A3]]*InputA1A3[[#This Row],[EF A1A3 '[kg CO₂-ekv.']]]*InputA1A3[[#This Row],[Omräkning till FU/DU (Skriv in värde, ej formel)]],"Värde Behövs"))) -> 0 | BZ18: =IF(ISBLANK(InputA1A3[[#This Row],[Anläggningsdel ]]),"",IF(ISBLANK(InputA1A3[[#This Row],[EPD - EF A4]]),FALSE,TRUE)) ->  | CA18: =IF(OR(ISBLANK(InputA1A3[[#This Row],[Enhet (bränsleförbrukning per km)]]),ISBLANK(InputA1A3[[#This Row],[*DU/FU (EF A4) för valt drivmedel (schablon)]])),"",IF(OR(InputA1A3[[#This Row],[Enhet (bränsleförbrukning per km)]]=InputA1A3[[#This Row],[*DU/FU (EF A4) för valt drivmedel (schablon)]],AND(InputA1A3[[#This Row],[Enhet (bränsleförbrukning per km)]]<>InputA1A3[[#This Row],[*DU/FU (EF A4) för valt drivmedel (schablon)]],ISNUMBER(InputA1A3[[#This Row],[Omräkningsfaktor (A4), (vid behov, värde eller formel)]]))),TRUE(),FALSE())) ->  | CB18: =IF(InputA1A3[[#This Row],[Enhet (bränsleförbrukning per km)]] =InputA1A3[[#This Row],[*DU/FU (EF A4) för valt drivmedel (schablon)]],TRUE,IF(ISBLANK(InputA1A3[[#This Row],[Omräkningsfaktor (A4), (vid behov, värde eller formel)]]),FALSE,TRUE)) -> TRUE | CC18: =IF(ISBLANK(InputA1A3[[#This Row],[EPD - EF A4]]),"",IF(ISBLANK(InputA1A3[[#This Row],[Omräkning till FU/DU (Skriv in värde, ej formel)]]),InputA1A3[[#This Row],[EPD - EF A4]]*InputA1A3[[#This Row],[Mängd A1A3]],InputA1A3[[#This Row],[Mängd A1A3]]*InputA1A3[[#This Row],[Omräkning till FU/DU (Skriv in värde, ej formel)]]*InputA1A3[[#This Row],[EPD - EF A4]])) ->  | CD18: =IF(ISBLANK(KontrollTabell[[#This Row],[True/False A4 - Alt 2]]),"",IF(KontrollTabell[[#This Row],[True/False A4 Enhet - Alt2]]=TRUE,InputA1A3[[#This Row],[Sträcka - totalt '[km'], (tur och retur, alla transporter)]]*InputA1A3[[#This Row],[(Bränsle-) Förbrukning per km]],"Sen då")) -> 0 | CE18: =SUM(KontrollTabell[[#This Row],[A4 - Resultat alt 1 '[kg']]:[A4 - Alt 2 - beräkning utsläpp]]) -> 0 | CF18: =IF(ISBLANK(InputA1A3[[#This Row],[EPD - EF A4]]),FALSE,TRUE) -> FALSE | CG18: =IFERROR(IF(KontrollTabell[[#This Row],[True/False A5]]=FALSE(),"Enheter",IF(ISBLANK(InputA1A3[[#This Row],[Omräkningsfaktor (A5.2) (ange värde), (vid behov)]]),InputA1A3[[#This Row],[Mängd (A5.2)]]*InputA1A3[[#This Row],[*EF (A5.2) '[kg CO₂-ekv.']]],InputA1A3[[#This Row],[Mängd (A5.2)]]*InputA1A3[[#This Row],[*EF (A5.2) '[kg CO₂-ekv.']]]*InputA1A3[[#This Row],[Omräkningsfaktor (A5.2) (ange värde), (vid behov)]])),0) -> 0 | CH18: =IF(OR(ISBLANK(InputA1A3[[#This Row],[Enhet för mängd (A5.2)]]),ISBLANK(InputA1A3[[#This Row],[*DU/FU (EF A5.2)]])),"",IF(OR(InputA1A3[[#This Row],[Enhet för mängd (A5.2)]]=InputA1A3[[#This Row],[*DU/FU (EF A5.2)]],AND(InputA1A3[[#This Row],[Enhet för mängd (A5.2)]]<>InputA1A3[[#This Row],[*DU/FU (EF A5.2)]],ISNUMBER(InputA1A3[[#This Row],[Omräkningsfaktor (A5.2) (ange värde), (vid behov)]]))),TRUE,FALSE)) ->  | CI18: =IF(InputA1A3[[#This Row],[Enhet för mängd (A5.2)]] = InputA1A3[[#This Row],[*DU/FU (EF A5.2)]], TRUE, FALSE) -> TRUE | CJ18: =IF(OR(ISBLANK(InputA1A3[[#This Row],[Kategori (egen kategorisering)]])=FALSE,ISBLANK(InputA1A3[[#This Row],[Anläggningsdel ]]))=FALSE,TRUE,FALSE) -> FALSE | CK18: =IF(ISBLANK(InputA1A3[[#This Row],[Anläggningsdel ]]),"",IF(KontrollTabell[[#This Row],[TRUE/FALSE om kategori saknas.]] =FALSE,InputA1A3[[#This Row],[Kategori (egen kategorisering)]],"Kategori saknas")) -> 
J19: =IF(ISBLANK(InputA1A3[[#This Row],[Anläggningsdel ]]),"",IF(KontrollTabell[[#This Row],[True/False A1A3 Enhet]]=TRUE, "", InputA1A3[[#This Row],[FU/DU (EF A1A3)]] & "/" & InputA1A3[[#This Row],[Enhet Mängd (A1A3)]])) ->  | O19: =IF(ISBLANK(InputA1A3[[#This Row],[EPD - EF A4]]),"",InputA1A3[[#This Row],[FU/DU (EF A1A3)]]) ->  | S19: =IFERROR(INDEX(TabellEFDrivmedel[],MATCH(InputA1A3[[#This Row],[Drivmedel (A4) (endast förval ur lista)]],TabellEFDrivmedel[Drivmedel],0),4),"") ->  | W19: =IF(InputA1A3[[#This Row],[*DU/FU (EF A4) för valt drivmedel (schablon)]]="","",IF(KontrollTabell[[#This Row],[True/False A4 Enhet - Alt2]]=TRUE,"",IF(ISBLANK(InputA1A3[[#This Row],[*DU/FU (EF A4) för valt drivmedel (schablon)]]),,InputA1A3[[#This Row],[Enhet (bränsleförbrukning per km)]]& "/" & InputA1A3[[#This Row],[*DU/FU (EF A4) för valt drivmedel (schablon)]]))) ->  | AE19: =IFERROR(INDEX(TabellEFDrivmedel[],MATCH(InputA1A3[[#This Row],[Drivmedel (A5.2)]],TabellEFDrivmedel[Drivmedel],0),2),"") ->  | AF19: =IFERROR(INDEX(TabellEFDrivmedel[],MATCH(InputA1A3[[#This Row],[Drivmedel (A5.2)]],TabellEFDrivmedel[Drivmedel],0),4),"") ->  | AG19: =IF(KontrollTabell[[#This Row],[True/False A5 Enhet]]=TRUE, "", InputA1A3[[#This Row],[*DU/FU (EF A5.2)]] & "/" & InputA1A3[[#This Row],[Enhet för mängd (A5.2)]]) ->  | BV19: =IF(ISBLANK(InputA1A3[[#This Row],[Anläggningsdel ]]),FALSE,TRUE) -> FALSE | BW19: =IF(ISBLANK(InputA1A3[[#This Row],[Anläggningsdel ]]),"",IF(InputA1A3[[#This Row],[Enhet Mängd (A1A3)]] = InputA1A3[[#This Row],[FU/DU (EF A1A3)]], TRUE, FALSE)) ->  | BX19: =IF(KontrollTabell[[#This Row],[Finns anläggningsdel-namn.]]=FALSE,"",IF(KontrollTabell[[#This Row],[True/False A1A3 Enhet]]=TRUE,TRUE,IF(ISBLANK(InputA1A3[[#This Row],[Omräkning till FU/DU (Skriv in värde, ej formel)]]),FALSE,TRUE))) ->  | BY19: =IF(KontrollTabell[[#This Row],[Finns anläggningsdel-namn.]]=FALSE,,IF(KontrollTabell[[#This Row],[True/False A1A3 Enhet]]=TRUE,InputA1A3[[#This Row],[Mängd A1A3]]*InputA1A3[[#This Row],[EF A1A3 '[kg CO₂-ekv.']]],IF(KontrollTabell[[#This Row],[True/False A1A3 om A1A3 kan beräknas]]=TRUE,InputA1A3[[#This Row],[Mängd A1A3]]*InputA1A3[[#This Row],[EF A1A3 '[kg CO₂-ekv.']]]*InputA1A3[[#This Row],[Omräkning till FU/DU (Skriv in värde, ej formel)]],"Värde Behövs"))) -> 0 | BZ19: =IF(ISBLANK(InputA1A3[[#This Row],[Anläggningsdel ]]),"",IF(ISBLANK(InputA1A3[[#This Row],[EPD - EF A4]]),FALSE,TRUE)) ->  | CA19: =IF(OR(ISBLANK(InputA1A3[[#This Row],[Enhet (bränsleförbrukning per km)]]),ISBLANK(InputA1A3[[#This Row],[*DU/FU (EF A4) för valt drivmedel (schablon)]])),"",IF(OR(InputA1A3[[#This Row],[Enhet (bränsleförbrukning per km)]]=InputA1A3[[#This Row],[*DU/FU (EF A4) för valt drivmedel (schablon)]],AND(InputA1A3[[#This Row],[Enhet (bränsleförbrukning per km)]]<>InputA1A3[[#This Row],[*DU/FU (EF A4) för valt drivmedel (schablon)]],ISNUMBER(InputA1A3[[#This Row],[Omräkningsfaktor (A4), (vid behov, värde eller formel)]]))),TRUE(),FALSE())) ->  | CB19: =IF(InputA1A3[[#This Row],[Enhet (bränsleförbrukning per km)]] =InputA1A3[[#This Row],[*DU/FU (EF A4) för valt drivmedel (schablon)]],TRUE,IF(ISBLANK(InputA1A3[[#This Row],[Omräkningsfaktor (A4), (vid behov, värde eller formel)]]),FALSE,TRUE)) -> TRUE | CC19: =IF(ISBLANK(InputA1A3[[#This Row],[EPD - EF A4]]),"",IF(ISBLANK(InputA1A3[[#This Row],[Omräkning till FU/DU (Skriv in värde, ej formel)]]),InputA1A3[[#This Row],[EPD - EF A4]]*InputA1A3[[#This Row],[Mängd A1A3]],InputA1A3[[#This Row],[Mängd A1A3]]*InputA1A3[[#This Row],[Omräkning till FU/DU (Skriv in värde, ej formel)]]*InputA1A3[[#This Row],[EPD - EF A4]])) ->  | CD19: =IF(ISBLANK(KontrollTabell[[#This Row],[True/False A4 - Alt 2]]),"",IF(KontrollTabell[[#This Row],[True/False A4 Enhet - Alt2]]=TRUE,InputA1A3[[#This Row],[Sträcka - totalt '[km'], (tur och retur, alla transporter)]]*InputA1A3[[#This Row],[(Bränsle-) Förbrukning per km]],"Sen då")) -> 0 | CE19: =SUM(KontrollTabell[[#This Row],[A4 - Resultat alt 1 '[kg']]:[A4 - Alt 2 - beräkning utsläpp]]) -> 0 | CF19: =IF(ISBLANK(InputA1A3[[#This Row],[EPD - EF A4]]),FALSE,TRUE) -> FALSE | CG19: =IFERROR(IF(KontrollTabell[[#This Row],[True/False A5]]=FALSE(),"Enheter",IF(ISBLANK(InputA1A3[[#This Row],[Omräkningsfaktor (A5.2) (ange värde), (vid behov)]]),InputA1A3[[#This Row],[Mängd (A5.2)]]*InputA1A3[[#This Row],[*EF (A5.2) '[kg CO₂-ekv.']]],InputA1A3[[#This Row],[Mängd (A5.2)]]*InputA1A3[[#This Row],[*EF (A5.2) '[kg CO₂-ekv.']]]*InputA1A3[[#This Row],[Omräkningsfaktor (A5.2) (ange värde), (vid behov)]])),0) -> 0 | CH19: =IF(OR(ISBLANK(InputA1A3[[#This Row],[Enhet för mängd (A5.2)]]),ISBLANK(InputA1A3[[#This Row],[*DU/FU (EF A5.2)]])),"",IF(OR(InputA1A3[[#This Row],[Enhet för mängd (A5.2)]]=InputA1A3[[#This Row],[*DU/FU (EF A5.2)]],AND(InputA1A3[[#This Row],[Enhet för mängd (A5.2)]]<>InputA1A3[[#This Row],[*DU/FU (EF A5.2)]],ISNUMBER(InputA1A3[[#This Row],[Omräkningsfaktor (A5.2) (ange värde), (vid behov)]]))),TRUE,FALSE)) ->  | CI19: =IF(InputA1A3[[#This Row],[Enhet för mängd (A5.2)]] = InputA1A3[[#This Row],[*DU/FU (EF A5.2)]], TRUE, FALSE) -> TRUE | CJ19: =IF(OR(ISBLANK(InputA1A3[[#This Row],[Kategori (egen kategorisering)]])=FALSE,ISBLANK(InputA1A3[[#This Row],[Anläggningsdel ]]))=FALSE,TRUE,FALSE) -> FALSE | CK19: =IF(ISBLANK(InputA1A3[[#This Row],[Anläggningsdel ]]),"",IF(KontrollTabell[[#This Row],[TRUE/FALSE om kategori saknas.]] =FALSE,InputA1A3[[#This Row],[Kategori (egen kategorisering)]],"Kategori saknas")) -> 
J20: =IF(ISBLANK(InputA1A3[[#This Row],[Anläggningsdel ]]),"",IF(KontrollTabell[[#This Row],[True/False A1A3 Enhet]]=TRUE, "", InputA1A3[[#This Row],[FU/DU (EF A1A3)]] & "/" & InputA1A3[[#This Row],[Enhet Mängd (A1A3)]])) ->  | O20: =IF(ISBLANK(InputA1A3[[#This Row],[EPD - EF A4]]),"",InputA1A3[[#This Row],[FU/DU (EF A1A3)]]) ->  | S20: =IFERROR(INDEX(TabellEFDrivmedel[],MATCH(InputA1A3[[#This Row],[Drivmedel (A4) (endast förval ur lista)]],TabellEFDrivmedel[Drivmedel],0),4),"") ->  | W20: =IF(InputA1A3[[#This Row],[*DU/FU (EF A4) för valt drivmedel (schablon)]]="","",IF(KontrollTabell[[#This Row],[True/False A4 Enhet - Alt2]]=TRUE,"",IF(ISBLANK(InputA1A3[[#This Row],[*DU/FU (EF A4) för valt drivmedel (schablon)]]),,InputA1A3[[#This Row],[Enhet (bränsleförbrukning per km)]]& "/" & InputA1A3[[#This Row],[*DU/FU (EF A4) för valt drivmedel (schablon)]]))) ->  | AE20: =IFERROR(INDEX(TabellEFDrivmedel[],MATCH(InputA1A3[[#This Row],[Drivmedel (A5.2)]],TabellEFDrivmedel[Drivmedel],0),2),"") ->  | AF20: =IFERROR(INDEX(TabellEFDrivmedel[],MATCH(InputA1A3[[#This Row],[Drivmedel (A5.2)]],TabellEFDrivmedel[Drivmedel],0),4),"") ->  | AG20: =IF(KontrollTabell[[#This Row],[True/False A5 Enhet]]=TRUE, "", InputA1A3[[#This Row],[*DU/FU (EF A5.2)]] & "/" & InputA1A3[[#This Row],[Enhet för mängd (A5.2)]]) ->  | BV20: =IF(ISBLANK(InputA1A3[[#This Row],[Anläggningsdel ]]),FALSE,TRUE) -> FALSE | BW20: =IF(ISBLANK(InputA1A3[[#This Row],[Anläggningsdel ]]),"",IF(InputA1A3[[#This Row],[Enhet Mängd (A1A3)]] = InputA1A3[[#This Row],[FU/DU (EF A1A3)]], TRUE, FALSE)) ->  | BX20: =IF(KontrollTabell[[#This Row],[Finns anläggningsdel-namn.]]=FALSE,"",IF(KontrollTabell[[#This Row],[True/False A1A3 Enhet]]=TRUE,TRUE,IF(ISBLANK(InputA1A3[[#This Row],[Omräkning till FU/DU (Skriv in värde, ej formel)]]),FALSE,TRUE))) ->  | BY20: =IF(KontrollTabell[[#This Row],[Finns anläggningsdel-namn.]]=FALSE,,IF(KontrollTabell[[#This Row],[True/False A1A3 Enhet]]=TRUE,InputA1A3[[#This Row],[Mängd A1A3]]*InputA1A3[[#This Row],[EF A1A3 '[kg CO₂-ekv.']]],IF(KontrollTabell[[#This Row],[True/False A1A3 om A1A3 kan beräknas]]=TRUE,InputA1A3[[#This Row],[Mängd A1A3]]*InputA1A3[[#This Row],[EF A1A3 '[kg CO₂-ekv.']]]*InputA1A3[[#This Row],[Omräkning till FU/DU (Skriv in värde, ej formel)]],"Värde Behövs"))) -> 0 | BZ20: =IF(ISBLANK(InputA1A3[[#This Row],[Anläggningsdel ]]),"",IF(ISBLANK(InputA1A3[[#This Row],[EPD - EF A4]]),FALSE,TRUE)) ->  | CA20: =IF(OR(ISBLANK(InputA1A3[[#This Row],[Enhet (bränsleförbrukning per km)]]),ISBLANK(InputA1A3[[#This Row],[*DU/FU (EF A4) för valt drivmedel (schablon)]])),"",IF(OR(InputA1A3[[#This Row],[Enhet (bränsleförbrukning per km)]]=InputA1A3[[#This Row],[*DU/FU (EF A4) för valt drivmedel (schablon)]],AND(InputA1A3[[#This Row],[Enhet (bränsleförbrukning per km)]]<>InputA1A3[[#This Row],[*DU/FU (EF A4) för valt drivmedel (schablon)]],ISNUMBER(InputA1A3[[#This Row],[Omräkningsfaktor (A4), (vid behov, värde eller formel)]]))),TRUE(),FALSE())) ->  | CB20: =IF(InputA1A3[[#This Row],[Enhet (bränsleförbrukning per km)]] =InputA1A3[[#This Row],[*DU/FU (EF A4) för valt drivmedel (schablon)]],TRUE,IF(ISBLANK(InputA1A3[[#This Row],[Omräkningsfaktor (A4), (vid behov, värde eller formel)]]),FALSE,TRUE)) -> TRUE | CC20: =IF(ISBLANK(InputA1A3[[#This Row],[EPD - EF A4]]),"",IF(ISBLANK(InputA1A3[[#This Row],[Omräkning till FU/DU (Skriv in värde, ej formel)]]),InputA1A3[[#This Row],[EPD - EF A4]]*InputA1A3[[#This Row],[Mängd A1A3]],InputA1A3[[#This Row],[Mängd A1A3]]*InputA1A3[[#This Row],[Omräkning till FU/DU (Skriv in värde, ej formel)]]*InputA1A3[[#This Row],[EPD - EF A4]])) ->  | CD20: =IF(ISBLANK(KontrollTabell[[#This Row],[True/False A4 - Alt 2]]),"",IF(KontrollTabell[[#This Row],[True/False A4 Enhet - Alt2]]=TRUE,InputA1A3[[#This Row],[Sträcka - totalt '[km'], (tur och retur, alla transporter)]]*InputA1A3[[#This Row],[(Bränsle-) Förbrukning per km]],"Sen då")) -> 0 | CE20: =SUM(KontrollTabell[[#This Row],[A4 - Resultat alt 1 '[kg']]:[A4 - Alt 2 - beräkning utsläpp]]) -> 0 | CF20: =IF(ISBLANK(InputA1A3[[#This Row],[EPD - EF A4]]),FALSE,TRUE) -> FALSE | CG20: =IFERROR(IF(KontrollTabell[[#This Row],[True/False A5]]=FALSE(),"Enheter",IF(ISBLANK(InputA1A3[[#This Row],[Omräkningsfaktor (A5.2) (ange värde), (vid behov)]]),InputA1A3[[#This Row],[Mängd (A5.2)]]*InputA1A3[[#This Row],[*EF (A5.2) '[kg CO₂-ekv.']]],InputA1A3[[#This Row],[Mängd (A5.2)]]*InputA1A3[[#This Row],[*EF (A5.2) '[kg CO₂-ekv.']]]*InputA1A3[[#This Row],[Omräkningsfaktor (A5.2) (ange värde), (vid behov)]])),0) -> 0 | CH20: =IF(OR(ISBLANK(InputA1A3[[#This Row],[Enhet för mängd (A5.2)]]),ISBLANK(InputA1A3[[#This Row],[*DU/FU (EF A5.2)]])),"",IF(OR(InputA1A3[[#This Row],[Enhet för mängd (A5.2)]]=InputA1A3[[#This Row],[*DU/FU (EF A5.2)]],AND(InputA1A3[[#This Row],[Enhet för mängd (A5.2)]]<>InputA1A3[[#This Row],[*DU/FU (EF A5.2)]],ISNUMBER(InputA1A3[[#This Row],[Omräkningsfaktor (A5.2) (ange värde), (vid behov)]]))),TRUE,FALSE)) ->  | CI20: =IF(InputA1A3[[#This Row],[Enhet för mängd (A5.2)]] = InputA1A3[[#This Row],[*DU/FU (EF A5.2)]], TRUE, FALSE) -> TRUE | CJ20: =IF(OR(ISBLANK(InputA1A3[[#This Row],[Kategori (egen kategorisering)]])=FALSE,ISBLANK(InputA1A3[[#This Row],[Anläggningsdel ]]))=FALSE,TRUE,FALSE) -> FALSE | CK20: =IF(ISBLANK(InputA1A3[[#This Row],[Anläggningsdel ]]),"",IF(KontrollTabell[[#This Row],[TRUE/FALSE om kategori saknas.]] =FALSE,InputA1A3[[#This Row],[Kategori (egen kategorisering)]],"Kategori saknas")) -> 
J21: =IF(ISBLANK(InputA1A3[[#This Row],[Anläggningsdel ]]),"",IF(KontrollTabell[[#This Row],[True/False A1A3 Enhet]]=TRUE, "", InputA1A3[[#This Row],[FU/DU (EF A1A3)]] & "/" & InputA1A3[[#This Row],[Enhet Mängd (A1A3)]])) ->  | O21: =IF(ISBLANK(InputA1A3[[#This Row],[EPD - EF A4]]),"",InputA1A3[[#This Row],[FU/DU (EF A1A3)]]) ->  | S21: =IFERROR(INDEX(TabellEFDrivmedel[],MATCH(InputA1A3[[#This Row],[Drivmedel (A4) (endast förval ur lista)]],TabellEFDrivmedel[Drivmedel],0),4),"") ->  | W21: =IF(InputA1A3[[#This Row],[*DU/FU (EF A4) för valt drivmedel (schablon)]]="","",IF(KontrollTabell[[#This Row],[True/False A4 Enhet - Alt2]]=TRUE,"",IF(ISBLANK(InputA1A3[[#This Row],[*DU/FU (EF A4) för valt drivmedel (schablon)]]),,InputA1A3[[#This Row],[Enhet (bränsleförbrukning per km)]]& "/" & InputA1A3[[#This Row],[*DU/FU (EF A4) för valt drivmedel (schablon)]]))) ->  | AE21: =IFERROR(INDEX(TabellEFDrivmedel[],MATCH(InputA1A3[[#This Row],[Drivmedel (A5.2)]],TabellEFDrivmedel[Drivmedel],0),2),"") ->  | AF21: =IFERROR(INDEX(TabellEFDrivmedel[],MATCH(InputA1A3[[#This Row],[Drivmedel (A5.2)]],TabellEFDrivmedel[Drivmedel],0),4),"") ->  | AG21: =IF(KontrollTabell[[#This Row],[True/False A5 Enhet]]=TRUE, "", InputA1A3[[#This Row],[*DU/FU (EF A5.2)]] & "/" & InputA1A3[[#This Row],[Enhet för mängd (A5.2)]]) ->  | BV21: =IF(ISBLANK(InputA1A3[[#This Row],[Anläggningsdel ]]),FALSE,TRUE) -> FALSE | BW21: =IF(ISBLANK(InputA1A3[[#This Row],[Anläggningsdel ]]),"",IF(InputA1A3[[#This Row],[Enhet Mängd (A1A3)]] = InputA1A3[[#This Row],[FU/DU (EF A1A3)]], TRUE, FALSE)) ->  | BX21: =IF(KontrollTabell[[#This Row],[Finns anläggningsdel-namn.]]=FALSE,"",IF(KontrollTabell[[#This Row],[True/False A1A3 Enhet]]=TRUE,TRUE,IF(ISBLANK(InputA1A3[[#This Row],[Omräkning till FU/DU (Skriv in värde, ej formel)]]),FALSE,TRUE))) ->  | BY21: =IF(KontrollTabell[[#This Row],[Finns anläggningsdel-namn.]]=FALSE,,IF(KontrollTabell[[#This Row],[True/False A1A3 Enhet]]=TRUE,InputA1A3[[#This Row],[Mängd A1A3]]*InputA1A3[[#This Row],[EF A1A3 '[kg CO₂-ekv.']]],IF(KontrollTabell[[#This Row],[True/False A1A3 om A1A3 kan beräknas]]=TRUE,InputA1A3[[#This Row],[Mängd A1A3]]*InputA1A3[[#This Row],[EF A1A3 '[kg CO₂-ekv.']]]*InputA1A3[[#This Row],[Omräkning till FU/DU (Skriv in värde, ej formel)]],"Värde Behövs"))) -> 0 | BZ21: =IF(ISBLANK(InputA1A3[[#This Row],[Anläggningsdel ]]),"",IF(ISBLANK(InputA1A3[[#This Row],[EPD - EF A4]]),FALSE,TRUE)) ->  | CA21: =IF(OR(ISBLANK(InputA1A3[[#This Row],[Enhet (bränsleförbrukning per km)]]),ISBLANK(InputA1A3[[#This Row],[*DU/FU (EF A4) för valt drivmedel (schablon)]])),"",IF(OR(InputA1A3[[#This Row],[Enhet (bränsleförbrukning per km)]]=InputA1A3[[#This Row],[*DU/FU (EF A4) för valt drivmedel (schablon)]],AND(InputA1A3[[#This Row],[Enhet (bränsleförbrukning per km)]]<>InputA1A3[[#This Row],[*DU/FU (EF A4) för valt drivmedel (schablon)]],ISNUMBER(InputA1A3[[#This Row],[Omräkningsfaktor (A4), (vid behov, värde eller formel)]]))),TRUE(),FALSE())) ->  | CB21: =IF(InputA1A3[[#This Row],[Enhet (bränsleförbrukning per km)]] =InputA1A3[[#This Row],[*DU/FU (EF A4) för valt drivmedel (schablon)]],TRUE,IF(ISBLANK(InputA1A3[[#This Row],[Omräkningsfaktor (A4), (vid behov, värde eller formel)]]),FALSE,TRUE)) -> TRUE | CC21: =IF(ISBLANK(InputA1A3[[#This Row],[EPD - EF A4]]),"",IF(ISBLANK(InputA1A3[[#This Row],[Omräkning till FU/DU (Skriv in värde, ej formel)]]),InputA1A3[[#This Row],[EPD - EF A4]]*InputA1A3[[#This Row],[Mängd A1A3]],InputA1A3[[#This Row],[Mängd A1A3]]*InputA1A3[[#This Row],[Omräkning till FU/DU (Skriv in värde, ej formel)]]*InputA1A3[[#This Row],[EPD - EF A4]])) ->  | CD21: =IF(ISBLANK(KontrollTabell[[#This Row],[True/False A4 - Alt 2]]),"",IF(KontrollTabell[[#This Row],[True/False A4 Enhet - Alt2]]=TRUE,InputA1A3[[#This Row],[Sträcka - totalt '[km'], (tur och retur, alla transporter)]]*InputA1A3[[#This Row],[(Bränsle-) Förbrukning per km]],"Sen då")) -> 0 | CE21: =SUM(KontrollTabell[[#This Row],[A4 - Resultat alt 1 '[kg']]:[A4 - Alt 2 - beräkning utsläpp]]) -> 0 | CF21: =IF(ISBLANK(InputA1A3[[#This Row],[EPD - EF A4]]),FALSE,TRUE) -> FALSE | CG21: =IFERROR(IF(KontrollTabell[[#This Row],[True/False A5]]=FALSE(),"Enheter",IF(ISBLANK(InputA1A3[[#This Row],[Omräkningsfaktor (A5.2) (ange värde), (vid behov)]]),InputA1A3[[#This Row],[Mängd (A5.2)]]*InputA1A3[[#This Row],[*EF (A5.2) '[kg CO₂-ekv.']]],InputA1A3[[#This Row],[Mängd (A5.2)]]*InputA1A3[[#This Row],[*EF (A5.2) '[kg CO₂-ekv.']]]*InputA1A3[[#This Row],[Omräkningsfaktor (A5.2) (ange värde), (vid behov)]])),0) -> 0 | CH21: =IF(OR(ISBLANK(InputA1A3[[#This Row],[Enhet för mängd (A5.2)]]),ISBLANK(InputA1A3[[#This Row],[*DU/FU (EF A5.2)]])),"",IF(OR(InputA1A3[[#This Row],[Enhet för mängd (A5.2)]]=InputA1A3[[#This Row],[*DU/FU (EF A5.2)]],AND(InputA1A3[[#This Row],[Enhet för mängd (A5.2)]]<>InputA1A3[[#This Row],[*DU/FU (EF A5.2)]],ISNUMBER(InputA1A3[[#This Row],[Omräkningsfaktor (A5.2) (ange värde), (vid behov)]]))),TRUE,FALSE)) ->  | CI21: =IF(InputA1A3[[#This Row],[Enhet för mängd (A5.2)]] = InputA1A3[[#This Row],[*DU/FU (EF A5.2)]], TRUE, FALSE) -> TRUE | CJ21: =IF(OR(ISBLANK(InputA1A3[[#This Row],[Kategori (egen kategorisering)]])=FALSE,ISBLANK(InputA1A3[[#This Row],[Anläggningsdel ]]))=FALSE,TRUE,FALSE) -> FALSE | CK21: =IF(ISBLANK(InputA1A3[[#This Row],[Anläggningsdel ]]),"",IF(KontrollTabell[[#This Row],[TRUE/FALSE om kategori saknas.]] =FALSE,InputA1A3[[#This Row],[Kategori (egen kategorisering)]],"Kategori saknas")) -> 
J22: =IF(ISBLANK(InputA1A3[[#This Row],[Anläggningsdel ]]),"",IF(KontrollTabell[[#This Row],[True/False A1A3 Enhet]]=TRUE, "", InputA1A3[[#This Row],[FU/DU (EF A1A3)]] & "/" & InputA1A3[[#This Row],[Enhet Mängd (A1A3)]])) ->  | O22: =IF(ISBLANK(InputA1A3[[#This Row],[EPD - EF A4]]),"",InputA1A3[[#This Row],[FU/DU (EF A1A3)]]) ->  | S22: =IFERROR(INDEX(TabellEFDrivmedel[],MATCH(InputA1A3[[#This Row],[Drivmedel (A4) (endast förval ur lista)]],TabellEFDrivmedel[Drivmedel],0),4),"") ->  | W22: =IF(InputA1A3[[#This Row],[*DU/FU (EF A4) för valt drivmedel (schablon)]]="","",IF(KontrollTabell[[#This Row],[True/False A4 Enhet - Alt2]]=TRUE,"",IF(ISBLANK(InputA1A3[[#This Row],[*DU/FU (EF A4) för valt drivmedel (schablon)]]),,InputA1A3[[#This Row],[Enhet (bränsleförbrukning per km)]]& "/" & InputA1A3[[#This Row],[*DU/FU (EF A4) för valt drivmedel (schablon)]]))) ->  | AE22: =IFERROR(INDEX(TabellEFDrivmedel[],MATCH(InputA1A3[[#This Row],[Drivmedel (A5.2)]],TabellEFDrivmedel[Drivmedel],0),2),"") ->  | AF22: =IFERROR(INDEX(TabellEFDrivmedel[],MATCH(InputA1A3[[#This Row],[Drivmedel (A5.2)]],TabellEFDrivmedel[Drivmedel],0),4),"") ->  | AG22: =IF(KontrollTabell[[#This Row],[True/False A5 Enhet]]=TRUE, "", InputA1A3[[#This Row],[*DU/FU (EF A5.2)]] & "/" & InputA1A3[[#This Row],[Enhet för mängd (A5.2)]]) ->  | BV22: =IF(ISBLANK(InputA1A3[[#This Row],[Anläggningsdel ]]),FALSE,TRUE) -> FALSE | BW22: =IF(ISBLANK(InputA1A3[[#This Row],[Anläggningsdel ]]),"",IF(InputA1A3[[#This Row],[Enhet Mängd (A1A3)]] = InputA1A3[[#This Row],[FU/DU (EF A1A3)]], TRUE, FALSE)) ->  | BX22: =IF(KontrollTabell[[#This Row],[Finns anläggningsdel-namn.]]=FALSE,"",IF(KontrollTabell[[#This Row],[True/False A1A3 Enhet]]=TRUE,TRUE,IF(ISBLANK(InputA1A3[[#This Row],[Omräkning till FU/DU (Skriv in värde, ej formel)]]),FALSE,TRUE))) ->  | BY22: =IF(KontrollTabell[[#This Row],[Finns anläggningsdel-namn.]]=FALSE,,IF(KontrollTabell[[#This Row],[True/False A1A3 Enhet]]=TRUE,InputA1A3[[#This Row],[Mängd A1A3]]*InputA1A3[[#This Row],[EF A1A3 '[kg CO₂-ekv.']]],IF(KontrollTabell[[#This Row],[True/False A1A3 om A1A3 kan beräknas]]=TRUE,InputA1A3[[#This Row],[Mängd A1A3]]*InputA1A3[[#This Row],[EF A1A3 '[kg CO₂-ekv.']]]*InputA1A3[[#This Row],[Omräkning till FU/DU (Skriv in värde, ej formel)]],"Värde Behövs"))) -> 0 | BZ22: =IF(ISBLANK(InputA1A3[[#This Row],[Anläggningsdel ]]),"",IF(ISBLANK(InputA1A3[[#This Row],[EPD - EF A4]]),FALSE,TRUE)) ->  | CA22: =IF(OR(ISBLANK(InputA1A3[[#This Row],[Enhet (bränsleförbrukning per km)]]),ISBLANK(InputA1A3[[#This Row],[*DU/FU (EF A4) för valt drivmedel (schablon)]])),"",IF(OR(InputA1A3[[#This Row],[Enhet (bränsleförbrukning per km)]]=InputA1A3[[#This Row],[*DU/FU (EF A4) för valt drivmedel (schablon)]],AND(InputA1A3[[#This Row],[Enhet (bränsleförbrukning per km)]]<>InputA1A3[[#This Row],[*DU/FU (EF A4) för valt drivmedel (schablon)]],ISNUMBER(InputA1A3[[#This Row],[Omräkningsfaktor (A4), (vid behov, värde eller formel)]]))),TRUE(),FALSE())) ->  | CB22: =IF(InputA1A3[[#This Row],[Enhet (bränsleförbrukning per km)]] =InputA1A3[[#This Row],[*DU/FU (EF A4) för valt drivmedel (schablon)]],TRUE,IF(ISBLANK(InputA1A3[[#This Row],[Omräkningsfaktor (A4), (vid behov, värde eller formel)]]),FALSE,TRUE)) -> TRUE | CC22: =IF(ISBLANK(InputA1A3[[#This Row],[EPD - EF A4]]),"",IF(ISBLANK(InputA1A3[[#This Row],[Omräkning till FU/DU (Skriv in värde, ej formel)]]),InputA1A3[[#This Row],[EPD - EF A4]]*InputA1A3[[#This Row],[Mängd A1A3]],InputA1A3[[#This Row],[Mängd A1A3]]*InputA1A3[[#This Row],[Omräkning till FU/DU (Skriv in värde, ej formel)]]*InputA1A3[[#This Row],[EPD - EF A4]])) ->  | CD22: =IF(ISBLANK(KontrollTabell[[#This Row],[True/False A4 - Alt 2]]),"",IF(KontrollTabell[[#This Row],[True/False A4 Enhet - Alt2]]=TRUE,InputA1A3[[#This Row],[Sträcka - totalt '[km'], (tur och retur, alla transporter)]]*InputA1A3[[#This Row],[(Bränsle-) Förbrukning per km]],"Sen då")) -> 0 | CE22: =SUM(KontrollTabell[[#This Row],[A4 - Resultat alt 1 '[kg']]:[A4 - Alt 2 - beräkning utsläpp]]) -> 0 | CF22: =IF(ISBLANK(InputA1A3[[#This Row],[EPD - EF A4]]),FALSE,TRUE) -> FALSE | CG22: =IFERROR(IF(KontrollTabell[[#This Row],[True/False A5]]=FALSE(),"Enheter",IF(ISBLANK(InputA1A3[[#This Row],[Omräkningsfaktor (A5.2) (ange värde), (vid behov)]]),InputA1A3[[#This Row],[Mängd (A5.2)]]*InputA1A3[[#This Row],[*EF (A5.2) '[kg CO₂-ekv.']]],InputA1A3[[#This Row],[Mängd (A5.2)]]*InputA1A3[[#This Row],[*EF (A5.2) '[kg CO₂-ekv.']]]*InputA1A3[[#This Row],[Omräkningsfaktor (A5.2) (ange värde), (vid behov)]])),0) -> 0 | CH22: =IF(OR(ISBLANK(InputA1A3[[#This Row],[Enhet för mängd (A5.2)]]),ISBLANK(InputA1A3[[#This Row],[*DU/FU (EF A5.2)]])),"",IF(OR(InputA1A3[[#This Row],[Enhet för mängd (A5.2)]]=InputA1A3[[#This Row],[*DU/FU (EF A5.2)]],AND(InputA1A3[[#This Row],[Enhet för mängd (A5.2)]]<>InputA1A3[[#This Row],[*DU/FU (EF A5.2)]],ISNUMBER(InputA1A3[[#This Row],[Omräkningsfaktor (A5.2) (ange värde), (vid behov)]]))),TRUE,FALSE)) ->  | CI22: =IF(InputA1A3[[#This Row],[Enhet för mängd (A5.2)]] = InputA1A3[[#This Row],[*DU/FU (EF A5.2)]], TRUE, FALSE) -> TRUE | CJ22: =IF(OR(ISBLANK(InputA1A3[[#This Row],[Kategori (egen kategorisering)]])=FALSE,ISBLANK(InputA1A3[[#This Row],[Anläggningsdel ]]))=FALSE,TRUE,FALSE) -> FALSE | CK22: =IF(ISBLANK(InputA1A3[[#This Row],[Anläggningsdel ]]),"",IF(KontrollTabell[[#This Row],[TRUE/FALSE om kategori saknas.]] =FALSE,InputA1A3[[#This Row],[Kategori (egen kategorisering)]],"Kategori saknas")) -> 
J23: =IF(ISBLANK(InputA1A3[[#This Row],[Anläggningsdel ]]),"",IF(KontrollTabell[[#This Row],[True/False A1A3 Enhet]]=TRUE, "", InputA1A3[[#This Row],[FU/DU (EF A1A3)]] & "/" & InputA1A3[[#This Row],[Enhet Mängd (A1A3)]])) ->  | O23: =IF(ISBLANK(InputA1A3[[#This Row],[EPD - EF A4]]),"",InputA1A3[[#This Row],[FU/DU (EF A1A3)]]) ->  | S23: =IFERROR(INDEX(TabellEFDrivmedel[],MATCH(InputA1A3[[#This Row],[Drivmedel (A4) (endast förval ur lista)]],TabellEFDrivmedel[Drivmedel],0),4),"") ->  | W23: =IF(InputA1A3[[#This Row],[*DU/FU (EF A4) för valt drivmedel (schablon)]]="","",IF(KontrollTabell[[#This Row],[True/False A4 Enhet - Alt2]]=TRUE,"",IF(ISBLANK(InputA1A3[[#This Row],[*DU/FU (EF A4) för valt drivmedel (schablon)]]),,InputA1A3[[#This Row],[Enhet (bränsleförbrukning per km)]]& "/" & InputA1A3[[#This Row],[*DU/FU (EF A4) för valt drivmedel (schablon)]]))) ->  | AE23: =IFERROR(INDEX(TabellEFDrivmedel[],MATCH(InputA1A3[[#This Row],[Drivmedel (A5.2)]],TabellEFDrivmedel[Drivmedel],0),2),"") ->  | AF23: =IFERROR(INDEX(TabellEFDrivmedel[],MATCH(InputA1A3[[#This Row],[Drivmedel (A5.2)]],TabellEFDrivmedel[Drivmedel],0),4),"") ->  | AG23: =IF(KontrollTabell[[#This Row],[True/False A5 Enhet]]=TRUE, "", InputA1A3[[#This Row],[*DU/FU (EF A5.2)]] & "/" & InputA1A3[[#This Row],[Enhet för mängd (A5.2)]]) ->  | BV23: =IF(ISBLANK(InputA1A3[[#This Row],[Anläggningsdel ]]),FALSE,TRUE) -> FALSE | BW23: =IF(ISBLANK(InputA1A3[[#This Row],[Anläggningsdel ]]),"",IF(InputA1A3[[#This Row],[Enhet Mängd (A1A3)]] = InputA1A3[[#This Row],[FU/DU (EF A1A3)]], TRUE, FALSE)) ->  | BX23: =IF(KontrollTabell[[#This Row],[Finns anläggningsdel-namn.]]=FALSE,"",IF(KontrollTabell[[#This Row],[True/False A1A3 Enhet]]=TRUE,TRUE,IF(ISBLANK(InputA1A3[[#This Row],[Omräkning till FU/DU (Skriv in värde, ej formel)]]),FALSE,TRUE))) ->  | BY23: =IF(KontrollTabell[[#This Row],[Finns anläggningsdel-namn.]]=FALSE,,IF(KontrollTabell[[#This Row],[True/False A1A3 Enhet]]=TRUE,InputA1A3[[#This Row],[Mängd A1A3]]*InputA1A3[[#This Row],[EF A1A3 '[kg CO₂-ekv.']]],IF(KontrollTabell[[#This Row],[True/False A1A3 om A1A3 kan beräknas]]=TRUE,InputA1A3[[#This Row],[Mängd A1A3]]*InputA1A3[[#This Row],[EF A1A3 '[kg CO₂-ekv.']]]*InputA1A3[[#This Row],[Omräkning till FU/DU (Skriv in värde, ej formel)]],"Värde Behövs"))) -> 0 | BZ23: =IF(ISBLANK(InputA1A3[[#This Row],[Anläggningsdel ]]),"",IF(ISBLANK(InputA1A3[[#This Row],[EPD - EF A4]]),FALSE,TRUE)) ->  | CA23: =IF(OR(ISBLANK(InputA1A3[[#This Row],[Enhet (bränsleförbrukning per km)]]),ISBLANK(InputA1A3[[#This Row],[*DU/FU (EF A4) för valt drivmedel (schablon)]])),"",IF(OR(InputA1A3[[#This Row],[Enhet (bränsleförbrukning per km)]]=InputA1A3[[#This Row],[*DU/FU (EF A4) för valt drivmedel (schablon)]],AND(InputA1A3[[#This Row],[Enhet (bränsleförbrukning per km)]]<>InputA1A3[[#This Row],[*DU/FU (EF A4) för valt drivmedel (schablon)]],ISNUMBER(InputA1A3[[#This Row],[Omräkningsfaktor (A4), (vid behov, värde eller formel)]]))),TRUE(),FALSE())) ->  | CB23: =IF(InputA1A3[[#This Row],[Enhet (bränsleförbrukning per km)]] =InputA1A3[[#This Row],[*DU/FU (EF A4) för valt drivmedel (schablon)]],TRUE,IF(ISBLANK(InputA1A3[[#This Row],[Omräkningsfaktor (A4), (vid behov, värde eller formel)]]),FALSE,TRUE)) -> TRUE | CC23: =IF(ISBLANK(InputA1A3[[#This Row],[EPD - EF A4]]),"",IF(ISBLANK(InputA1A3[[#This Row],[Omräkning till FU/DU (Skriv in värde, ej formel)]]),InputA1A3[[#This Row],[EPD - EF A4]]*InputA1A3[[#This Row],[Mängd A1A3]],InputA1A3[[#This Row],[Mängd A1A3]]*InputA1A3[[#This Row],[Omräkning till FU/DU (Skriv in värde, ej formel)]]*InputA1A3[[#This Row],[EPD - EF A4]])) ->  | CD23: =IF(ISBLANK(KontrollTabell[[#This Row],[True/False A4 - Alt 2]]),"",IF(KontrollTabell[[#This Row],[True/False A4 Enhet - Alt2]]=TRUE,InputA1A3[[#This Row],[Sträcka - totalt '[km'], (tur och retur, alla transporter)]]*InputA1A3[[#This Row],[(Bränsle-) Förbrukning per km]],"Sen då")) -> 0 | CE23: =SUM(KontrollTabell[[#This Row],[A4 - Resultat alt 1 '[kg']]:[A4 - Alt 2 - beräkning utsläpp]]) -> 0 | CF23: =IF(ISBLANK(InputA1A3[[#This Row],[EPD - EF A4]]),ISBLANK(#REF!),) -> FALSE | CG23: =IFERROR(IF(KontrollTabell[[#This Row],[True/False A5]]=FALSE(),"Enheter",IF(ISBLANK(InputA1A3[[#This Row],[Omräkningsfaktor (A5.2) (ange värde), (vid behov)]]),InputA1A3[[#This Row],[Mängd (A5.2)]]*InputA1A3[[#This Row],[*EF (A5.2) '[kg CO₂-ekv.']]],InputA1A3[[#This Row],[Mängd (A5.2)]]*InputA1A3[[#This Row],[*EF (A5.2) '[kg CO₂-ekv.']]]*InputA1A3[[#This Row],[Omräkningsfaktor (A5.2) (ange värde), (vid behov)]])),0) -> 0 | CH23: =IF(OR(ISBLANK(InputA1A3[[#This Row],[Enhet för mängd (A5.2)]]),ISBLANK(InputA1A3[[#This Row],[*DU/FU (EF A5.2)]])),"",IF(OR(InputA1A3[[#This Row],[Enhet för mängd (A5.2)]]=InputA1A3[[#This Row],[*DU/FU (EF A5.2)]],AND(InputA1A3[[#This Row],[Enhet för mängd (A5.2)]]<>InputA1A3[[#This Row],[*DU/FU (EF A5.2)]],ISNUMBER(InputA1A3[[#This Row],[Omräkningsfaktor (A5.2) (ange värde), (vid behov)]]))),TRUE,FALSE)) ->  | CI23: =IF(InputA1A3[[#This Row],[Enhet för mängd (A5.2)]] = InputA1A3[[#This Row],[*DU/FU (EF A5.2)]], TRUE, FALSE) -> TRUE | CJ23: =IF(OR(ISBLANK(InputA1A3[[#This Row],[Kategori (egen kategorisering)]])=FALSE,ISBLANK(InputA1A3[[#This Row],[Anläggningsdel ]]))=FALSE,TRUE,FALSE) -> FALSE | CK23: =IF(ISBLANK(InputA1A3[[#This Row],[Anläggningsdel ]]),"",IF(KontrollTabell[[#This Row],[TRUE/FALSE om kategori saknas.]] =FALSE,InputA1A3[[#This Row],[Kategori (egen kategorisering)]],"Kategori saknas")) -> 
J24: =IF(ISBLANK(InputA1A3[[#This Row],[Anläggningsdel ]]),"",IF(KontrollTabell[[#This Row],[True/False A1A3 Enhet]]=TRUE, "", InputA1A3[[#This Row],[FU/DU (EF A1A3)]] & "/" & InputA1A3[[#This Row],[Enhet Mängd (A1A3)]])) ->  | O24: =IF(ISBLANK(InputA1A3[[#This Row],[EPD - EF A4]]),"",InputA1A3[[#This Row],[FU/DU (EF A1A3)]]) ->  | S24: =IFERROR(INDEX(TabellEFDrivmedel[],MATCH(InputA1A3[[#This Row],[Drivmedel (A4) (endast förval ur lista)]],TabellEFDrivmedel[Drivmedel],0),4),"") ->  | W24: =IF(InputA1A3[[#This Row],[*DU/FU (EF A4) för valt drivmedel (schablon)]]="","",IF(KontrollTabell[[#This Row],[True/False A4 Enhet - Alt2]]=TRUE,"",IF(ISBLANK(InputA1A3[[#This Row],[*DU/FU (EF A4) för valt drivmedel (schablon)]]),,InputA1A3[[#This Row],[Enhet (bränsleförbrukning per km)]]& "/" & InputA1A3[[#This Row],[*DU/FU (EF A4) för valt drivmedel (schablon)]]))) ->  | AE24: =IFERROR(INDEX(TabellEFDrivmedel[],MATCH(InputA1A3[[#This Row],[Drivmedel (A5.2)]],TabellEFDrivmedel[Drivmedel],0),2),"") ->  | AF24: =IFERROR(INDEX(TabellEFDrivmedel[],MATCH(InputA1A3[[#This Row],[Drivmedel (A5.2)]],TabellEFDrivmedel[Drivmedel],0),4),"") ->  | AG24: =IF(KontrollTabell[[#This Row],[True/False A5 Enhet]]=TRUE, "", InputA1A3[[#This Row],[*DU/FU (EF A5.2)]] & "/" & InputA1A3[[#This Row],[Enhet för mängd (A5.2)]]) ->  | BV24: =IF(ISBLANK(InputA1A3[[#This Row],[Anläggningsdel ]]),FALSE,TRUE) -> FALSE | BW24: =IF(ISBLANK(InputA1A3[[#This Row],[Anläggningsdel ]]),"",IF(InputA1A3[[#This Row],[Enhet Mängd (A1A3)]] = InputA1A3[[#This Row],[FU/DU (EF A1A3)]], TRUE, FALSE)) ->  | BX24: =IF(KontrollTabell[[#This Row],[Finns anläggningsdel-namn.]]=FALSE,"",IF(KontrollTabell[[#This Row],[True/False A1A3 Enhet]]=TRUE,TRUE,IF(ISBLANK(InputA1A3[[#This Row],[Omräkning till FU/DU (Skriv in värde, ej formel)]]),FALSE,TRUE))) ->  | BY24: =IF(KontrollTabell[[#This Row],[Finns anläggningsdel-namn.]]=FALSE,,IF(KontrollTabell[[#This Row],[True/False A1A3 Enhet]]=TRUE,InputA1A3[[#This Row],[Mängd A1A3]]*InputA1A3[[#This Row],[EF A1A3 '[kg CO₂-ekv.']]],IF(KontrollTabell[[#This Row],[True/False A1A3 om A1A3 kan beräknas]]=TRUE,InputA1A3[[#This Row],[Mängd A1A3]]*InputA1A3[[#This Row],[EF A1A3 '[kg CO₂-ekv.']]]*InputA1A3[[#This Row],[Omräkning till FU/DU (Skriv in värde, ej formel)]],"Värde Behövs"))) -> 0 | BZ24: =IF(ISBLANK(InputA1A3[[#This Row],[Anläggningsdel ]]),"",IF(ISBLANK(InputA1A3[[#This Row],[EPD - EF A4]]),FALSE,TRUE)) ->  | CA24: =IF(OR(ISBLANK(InputA1A3[[#This Row],[Enhet (bränsleförbrukning per km)]]),ISBLANK(InputA1A3[[#This Row],[*DU/FU (EF A4) för valt drivmedel (schablon)]])),"",IF(OR(InputA1A3[[#This Row],[Enhet (bränsleförbrukning per km)]]=InputA1A3[[#This Row],[*DU/FU (EF A4) för valt drivmedel (schablon)]],AND(InputA1A3[[#This Row],[Enhet (bränsleförbrukning per km)]]<>InputA1A3[[#This Row],[*DU/FU (EF A4) för valt drivmedel (schablon)]],ISNUMBER(InputA1A3[[#This Row],[Omräkningsfaktor (A4), (vid behov, värde eller formel)]]))),TRUE(),FALSE())) ->  | CB24: =IF(InputA1A3[[#This Row],[Enhet (bränsleförbrukning per km)]] =InputA1A3[[#This Row],[*DU/FU (EF A4) för valt drivmedel (schablon)]],TRUE,IF(ISBLANK(InputA1A3[[#This Row],[Omräkningsfaktor (A4), (vid behov, värde eller formel)]]),FALSE,TRUE)) -> TRUE | CC24: =IF(ISBLANK(InputA1A3[[#This Row],[EPD - EF A4]]),"",IF(ISBLANK(InputA1A3[[#This Row],[Omräkning till FU/DU (Skriv in värde, ej formel)]]),InputA1A3[[#This Row],[EPD - EF A4]]*InputA1A3[[#This Row],[Mängd A1A3]],InputA1A3[[#This Row],[Mängd A1A3]]*InputA1A3[[#This Row],[Omräkning till FU/DU (Skriv in värde, ej formel)]]*InputA1A3[[#This Row],[EPD - EF A4]])) ->  | CD24: =IF(ISBLANK(KontrollTabell[[#This Row],[True/False A4 - Alt 2]]),"",IF(KontrollTabell[[#This Row],[True/False A4 Enhet - Alt2]]=TRUE,InputA1A3[[#This Row],[Sträcka - totalt '[km'], (tur och retur, alla transporter)]]*InputA1A3[[#This Row],[(Bränsle-) Förbrukning per km]],"Sen då")) -> 0 | CE24: =SUM(KontrollTabell[[#This Row],[A4 - Resultat alt 1 '[kg']]:[A4 - Alt 2 - beräkning utsläpp]]) -> 0 | CF24: =IF(ISBLANK(InputA1A3[[#This Row],[EPD - EF A4]]),ISBLANK(#REF!),) -> FALSE | CG24: =IFERROR(IF(KontrollTabell[[#This Row],[True/False A5]]=FALSE(),"Enheter",IF(ISBLANK(InputA1A3[[#This Row],[Omräkningsfaktor (A5.2) (ange värde), (vid behov)]]),InputA1A3[[#This Row],[Mängd (A5.2)]]*InputA1A3[[#This Row],[*EF (A5.2) '[kg CO₂-ekv.']]],InputA1A3[[#This Row],[Mängd (A5.2)]]*InputA1A3[[#This Row],[*EF (A5.2) '[kg CO₂-ekv.']]]*InputA1A3[[#This Row],[Omräkningsfaktor (A5.2) (ange värde), (vid behov)]])),0) -> 0 | CH24: =IF(OR(ISBLANK(InputA1A3[[#This Row],[Enhet för mängd (A5.2)]]),ISBLANK(InputA1A3[[#This Row],[*DU/FU (EF A5.2)]])),"",IF(OR(InputA1A3[[#This Row],[Enhet för mängd (A5.2)]]=InputA1A3[[#This Row],[*DU/FU (EF A5.2)]],AND(InputA1A3[[#This Row],[Enhet för mängd (A5.2)]]<>InputA1A3[[#This Row],[*DU/FU (EF A5.2)]],ISNUMBER(InputA1A3[[#This Row],[Omräkningsfaktor (A5.2) (ange värde), (vid behov)]]))),TRUE,FALSE)) ->  | CI24: =IF(InputA1A3[[#This Row],[Enhet för mängd (A5.2)]] = InputA1A3[[#This Row],[*DU/FU (EF A5.2)]], TRUE, FALSE) -> TRUE | CJ24: =IF(OR(ISBLANK(InputA1A3[[#This Row],[Kategori (egen kategorisering)]])=FALSE,ISBLANK(InputA1A3[[#This Row],[Anläggningsdel ]]))=FALSE,TRUE,FALSE) -> FALSE | CK24: =IF(ISBLANK(InputA1A3[[#This Row],[Anläggningsdel ]]),"",IF(KontrollTabell[[#This Row],[TRUE/FALSE om kategori saknas.]] =FALSE,InputA1A3[[#This Row],[Kategori (egen kategorisering)]],"Kategori saknas")) -> 
J25: =IF(ISBLANK(InputA1A3[[#This Row],[Anläggningsdel ]]),"",IF(KontrollTabell[[#This Row],[True/False A1A3 Enhet]]=TRUE, "", InputA1A3[[#This Row],[FU/DU (EF A1A3)]] & "/" & InputA1A3[[#This Row],[Enhet Mängd (A1A3)]])) ->  | O25: =IF(ISBLANK(InputA1A3[[#This Row],[EPD - EF A4]]),"",InputA1A3[[#This Row],[FU/DU (EF A1A3)]]) ->  | S25: =IFERROR(INDEX(TabellEFDrivmedel[],MATCH(InputA1A3[[#This Row],[Drivmedel (A4) (endast förval ur lista)]],TabellEFDrivmedel[Drivmedel],0),4),"") ->  | W25: =IF(InputA1A3[[#This Row],[*DU/FU (EF A4) för valt drivmedel (schablon)]]="","",IF(KontrollTabell[[#This Row],[True/False A4 Enhet - Alt2]]=TRUE,"",IF(ISBLANK(InputA1A3[[#This Row],[*DU/FU (EF A4) för valt drivmedel (schablon)]]),,InputA1A3[[#This Row],[Enhet (bränsleförbrukning per km)]]& "/" & InputA1A3[[#This Row],[*DU/FU (EF A4) för valt drivmedel (schablon)]]))) ->  | AE25: =IFERROR(INDEX(TabellEFDrivmedel[],MATCH(InputA1A3[[#This Row],[Drivmedel (A5.2)]],TabellEFDrivmedel[Drivmedel],0),2),"") ->  | AF25: =IFERROR(INDEX(TabellEFDrivmedel[],MATCH(InputA1A3[[#This Row],[Drivmedel (A5.2)]],TabellEFDrivmedel[Drivmedel],0),4),"") ->  | AG25: =IF(KontrollTabell[[#This Row],[True/False A5 Enhet]]=TRUE, "", InputA1A3[[#This Row],[*DU/FU (EF A5.2)]] & "/" & InputA1A3[[#This Row],[Enhet för mängd (A5.2)]]) ->  | BV25: =IF(ISBLANK(InputA1A3[[#This Row],[Anläggningsdel ]]),FALSE,TRUE) -> FALSE | BW25: =IF(ISBLANK(InputA1A3[[#This Row],[Anläggningsdel ]]),"",IF(InputA1A3[[#This Row],[Enhet Mängd (A1A3)]] = InputA1A3[[#This Row],[FU/DU (EF A1A3)]], TRUE, FALSE)) ->  | BX25: =IF(KontrollTabell[[#This Row],[Finns anläggningsdel-namn.]]=FALSE,"",IF(KontrollTabell[[#This Row],[True/False A1A3 Enhet]]=TRUE,TRUE,IF(ISBLANK(InputA1A3[[#This Row],[Omräkning till FU/DU (Skriv in värde, ej formel)]]),FALSE,TRUE))) ->  | BY25: =IF(KontrollTabell[[#This Row],[Finns anläggningsdel-namn.]]=FALSE,,IF(KontrollTabell[[#This Row],[True/False A1A3 Enhet]]=TRUE,InputA1A3[[#This Row],[Mängd A1A3]]*InputA1A3[[#This Row],[EF A1A3 '[kg CO₂-ekv.']]],IF(KontrollTabell[[#This Row],[True/False A1A3 om A1A3 kan beräknas]]=TRUE,InputA1A3[[#This Row],[Mängd A1A3]]*InputA1A3[[#This Row],[EF A1A3 '[kg CO₂-ekv.']]]*InputA1A3[[#This Row],[Omräkning till FU/DU (Skriv in värde, ej formel)]],"Värde Behövs"))) -> 0 | BZ25: =IF(ISBLANK(InputA1A3[[#This Row],[Anläggningsdel ]]),"",IF(ISBLANK(InputA1A3[[#This Row],[EPD - EF A4]]),FALSE,TRUE)) ->  | CA25: =IF(OR(ISBLANK(InputA1A3[[#This Row],[Enhet (bränsleförbrukning per km)]]),ISBLANK(InputA1A3[[#This Row],[*DU/FU (EF A4) för valt drivmedel (schablon)]])),"",IF(OR(InputA1A3[[#This Row],[Enhet (bränsleförbrukning per km)]]=InputA1A3[[#This Row],[*DU/FU (EF A4) för valt drivmedel (schablon)]],AND(InputA1A3[[#This Row],[Enhet (bränsleförbrukning per km)]]<>InputA1A3[[#This Row],[*DU/FU (EF A4) för valt drivmedel (schablon)]],ISNUMBER(InputA1A3[[#This Row],[Omräkningsfaktor (A4), (vid behov, värde eller formel)]]))),TRUE(),FALSE())) ->  | CB25: =IF(InputA1A3[[#This Row],[Enhet (bränsleförbrukning per km)]] =InputA1A3[[#This Row],[*DU/FU (EF A4) för valt drivmedel (schablon)]],TRUE,IF(ISBLANK(InputA1A3[[#This Row],[Omräkningsfaktor (A4), (vid behov, värde eller formel)]]),FALSE,TRUE)) -> TRUE | CC25: =IF(ISBLANK(InputA1A3[[#This Row],[EPD - EF A4]]),"",IF(ISBLANK(InputA1A3[[#This Row],[Omräkning till FU/DU (Skriv in värde, ej formel)]]),InputA1A3[[#This Row],[EPD - EF A4]]*InputA1A3[[#This Row],[Mängd A1A3]],InputA1A3[[#This Row],[Mängd A1A3]]*InputA1A3[[#This Row],[Omräkning till FU/DU (Skriv in värde, ej formel)]]*InputA1A3[[#This Row],[EPD - EF A4]])) ->  | CD25: =IF(ISBLANK(KontrollTabell[[#This Row],[True/False A4 - Alt 2]]),"",IF(KontrollTabell[[#This Row],[True/False A4 Enhet - Alt2]]=TRUE,InputA1A3[[#This Row],[Sträcka - totalt '[km'], (tur och retur, alla transporter)]]*InputA1A3[[#This Row],[(Bränsle-) Förbrukning per km]],"Sen då")) -> 0 | CE25: =SUM(KontrollTabell[[#This Row],[A4 - Resultat alt 1 '[kg']]:[A4 - Alt 2 - beräkning utsläpp]]) -> 0 | CF25: =IF(ISBLANK(InputA1A3[[#This Row],[EPD - EF A4]]),ISBLANK(#REF!),) -> FALSE | CG25: =IFERROR(IF(KontrollTabell[[#This Row],[True/False A5]]=FALSE(),"Enheter",IF(ISBLANK(InputA1A3[[#This Row],[Omräkningsfaktor (A5.2) (ange värde), (vid behov)]]),InputA1A3[[#This Row],[Mängd (A5.2)]]*InputA1A3[[#This Row],[*EF (A5.2) '[kg CO₂-ekv.']]],InputA1A3[[#This Row],[Mängd (A5.2)]]*InputA1A3[[#This Row],[*EF (A5.2) '[kg CO₂-ekv.']]]*InputA1A3[[#This Row],[Omräkningsfaktor (A5.2) (ange värde), (vid behov)]])),0) -> 0 | CH25: =IF(OR(ISBLANK(InputA1A3[[#This Row],[Enhet för mängd (A5.2)]]),ISBLANK(InputA1A3[[#This Row],[*DU/FU (EF A5.2)]])),"",IF(OR(InputA1A3[[#This Row],[Enhet för mängd (A5.2)]]=InputA1A3[[#This Row],[*DU/FU (EF A5.2)]],AND(InputA1A3[[#This Row],[Enhet för mängd (A5.2)]]<>InputA1A3[[#This Row],[*DU/FU (EF A5.2)]],ISNUMBER(InputA1A3[[#This Row],[Omräkningsfaktor (A5.2) (ange värde), (vid behov)]]))),TRUE,FALSE)) ->  | CI25: =IF(InputA1A3[[#This Row],[Enhet för mängd (A5.2)]] = InputA1A3[[#This Row],[*DU/FU (EF A5.2)]], TRUE, FALSE) -> TRUE | CJ25: =IF(OR(ISBLANK(InputA1A3[[#This Row],[Kategori (egen kategorisering)]])=FALSE,ISBLANK(InputA1A3[[#This Row],[Anläggningsdel ]]))=FALSE,TRUE,FALSE) -> FALSE | CK25: =IF(ISBLANK(InputA1A3[[#This Row],[Anläggningsdel ]]),"",IF(KontrollTabell[[#This Row],[TRUE/FALSE om kategori saknas.]] =FALSE,InputA1A3[[#This Row],[Kategori (egen kategorisering)]],"Kategori saknas")) -> 
J26: =IF(ISBLANK(InputA1A3[[#This Row],[Anläggningsdel ]]),"",IF(KontrollTabell[[#This Row],[True/False A1A3 Enhet]]=TRUE, "", InputA1A3[[#This Row],[FU/DU (EF A1A3)]] & "/" & InputA1A3[[#This Row],[Enhet Mängd (A1A3)]])) ->  | O26: =IF(ISBLANK(InputA1A3[[#This Row],[EPD - EF A4]]),"",InputA1A3[[#This Row],[FU/DU (EF A1A3)]]) ->  | S26: =IFERROR(INDEX(TabellEFDrivmedel[],MATCH(InputA1A3[[#This Row],[Drivmedel (A4) (endast förval ur lista)]],TabellEFDrivmedel[Drivmedel],0),4),"") ->  | W26: =IF(InputA1A3[[#This Row],[*DU/FU (EF A4) för valt drivmedel (schablon)]]="","",IF(KontrollTabell[[#This Row],[True/False A4 Enhet - Alt2]]=TRUE,"",IF(ISBLANK(InputA1A3[[#This Row],[*DU/FU (EF A4) för valt drivmedel (schablon)]]),,InputA1A3[[#This Row],[Enhet (bränsleförbrukning per km)]]& "/" & InputA1A3[[#This Row],[*DU/FU (EF A4) för valt drivmedel (schablon)]]))) ->  | AE26: =IFERROR(INDEX(TabellEFDrivmedel[],MATCH(InputA1A3[[#This Row],[Drivmedel (A5.2)]],TabellEFDrivmedel[Drivmedel],0),2),"") ->  | AF26: =IFERROR(INDEX(TabellEFDrivmedel[],MATCH(InputA1A3[[#This Row],[Drivmedel (A5.2)]],TabellEFDrivmedel[Drivmedel],0),4),"") ->  | AG26: =IF(KontrollTabell[[#This Row],[True/False A5 Enhet]]=TRUE, "", InputA1A3[[#This Row],[*DU/FU (EF A5.2)]] & "/" & InputA1A3[[#This Row],[Enhet för mängd (A5.2)]]) ->  | BV26: =IF(ISBLANK(InputA1A3[[#This Row],[Anläggningsdel ]]),FALSE,TRUE) -> FALSE | BW26: =IF(ISBLANK(InputA1A3[[#This Row],[Anläggningsdel ]]),"",IF(InputA1A3[[#This Row],[Enhet Mängd (A1A3)]] = InputA1A3[[#This Row],[FU/DU (EF A1A3)]], TRUE, FALSE)) ->  | BX26: =IF(KontrollTabell[[#This Row],[Finns anläggningsdel-namn.]]=FALSE,"",IF(KontrollTabell[[#This Row],[True/False A1A3 Enhet]]=TRUE,TRUE,IF(ISBLANK(InputA1A3[[#This Row],[Omräkning till FU/DU (Skriv in värde, ej formel)]]),FALSE,TRUE))) ->  | BY26: =IF(KontrollTabell[[#This Row],[Finns anläggningsdel-namn.]]=FALSE,,IF(KontrollTabell[[#This Row],[True/False A1A3 Enhet]]=TRUE,InputA1A3[[#This Row],[Mängd A1A3]]*InputA1A3[[#This Row],[EF A1A3 '[kg CO₂-ekv.']]],IF(KontrollTabell[[#This Row],[True/False A1A3 om A1A3 kan beräknas]]=TRUE,InputA1A3[[#This Row],[Mängd A1A3]]*InputA1A3[[#This Row],[EF A1A3 '[kg CO₂-ekv.']]]*InputA1A3[[#This Row],[Omräkning till FU/DU (Skriv in värde, ej formel)]],"Värde Behövs"))) -> 0 | BZ26: =IF(ISBLANK(InputA1A3[[#This Row],[Anläggningsdel ]]),"",IF(ISBLANK(InputA1A3[[#This Row],[EPD - EF A4]]),FALSE,TRUE)) ->  | CA26: =IF(OR(ISBLANK(InputA1A3[[#This Row],[Enhet (bränsleförbrukning per km)]]),ISBLANK(InputA1A3[[#This Row],[*DU/FU (EF A4) för valt drivmedel (schablon)]])),"",IF(OR(InputA1A3[[#This Row],[Enhet (bränsleförbrukning per km)]]=InputA1A3[[#This Row],[*DU/FU (EF A4) för valt drivmedel (schablon)]],AND(InputA1A3[[#This Row],[Enhet (bränsleförbrukning per km)]]<>InputA1A3[[#This Row],[*DU/FU (EF A4) för valt drivmedel (schablon)]],ISNUMBER(InputA1A3[[#This Row],[Omräkningsfaktor (A4), (vid behov, värde eller formel)]]))),TRUE(),FALSE())) ->  | CB26: =IF(InputA1A3[[#This Row],[Enhet (bränsleförbrukning per km)]] =InputA1A3[[#This Row],[*DU/FU (EF A4) för valt drivmedel (schablon)]],TRUE,IF(ISBLANK(InputA1A3[[#This Row],[Omräkningsfaktor (A4), (vid behov, värde eller formel)]]),FALSE,TRUE)) -> TRUE | CC26: =IF(ISBLANK(InputA1A3[[#This Row],[EPD - EF A4]]),"",IF(ISBLANK(InputA1A3[[#This Row],[Omräkning till FU/DU (Skriv in värde, ej formel)]]),InputA1A3[[#This Row],[EPD - EF A4]]*InputA1A3[[#This Row],[Mängd A1A3]],InputA1A3[[#This Row],[Mängd A1A3]]*InputA1A3[[#This Row],[Omräkning till FU/DU (Skriv in värde, ej formel)]]*InputA1A3[[#This Row],[EPD - EF A4]])) ->  | CD26: =IF(ISBLANK(KontrollTabell[[#This Row],[True/False A4 - Alt 2]]),"",IF(KontrollTabell[[#This Row],[True/False A4 Enhet - Alt2]]=TRUE,InputA1A3[[#This Row],[Sträcka - totalt '[km'], (tur och retur, alla transporter)]]*InputA1A3[[#This Row],[(Bränsle-) Förbrukning per km]],"Sen då")) -> 0 | CE26: =SUM(KontrollTabell[[#This Row],[A4 - Resultat alt 1 '[kg']]:[A4 - Alt 2 - beräkning utsläpp]]) -> 0 | CF26: =IF(ISBLANK(InputA1A3[[#This Row],[EPD - EF A4]]),ISBLANK(#REF!),) -> FALSE | CG26: =IFERROR(IF(KontrollTabell[[#This Row],[True/False A5]]=FALSE(),"Enheter",IF(ISBLANK(InputA1A3[[#This Row],[Omräkningsfaktor (A5.2) (ange värde), (vid behov)]]),InputA1A3[[#This Row],[Mängd (A5.2)]]*InputA1A3[[#This Row],[*EF (A5.2) '[kg CO₂-ekv.']]],InputA1A3[[#This Row],[Mängd (A5.2)]]*InputA1A3[[#This Row],[*EF (A5.2) '[kg CO₂-ekv.']]]*InputA1A3[[#This Row],[Omräkningsfaktor (A5.2) (ange värde), (vid behov)]])),0) -> 0 | CH26: =IF(OR(ISBLANK(InputA1A3[[#This Row],[Enhet för mängd (A5.2)]]),ISBLANK(InputA1A3[[#This Row],[*DU/FU (EF A5.2)]])),"",IF(OR(InputA1A3[[#This Row],[Enhet för mängd (A5.2)]]=InputA1A3[[#This Row],[*DU/FU (EF A5.2)]],AND(InputA1A3[[#This Row],[Enhet för mängd (A5.2)]]<>InputA1A3[[#This Row],[*DU/FU (EF A5.2)]],ISNUMBER(InputA1A3[[#This Row],[Omräkningsfaktor (A5.2) (ange värde), (vid behov)]]))),TRUE,FALSE)) ->  | CI26: =IF(InputA1A3[[#This Row],[Enhet för mängd (A5.2)]] = InputA1A3[[#This Row],[*DU/FU (EF A5.2)]], TRUE, FALSE) -> TRUE | CJ26: =IF(OR(ISBLANK(InputA1A3[[#This Row],[Kategori (egen kategorisering)]])=FALSE,ISBLANK(InputA1A3[[#This Row],[Anläggningsdel ]]))=FALSE,TRUE,FALSE) -> FALSE | CK26: =IF(ISBLANK(InputA1A3[[#This Row],[Anläggningsdel ]]),"",IF(KontrollTabell[[#This Row],[TRUE/FALSE om kategori saknas.]] =FALSE,InputA1A3[[#This Row],[Kategori (egen kategorisering)]],"Kategori saknas")) -> 
J27: =IF(ISBLANK(InputA1A3[[#This Row],[Anläggningsdel ]]),"",IF(KontrollTabell[[#This Row],[True/False A1A3 Enhet]]=TRUE, "", InputA1A3[[#This Row],[FU/DU (EF A1A3)]] & "/" & InputA1A3[[#This Row],[Enhet Mängd (A1A3)]])) ->  | O27: =IF(ISBLANK(InputA1A3[[#This Row],[EPD - EF A4]]),"",InputA1A3[[#This Row],[FU/DU (EF A1A3)]]) ->  | S27: =IFERROR(INDEX(TabellEFDrivmedel[],MATCH(InputA1A3[[#This Row],[Drivmedel (A4) (endast förval ur lista)]],TabellEFDrivmedel[Drivmedel],0),4),"") ->  | W27: =IF(InputA1A3[[#This Row],[*DU/FU (EF A4) för valt drivmedel (schablon)]]="","",IF(KontrollTabell[[#This Row],[True/False A4 Enhet - Alt2]]=TRUE,"",IF(ISBLANK(InputA1A3[[#This Row],[*DU/FU (EF A4) för valt drivmedel (schablon)]]),,InputA1A3[[#This Row],[Enhet (bränsleförbrukning per km)]]& "/" & InputA1A3[[#This Row],[*DU/FU (EF A4) för valt drivmedel (schablon)]]))) ->  | AE27: =IFERROR(INDEX(TabellEFDrivmedel[],MATCH(InputA1A3[[#This Row],[Drivmedel (A5.2)]],TabellEFDrivmedel[Drivmedel],0),2),"") ->  | AF27: =IFERROR(INDEX(TabellEFDrivmedel[],MATCH(InputA1A3[[#This Row],[Drivmedel (A5.2)]],TabellEFDrivmedel[Drivmedel],0),4),"") ->  | AG27: =IF(KontrollTabell[[#This Row],[True/False A5 Enhet]]=TRUE, "", InputA1A3[[#This Row],[*DU/FU (EF A5.2)]] & "/" & InputA1A3[[#This Row],[Enhet för mängd (A5.2)]]) ->  | BV27: =IF(ISBLANK(InputA1A3[[#This Row],[Anläggningsdel ]]),FALSE,TRUE) -> FALSE | BW27: =IF(ISBLANK(InputA1A3[[#This Row],[Anläggningsdel ]]),"",IF(InputA1A3[[#This Row],[Enhet Mängd (A1A3)]] = InputA1A3[[#This Row],[FU/DU (EF A1A3)]], TRUE, FALSE)) ->  | BX27: =IF(KontrollTabell[[#This Row],[Finns anläggningsdel-namn.]]=FALSE,"",IF(KontrollTabell[[#This Row],[True/False A1A3 Enhet]]=TRUE,TRUE,IF(ISBLANK(InputA1A3[[#This Row],[Omräkning till FU/DU (Skriv in värde, ej formel)]]),FALSE,TRUE))) ->  | BY27: =IF(KontrollTabell[[#This Row],[Finns anläggningsdel-namn.]]=FALSE,,IF(KontrollTabell[[#This Row],[True/False A1A3 Enhet]]=TRUE,InputA1A3[[#This Row],[Mängd A1A3]]*InputA1A3[[#This Row],[EF A1A3 '[kg CO₂-ekv.']]],IF(KontrollTabell[[#This Row],[True/False A1A3 om A1A3 kan beräknas]]=TRUE,InputA1A3[[#This Row],[Mängd A1A3]]*InputA1A3[[#This Row],[EF A1A3 '[kg CO₂-ekv.']]]*InputA1A3[[#This Row],[Omräkning till FU/DU (Skriv in värde, ej formel)]],"Värde Behövs"))) -> 0 | BZ27: =IF(ISBLANK(InputA1A3[[#This Row],[Anläggningsdel ]]),"",IF(ISBLANK(InputA1A3[[#This Row],[EPD - EF A4]]),FALSE,TRUE)) ->  | CA27: =IF(OR(ISBLANK(InputA1A3[[#This Row],[Enhet (bränsleförbrukning per km)]]),ISBLANK(InputA1A3[[#This Row],[*DU/FU (EF A4) för valt drivmedel (schablon)]])),"",IF(OR(InputA1A3[[#This Row],[Enhet (bränsleförbrukning per km)]]=InputA1A3[[#This Row],[*DU/FU (EF A4) för valt drivmedel (schablon)]],AND(InputA1A3[[#This Row],[Enhet (bränsleförbrukning per km)]]<>InputA1A3[[#This Row],[*DU/FU (EF A4) för valt drivmedel (schablon)]],ISNUMBER(InputA1A3[[#This Row],[Omräkningsfaktor (A4), (vid behov, värde eller formel)]]))),TRUE(),FALSE())) ->  | CB27: =IF(InputA1A3[[#This Row],[Enhet (bränsleförbrukning per km)]] =InputA1A3[[#This Row],[*DU/FU (EF A4) för valt drivmedel (schablon)]],TRUE,IF(ISBLANK(InputA1A3[[#This Row],[Omräkningsfaktor (A4), (vid behov, värde eller formel)]]),FALSE,TRUE)) -> TRUE | CC27: =IF(ISBLANK(InputA1A3[[#This Row],[EPD - EF A4]]),"",IF(ISBLANK(InputA1A3[[#This Row],[Omräkning till FU/DU (Skriv in värde, ej formel)]]),InputA1A3[[#This Row],[EPD - EF A4]]*InputA1A3[[#This Row],[Mängd A1A3]],InputA1A3[[#This Row],[Mängd A1A3]]*InputA1A3[[#This Row],[Omräkning till FU/DU (Skriv in värde, ej formel)]]*InputA1A3[[#This Row],[EPD - EF A4]])) ->  | CD27: =IF(ISBLANK(KontrollTabell[[#This Row],[True/False A4 - Alt 2]]),"",IF(KontrollTabell[[#This Row],[True/False A4 Enhet - Alt2]]=TRUE,InputA1A3[[#This Row],[Sträcka - totalt '[km'], (tur och retur, alla transporter)]]*InputA1A3[[#This Row],[(Bränsle-) Förbrukning per km]],"Sen då")) -> 0 | CE27: =SUM(KontrollTabell[[#This Row],[A4 - Resultat alt 1 '[kg']]:[A4 - Alt 2 - beräkning utsläpp]]) -> 0 | CF27: =IF(ISBLANK(InputA1A3[[#This Row],[EPD - EF A4]]),ISBLANK(#REF!),) -> FALSE | CG27: =IFERROR(IF(KontrollTabell[[#This Row],[True/False A5]]=FALSE(),"Enheter",IF(ISBLANK(InputA1A3[[#This Row],[Omräkningsfaktor (A5.2) (ange värde), (vid behov)]]),InputA1A3[[#This Row],[Mängd (A5.2)]]*InputA1A3[[#This Row],[*EF (A5.2) '[kg CO₂-ekv.']]],InputA1A3[[#This Row],[Mängd (A5.2)]]*InputA1A3[[#This Row],[*EF (A5.2) '[kg CO₂-ekv.']]]*InputA1A3[[#This Row],[Omräkningsfaktor (A5.2) (ange värde), (vid behov)]])),0) -> 0 | CH27: =IF(OR(ISBLANK(InputA1A3[[#This Row],[Enhet för mängd (A5.2)]]),ISBLANK(InputA1A3[[#This Row],[*DU/FU (EF A5.2)]])),"",IF(OR(InputA1A3[[#This Row],[Enhet för mängd (A5.2)]]=InputA1A3[[#This Row],[*DU/FU (EF A5.2)]],AND(InputA1A3[[#This Row],[Enhet för mängd (A5.2)]]<>InputA1A3[[#This Row],[*DU/FU (EF A5.2)]],ISNUMBER(InputA1A3[[#This Row],[Omräkningsfaktor (A5.2) (ange värde), (vid behov)]]))),TRUE,FALSE)) ->  | CI27: =IF(InputA1A3[[#This Row],[Enhet för mängd (A5.2)]] = InputA1A3[[#This Row],[*DU/FU (EF A5.2)]], TRUE, FALSE) -> TRUE | CJ27: =IF(OR(ISBLANK(InputA1A3[[#This Row],[Kategori (egen kategorisering)]])=FALSE,ISBLANK(InputA1A3[[#This Row],[Anläggningsdel ]]))=FALSE,TRUE,FALSE) -> FALSE | CK27: =IF(ISBLANK(InputA1A3[[#This Row],[Anläggningsdel ]]),"",IF(KontrollTabell[[#This Row],[TRUE/FALSE om kategori saknas.]] =FALSE,InputA1A3[[#This Row],[Kategori (egen kategorisering)]],"Kategori saknas")) -> 
J28: =IF(ISBLANK(InputA1A3[[#This Row],[Anläggningsdel ]]),"",IF(KontrollTabell[[#This Row],[True/False A1A3 Enhet]]=TRUE, "", InputA1A3[[#This Row],[FU/DU (EF A1A3)]] & "/" & InputA1A3[[#This Row],[Enhet Mängd (A1A3)]])) ->  | O28: =IF(ISBLANK(InputA1A3[[#This Row],[EPD - EF A4]]),"",InputA1A3[[#This Row],[FU/DU (EF A1A3)]]) ->  | S28: =IFERROR(INDEX(TabellEFDrivmedel[],MATCH(InputA1A3[[#This Row],[Drivmedel (A4) (endast förval ur lista)]],TabellEFDrivmedel[Drivmedel],0),4),"") ->  | W28: =IF(InputA1A3[[#This Row],[*DU/FU (EF A4) för valt drivmedel (schablon)]]="","",IF(KontrollTabell[[#This Row],[True/False A4 Enhet - Alt2]]=TRUE,"",IF(ISBLANK(InputA1A3[[#This Row],[*DU/FU (EF A4) för valt drivmedel (schablon)]]),,InputA1A3[[#This Row],[Enhet (bränsleförbrukning per km)]]& "/" & InputA1A3[[#This Row],[*DU/FU (EF A4) för valt drivmedel (schablon)]]))) ->  | AE28: =IFERROR(INDEX(TabellEFDrivmedel[],MATCH(InputA1A3[[#This Row],[Drivmedel (A5.2)]],TabellEFDrivmedel[Drivmedel],0),2),"") ->  | AF28: =IFERROR(INDEX(TabellEFDrivmedel[],MATCH(InputA1A3[[#This Row],[Drivmedel (A5.2)]],TabellEFDrivmedel[Drivmedel],0),4),"") ->  | AG28: =IF(KontrollTabell[[#This Row],[True/False A5 Enhet]]=TRUE, "", InputA1A3[[#This Row],[*DU/FU (EF A5.2)]] & "/" & InputA1A3[[#This Row],[Enhet för mängd (A5.2)]]) ->  | BV28: =IF(ISBLANK(InputA1A3[[#This Row],[Anläggningsdel ]]),FALSE,TRUE) -> FALSE | BW28: =IF(ISBLANK(InputA1A3[[#This Row],[Anläggningsdel ]]),"",IF(InputA1A3[[#This Row],[Enhet Mängd (A1A3)]] = InputA1A3[[#This Row],[FU/DU (EF A1A3)]], TRUE, FALSE)) ->  | BX28: =IF(KontrollTabell[[#This Row],[Finns anläggningsdel-namn.]]=FALSE,"",IF(KontrollTabell[[#This Row],[True/False A1A3 Enhet]]=TRUE,TRUE,IF(ISBLANK(InputA1A3[[#This Row],[Omräkning till FU/DU (Skriv in värde, ej formel)]]),FALSE,TRUE))) ->  | BY28: =IF(KontrollTabell[[#This Row],[Finns anläggningsdel-namn.]]=FALSE,,IF(KontrollTabell[[#This Row],[True/False A1A3 Enhet]]=TRUE,InputA1A3[[#This Row],[Mängd A1A3]]*InputA1A3[[#This Row],[EF A1A3 '[kg CO₂-ekv.']]],IF(KontrollTabell[[#This Row],[True/False A1A3 om A1A3 kan beräknas]]=TRUE,InputA1A3[[#This Row],[Mängd A1A3]]*InputA1A3[[#This Row],[EF A1A3 '[kg CO₂-ekv.']]]*InputA1A3[[#This Row],[Omräkning till FU/DU (Skriv in värde, ej formel)]],"Värde Behövs"))) -> 0 | BZ28: =IF(ISBLANK(InputA1A3[[#This Row],[Anläggningsdel ]]),"",IF(ISBLANK(InputA1A3[[#This Row],[EPD - EF A4]]),FALSE,TRUE)) ->  | CA28: =IF(OR(ISBLANK(InputA1A3[[#This Row],[Enhet (bränsleförbrukning per km)]]),ISBLANK(InputA1A3[[#This Row],[*DU/FU (EF A4) för valt drivmedel (schablon)]])),"",IF(OR(InputA1A3[[#This Row],[Enhet (bränsleförbrukning per km)]]=InputA1A3[[#This Row],[*DU/FU (EF A4) för valt drivmedel (schablon)]],AND(InputA1A3[[#This Row],[Enhet (bränsleförbrukning per km)]]<>InputA1A3[[#This Row],[*DU/FU (EF A4) för valt drivmedel (schablon)]],ISNUMBER(InputA1A3[[#This Row],[Omräkningsfaktor (A4), (vid behov, värde eller formel)]]))),TRUE(),FALSE())) ->  | CB28: =IF(InputA1A3[[#This Row],[Enhet (bränsleförbrukning per km)]] =InputA1A3[[#This Row],[*DU/FU (EF A4) för valt drivmedel (schablon)]],TRUE,IF(ISBLANK(InputA1A3[[#This Row],[Omräkningsfaktor (A4), (vid behov, värde eller formel)]]),FALSE,TRUE)) -> TRUE | CC28: =IF(ISBLANK(InputA1A3[[#This Row],[EPD - EF A4]]),"",IF(ISBLANK(InputA1A3[[#This Row],[Omräkning till FU/DU (Skriv in värde, ej formel)]]),InputA1A3[[#This Row],[EPD - EF A4]]*InputA1A3[[#This Row],[Mängd A1A3]],InputA1A3[[#This Row],[Mängd A1A3]]*InputA1A3[[#This Row],[Omräkning till FU/DU (Skriv in värde, ej formel)]]*InputA1A3[[#This Row],[EPD - EF A4]])) ->  | CD28: =IF(ISBLANK(KontrollTabell[[#This Row],[True/False A4 - Alt 2]]),"",IF(KontrollTabell[[#This Row],[True/False A4 Enhet - Alt2]]=TRUE,InputA1A3[[#This Row],[Sträcka - totalt '[km'], (tur och retur, alla transporter)]]*InputA1A3[[#This Row],[(Bränsle-) Förbrukning per km]],"Sen då")) -> 0 | CE28: =SUM(KontrollTabell[[#This Row],[A4 - Resultat alt 1 '[kg']]:[A4 - Alt 2 - beräkning utsläpp]]) -> 0 | CF28: =IF(ISBLANK(InputA1A3[[#This Row],[EPD - EF A4]]),ISBLANK(#REF!),) -> FALSE | CG28: =IFERROR(IF(KontrollTabell[[#This Row],[True/False A5]]=FALSE(),"Enheter",IF(ISBLANK(InputA1A3[[#This Row],[Omräkningsfaktor (A5.2) (ange värde), (vid behov)]]),InputA1A3[[#This Row],[Mängd (A5.2)]]*InputA1A3[[#This Row],[*EF (A5.2) '[kg CO₂-ekv.']]],InputA1A3[[#This Row],[Mängd (A5.2)]]*InputA1A3[[#This Row],[*EF (A5.2) '[kg CO₂-ekv.']]]*InputA1A3[[#This Row],[Omräkningsfaktor (A5.2) (ange värde), (vid behov)]])),0) -> 0 | CH28: =IF(OR(ISBLANK(InputA1A3[[#This Row],[Enhet för mängd (A5.2)]]),ISBLANK(InputA1A3[[#This Row],[*DU/FU (EF A5.2)]])),"",IF(OR(InputA1A3[[#This Row],[Enhet för mängd (A5.2)]]=InputA1A3[[#This Row],[*DU/FU (EF A5.2)]],AND(InputA1A3[[#This Row],[Enhet för mängd (A5.2)]]<>InputA1A3[[#This Row],[*DU/FU (EF A5.2)]],ISNUMBER(InputA1A3[[#This Row],[Omräkningsfaktor (A5.2) (ange värde), (vid behov)]]))),TRUE,FALSE)) ->  | CI28: =IF(InputA1A3[[#This Row],[Enhet för mängd (A5.2)]] = InputA1A3[[#This Row],[*DU/FU (EF A5.2)]], TRUE, FALSE) -> TRUE | CJ28: =IF(OR(ISBLANK(InputA1A3[[#This Row],[Kategori (egen kategorisering)]])=FALSE,ISBLANK(InputA1A3[[#This Row],[Anläggningsdel ]]))=FALSE,TRUE,FALSE) -> FALSE | CK28: =IF(ISBLANK(InputA1A3[[#This Row],[Anläggningsdel ]]),"",IF(KontrollTabell[[#This Row],[TRUE/FALSE om kategori saknas.]] =FALSE,InputA1A3[[#This Row],[Kategori (egen kategorisering)]],"Kategori saknas")) -> 
J29: =IF(ISBLANK(InputA1A3[[#This Row],[Anläggningsdel ]]),"",IF(KontrollTabell[[#This Row],[True/False A1A3 Enhet]]=TRUE, "", InputA1A3[[#This Row],[FU/DU (EF A1A3)]] & "/" & InputA1A3[[#This Row],[Enhet Mängd (A1A3)]])) ->  | O29: =IF(ISBLANK(InputA1A3[[#This Row],[EPD - EF A4]]),"",InputA1A3[[#This Row],[FU/DU (EF A1A3)]]) ->  | S29: =IFERROR(INDEX(TabellEFDrivmedel[],MATCH(InputA1A3[[#This Row],[Drivmedel (A4) (endast förval ur lista)]],TabellEFDrivmedel[Drivmedel],0),4),"") ->  | W29: =IF(InputA1A3[[#This Row],[*DU/FU (EF A4) för valt drivmedel (schablon)]]="","",IF(KontrollTabell[[#This Row],[True/False A4 Enhet - Alt2]]=TRUE,"",IF(ISBLANK(InputA1A3[[#This Row],[*DU/FU (EF A4) för valt drivmedel (schablon)]]),,InputA1A3[[#This Row],[Enhet (bränsleförbrukning per km)]]& "/" & InputA1A3[[#This Row],[*DU/FU (EF A4) för valt drivmedel (schablon)]]))) ->  | AE29: =IFERROR(INDEX(TabellEFDrivmedel[],MATCH(InputA1A3[[#This Row],[Drivmedel (A5.2)]],TabellEFDrivmedel[Drivmedel],0),2),"") ->  | AF29: =IFERROR(INDEX(TabellEFDrivmedel[],MATCH(InputA1A3[[#This Row],[Drivmedel (A5.2)]],TabellEFDrivmedel[Drivmedel],0),4),"") ->  | AG29: =IF(KontrollTabell[[#This Row],[True/False A5 Enhet]]=TRUE, "", InputA1A3[[#This Row],[*DU/FU (EF A5.2)]] & "/" & InputA1A3[[#This Row],[Enhet för mängd (A5.2)]]) ->  | BV29: =IF(ISBLANK(InputA1A3[[#This Row],[Anläggningsdel ]]),FALSE,TRUE) -> FALSE | BW29: =IF(ISBLANK(InputA1A3[[#This Row],[Anläggningsdel ]]),"",IF(InputA1A3[[#This Row],[Enhet Mängd (A1A3)]] = InputA1A3[[#This Row],[FU/DU (EF A1A3)]], TRUE, FALSE)) ->  | BX29: =IF(KontrollTabell[[#This Row],[Finns anläggningsdel-namn.]]=FALSE,"",IF(KontrollTabell[[#This Row],[True/False A1A3 Enhet]]=TRUE,TRUE,IF(ISBLANK(InputA1A3[[#This Row],[Omräkning till FU/DU (Skriv in värde, ej formel)]]),FALSE,TRUE))) ->  | BY29: =IF(KontrollTabell[[#This Row],[Finns anläggningsdel-namn.]]=FALSE,,IF(KontrollTabell[[#This Row],[True/False A1A3 Enhet]]=TRUE,InputA1A3[[#This Row],[Mängd A1A3]]*InputA1A3[[#This Row],[EF A1A3 '[kg CO₂-ekv.']]],IF(KontrollTabell[[#This Row],[True/False A1A3 om A1A3 kan beräknas]]=TRUE,InputA1A3[[#This Row],[Mängd A1A3]]*InputA1A3[[#This Row],[EF A1A3 '[kg CO₂-ekv.']]]*InputA1A3[[#This Row],[Omräkning till FU/DU (Skriv in värde, ej formel)]],"Värde Behövs"))) -> 0 | BZ29: =IF(ISBLANK(InputA1A3[[#This Row],[Anläggningsdel ]]),"",IF(ISBLANK(InputA1A3[[#This Row],[EPD - EF A4]]),FALSE,TRUE)) ->  | CA29: =IF(OR(ISBLANK(InputA1A3[[#This Row],[Enhet (bränsleförbrukning per km)]]),ISBLANK(InputA1A3[[#This Row],[*DU/FU (EF A4) för valt drivmedel (schablon)]])),"",IF(OR(InputA1A3[[#This Row],[Enhet (bränsleförbrukning per km)]]=InputA1A3[[#This Row],[*DU/FU (EF A4) för valt drivmedel (schablon)]],AND(InputA1A3[[#This Row],[Enhet (bränsleförbrukning per km)]]<>InputA1A3[[#This Row],[*DU/FU (EF A4) för valt drivmedel (schablon)]],ISNUMBER(InputA1A3[[#This Row],[Omräkningsfaktor (A4), (vid behov, värde eller formel)]]))),TRUE(),FALSE())) ->  | CB29: =IF(InputA1A3[[#This Row],[Enhet (bränsleförbrukning per km)]] =InputA1A3[[#This Row],[*DU/FU (EF A4) för valt drivmedel (schablon)]],TRUE,IF(ISBLANK(InputA1A3[[#This Row],[Omräkningsfaktor (A4), (vid behov, värde eller formel)]]),FALSE,TRUE)) -> TRUE | CC29: =IF(ISBLANK(InputA1A3[[#This Row],[EPD - EF A4]]),"",IF(ISBLANK(InputA1A3[[#This Row],[Omräkning till FU/DU (Skriv in värde, ej formel)]]),InputA1A3[[#This Row],[EPD - EF A4]]*InputA1A3[[#This Row],[Mängd A1A3]],InputA1A3[[#This Row],[Mängd A1A3]]*InputA1A3[[#This Row],[Omräkning till FU/DU (Skriv in värde, ej formel)]]*InputA1A3[[#This Row],[EPD - EF A4]])) ->  | CD29: =IF(ISBLANK(KontrollTabell[[#This Row],[True/False A4 - Alt 2]]),"",IF(KontrollTabell[[#This Row],[True/False A4 Enhet - Alt2]]=TRUE,InputA1A3[[#This Row],[Sträcka - totalt '[km'], (tur och retur, alla transporter)]]*InputA1A3[[#This Row],[(Bränsle-) Förbrukning per km]],"Sen då")) -> 0 | CE29: =SUM(KontrollTabell[[#This Row],[A4 - Resultat alt 1 '[kg']]:[A4 - Alt 2 - beräkning utsläpp]]) -> 0 | CF29: =IF(ISBLANK(InputA1A3[[#This Row],[EPD - EF A4]]),ISBLANK(#REF!),) -> FALSE | CG29: =IFERROR(IF(KontrollTabell[[#This Row],[True/False A5]]=FALSE(),"Enheter",IF(ISBLANK(InputA1A3[[#This Row],[Omräkningsfaktor (A5.2) (ange värde), (vid behov)]]),InputA1A3[[#This Row],[Mängd (A5.2)]]*InputA1A3[[#This Row],[*EF (A5.2) '[kg CO₂-ekv.']]],InputA1A3[[#This Row],[Mängd (A5.2)]]*InputA1A3[[#This Row],[*EF (A5.2) '[kg CO₂-ekv.']]]*InputA1A3[[#This Row],[Omräkningsfaktor (A5.2) (ange värde), (vid behov)]])),0) -> 0 | CH29: =IF(OR(ISBLANK(InputA1A3[[#This Row],[Enhet för mängd (A5.2)]]),ISBLANK(InputA1A3[[#This Row],[*DU/FU (EF A5.2)]])),"",IF(OR(InputA1A3[[#This Row],[Enhet för mängd (A5.2)]]=InputA1A3[[#This Row],[*DU/FU (EF A5.2)]],AND(InputA1A3[[#This Row],[Enhet för mängd (A5.2)]]<>InputA1A3[[#This Row],[*DU/FU (EF A5.2)]],ISNUMBER(InputA1A3[[#This Row],[Omräkningsfaktor (A5.2) (ange värde), (vid behov)]]))),TRUE,FALSE)) ->  | CI29: =IF(InputA1A3[[#This Row],[Enhet för mängd (A5.2)]] = InputA1A3[[#This Row],[*DU/FU (EF A5.2)]], TRUE, FALSE) -> TRUE | CJ29: =IF(OR(ISBLANK(InputA1A3[[#This Row],[Kategori (egen kategorisering)]])=FALSE,ISBLANK(InputA1A3[[#This Row],[Anläggningsdel ]]))=FALSE,TRUE,FALSE) -> FALSE | CK29: =IF(ISBLANK(InputA1A3[[#This Row],[Anläggningsdel ]]),"",IF(KontrollTabell[[#This Row],[TRUE/FALSE om kategori saknas.]] =FALSE,InputA1A3[[#This Row],[Kategori (egen kategorisering)]],"Kategori saknas")) -> 
J30: =IF(ISBLANK(InputA1A3[[#This Row],[Anläggningsdel ]]),"",IF(KontrollTabell[[#This Row],[True/False A1A3 Enhet]]=TRUE, "", InputA1A3[[#This Row],[FU/DU (EF A1A3)]] & "/" & InputA1A3[[#This Row],[Enhet Mängd (A1A3)]])) ->  | O30: =IF(ISBLANK(InputA1A3[[#This Row],[EPD - EF A4]]),"",InputA1A3[[#This Row],[FU/DU (EF A1A3)]]) ->  | S30: =IFERROR(INDEX(TabellEFDrivmedel[],MATCH(InputA1A3[[#This Row],[Drivmedel (A4) (endast förval ur lista)]],TabellEFDrivmedel[Drivmedel],0),4),"") ->  | W30: =IF(InputA1A3[[#This Row],[*DU/FU (EF A4) för valt drivmedel (schablon)]]="","",IF(KontrollTabell[[#This Row],[True/False A4 Enhet - Alt2]]=TRUE,"",IF(ISBLANK(InputA1A3[[#This Row],[*DU/FU (EF A4) för valt drivmedel (schablon)]]),,InputA1A3[[#This Row],[Enhet (bränsleförbrukning per km)]]& "/" & InputA1A3[[#This Row],[*DU/FU (EF A4) för valt drivmedel (schablon)]]))) ->  | AE30: =IFERROR(INDEX(TabellEFDrivmedel[],MATCH(InputA1A3[[#This Row],[Drivmedel (A5.2)]],TabellEFDrivmedel[Drivmedel],0),2),"") ->  | AF30: =IFERROR(INDEX(TabellEFDrivmedel[],MATCH(InputA1A3[[#This Row],[Drivmedel (A5.2)]],TabellEFDrivmedel[Drivmedel],0),4),"") ->  | AG30: =IF(KontrollTabell[[#This Row],[True/False A5 Enhet]]=TRUE, "", InputA1A3[[#This Row],[*DU/FU (EF A5.2)]] & "/" & InputA1A3[[#This Row],[Enhet för mängd (A5.2)]]) ->  | BV30: =IF(ISBLANK(InputA1A3[[#This Row],[Anläggningsdel ]]),FALSE,TRUE) -> FALSE | BW30: =IF(ISBLANK(InputA1A3[[#This Row],[Anläggningsdel ]]),"",IF(InputA1A3[[#This Row],[Enhet Mängd (A1A3)]] = InputA1A3[[#This Row],[FU/DU (EF A1A3)]], TRUE, FALSE)) ->  | BX30: =IF(KontrollTabell[[#This Row],[Finns anläggningsdel-namn.]]=FALSE,"",IF(KontrollTabell[[#This Row],[True/False A1A3 Enhet]]=TRUE,TRUE,IF(ISBLANK(InputA1A3[[#This Row],[Omräkning till FU/DU (Skriv in värde, ej formel)]]),FALSE,TRUE))) ->  | BY30: =IF(KontrollTabell[[#This Row],[Finns anläggningsdel-namn.]]=FALSE,,IF(KontrollTabell[[#This Row],[True/False A1A3 Enhet]]=TRUE,InputA1A3[[#This Row],[Mängd A1A3]]*InputA1A3[[#This Row],[EF A1A3 '[kg CO₂-ekv.']]],IF(KontrollTabell[[#This Row],[True/False A1A3 om A1A3 kan beräknas]]=TRUE,InputA1A3[[#This Row],[Mängd A1A3]]*InputA1A3[[#This Row],[EF A1A3 '[kg CO₂-ekv.']]]*InputA1A3[[#This Row],[Omräkning till FU/DU (Skriv in värde, ej formel)]],"Värde Behövs"))) -> 0 | BZ30: =IF(ISBLANK(InputA1A3[[#This Row],[Anläggningsdel ]]),"",IF(ISBLANK(InputA1A3[[#This Row],[EPD - EF A4]]),FALSE,TRUE)) ->  | CA30: =IF(OR(ISBLANK(InputA1A3[[#This Row],[Enhet (bränsleförbrukning per km)]]),ISBLANK(InputA1A3[[#This Row],[*DU/FU (EF A4) för valt drivmedel (schablon)]])),"",IF(OR(InputA1A3[[#This Row],[Enhet (bränsleförbrukning per km)]]=InputA1A3[[#This Row],[*DU/FU (EF A4) för valt drivmedel (schablon)]],AND(InputA1A3[[#This Row],[Enhet (bränsleförbrukning per km)]]<>InputA1A3[[#This Row],[*DU/FU (EF A4) för valt drivmedel (schablon)]],ISNUMBER(InputA1A3[[#This Row],[Omräkningsfaktor (A4), (vid behov, värde eller formel)]]))),TRUE(),FALSE())) ->  | CB30: =IF(InputA1A3[[#This Row],[Enhet (bränsleförbrukning per km)]] =InputA1A3[[#This Row],[*DU/FU (EF A4) för valt drivmedel (schablon)]],TRUE,IF(ISBLANK(InputA1A3[[#This Row],[Omräkningsfaktor (A4), (vid behov, värde eller formel)]]),FALSE,TRUE)) -> TRUE | CC30: =IF(ISBLANK(InputA1A3[[#This Row],[EPD - EF A4]]),"",IF(ISBLANK(InputA1A3[[#This Row],[Omräkning till FU/DU (Skriv in värde, ej formel)]]),InputA1A3[[#This Row],[EPD - EF A4]]*InputA1A3[[#This Row],[Mängd A1A3]],InputA1A3[[#This Row],[Mängd A1A3]]*InputA1A3[[#This Row],[Omräkning till FU/DU (Skriv in värde, ej formel)]]*InputA1A3[[#This Row],[EPD - EF A4]])) ->  | CD30: =IF(ISBLANK(KontrollTabell[[#This Row],[True/False A4 - Alt 2]]),"",IF(KontrollTabell[[#This Row],[True/False A4 Enhet - Alt2]]=TRUE,InputA1A3[[#This Row],[Sträcka - totalt '[km'], (tur och retur, alla transporter)]]*InputA1A3[[#This Row],[(Bränsle-) Förbrukning per km]],"Sen då")) -> 0 | CE30: =SUM(KontrollTabell[[#This Row],[A4 - Resultat alt 1 '[kg']]:[A4 - Alt 2 - beräkning utsläpp]]) -> 0 | CF30: =IF(ISBLANK(InputA1A3[[#This Row],[EPD - EF A4]]),ISBLANK(#REF!),) -> FALSE | CG30: =IFERROR(IF(KontrollTabell[[#This Row],[True/False A5]]=FALSE(),"Enheter",IF(ISBLANK(InputA1A3[[#This Row],[Omräkningsfaktor (A5.2) (ange värde), (vid behov)]]),InputA1A3[[#This Row],[Mängd (A5.2)]]*InputA1A3[[#This Row],[*EF (A5.2) '[kg CO₂-ekv.']]],InputA1A3[[#This Row],[Mängd (A5.2)]]*InputA1A3[[#This Row],[*EF (A5.2) '[kg CO₂-ekv.']]]*InputA1A3[[#This Row],[Omräkningsfaktor (A5.2) (ange värde), (vid behov)]])),0) -> 0 | CH30: =IF(OR(ISBLANK(InputA1A3[[#This Row],[Enhet för mängd (A5.2)]]),ISBLANK(InputA1A3[[#This Row],[*DU/FU (EF A5.2)]])),"",IF(OR(InputA1A3[[#This Row],[Enhet för mängd (A5.2)]]=InputA1A3[[#This Row],[*DU/FU (EF A5.2)]],AND(InputA1A3[[#This Row],[Enhet för mängd (A5.2)]]<>InputA1A3[[#This Row],[*DU/FU (EF A5.2)]],ISNUMBER(InputA1A3[[#This Row],[Omräkningsfaktor (A5.2) (ange värde), (vid behov)]]))),TRUE,FALSE)) ->  | CI30: =IF(InputA1A3[[#This Row],[Enhet för mängd (A5.2)]] = InputA1A3[[#This Row],[*DU/FU (EF A5.2)]], TRUE, FALSE) -> TRUE | CJ30: =IF(OR(ISBLANK(InputA1A3[[#This Row],[Kategori (egen kategorisering)]])=FALSE,ISBLANK(InputA1A3[[#This Row],[Anläggningsdel ]]))=FALSE,TRUE,FALSE) -> FALSE | CK30: =IF(ISBLANK(InputA1A3[[#This Row],[Anläggningsdel ]]),"",IF(KontrollTabell[[#This Row],[TRUE/FALSE om kategori saknas.]] =FALSE,InputA1A3[[#This Row],[Kategori (egen kategorisering)]],"Kategori saknas")) -> 
J31: =IF(ISBLANK(InputA1A3[[#This Row],[Anläggningsdel ]]),"",IF(KontrollTabell[[#This Row],[True/False A1A3 Enhet]]=TRUE, "", InputA1A3[[#This Row],[FU/DU (EF A1A3)]] & "/" & InputA1A3[[#This Row],[Enhet Mängd (A1A3)]])) ->  | O31: =IF(ISBLANK(InputA1A3[[#This Row],[EPD - EF A4]]),"",InputA1A3[[#This Row],[FU/DU (EF A1A3)]]) ->  | S31: =IFERROR(INDEX(TabellEFDrivmedel[],MATCH(InputA1A3[[#This Row],[Drivmedel (A4) (endast förval ur lista)]],TabellEFDrivmedel[Drivmedel],0),4),"") ->  | W31: =IF(InputA1A3[[#This Row],[*DU/FU (EF A4) för valt drivmedel (schablon)]]="","",IF(KontrollTabell[[#This Row],[True/False A4 Enhet - Alt2]]=TRUE,"",IF(ISBLANK(InputA1A3[[#This Row],[*DU/FU (EF A4) för valt drivmedel (schablon)]]),,InputA1A3[[#This Row],[Enhet (bränsleförbrukning per km)]]& "/" & InputA1A3[[#This Row],[*DU/FU (EF A4) för valt drivmedel (schablon)]]))) ->  | AE31: =IFERROR(INDEX(TabellEFDrivmedel[],MATCH(InputA1A3[[#This Row],[Drivmedel (A5.2)]],TabellEFDrivmedel[Drivmedel],0),2),"") ->  | AF31: =IFERROR(INDEX(TabellEFDrivmedel[],MATCH(InputA1A3[[#This Row],[Drivmedel (A5.2)]],TabellEFDrivmedel[Drivmedel],0),4),"") ->  | AG31: =IF(KontrollTabell[[#This Row],[True/False A5 Enhet]]=TRUE, "", InputA1A3[[#This Row],[*DU/FU (EF A5.2)]] & "/" & InputA1A3[[#This Row],[Enhet för mängd (A5.2)]]) ->  | BV31: =IF(ISBLANK(InputA1A3[[#This Row],[Anläggningsdel ]]),FALSE,TRUE) -> FALSE | BW31: =IF(ISBLANK(InputA1A3[[#This Row],[Anläggningsdel ]]),"",IF(InputA1A3[[#This Row],[Enhet Mängd (A1A3)]] = InputA1A3[[#This Row],[FU/DU (EF A1A3)]], TRUE, FALSE)) ->  | BX31: =IF(KontrollTabell[[#This Row],[Finns anläggningsdel-namn.]]=FALSE,"",IF(KontrollTabell[[#This Row],[True/False A1A3 Enhet]]=TRUE,TRUE,IF(ISBLANK(InputA1A3[[#This Row],[Omräkning till FU/DU (Skriv in värde, ej formel)]]),FALSE,TRUE))) ->  | BY31: =IF(KontrollTabell[[#This Row],[Finns anläggningsdel-namn.]]=FALSE,,IF(KontrollTabell[[#This Row],[True/False A1A3 Enhet]]=TRUE,InputA1A3[[#This Row],[Mängd A1A3]]*InputA1A3[[#This Row],[EF A1A3 '[kg CO₂-ekv.']]],IF(KontrollTabell[[#This Row],[True/False A1A3 om A1A3 kan beräknas]]=TRUE,InputA1A3[[#This Row],[Mängd A1A3]]*InputA1A3[[#This Row],[EF A1A3 '[kg CO₂-ekv.']]]*InputA1A3[[#This Row],[Omräkning till FU/DU (Skriv in värde, ej formel)]],"Värde Behövs"))) -> 0 | BZ31: =IF(ISBLANK(InputA1A3[[#This Row],[Anläggningsdel ]]),"",IF(ISBLANK(InputA1A3[[#This Row],[EPD - EF A4]]),FALSE,TRUE)) ->  | CA31: =IF(OR(ISBLANK(InputA1A3[[#This Row],[Enhet (bränsleförbrukning per km)]]),ISBLANK(InputA1A3[[#This Row],[*DU/FU (EF A4) för valt drivmedel (schablon)]])),"",IF(OR(InputA1A3[[#This Row],[Enhet (bränsleförbrukning per km)]]=InputA1A3[[#This Row],[*DU/FU (EF A4) för valt drivmedel (schablon)]],AND(InputA1A3[[#This Row],[Enhet (bränsleförbrukning per km)]]<>InputA1A3[[#This Row],[*DU/FU (EF A4) för valt drivmedel (schablon)]],ISNUMBER(InputA1A3[[#This Row],[Omräkningsfaktor (A4), (vid behov, värde eller formel)]]))),TRUE(),FALSE())) ->  | CB31: =IF(InputA1A3[[#This Row],[Enhet (bränsleförbrukning per km)]] =InputA1A3[[#This Row],[*DU/FU (EF A4) för valt drivmedel (schablon)]],TRUE,IF(ISBLANK(InputA1A3[[#This Row],[Omräkningsfaktor (A4), (vid behov, värde eller formel)]]),FALSE,TRUE)) -> TRUE | CC31: =IF(ISBLANK(InputA1A3[[#This Row],[EPD - EF A4]]),"",IF(ISBLANK(InputA1A3[[#This Row],[Omräkning till FU/DU (Skriv in värde, ej formel)]]),InputA1A3[[#This Row],[EPD - EF A4]]*InputA1A3[[#This Row],[Mängd A1A3]],InputA1A3[[#This Row],[Mängd A1A3]]*InputA1A3[[#This Row],[Omräkning till FU/DU (Skriv in värde, ej formel)]]*InputA1A3[[#This Row],[EPD - EF A4]])) ->  | CD31: =IF(ISBLANK(KontrollTabell[[#This Row],[True/False A4 - Alt 2]]),"",IF(KontrollTabell[[#This Row],[True/False A4 Enhet - Alt2]]=TRUE,InputA1A3[[#This Row],[Sträcka - totalt '[km'], (tur och retur, alla transporter)]]*InputA1A3[[#This Row],[(Bränsle-) Förbrukning per km]],"Sen då")) -> 0 | CE31: =SUM(KontrollTabell[[#This Row],[A4 - Resultat alt 1 '[kg']]:[A4 - Alt 2 - beräkning utsläpp]]) -> 0 | CF31: =IF(ISBLANK(InputA1A3[[#This Row],[EPD - EF A4]]),ISBLANK(#REF!),) -> FALSE | CG31: =IFERROR(IF(KontrollTabell[[#This Row],[True/False A5]]=FALSE(),"Enheter",IF(ISBLANK(InputA1A3[[#This Row],[Omräkningsfaktor (A5.2) (ange värde), (vid behov)]]),InputA1A3[[#This Row],[Mängd (A5.2)]]*InputA1A3[[#This Row],[*EF (A5.2) '[kg CO₂-ekv.']]],InputA1A3[[#This Row],[Mängd (A5.2)]]*InputA1A3[[#This Row],[*EF (A5.2) '[kg CO₂-ekv.']]]*InputA1A3[[#This Row],[Omräkningsfaktor (A5.2) (ange värde), (vid behov)]])),0) -> 0 | CH31: =IF(OR(ISBLANK(InputA1A3[[#This Row],[Enhet för mängd (A5.2)]]),ISBLANK(InputA1A3[[#This Row],[*DU/FU (EF A5.2)]])),"",IF(OR(InputA1A3[[#This Row],[Enhet för mängd (A5.2)]]=InputA1A3[[#This Row],[*DU/FU (EF A5.2)]],AND(InputA1A3[[#This Row],[Enhet för mängd (A5.2)]]<>InputA1A3[[#This Row],[*DU/FU (EF A5.2)]],ISNUMBER(InputA1A3[[#This Row],[Omräkningsfaktor (A5.2) (ange värde), (vid behov)]]))),TRUE,FALSE)) ->  | CI31: =IF(InputA1A3[[#This Row],[Enhet för mängd (A5.2)]] = InputA1A3[[#This Row],[*DU/FU (EF A5.2)]], TRUE, FALSE) -> TRUE | CJ31: =IF(OR(ISBLANK(InputA1A3[[#This Row],[Kategori (egen kategorisering)]])=FALSE,ISBLANK(InputA1A3[[#This Row],[Anläggningsdel ]]))=FALSE,TRUE,FALSE) -> FALSE | CK31: =IF(ISBLANK(InputA1A3[[#This Row],[Anläggningsdel ]]),"",IF(KontrollTabell[[#This Row],[TRUE/FALSE om kategori saknas.]] =FALSE,InputA1A3[[#This Row],[Kategori (egen kategorisering)]],"Kategori saknas")) -> 
J32: =IF(ISBLANK(InputA1A3[[#This Row],[Anläggningsdel ]]),"",IF(KontrollTabell[[#This Row],[True/False A1A3 Enhet]]=TRUE, "", InputA1A3[[#This Row],[FU/DU (EF A1A3)]] & "/" & InputA1A3[[#This Row],[Enhet Mängd (A1A3)]])) ->  | O32: =IF(ISBLANK(InputA1A3[[#This Row],[EPD - EF A4]]),"",InputA1A3[[#This Row],[FU/DU (EF A1A3)]]) ->  | S32: =IFERROR(INDEX(TabellEFDrivmedel[],MATCH(InputA1A3[[#This Row],[Drivmedel (A4) (endast förval ur lista)]],TabellEFDrivmedel[Drivmedel],0),4),"") ->  | W32: =IF(InputA1A3[[#This Row],[*DU/FU (EF A4) för valt drivmedel (schablon)]]="","",IF(KontrollTabell[[#This Row],[True/False A4 Enhet - Alt2]]=TRUE,"",IF(ISBLANK(InputA1A3[[#This Row],[*DU/FU (EF A4) för valt drivmedel (schablon)]]),,InputA1A3[[#This Row],[Enhet (bränsleförbrukning per km)]]& "/" & InputA1A3[[#This Row],[*DU/FU (EF A4) för valt drivmedel (schablon)]]))) ->  | AE32: =IFERROR(INDEX(TabellEFDrivmedel[],MATCH(InputA1A3[[#This Row],[Drivmedel (A5.2)]],TabellEFDrivmedel[Drivmedel],0),2),"") ->  | AF32: =IFERROR(INDEX(TabellEFDrivmedel[],MATCH(InputA1A3[[#This Row],[Drivmedel (A5.2)]],TabellEFDrivmedel[Drivmedel],0),4),"") ->  | AG32: =IF(KontrollTabell[[#This Row],[True/False A5 Enhet]]=TRUE, "", InputA1A3[[#This Row],[*DU/FU (EF A5.2)]] & "/" & InputA1A3[[#This Row],[Enhet för mängd (A5.2)]]) ->  | BV32: =IF(ISBLANK(InputA1A3[[#This Row],[Anläggningsdel ]]),FALSE,TRUE) -> FALSE | BW32: =IF(ISBLANK(InputA1A3[[#This Row],[Anläggningsdel ]]),"",IF(InputA1A3[[#This Row],[Enhet Mängd (A1A3)]] = InputA1A3[[#This Row],[FU/DU (EF A1A3)]], TRUE, FALSE)) ->  | BX32: =IF(KontrollTabell[[#This Row],[Finns anläggningsdel-namn.]]=FALSE,"",IF(KontrollTabell[[#This Row],[True/False A1A3 Enhet]]=TRUE,TRUE,IF(ISBLANK(InputA1A3[[#This Row],[Omräkning till FU/DU (Skriv in värde, ej formel)]]),FALSE,TRUE))) ->  | BY32: =IF(KontrollTabell[[#This Row],[Finns anläggningsdel-namn.]]=FALSE,,IF(KontrollTabell[[#This Row],[True/False A1A3 Enhet]]=TRUE,InputA1A3[[#This Row],[Mängd A1A3]]*InputA1A3[[#This Row],[EF A1A3 '[kg CO₂-ekv.']]],IF(KontrollTabell[[#This Row],[True/False A1A3 om A1A3 kan beräknas]]=TRUE,InputA1A3[[#This Row],[Mängd A1A3]]*InputA1A3[[#This Row],[EF A1A3 '[kg CO₂-ekv.']]]*InputA1A3[[#This Row],[Omräkning till FU/DU (Skriv in värde, ej formel)]],"Värde Behövs"))) -> 0 | BZ32: =IF(ISBLANK(InputA1A3[[#This Row],[Anläggningsdel ]]),"",IF(ISBLANK(InputA1A3[[#This Row],[EPD - EF A4]]),FALSE,TRUE)) ->  | CA32: =IF(OR(ISBLANK(InputA1A3[[#This Row],[Enhet (bränsleförbrukning per km)]]),ISBLANK(InputA1A3[[#This Row],[*DU/FU (EF A4) för valt drivmedel (schablon)]])),"",IF(OR(InputA1A3[[#This Row],[Enhet (bränsleförbrukning per km)]]=InputA1A3[[#This Row],[*DU/FU (EF A4) för valt drivmedel (schablon)]],AND(InputA1A3[[#This Row],[Enhet (bränsleförbrukning per km)]]<>InputA1A3[[#This Row],[*DU/FU (EF A4) för valt drivmedel (schablon)]],ISNUMBER(InputA1A3[[#This Row],[Omräkningsfaktor (A4), (vid behov, värde eller formel)]]))),TRUE(),FALSE())) ->  | CB32: =IF(InputA1A3[[#This Row],[Enhet (bränsleförbrukning per km)]] =InputA1A3[[#This Row],[*DU/FU (EF A4) för valt drivmedel (schablon)]],TRUE,IF(ISBLANK(InputA1A3[[#This Row],[Omräkningsfaktor (A4), (vid behov, värde eller formel)]]),FALSE,TRUE)) -> TRUE | CC32: =IF(ISBLANK(InputA1A3[[#This Row],[EPD - EF A4]]),"",IF(ISBLANK(InputA1A3[[#This Row],[Omräkning till FU/DU (Skriv in värde, ej formel)]]),InputA1A3[[#This Row],[EPD - EF A4]]*InputA1A3[[#This Row],[Mängd A1A3]],InputA1A3[[#This Row],[Mängd A1A3]]*InputA1A3[[#This Row],[Omräkning till FU/DU (Skriv in värde, ej formel)]]*InputA1A3[[#This Row],[EPD - EF A4]])) ->  | CD32: =IF(ISBLANK(KontrollTabell[[#This Row],[True/False A4 - Alt 2]]),"",IF(KontrollTabell[[#This Row],[True/False A4 Enhet - Alt2]]=TRUE,InputA1A3[[#This Row],[Sträcka - totalt '[km'], (tur och retur, alla transporter)]]*InputA1A3[[#This Row],[(Bränsle-) Förbrukning per km]],"Sen då")) -> 0 | CE32: =SUM(KontrollTabell[[#This Row],[A4 - Resultat alt 1 '[kg']]:[A4 - Alt 2 - beräkning utsläpp]]) -> 0 | CF32: =IF(ISBLANK(InputA1A3[[#This Row],[EPD - EF A4]]),ISBLANK(#REF!),) -> FALSE | CG32: =IFERROR(IF(KontrollTabell[[#This Row],[True/False A5]]=FALSE(),"Enheter",IF(ISBLANK(InputA1A3[[#This Row],[Omräkningsfaktor (A5.2) (ange värde), (vid behov)]]),InputA1A3[[#This Row],[Mängd (A5.2)]]*InputA1A3[[#This Row],[*EF (A5.2) '[kg CO₂-ekv.']]],InputA1A3[[#This Row],[Mängd (A5.2)]]*InputA1A3[[#This Row],[*EF (A5.2) '[kg CO₂-ekv.']]]*InputA1A3[[#This Row],[Omräkningsfaktor (A5.2) (ange värde), (vid behov)]])),0) -> 0 | CH32: =IF(OR(ISBLANK(InputA1A3[[#This Row],[Enhet för mängd (A5.2)]]),ISBLANK(InputA1A3[[#This Row],[*DU/FU (EF A5.2)]])),"",IF(OR(InputA1A3[[#This Row],[Enhet för mängd (A5.2)]]=InputA1A3[[#This Row],[*DU/FU (EF A5.2)]],AND(InputA1A3[[#This Row],[Enhet för mängd (A5.2)]]<>InputA1A3[[#This Row],[*DU/FU (EF A5.2)]],ISNUMBER(InputA1A3[[#This Row],[Omräkningsfaktor (A5.2) (ange värde), (vid behov)]]))),TRUE,FALSE)) ->  | CI32: =IF(InputA1A3[[#This Row],[Enhet för mängd (A5.2)]] = InputA1A3[[#This Row],[*DU/FU (EF A5.2)]], TRUE, FALSE) -> TRUE | CJ32: =IF(OR(ISBLANK(InputA1A3[[#This Row],[Kategori (egen kategorisering)]])=FALSE,ISBLANK(InputA1A3[[#This Row],[Anläggningsdel ]]))=FALSE,TRUE,FALSE) -> FALSE | CK32: =IF(ISBLANK(InputA1A3[[#This Row],[Anläggningsdel ]]),"",IF(KontrollTabell[[#This Row],[TRUE/FALSE om kategori saknas.]] =FALSE,InputA1A3[[#This Row],[Kategori (egen kategorisering)]],"Kategori saknas")) -> 
J33: =IF(ISBLANK(InputA1A3[[#This Row],[Anläggningsdel ]]),"",IF(KontrollTabell[[#This Row],[True/False A1A3 Enhet]]=TRUE, "", InputA1A3[[#This Row],[FU/DU (EF A1A3)]] & "/" & InputA1A3[[#This Row],[Enhet Mängd (A1A3)]])) ->  | O33: =IF(ISBLANK(InputA1A3[[#This Row],[EPD - EF A4]]),"",InputA1A3[[#This Row],[FU/DU (EF A1A3)]]) ->  | S33: =IFERROR(INDEX(TabellEFDrivmedel[],MATCH(InputA1A3[[#This Row],[Drivmedel (A4) (endast förval ur lista)]],TabellEFDrivmedel[Drivmedel],0),4),"") ->  | W33: =IF(InputA1A3[[#This Row],[*DU/FU (EF A4) för valt drivmedel (schablon)]]="","",IF(KontrollTabell[[#This Row],[True/False A4 Enhet - Alt2]]=TRUE,"",IF(ISBLANK(InputA1A3[[#This Row],[*DU/FU (EF A4) för valt drivmedel (schablon)]]),,InputA1A3[[#This Row],[Enhet (bränsleförbrukning per km)]]& "/" & InputA1A3[[#This Row],[*DU/FU (EF A4) för valt drivmedel (schablon)]]))) ->  | AE33: =IFERROR(INDEX(TabellEFDrivmedel[],MATCH(InputA1A3[[#This Row],[Drivmedel (A5.2)]],TabellEFDrivmedel[Drivmedel],0),2),"") ->  | AF33: =IFERROR(INDEX(TabellEFDrivmedel[],MATCH(InputA1A3[[#This Row],[Drivmedel (A5.2)]],TabellEFDrivmedel[Drivmedel],0),4),"") ->  | AG33: =IF(KontrollTabell[[#This Row],[True/False A5 Enhet]]=TRUE, "", InputA1A3[[#This Row],[*DU/FU (EF A5.2)]] & "/" & InputA1A3[[#This Row],[Enhet för mängd (A5.2)]]) ->  | BV33: =IF(ISBLANK(InputA1A3[[#This Row],[Anläggningsdel ]]),FALSE,TRUE) -> FALSE | BW33: =IF(ISBLANK(InputA1A3[[#This Row],[Anläggningsdel ]]),"",IF(InputA1A3[[#This Row],[Enhet Mängd (A1A3)]] = InputA1A3[[#This Row],[FU/DU (EF A1A3)]], TRUE, FALSE)) ->  | BX33: =IF(KontrollTabell[[#This Row],[Finns anläggningsdel-namn.]]=FALSE,"",IF(KontrollTabell[[#This Row],[True/False A1A3 Enhet]]=TRUE,TRUE,IF(ISBLANK(InputA1A3[[#This Row],[Omräkning till FU/DU (Skriv in värde, ej formel)]]),FALSE,TRUE))) ->  | BY33: =IF(KontrollTabell[[#This Row],[Finns anläggningsdel-namn.]]=FALSE,,IF(KontrollTabell[[#This Row],[True/False A1A3 Enhet]]=TRUE,InputA1A3[[#This Row],[Mängd A1A3]]*InputA1A3[[#This Row],[EF A1A3 '[kg CO₂-ekv.']]],IF(KontrollTabell[[#This Row],[True/False A1A3 om A1A3 kan beräknas]]=TRUE,InputA1A3[[#This Row],[Mängd A1A3]]*InputA1A3[[#This Row],[EF A1A3 '[kg CO₂-ekv.']]]*InputA1A3[[#This Row],[Omräkning till FU/DU (Skriv in värde, ej formel)]],"Värde Behövs"))) -> 0 | BZ33: =IF(ISBLANK(InputA1A3[[#This Row],[Anläggningsdel ]]),"",IF(ISBLANK(InputA1A3[[#This Row],[EPD - EF A4]]),FALSE,TRUE)) ->  | CA33: =IF(OR(ISBLANK(InputA1A3[[#This Row],[Enhet (bränsleförbrukning per km)]]),ISBLANK(InputA1A3[[#This Row],[*DU/FU (EF A4) för valt drivmedel (schablon)]])),"",IF(OR(InputA1A3[[#This Row],[Enhet (bränsleförbrukning per km)]]=InputA1A3[[#This Row],[*DU/FU (EF A4) för valt drivmedel (schablon)]],AND(InputA1A3[[#This Row],[Enhet (bränsleförbrukning per km)]]<>InputA1A3[[#This Row],[*DU/FU (EF A4) för valt drivmedel (schablon)]],ISNUMBER(InputA1A3[[#This Row],[Omräkningsfaktor (A4), (vid behov, värde eller formel)]]))),TRUE(),FALSE())) ->  | CB33: =IF(InputA1A3[[#This Row],[Enhet (bränsleförbrukning per km)]] =InputA1A3[[#This Row],[*DU/FU (EF A4) för valt drivmedel (schablon)]],TRUE,IF(ISBLANK(InputA1A3[[#This Row],[Omräkningsfaktor (A4), (vid behov, värde eller formel)]]),FALSE,TRUE)) -> TRUE | CC33: =IF(ISBLANK(InputA1A3[[#This Row],[EPD - EF A4]]),"",IF(ISBLANK(InputA1A3[[#This Row],[Omräkning till FU/DU (Skriv in värde, ej formel)]]),InputA1A3[[#This Row],[EPD - EF A4]]*InputA1A3[[#This Row],[Mängd A1A3]],InputA1A3[[#This Row],[Mängd A1A3]]*InputA1A3[[#This Row],[Omräkning till FU/DU (Skriv in värde, ej formel)]]*InputA1A3[[#This Row],[EPD - EF A4]])) ->  | CD33: =IF(ISBLANK(KontrollTabell[[#This Row],[True/False A4 - Alt 2]]),"",IF(KontrollTabell[[#This Row],[True/False A4 Enhet - Alt2]]=TRUE,InputA1A3[[#This Row],[Sträcka - totalt '[km'], (tur och retur, alla transporter)]]*InputA1A3[[#This Row],[(Bränsle-) Förbrukning per km]],"Sen då")) -> 0 | CE33: =SUM(KontrollTabell[[#This Row],[A4 - Resultat alt 1 '[kg']]:[A4 - Alt 2 - beräkning utsläpp]]) -> 0 | CF33: =IF(ISBLANK(InputA1A3[[#This Row],[EPD - EF A4]]),ISBLANK(#REF!),) -> FALSE | CG33: =IFERROR(IF(KontrollTabell[[#This Row],[True/False A5]]=FALSE(),"Enheter",IF(ISBLANK(InputA1A3[[#This Row],[Omräkningsfaktor (A5.2) (ange värde), (vid behov)]]),InputA1A3[[#This Row],[Mängd (A5.2)]]*InputA1A3[[#This Row],[*EF (A5.2) '[kg CO₂-ekv.']]],InputA1A3[[#This Row],[Mängd (A5.2)]]*InputA1A3[[#This Row],[*EF (A5.2) '[kg CO₂-ekv.']]]*InputA1A3[[#This Row],[Omräkningsfaktor (A5.2) (ange värde), (vid behov)]])),0) -> 0 | CH33: =IF(OR(ISBLANK(InputA1A3[[#This Row],[Enhet för mängd (A5.2)]]),ISBLANK(InputA1A3[[#This Row],[*DU/FU (EF A5.2)]])),"",IF(OR(InputA1A3[[#This Row],[Enhet för mängd (A5.2)]]=InputA1A3[[#This Row],[*DU/FU (EF A5.2)]],AND(InputA1A3[[#This Row],[Enhet för mängd (A5.2)]]<>InputA1A3[[#This Row],[*DU/FU (EF A5.2)]],ISNUMBER(InputA1A3[[#This Row],[Omräkningsfaktor (A5.2) (ange värde), (vid behov)]]))),TRUE,FALSE)) ->  | CI33: =IF(InputA1A3[[#This Row],[Enhet för mängd (A5.2)]] = InputA1A3[[#This Row],[*DU/FU (EF A5.2)]], TRUE, FALSE) -> TRUE | CJ33: =IF(OR(ISBLANK(InputA1A3[[#This Row],[Kategori (egen kategorisering)]])=FALSE,ISBLANK(InputA1A3[[#This Row],[Anläggningsdel ]]))=FALSE,TRUE,FALSE) -> FALSE | CK33: =IF(ISBLANK(InputA1A3[[#This Row],[Anläggningsdel ]]),"",IF(KontrollTabell[[#This Row],[TRUE/FALSE om kategori saknas.]] =FALSE,InputA1A3[[#This Row],[Kategori (egen kategorisering)]],"Kategori saknas")) -> 
J34: =IF(ISBLANK(InputA1A3[[#This Row],[Anläggningsdel ]]),"",IF(KontrollTabell[[#This Row],[True/False A1A3 Enhet]]=TRUE, "", InputA1A3[[#This Row],[FU/DU (EF A1A3)]] & "/" & InputA1A3[[#This Row],[Enhet Mängd (A1A3)]])) ->  | O34: =IF(ISBLANK(InputA1A3[[#This Row],[EPD - EF A4]]),"",InputA1A3[[#This Row],[FU/DU (EF A1A3)]]) ->  | S34: =IFERROR(INDEX(TabellEFDrivmedel[],MATCH(InputA1A3[[#This Row],[Drivmedel (A4) (endast förval ur lista)]],TabellEFDrivmedel[Drivmedel],0),4),"") ->  | W34: =IF(InputA1A3[[#This Row],[*DU/FU (EF A4) för valt drivmedel (schablon)]]="","",IF(KontrollTabell[[#This Row],[True/False A4 Enhet - Alt2]]=TRUE,"",IF(ISBLANK(InputA1A3[[#This Row],[*DU/FU (EF A4) för valt drivmedel (schablon)]]),,InputA1A3[[#This Row],[Enhet (bränsleförbrukning per km)]]& "/" & InputA1A3[[#This Row],[*DU/FU (EF A4) för valt drivmedel (schablon)]]))) ->  | AE34: =IFERROR(INDEX(TabellEFDrivmedel[],MATCH(InputA1A3[[#This Row],[Drivmedel (A5.2)]],TabellEFDrivmedel[Drivmedel],0),2),"") ->  | AF34: =IFERROR(INDEX(TabellEFDrivmedel[],MATCH(InputA1A3[[#This Row],[Drivmedel (A5.2)]],TabellEFDrivmedel[Drivmedel],0),4),"") ->  | AG34: =IF(KontrollTabell[[#This Row],[True/False A5 Enhet]]=TRUE, "", InputA1A3[[#This Row],[*DU/FU (EF A5.2)]] & "/" & InputA1A3[[#This Row],[Enhet för mängd (A5.2)]]) ->  | BV34: =IF(ISBLANK(InputA1A3[[#This Row],[Anläggningsdel ]]),FALSE,TRUE) -> FALSE | BW34: =IF(ISBLANK(InputA1A3[[#This Row],[Anläggningsdel ]]),"",IF(InputA1A3[[#This Row],[Enhet Mängd (A1A3)]] = InputA1A3[[#This Row],[FU/DU (EF A1A3)]], TRUE, FALSE)) ->  | BX34: =IF(KontrollTabell[[#This Row],[Finns anläggningsdel-namn.]]=FALSE,"",IF(KontrollTabell[[#This Row],[True/False A1A3 Enhet]]=TRUE,TRUE,IF(ISBLANK(InputA1A3[[#This Row],[Omräkning till FU/DU (Skriv in värde, ej formel)]]),FALSE,TRUE))) ->  | BY34: =IF(KontrollTabell[[#This Row],[Finns anläggningsdel-namn.]]=FALSE,,IF(KontrollTabell[[#This Row],[True/False A1A3 Enhet]]=TRUE,InputA1A3[[#This Row],[Mängd A1A3]]*InputA1A3[[#This Row],[EF A1A3 '[kg CO₂-ekv.']]],IF(KontrollTabell[[#This Row],[True/False A1A3 om A1A3 kan beräknas]]=TRUE,InputA1A3[[#This Row],[Mängd A1A3]]*InputA1A3[[#This Row],[EF A1A3 '[kg CO₂-ekv.']]]*InputA1A3[[#This Row],[Omräkning till FU/DU (Skriv in värde, ej formel)]],"Värde Behövs"))) -> 0 | BZ34: =IF(ISBLANK(InputA1A3[[#This Row],[Anläggningsdel ]]),"",IF(ISBLANK(InputA1A3[[#This Row],[EPD - EF A4]]),FALSE,TRUE)) ->  | CA34: =IF(OR(ISBLANK(InputA1A3[[#This Row],[Enhet (bränsleförbrukning per km)]]),ISBLANK(InputA1A3[[#This Row],[*DU/FU (EF A4) för valt drivmedel (schablon)]])),"",IF(OR(InputA1A3[[#This Row],[Enhet (bränsleförbrukning per km)]]=InputA1A3[[#This Row],[*DU/FU (EF A4) för valt drivmedel (schablon)]],AND(InputA1A3[[#This Row],[Enhet (bränsleförbrukning per km)]]<>InputA1A3[[#This Row],[*DU/FU (EF A4) för valt drivmedel (schablon)]],ISNUMBER(InputA1A3[[#This Row],[Omräkningsfaktor (A4), (vid behov, värde eller formel)]]))),TRUE(),FALSE())) ->  | CB34: =IF(InputA1A3[[#This Row],[Enhet (bränsleförbrukning per km)]] =InputA1A3[[#This Row],[*DU/FU (EF A4) för valt drivmedel (schablon)]],TRUE,IF(ISBLANK(InputA1A3[[#This Row],[Omräkningsfaktor (A4), (vid behov, värde eller formel)]]),FALSE,TRUE)) -> TRUE | CC34: =IF(ISBLANK(InputA1A3[[#This Row],[EPD - EF A4]]),"",IF(ISBLANK(InputA1A3[[#This Row],[Omräkning till FU/DU (Skriv in värde, ej formel)]]),InputA1A3[[#This Row],[EPD - EF A4]]*InputA1A3[[#This Row],[Mängd A1A3]],InputA1A3[[#This Row],[Mängd A1A3]]*InputA1A3[[#This Row],[Omräkning till FU/DU (Skriv in värde, ej formel)]]*InputA1A3[[#This Row],[EPD - EF A4]])) ->  | CD34: =IF(ISBLANK(KontrollTabell[[#This Row],[True/False A4 - Alt 2]]),"",IF(KontrollTabell[[#This Row],[True/False A4 Enhet - Alt2]]=TRUE,InputA1A3[[#This Row],[Sträcka - totalt '[km'], (tur och retur, alla transporter)]]*InputA1A3[[#This Row],[(Bränsle-) Förbrukning per km]],"Sen då")) -> 0 | CE34: =SUM(KontrollTabell[[#This Row],[A4 - Resultat alt 1 '[kg']]:[A4 - Alt 2 - beräkning utsläpp]]) -> 0 | CF34: =IF(ISBLANK(InputA1A3[[#This Row],[EPD - EF A4]]),ISBLANK(#REF!),) -> FALSE | CG34: =IFERROR(IF(KontrollTabell[[#This Row],[True/False A5]]=FALSE(),"Enheter",IF(ISBLANK(InputA1A3[[#This Row],[Omräkningsfaktor (A5.2) (ange värde), (vid behov)]]),InputA1A3[[#This Row],[Mängd (A5.2)]]*InputA1A3[[#This Row],[*EF (A5.2) '[kg CO₂-ekv.']]],InputA1A3[[#This Row],[Mängd (A5.2)]]*InputA1A3[[#This Row],[*EF (A5.2) '[kg CO₂-ekv.']]]*InputA1A3[[#This Row],[Omräkningsfaktor (A5.2) (ange värde), (vid behov)]])),0) -> 0 | CH34: =IF(OR(ISBLANK(InputA1A3[[#This Row],[Enhet för mängd (A5.2)]]),ISBLANK(InputA1A3[[#This Row],[*DU/FU (EF A5.2)]])),"",IF(OR(InputA1A3[[#This Row],[Enhet för mängd (A5.2)]]=InputA1A3[[#This Row],[*DU/FU (EF A5.2)]],AND(InputA1A3[[#This Row],[Enhet för mängd (A5.2)]]<>InputA1A3[[#This Row],[*DU/FU (EF A5.2)]],ISNUMBER(InputA1A3[[#This Row],[Omräkningsfaktor (A5.2) (ange värde), (vid behov)]]))),TRUE,FALSE)) ->  | CI34: =IF(InputA1A3[[#This Row],[Enhet för mängd (A5.2)]] = InputA1A3[[#This Row],[*DU/FU (EF A5.2)]], TRUE, FALSE) -> TRUE | CJ34: =IF(OR(ISBLANK(InputA1A3[[#This Row],[Kategori (egen kategorisering)]])=FALSE,ISBLANK(InputA1A3[[#This Row],[Anläggningsdel ]]))=FALSE,TRUE,FALSE) -> FALSE | CK34: =IF(ISBLANK(InputA1A3[[#This Row],[Anläggningsdel ]]),"",IF(KontrollTabell[[#This Row],[TRUE/FALSE om kategori saknas.]] =FALSE,InputA1A3[[#This Row],[Kategori (egen kategorisering)]],"Kategori saknas")) -> 
J35: =IF(ISBLANK(InputA1A3[[#This Row],[Anläggningsdel ]]),"",IF(KontrollTabell[[#This Row],[True/False A1A3 Enhet]]=TRUE, "", InputA1A3[[#This Row],[FU/DU (EF A1A3)]] & "/" & InputA1A3[[#This Row],[Enhet Mängd (A1A3)]])) ->  | O35: =IF(ISBLANK(InputA1A3[[#This Row],[EPD - EF A4]]),"",InputA1A3[[#This Row],[FU/DU (EF A1A3)]]) ->  | S35: =IFERROR(INDEX(TabellEFDrivmedel[],MATCH(InputA1A3[[#This Row],[Drivmedel (A4) (endast förval ur lista)]],TabellEFDrivmedel[Drivmedel],0),4),"") ->  | W35: =IF(InputA1A3[[#This Row],[*DU/FU (EF A4) för valt drivmedel (schablon)]]="","",IF(KontrollTabell[[#This Row],[True/False A4 Enhet - Alt2]]=TRUE,"",IF(ISBLANK(InputA1A3[[#This Row],[*DU/FU (EF A4) för valt drivmedel (schablon)]]),,InputA1A3[[#This Row],[Enhet (bränsleförbrukning per km)]]& "/" & InputA1A3[[#This Row],[*DU/FU (EF A4) för valt drivmedel (schablon)]]))) ->  | AE35: =IFERROR(INDEX(TabellEFDrivmedel[],MATCH(InputA1A3[[#This Row],[Drivmedel (A5.2)]],TabellEFDrivmedel[Drivmedel],0),2),"") ->  | AF35: =IFERROR(INDEX(TabellEFDrivmedel[],MATCH(InputA1A3[[#This Row],[Drivmedel (A5.2)]],TabellEFDrivmedel[Drivmedel],0),4),"") ->  | AG35: =IF(KontrollTabell[[#This Row],[True/False A5 Enhet]]=TRUE, "", InputA1A3[[#This Row],[*DU/FU (EF A5.2)]] & "/" & InputA1A3[[#This Row],[Enhet för mängd (A5.2)]]) ->  | BV35: =IF(ISBLANK(InputA1A3[[#This Row],[Anläggningsdel ]]),FALSE,TRUE) -> FALSE | BW35: =IF(ISBLANK(InputA1A3[[#This Row],[Anläggningsdel ]]),"",IF(InputA1A3[[#This Row],[Enhet Mängd (A1A3)]] = InputA1A3[[#This Row],[FU/DU (EF A1A3)]], TRUE, FALSE)) ->  | BX35: =IF(KontrollTabell[[#This Row],[Finns anläggningsdel-namn.]]=FALSE,"",IF(KontrollTabell[[#This Row],[True/False A1A3 Enhet]]=TRUE,TRUE,IF(ISBLANK(InputA1A3[[#This Row],[Omräkning till FU/DU (Skriv in värde, ej formel)]]),FALSE,TRUE))) ->  | BY35: =IF(KontrollTabell[[#This Row],[Finns anläggningsdel-namn.]]=FALSE,,IF(KontrollTabell[[#This Row],[True/False A1A3 Enhet]]=TRUE,InputA1A3[[#This Row],[Mängd A1A3]]*InputA1A3[[#This Row],[EF A1A3 '[kg CO₂-ekv.']]],IF(KontrollTabell[[#This Row],[True/False A1A3 om A1A3 kan beräknas]]=TRUE,InputA1A3[[#This Row],[Mängd A1A3]]*InputA1A3[[#This Row],[EF A1A3 '[kg CO₂-ekv.']]]*InputA1A3[[#This Row],[Omräkning till FU/DU (Skriv in värde, ej formel)]],"Värde Behövs"))) -> 0 | BZ35: =IF(ISBLANK(InputA1A3[[#This Row],[Anläggningsdel ]]),"",IF(ISBLANK(InputA1A3[[#This Row],[EPD - EF A4]]),FALSE,TRUE)) ->  | CA35: =IF(OR(ISBLANK(InputA1A3[[#This Row],[Enhet (bränsleförbrukning per km)]]),ISBLANK(InputA1A3[[#This Row],[*DU/FU (EF A4) för valt drivmedel (schablon)]])),"",IF(OR(InputA1A3[[#This Row],[Enhet (bränsleförbrukning per km)]]=InputA1A3[[#This Row],[*DU/FU (EF A4) för valt drivmedel (schablon)]],AND(InputA1A3[[#This Row],[Enhet (bränsleförbrukning per km)]]<>InputA1A3[[#This Row],[*DU/FU (EF A4) för valt drivmedel (schablon)]],ISNUMBER(InputA1A3[[#This Row],[Omräkningsfaktor (A4), (vid behov, värde eller formel)]]))),TRUE(),FALSE())) ->  | CB35: =IF(InputA1A3[[#This Row],[Enhet (bränsleförbrukning per km)]] =InputA1A3[[#This Row],[*DU/FU (EF A4) för valt drivmedel (schablon)]],TRUE,IF(ISBLANK(InputA1A3[[#This Row],[Omräkningsfaktor (A4), (vid behov, värde eller formel)]]),FALSE,TRUE)) -> TRUE | CC35: =IF(ISBLANK(InputA1A3[[#This Row],[EPD - EF A4]]),"",IF(ISBLANK(InputA1A3[[#This Row],[Omräkning till FU/DU (Skriv in värde, ej formel)]]),InputA1A3[[#This Row],[EPD - EF A4]]*InputA1A3[[#This Row],[Mängd A1A3]],InputA1A3[[#This Row],[Mängd A1A3]]*InputA1A3[[#This Row],[Omräkning till FU/DU (Skriv in värde, ej formel)]]*InputA1A3[[#This Row],[EPD - EF A4]])) ->  | CD35: =IF(ISBLANK(KontrollTabell[[#This Row],[True/False A4 - Alt 2]]),"",IF(KontrollTabell[[#This Row],[True/False A4 Enhet - Alt2]]=TRUE,InputA1A3[[#This Row],[Sträcka - totalt '[km'], (tur och retur, alla transporter)]]*InputA1A3[[#This Row],[(Bränsle-) Förbrukning per km]],"Sen då")) -> 0 | CE35: =SUM(KontrollTabell[[#This Row],[A4 - Resultat alt 1 '[kg']]:[A4 - Alt 2 - beräkning utsläpp]]) -> 0 | CF35: =IF(ISBLANK(InputA1A3[[#This Row],[EPD - EF A4]]),ISBLANK(#REF!),) -> FALSE | CG35: =IFERROR(IF(KontrollTabell[[#This Row],[True/False A5]]=FALSE(),"Enheter",IF(ISBLANK(InputA1A3[[#This Row],[Omräkningsfaktor (A5.2) (ange värde), (vid behov)]]),InputA1A3[[#This Row],[Mängd (A5.2)]]*InputA1A3[[#This Row],[*EF (A5.2) '[kg CO₂-ekv.']]],InputA1A3[[#This Row],[Mängd (A5.2)]]*InputA1A3[[#This Row],[*EF (A5.2) '[kg CO₂-ekv.']]]*InputA1A3[[#This Row],[Omräkningsfaktor (A5.2) (ange värde), (vid behov)]])),0) -> 0 | CH35: =IF(OR(ISBLANK(InputA1A3[[#This Row],[Enhet för mängd (A5.2)]]),ISBLANK(InputA1A3[[#This Row],[*DU/FU (EF A5.2)]])),"",IF(OR(InputA1A3[[#This Row],[Enhet för mängd (A5.2)]]=InputA1A3[[#This Row],[*DU/FU (EF A5.2)]],AND(InputA1A3[[#This Row],[Enhet för mängd (A5.2)]]<>InputA1A3[[#This Row],[*DU/FU (EF A5.2)]],ISNUMBER(InputA1A3[[#This Row],[Omräkningsfaktor (A5.2) (ange värde), (vid behov)]]))),TRUE,FALSE)) ->  | CI35: =IF(InputA1A3[[#This Row],[Enhet för mängd (A5.2)]] = InputA1A3[[#This Row],[*DU/FU (EF A5.2)]], TRUE, FALSE) -> TRUE | CJ35: =IF(OR(ISBLANK(InputA1A3[[#This Row],[Kategori (egen kategorisering)]])=FALSE,ISBLANK(InputA1A3[[#This Row],[Anläggningsdel ]]))=FALSE,TRUE,FALSE) -> FALSE | CK35: =IF(ISBLANK(InputA1A3[[#This Row],[Anläggningsdel ]]),"",IF(KontrollTabell[[#This Row],[TRUE/FALSE om kategori saknas.]] =FALSE,InputA1A3[[#This Row],[Kategori (egen kategorisering)]],"Kategori saknas")) -> 
J36: =IF(ISBLANK(InputA1A3[[#This Row],[Anläggningsdel ]]),"",IF(KontrollTabell[[#This Row],[True/False A1A3 Enhet]]=TRUE, "", InputA1A3[[#This Row],[FU/DU (EF A1A3)]] & "/" & InputA1A3[[#This Row],[Enhet Mängd (A1A3)]])) ->  | O36: =IF(ISBLANK(InputA1A3[[#This Row],[EPD - EF A4]]),"",InputA1A3[[#This Row],[FU/DU (EF A1A3)]]) ->  | S36: =IFERROR(INDEX(TabellEFDrivmedel[],MATCH(InputA1A3[[#This Row],[Drivmedel (A4) (endast förval ur lista)]],TabellEFDrivmedel[Drivmedel],0),4),"") ->  | W36: =IF(InputA1A3[[#This Row],[*DU/FU (EF A4) för valt drivmedel (schablon)]]="","",IF(KontrollTabell[[#This Row],[True/False A4 Enhet - Alt2]]=TRUE,"",IF(ISBLANK(InputA1A3[[#This Row],[*DU/FU (EF A4) för valt drivmedel (schablon)]]),,InputA1A3[[#This Row],[Enhet (bränsleförbrukning per km)]]& "/" & InputA1A3[[#This Row],[*DU/FU (EF A4) för valt drivmedel (schablon)]]))) ->  | AE36: =IFERROR(INDEX(TabellEFDrivmedel[],MATCH(InputA1A3[[#This Row],[Drivmedel (A5.2)]],TabellEFDrivmedel[Drivmedel],0),2),"") ->  | AF36: =IFERROR(INDEX(TabellEFDrivmedel[],MATCH(InputA1A3[[#This Row],[Drivmedel (A5.2)]],TabellEFDrivmedel[Drivmedel],0),4),"") ->  | AG36: =IF(KontrollTabell[[#This Row],[True/False A5 Enhet]]=TRUE, "", InputA1A3[[#This Row],[*DU/FU (EF A5.2)]] & "/" & InputA1A3[[#This Row],[Enhet för mängd (A5.2)]]) ->  | BV36: =IF(ISBLANK(InputA1A3[[#This Row],[Anläggningsdel ]]),FALSE,TRUE) -> FALSE | BW36: =IF(ISBLANK(InputA1A3[[#This Row],[Anläggningsdel ]]),"",IF(InputA1A3[[#This Row],[Enhet Mängd (A1A3)]] = InputA1A3[[#This Row],[FU/DU (EF A1A3)]], TRUE, FALSE)) ->  | BX36: =IF(KontrollTabell[[#This Row],[Finns anläggningsdel-namn.]]=FALSE,"",IF(KontrollTabell[[#This Row],[True/False A1A3 Enhet]]=TRUE,TRUE,IF(ISBLANK(InputA1A3[[#This Row],[Omräkning till FU/DU (Skriv in värde, ej formel)]]),FALSE,TRUE))) ->  | BY36: =IF(KontrollTabell[[#This Row],[Finns anläggningsdel-namn.]]=FALSE,,IF(KontrollTabell[[#This Row],[True/False A1A3 Enhet]]=TRUE,InputA1A3[[#This Row],[Mängd A1A3]]*InputA1A3[[#This Row],[EF A1A3 '[kg CO₂-ekv.']]],IF(KontrollTabell[[#This Row],[True/False A1A3 om A1A3 kan beräknas]]=TRUE,InputA1A3[[#This Row],[Mängd A1A3]]*InputA1A3[[#This Row],[EF A1A3 '[kg CO₂-ekv.']]]*InputA1A3[[#This Row],[Omräkning till FU/DU (Skriv in värde, ej formel)]],"Värde Behövs"))) -> 0 | BZ36: =IF(ISBLANK(InputA1A3[[#This Row],[Anläggningsdel ]]),"",IF(ISBLANK(InputA1A3[[#This Row],[EPD - EF A4]]),FALSE,TRUE)) ->  | CA36: =IF(OR(ISBLANK(InputA1A3[[#This Row],[Enhet (bränsleförbrukning per km)]]),ISBLANK(InputA1A3[[#This Row],[*DU/FU (EF A4) för valt drivmedel (schablon)]])),"",IF(OR(InputA1A3[[#This Row],[Enhet (bränsleförbrukning per km)]]=InputA1A3[[#This Row],[*DU/FU (EF A4) för valt drivmedel (schablon)]],AND(InputA1A3[[#This Row],[Enhet (bränsleförbrukning per km)]]<>InputA1A3[[#This Row],[*DU/FU (EF A4) för valt drivmedel (schablon)]],ISNUMBER(InputA1A3[[#This Row],[Omräkningsfaktor (A4), (vid behov, värde eller formel)]]))),TRUE(),FALSE())) ->  | CB36: =IF(InputA1A3[[#This Row],[Enhet (bränsleförbrukning per km)]] =InputA1A3[[#This Row],[*DU/FU (EF A4) för valt drivmedel (schablon)]],TRUE,IF(ISBLANK(InputA1A3[[#This Row],[Omräkningsfaktor (A4), (vid behov, värde eller formel)]]),FALSE,TRUE)) -> TRUE | CC36: =IF(ISBLANK(InputA1A3[[#This Row],[EPD - EF A4]]),"",IF(ISBLANK(InputA1A3[[#This Row],[Omräkning till FU/DU (Skriv in värde, ej formel)]]),InputA1A3[[#This Row],[EPD - EF A4]]*InputA1A3[[#This Row],[Mängd A1A3]],InputA1A3[[#This Row],[Mängd A1A3]]*InputA1A3[[#This Row],[Omräkning till FU/DU (Skriv in värde, ej formel)]]*InputA1A3[[#This Row],[EPD - EF A4]])) ->  | CD36: =IF(ISBLANK(KontrollTabell[[#This Row],[True/False A4 - Alt 2]]),"",IF(KontrollTabell[[#This Row],[True/False A4 Enhet - Alt2]]=TRUE,InputA1A3[[#This Row],[Sträcka - totalt '[km'], (tur och retur, alla transporter)]]*InputA1A3[[#This Row],[(Bränsle-) Förbrukning per km]],"Sen då")) -> 0 | CE36: =SUM(KontrollTabell[[#This Row],[A4 - Resultat alt 1 '[kg']]:[A4 - Alt 2 - beräkning utsläpp]]) -> 0 | CF36: =IF(ISBLANK(InputA1A3[[#This Row],[EPD - EF A4]]),ISBLANK(#REF!),) -> FALSE | CG36: =IFERROR(IF(KontrollTabell[[#This Row],[True/False A5]]=FALSE(),"Enheter",IF(ISBLANK(InputA1A3[[#This Row],[Omräkningsfaktor (A5.2) (ange värde), (vid behov)]]),InputA1A3[[#This Row],[Mängd (A5.2)]]*InputA1A3[[#This Row],[*EF (A5.2) '[kg CO₂-ekv.']]],InputA1A3[[#This Row],[Mängd (A5.2)]]*InputA1A3[[#This Row],[*EF (A5.2) '[kg CO₂-ekv.']]]*InputA1A3[[#This Row],[Omräkningsfaktor (A5.2) (ange värde), (vid behov)]])),0) -> 0 | CH36: =IF(OR(ISBLANK(InputA1A3[[#This Row],[Enhet för mängd (A5.2)]]),ISBLANK(InputA1A3[[#This Row],[*DU/FU (EF A5.2)]])),"",IF(OR(InputA1A3[[#This Row],[Enhet för mängd (A5.2)]]=InputA1A3[[#This Row],[*DU/FU (EF A5.2)]],AND(InputA1A3[[#This Row],[Enhet för mängd (A5.2)]]<>InputA1A3[[#This Row],[*DU/FU (EF A5.2)]],ISNUMBER(InputA1A3[[#This Row],[Omräkningsfaktor (A5.2) (ange värde), (vid behov)]]))),TRUE,FALSE)) ->  | CI36: =IF(InputA1A3[[#This Row],[Enhet för mängd (A5.2)]] = InputA1A3[[#This Row],[*DU/FU (EF A5.2)]], TRUE, FALSE) -> TRUE | CJ36: =IF(OR(ISBLANK(InputA1A3[[#This Row],[Kategori (egen kategorisering)]])=FALSE,ISBLANK(InputA1A3[[#This Row],[Anläggningsdel ]]))=FALSE,TRUE,FALSE) -> FALSE | CK36: =IF(ISBLANK(InputA1A3[[#This Row],[Anläggningsdel ]]),"",IF(KontrollTabell[[#This Row],[TRUE/FALSE om kategori saknas.]] =FALSE,InputA1A3[[#This Row],[Kategori (egen kategorisering)]],"Kategori saknas")) -> 
J37: =IF(ISBLANK(InputA1A3[[#This Row],[Anläggningsdel ]]),"",IF(KontrollTabell[[#This Row],[True/False A1A3 Enhet]]=TRUE, "", InputA1A3[[#This Row],[FU/DU (EF A1A3)]] & "/" & InputA1A3[[#This Row],[Enhet Mängd (A1A3)]])) ->  | O37: =IF(ISBLANK(InputA1A3[[#This Row],[EPD - EF A4]]),"",InputA1A3[[#This Row],[FU/DU (EF A1A3)]]) ->  | S37: =IFERROR(INDEX(TabellEFDrivmedel[],MATCH(InputA1A3[[#This Row],[Drivmedel (A4) (endast förval ur lista)]],TabellEFDrivmedel[Drivmedel],0),4),"") ->  | W37: =IF(InputA1A3[[#This Row],[*DU/FU (EF A4) för valt drivmedel (schablon)]]="","",IF(KontrollTabell[[#This Row],[True/False A4 Enhet - Alt2]]=TRUE,"",IF(ISBLANK(InputA1A3[[#This Row],[*DU/FU (EF A4) för valt drivmedel (schablon)]]),,InputA1A3[[#This Row],[Enhet (bränsleförbrukning per km)]]& "/" & InputA1A3[[#This Row],[*DU/FU (EF A4) för valt drivmedel (schablon)]]))) ->  | AE37: =IFERROR(INDEX(TabellEFDrivmedel[],MATCH(InputA1A3[[#This Row],[Drivmedel (A5.2)]],TabellEFDrivmedel[Drivmedel],0),2),"") ->  | AF37: =IFERROR(INDEX(TabellEFDrivmedel[],MATCH(InputA1A3[[#This Row],[Drivmedel (A5.2)]],TabellEFDrivmedel[Drivmedel],0),4),"") ->  | AG37: =IF(KontrollTabell[[#This Row],[True/False A5 Enhet]]=TRUE, "", InputA1A3[[#This Row],[*DU/FU (EF A5.2)]] & "/" & InputA1A3[[#This Row],[Enhet för mängd (A5.2)]]) ->  | BV37: =IF(ISBLANK(InputA1A3[[#This Row],[Anläggningsdel ]]),FALSE,TRUE) -> FALSE | BW37: =IF(ISBLANK(InputA1A3[[#This Row],[Anläggningsdel ]]),"",IF(InputA1A3[[#This Row],[Enhet Mängd (A1A3)]] = InputA1A3[[#This Row],[FU/DU (EF A1A3)]], TRUE, FALSE)) ->  | BX37: =IF(KontrollTabell[[#This Row],[Finns anläggningsdel-namn.]]=FALSE,"",IF(KontrollTabell[[#This Row],[True/False A1A3 Enhet]]=TRUE,TRUE,IF(ISBLANK(InputA1A3[[#This Row],[Omräkning till FU/DU (Skriv in värde, ej formel)]]),FALSE,TRUE))) ->  | BY37: =IF(KontrollTabell[[#This Row],[Finns anläggningsdel-namn.]]=FALSE,,IF(KontrollTabell[[#This Row],[True/False A1A3 Enhet]]=TRUE,InputA1A3[[#This Row],[Mängd A1A3]]*InputA1A3[[#This Row],[EF A1A3 '[kg CO₂-ekv.']]],IF(KontrollTabell[[#This Row],[True/False A1A3 om A1A3 kan beräknas]]=TRUE,InputA1A3[[#This Row],[Mängd A1A3]]*InputA1A3[[#This Row],[EF A1A3 '[kg CO₂-ekv.']]]*InputA1A3[[#This Row],[Omräkning till FU/DU (Skriv in värde, ej formel)]],"Värde Behövs"))) -> 0 | BZ37: =IF(ISBLANK(InputA1A3[[#This Row],[Anläggningsdel ]]),"",IF(ISBLANK(InputA1A3[[#This Row],[EPD - EF A4]]),FALSE,TRUE)) ->  | CA37: =IF(OR(ISBLANK(InputA1A3[[#This Row],[Enhet (bränsleförbrukning per km)]]),ISBLANK(InputA1A3[[#This Row],[*DU/FU (EF A4) för valt drivmedel (schablon)]])),"",IF(OR(InputA1A3[[#This Row],[Enhet (bränsleförbrukning per km)]]=InputA1A3[[#This Row],[*DU/FU (EF A4) för valt drivmedel (schablon)]],AND(InputA1A3[[#This Row],[Enhet (bränsleförbrukning per km)]]<>InputA1A3[[#This Row],[*DU/FU (EF A4) för valt drivmedel (schablon)]],ISNUMBER(InputA1A3[[#This Row],[Omräkningsfaktor (A4), (vid behov, värde eller formel)]]))),TRUE(),FALSE())) ->  | CB37: =IF(InputA1A3[[#This Row],[Enhet (bränsleförbrukning per km)]] =InputA1A3[[#This Row],[*DU/FU (EF A4) för valt drivmedel (schablon)]],TRUE,IF(ISBLANK(InputA1A3[[#This Row],[Omräkningsfaktor (A4), (vid behov, värde eller formel)]]),FALSE,TRUE)) -> TRUE | CC37: =IF(ISBLANK(InputA1A3[[#This Row],[EPD - EF A4]]),"",IF(ISBLANK(InputA1A3[[#This Row],[Omräkning till FU/DU (Skriv in värde, ej formel)]]),InputA1A3[[#This Row],[EPD - EF A4]]*InputA1A3[[#This Row],[Mängd A1A3]],InputA1A3[[#This Row],[Mängd A1A3]]*InputA1A3[[#This Row],[Omräkning till FU/DU (Skriv in värde, ej formel)]]*InputA1A3[[#This Row],[EPD - EF A4]])) ->  | CD37: =IF(ISBLANK(KontrollTabell[[#This Row],[True/False A4 - Alt 2]]),"",IF(KontrollTabell[[#This Row],[True/False A4 Enhet - Alt2]]=TRUE,InputA1A3[[#This Row],[Sträcka - totalt '[km'], (tur och retur, alla transporter)]]*InputA1A3[[#This Row],[(Bränsle-) Förbrukning per km]],"Sen då")) -> 0 | CE37: =SUM(KontrollTabell[[#This Row],[A4 - Resultat alt 1 '[kg']]:[A4 - Alt 2 - beräkning utsläpp]]) -> 0 | CF37: =IF(ISBLANK(InputA1A3[[#This Row],[EPD - EF A4]]),ISBLANK(#REF!),) -> FALSE | CG37: =IFERROR(IF(KontrollTabell[[#This Row],[True/False A5]]=FALSE(),"Enheter",IF(ISBLANK(InputA1A3[[#This Row],[Omräkningsfaktor (A5.2) (ange värde), (vid behov)]]),InputA1A3[[#This Row],[Mängd (A5.2)]]*InputA1A3[[#This Row],[*EF (A5.2) '[kg CO₂-ekv.']]],InputA1A3[[#This Row],[Mängd (A5.2)]]*InputA1A3[[#This Row],[*EF (A5.2) '[kg CO₂-ekv.']]]*InputA1A3[[#This Row],[Omräkningsfaktor (A5.2) (ange värde), (vid behov)]])),0) -> 0 | CH37: =IF(OR(ISBLANK(InputA1A3[[#This Row],[Enhet för mängd (A5.2)]]),ISBLANK(InputA1A3[[#This Row],[*DU/FU (EF A5.2)]])),"",IF(OR(InputA1A3[[#This Row],[Enhet för mängd (A5.2)]]=InputA1A3[[#This Row],[*DU/FU (EF A5.2)]],AND(InputA1A3[[#This Row],[Enhet för mängd (A5.2)]]<>InputA1A3[[#This Row],[*DU/FU (EF A5.2)]],ISNUMBER(InputA1A3[[#This Row],[Omräkningsfaktor (A5.2) (ange värde), (vid behov)]]))),TRUE,FALSE)) ->  | CI37: =IF(InputA1A3[[#This Row],[Enhet för mängd (A5.2)]] = InputA1A3[[#This Row],[*DU/FU (EF A5.2)]], TRUE, FALSE) -> TRUE | CJ37: =IF(OR(ISBLANK(InputA1A3[[#This Row],[Kategori (egen kategorisering)]])=FALSE,ISBLANK(InputA1A3[[#This Row],[Anläggningsdel ]]))=FALSE,TRUE,FALSE) -> FALSE | CK37: =IF(ISBLANK(InputA1A3[[#This Row],[Anläggningsdel ]]),"",IF(KontrollTabell[[#This Row],[TRUE/FALSE om kategori saknas.]] =FALSE,InputA1A3[[#This Row],[Kategori (egen kategorisering)]],"Kategori saknas")) -> 
J38: =IF(ISBLANK(InputA1A3[[#This Row],[Anläggningsdel ]]),"",IF(KontrollTabell[[#This Row],[True/False A1A3 Enhet]]=TRUE, "", InputA1A3[[#This Row],[FU/DU (EF A1A3)]] & "/" & InputA1A3[[#This Row],[Enhet Mängd (A1A3)]])) ->  | O38: =IF(ISBLANK(InputA1A3[[#This Row],[EPD - EF A4]]),"",InputA1A3[[#This Row],[FU/DU (EF A1A3)]]) ->  | S38: =IFERROR(INDEX(TabellEFDrivmedel[],MATCH(InputA1A3[[#This Row],[Drivmedel (A4) (endast förval ur lista)]],TabellEFDrivmedel[Drivmedel],0),4),"") ->  | W38: =IF(InputA1A3[[#This Row],[*DU/FU (EF A4) för valt drivmedel (schablon)]]="","",IF(KontrollTabell[[#This Row],[True/False A4 Enhet - Alt2]]=TRUE,"",IF(ISBLANK(InputA1A3[[#This Row],[*DU/FU (EF A4) för valt drivmedel (schablon)]]),,InputA1A3[[#This Row],[Enhet (bränsleförbrukning per km)]]& "/" & InputA1A3[[#This Row],[*DU/FU (EF A4) för valt drivmedel (schablon)]]))) ->  | AE38: =IFERROR(INDEX(TabellEFDrivmedel[],MATCH(InputA1A3[[#This Row],[Drivmedel (A5.2)]],TabellEFDrivmedel[Drivmedel],0),2),"") ->  | AF38: =IFERROR(INDEX(TabellEFDrivmedel[],MATCH(InputA1A3[[#This Row],[Drivmedel (A5.2)]],TabellEFDrivmedel[Drivmedel],0),4),"") ->  | AG38: =IF(KontrollTabell[[#This Row],[True/False A5 Enhet]]=TRUE, "", InputA1A3[[#This Row],[*DU/FU (EF A5.2)]] & "/" & InputA1A3[[#This Row],[Enhet för mängd (A5.2)]]) ->  | BV38: =IF(ISBLANK(InputA1A3[[#This Row],[Anläggningsdel ]]),FALSE,TRUE) -> FALSE | BW38: =IF(ISBLANK(InputA1A3[[#This Row],[Anläggningsdel ]]),"",IF(InputA1A3[[#This Row],[Enhet Mängd (A1A3)]] = InputA1A3[[#This Row],[FU/DU (EF A1A3)]], TRUE, FALSE)) ->  | BX38: =IF(KontrollTabell[[#This Row],[Finns anläggningsdel-namn.]]=FALSE,"",IF(KontrollTabell[[#This Row],[True/False A1A3 Enhet]]=TRUE,TRUE,IF(ISBLANK(InputA1A3[[#This Row],[Omräkning till FU/DU (Skriv in värde, ej formel)]]),FALSE,TRUE))) ->  | BY38: =IF(KontrollTabell[[#This Row],[Finns anläggningsdel-namn.]]=FALSE,,IF(KontrollTabell[[#This Row],[True/False A1A3 Enhet]]=TRUE,InputA1A3[[#This Row],[Mängd A1A3]]*InputA1A3[[#This Row],[EF A1A3 '[kg CO₂-ekv.']]],IF(KontrollTabell[[#This Row],[True/False A1A3 om A1A3 kan beräknas]]=TRUE,InputA1A3[[#This Row],[Mängd A1A3]]*InputA1A3[[#This Row],[EF A1A3 '[kg CO₂-ekv.']]]*InputA1A3[[#This Row],[Omräkning till FU/DU (Skriv in värde, ej formel)]],"Värde Behövs"))) -> 0 | BZ38: =IF(ISBLANK(InputA1A3[[#This Row],[Anläggningsdel ]]),"",IF(ISBLANK(InputA1A3[[#This Row],[EPD - EF A4]]),FALSE,TRUE)) ->  | CA38: =IF(OR(ISBLANK(InputA1A3[[#This Row],[Enhet (bränsleförbrukning per km)]]),ISBLANK(InputA1A3[[#This Row],[*DU/FU (EF A4) för valt drivmedel (schablon)]])),"",IF(OR(InputA1A3[[#This Row],[Enhet (bränsleförbrukning per km)]]=InputA1A3[[#This Row],[*DU/FU (EF A4) för valt drivmedel (schablon)]],AND(InputA1A3[[#This Row],[Enhet (bränsleförbrukning per km)]]<>InputA1A3[[#This Row],[*DU/FU (EF A4) för valt drivmedel (schablon)]],ISNUMBER(InputA1A3[[#This Row],[Omräkningsfaktor (A4), (vid behov, värde eller formel)]]))),TRUE(),FALSE())) ->  | CB38: =IF(InputA1A3[[#This Row],[Enhet (bränsleförbrukning per km)]] =InputA1A3[[#This Row],[*DU/FU (EF A4) för valt drivmedel (schablon)]],TRUE,IF(ISBLANK(InputA1A3[[#This Row],[Omräkningsfaktor (A4), (vid behov, värde eller formel)]]),FALSE,TRUE)) -> TRUE | CC38: =IF(ISBLANK(InputA1A3[[#This Row],[EPD - EF A4]]),"",IF(ISBLANK(InputA1A3[[#This Row],[Omräkning till FU/DU (Skriv in värde, ej formel)]]),InputA1A3[[#This Row],[EPD - EF A4]]*InputA1A3[[#This Row],[Mängd A1A3]],InputA1A3[[#This Row],[Mängd A1A3]]*InputA1A3[[#This Row],[Omräkning till FU/DU (Skriv in värde, ej formel)]]*InputA1A3[[#This Row],[EPD - EF A4]])) ->  | CD38: =IF(ISBLANK(KontrollTabell[[#This Row],[True/False A4 - Alt 2]]),"",IF(KontrollTabell[[#This Row],[True/False A4 Enhet - Alt2]]=TRUE,InputA1A3[[#This Row],[Sträcka - totalt '[km'], (tur och retur, alla transporter)]]*InputA1A3[[#This Row],[(Bränsle-) Förbrukning per km]],"Sen då")) -> 0 | CE38: =SUM(KontrollTabell[[#This Row],[A4 - Resultat alt 1 '[kg']]:[A4 - Alt 2 - beräkning utsläpp]]) -> 0 | CF38: =IF(ISBLANK(InputA1A3[[#This Row],[EPD - EF A4]]),ISBLANK(#REF!),) -> FALSE | CG38: =IFERROR(IF(KontrollTabell[[#This Row],[True/False A5]]=FALSE(),"Enheter",IF(ISBLANK(InputA1A3[[#This Row],[Omräkningsfaktor (A5.2) (ange värde), (vid behov)]]),InputA1A3[[#This Row],[Mängd (A5.2)]]*InputA1A3[[#This Row],[*EF (A5.2) '[kg CO₂-ekv.']]],InputA1A3[[#This Row],[Mängd (A5.2)]]*InputA1A3[[#This Row],[*EF (A5.2) '[kg CO₂-ekv.']]]*InputA1A3[[#This Row],[Omräkningsfaktor (A5.2) (ange värde), (vid behov)]])),0) -> 0 | CH38: =IF(OR(ISBLANK(InputA1A3[[#This Row],[Enhet för mängd (A5.2)]]),ISBLANK(InputA1A3[[#This Row],[*DU/FU (EF A5.2)]])),"",IF(OR(InputA1A3[[#This Row],[Enhet för mängd (A5.2)]]=InputA1A3[[#This Row],[*DU/FU (EF A5.2)]],AND(InputA1A3[[#This Row],[Enhet för mängd (A5.2)]]<>InputA1A3[[#This Row],[*DU/FU (EF A5.2)]],ISNUMBER(InputA1A3[[#This Row],[Omräkningsfaktor (A5.2) (ange värde), (vid behov)]]))),TRUE,FALSE)) ->  | CI38: =IF(InputA1A3[[#This Row],[Enhet för mängd (A5.2)]] = InputA1A3[[#This Row],[*DU/FU (EF A5.2)]], TRUE, FALSE) -> TRUE | CJ38: =IF(OR(ISBLANK(InputA1A3[[#This Row],[Kategori (egen kategorisering)]])=FALSE,ISBLANK(InputA1A3[[#This Row],[Anläggningsdel ]]))=FALSE,TRUE,FALSE) -> FALSE | CK38: =IF(ISBLANK(InputA1A3[[#This Row],[Anläggningsdel ]]),"",IF(KontrollTabell[[#This Row],[TRUE/FALSE om kategori saknas.]] =FALSE,InputA1A3[[#This Row],[Kategori (egen kategorisering)]],"Kategori saknas")) -> 
J39: =IF(ISBLANK(InputA1A3[[#This Row],[Anläggningsdel ]]),"",IF(KontrollTabell[[#This Row],[True/False A1A3 Enhet]]=TRUE, "", InputA1A3[[#This Row],[FU/DU (EF A1A3)]] & "/" & InputA1A3[[#This Row],[Enhet Mängd (A1A3)]])) ->  | O39: =IF(ISBLANK(InputA1A3[[#This Row],[EPD - EF A4]]),"",InputA1A3[[#This Row],[FU/DU (EF A1A3)]]) ->  | S39: =IFERROR(INDEX(TabellEFDrivmedel[],MATCH(InputA1A3[[#This Row],[Drivmedel (A4) (endast förval ur lista)]],TabellEFDrivmedel[Drivmedel],0),4),"") ->  | W39: =IF(InputA1A3[[#This Row],[*DU/FU (EF A4) för valt drivmedel (schablon)]]="","",IF(KontrollTabell[[#This Row],[True/False A4 Enhet - Alt2]]=TRUE,"",IF(ISBLANK(InputA1A3[[#This Row],[*DU/FU (EF A4) för valt drivmedel (schablon)]]),,InputA1A3[[#This Row],[Enhet (bränsleförbrukning per km)]]& "/" & InputA1A3[[#This Row],[*DU/FU (EF A4) för valt drivmedel (schablon)]]))) ->  | AE39: =IFERROR(INDEX(TabellEFDrivmedel[],MATCH(InputA1A3[[#This Row],[Drivmedel (A5.2)]],TabellEFDrivmedel[Drivmedel],0),2),"") ->  | AF39: =IFERROR(INDEX(TabellEFDrivmedel[],MATCH(InputA1A3[[#This Row],[Drivmedel (A5.2)]],TabellEFDrivmedel[Drivmedel],0),4),"") ->  | AG39: =IF(KontrollTabell[[#This Row],[True/False A5 Enhet]]=TRUE, "", InputA1A3[[#This Row],[*DU/FU (EF A5.2)]] & "/" & InputA1A3[[#This Row],[Enhet för mängd (A5.2)]]) ->  | BV39: =IF(ISBLANK(InputA1A3[[#This Row],[Anläggningsdel ]]),FALSE,TRUE) -> FALSE | BW39: =IF(ISBLANK(InputA1A3[[#This Row],[Anläggningsdel ]]),"",IF(InputA1A3[[#This Row],[Enhet Mängd (A1A3)]] = InputA1A3[[#This Row],[FU/DU (EF A1A3)]], TRUE, FALSE)) ->  | BX39: =IF(KontrollTabell[[#This Row],[Finns anläggningsdel-namn.]]=FALSE,"",IF(KontrollTabell[[#This Row],[True/False A1A3 Enhet]]=TRUE,TRUE,IF(ISBLANK(InputA1A3[[#This Row],[Omräkning till FU/DU (Skriv in värde, ej formel)]]),FALSE,TRUE))) ->  | BY39: =IF(KontrollTabell[[#This Row],[Finns anläggningsdel-namn.]]=FALSE,,IF(KontrollTabell[[#This Row],[True/False A1A3 Enhet]]=TRUE,InputA1A3[[#This Row],[Mängd A1A3]]*InputA1A3[[#This Row],[EF A1A3 '[kg CO₂-ekv.']]],IF(KontrollTabell[[#This Row],[True/False A1A3 om A1A3 kan beräknas]]=TRUE,InputA1A3[[#This Row],[Mängd A1A3]]*InputA1A3[[#This Row],[EF A1A3 '[kg CO₂-ekv.']]]*InputA1A3[[#This Row],[Omräkning till FU/DU (Skriv in värde, ej formel)]],"Värde Behövs"))) -> 0 | BZ39: =IF(ISBLANK(InputA1A3[[#This Row],[Anläggningsdel ]]),"",IF(ISBLANK(InputA1A3[[#This Row],[EPD - EF A4]]),FALSE,TRUE)) ->  | CA39: =IF(OR(ISBLANK(InputA1A3[[#This Row],[Enhet (bränsleförbrukning per km)]]),ISBLANK(InputA1A3[[#This Row],[*DU/FU (EF A4) för valt drivmedel (schablon)]])),"",IF(OR(InputA1A3[[#This Row],[Enhet (bränsleförbrukning per km)]]=InputA1A3[[#This Row],[*DU/FU (EF A4) för valt drivmedel (schablon)]],AND(InputA1A3[[#This Row],[Enhet (bränsleförbrukning per km)]]<>InputA1A3[[#This Row],[*DU/FU (EF A4) för valt drivmedel (schablon)]],ISNUMBER(InputA1A3[[#This Row],[Omräkningsfaktor (A4), (vid behov, värde eller formel)]]))),TRUE(),FALSE())) ->  | CB39: =IF(InputA1A3[[#This Row],[Enhet (bränsleförbrukning per km)]] =InputA1A3[[#This Row],[*DU/FU (EF A4) för valt drivmedel (schablon)]],TRUE,IF(ISBLANK(InputA1A3[[#This Row],[Omräkningsfaktor (A4), (vid behov, värde eller formel)]]),FALSE,TRUE)) -> TRUE | CC39: =IF(ISBLANK(InputA1A3[[#This Row],[EPD - EF A4]]),"",IF(ISBLANK(InputA1A3[[#This Row],[Omräkning till FU/DU (Skriv in värde, ej formel)]]),InputA1A3[[#This Row],[EPD - EF A4]]*InputA1A3[[#This Row],[Mängd A1A3]],InputA1A3[[#This Row],[Mängd A1A3]]*InputA1A3[[#This Row],[Omräkning till FU/DU (Skriv in värde, ej formel)]]*InputA1A3[[#This Row],[EPD - EF A4]])) ->  | CD39: =IF(ISBLANK(KontrollTabell[[#This Row],[True/False A4 - Alt 2]]),"",IF(KontrollTabell[[#This Row],[True/False A4 Enhet - Alt2]]=TRUE,InputA1A3[[#This Row],[Sträcka - totalt '[km'], (tur och retur, alla transporter)]]*InputA1A3[[#This Row],[(Bränsle-) Förbrukning per km]],"Sen då")) -> 0 | CE39: =SUM(KontrollTabell[[#This Row],[A4 - Resultat alt 1 '[kg']]:[A4 - Alt 2 - beräkning utsläpp]]) -> 0 | CF39: =IF(ISBLANK(InputA1A3[[#This Row],[EPD - EF A4]]),ISBLANK(#REF!),) -> FALSE | CG39: =IFERROR(IF(KontrollTabell[[#This Row],[True/False A5]]=FALSE(),"Enheter",IF(ISBLANK(InputA1A3[[#This Row],[Omräkningsfaktor (A5.2) (ange värde), (vid behov)]]),InputA1A3[[#This Row],[Mängd (A5.2)]]*InputA1A3[[#This Row],[*EF (A5.2) '[kg CO₂-ekv.']]],InputA1A3[[#This Row],[Mängd (A5.2)]]*InputA1A3[[#This Row],[*EF (A5.2) '[kg CO₂-ekv.']]]*InputA1A3[[#This Row],[Omräkningsfaktor (A5.2) (ange värde), (vid behov)]])),0) -> 0 | CH39: =IF(OR(ISBLANK(InputA1A3[[#This Row],[Enhet för mängd (A5.2)]]),ISBLANK(InputA1A3[[#This Row],[*DU/FU (EF A5.2)]])),"",IF(OR(InputA1A3[[#This Row],[Enhet för mängd (A5.2)]]=InputA1A3[[#This Row],[*DU/FU (EF A5.2)]],AND(InputA1A3[[#This Row],[Enhet för mängd (A5.2)]]<>InputA1A3[[#This Row],[*DU/FU (EF A5.2)]],ISNUMBER(InputA1A3[[#This Row],[Omräkningsfaktor (A5.2) (ange värde), (vid behov)]]))),TRUE,FALSE)) ->  | CI39: =IF(InputA1A3[[#This Row],[Enhet för mängd (A5.2)]] = InputA1A3[[#This Row],[*DU/FU (EF A5.2)]], TRUE, FALSE) -> TRUE | CJ39: =IF(OR(ISBLANK(InputA1A3[[#This Row],[Kategori (egen kategorisering)]])=FALSE,ISBLANK(InputA1A3[[#This Row],[Anläggningsdel ]]))=FALSE,TRUE,FALSE) -> FALSE | CK39: =IF(ISBLANK(InputA1A3[[#This Row],[Anläggningsdel ]]),"",IF(KontrollTabell[[#This Row],[TRUE/FALSE om kategori saknas.]] =FALSE,InputA1A3[[#This Row],[Kategori (egen kategorisering)]],"Kategori saknas")) -> 
J40: =IF(ISBLANK(InputA1A3[[#This Row],[Anläggningsdel ]]),"",IF(KontrollTabell[[#This Row],[True/False A1A3 Enhet]]=TRUE, "", InputA1A3[[#This Row],[FU/DU (EF A1A3)]] & "/" & InputA1A3[[#This Row],[Enhet Mängd (A1A3)]])) ->  | O40: =IF(ISBLANK(InputA1A3[[#This Row],[EPD - EF A4]]),"",InputA1A3[[#This Row],[FU/DU (EF A1A3)]]) ->  | S40: =IFERROR(INDEX(TabellEFDrivmedel[],MATCH(InputA1A3[[#This Row],[Drivmedel (A4) (endast förval ur lista)]],TabellEFDrivmedel[Drivmedel],0),4),"") ->  | W40: =IF(InputA1A3[[#This Row],[*DU/FU (EF A4) för valt drivmedel (schablon)]]="","",IF(KontrollTabell[[#This Row],[True/False A4 Enhet - Alt2]]=TRUE,"",IF(ISBLANK(InputA1A3[[#This Row],[*DU/FU (EF A4) för valt drivmedel (schablon)]]),,InputA1A3[[#This Row],[Enhet (bränsleförbrukning per km)]]& "/" & InputA1A3[[#This Row],[*DU/FU (EF A4) för valt drivmedel (schablon)]]))) ->  | AE40: =IFERROR(INDEX(TabellEFDrivmedel[],MATCH(InputA1A3[[#This Row],[Drivmedel (A5.2)]],TabellEFDrivmedel[Drivmedel],0),2),"") ->  | AF40: =IFERROR(INDEX(TabellEFDrivmedel[],MATCH(InputA1A3[[#This Row],[Drivmedel (A5.2)]],TabellEFDrivmedel[Drivmedel],0),4),"") ->  | AG40: =IF(KontrollTabell[[#This Row],[True/False A5 Enhet]]=TRUE, "", InputA1A3[[#This Row],[*DU/FU (EF A5.2)]] & "/" & InputA1A3[[#This Row],[Enhet för mängd (A5.2)]]) ->  | BV40: =IF(ISBLANK(InputA1A3[[#This Row],[Anläggningsdel ]]),FALSE,TRUE) -> FALSE | BW40: =IF(ISBLANK(InputA1A3[[#This Row],[Anläggningsdel ]]),"",IF(InputA1A3[[#This Row],[Enhet Mängd (A1A3)]] = InputA1A3[[#This Row],[FU/DU (EF A1A3)]], TRUE, FALSE)) ->  | BX40: =IF(KontrollTabell[[#This Row],[Finns anläggningsdel-namn.]]=FALSE,"",IF(KontrollTabell[[#This Row],[True/False A1A3 Enhet]]=TRUE,TRUE,IF(ISBLANK(InputA1A3[[#This Row],[Omräkning till FU/DU (Skriv in värde, ej formel)]]),FALSE,TRUE))) ->  | BY40: =IF(KontrollTabell[[#This Row],[Finns anläggningsdel-namn.]]=FALSE,,IF(KontrollTabell[[#This Row],[True/False A1A3 Enhet]]=TRUE,InputA1A3[[#This Row],[Mängd A1A3]]*InputA1A3[[#This Row],[EF A1A3 '[kg CO₂-ekv.']]],IF(KontrollTabell[[#This Row],[True/False A1A3 om A1A3 kan beräknas]]=TRUE,InputA1A3[[#This Row],[Mängd A1A3]]*InputA1A3[[#This Row],[EF A1A3 '[kg CO₂-ekv.']]]*InputA1A3[[#This Row],[Omräkning till FU/DU (Skriv in värde, ej formel)]],"Värde Behövs"))) -> 0 | BZ40: =IF(ISBLANK(InputA1A3[[#This Row],[Anläggningsdel ]]),"",IF(ISBLANK(InputA1A3[[#This Row],[EPD - EF A4]]),FALSE,TRUE)) ->  | CA40: =IF(OR(ISBLANK(InputA1A3[[#This Row],[Enhet (bränsleförbrukning per km)]]),ISBLANK(InputA1A3[[#This Row],[*DU/FU (EF A4) för valt drivmedel (schablon)]])),"",IF(OR(InputA1A3[[#This Row],[Enhet (bränsleförbrukning per km)]]=InputA1A3[[#This Row],[*DU/FU (EF A4) för valt drivmedel (schablon)]],AND(InputA1A3[[#This Row],[Enhet (bränsleförbrukning per km)]]<>InputA1A3[[#This Row],[*DU/FU (EF A4) för valt drivmedel (schablon)]],ISNUMBER(InputA1A3[[#This Row],[Omräkningsfaktor (A4), (vid behov, värde eller formel)]]))),TRUE(),FALSE())) ->  | CB40: =IF(InputA1A3[[#This Row],[Enhet (bränsleförbrukning per km)]] =InputA1A3[[#This Row],[*DU/FU (EF A4) för valt drivmedel (schablon)]],TRUE,IF(ISBLANK(InputA1A3[[#This Row],[Omräkningsfaktor (A4), (vid behov, värde eller formel)]]),FALSE,TRUE)) -> TRUE | CC40: =IF(ISBLANK(InputA1A3[[#This Row],[EPD - EF A4]]),"",IF(ISBLANK(InputA1A3[[#This Row],[Omräkning till FU/DU (Skriv in värde, ej formel)]]),InputA1A3[[#This Row],[EPD - EF A4]]*InputA1A3[[#This Row],[Mängd A1A3]],InputA1A3[[#This Row],[Mängd A1A3]]*InputA1A3[[#This Row],[Omräkning till FU/DU (Skriv in värde, ej formel)]]*InputA1A3[[#This Row],[EPD - EF A4]])) ->  | CD40: =IF(ISBLANK(KontrollTabell[[#This Row],[True/False A4 - Alt 2]]),"",IF(KontrollTabell[[#This Row],[True/False A4 Enhet - Alt2]]=TRUE,InputA1A3[[#This Row],[Sträcka - totalt '[km'], (tur och retur, alla transporter)]]*InputA1A3[[#This Row],[(Bränsle-) Förbrukning per km]],"Sen då")) -> 0 | CE40: =SUM(KontrollTabell[[#This Row],[A4 - Resultat alt 1 '[kg']]:[A4 - Alt 2 - beräkning utsläpp]]) -> 0 | CF40: =IF(ISBLANK(InputA1A3[[#This Row],[EPD - EF A4]]),ISBLANK(#REF!),) -> FALSE | CG40: =IFERROR(IF(KontrollTabell[[#This Row],[True/False A5]]=FALSE(),"Enheter",IF(ISBLANK(InputA1A3[[#This Row],[Omräkningsfaktor (A5.2) (ange värde), (vid behov)]]),InputA1A3[[#This Row],[Mängd (A5.2)]]*InputA1A3[[#This Row],[*EF (A5.2) '[kg CO₂-ekv.']]],InputA1A3[[#This Row],[Mängd (A5.2)]]*InputA1A3[[#This Row],[*EF (A5.2) '[kg CO₂-ekv.']]]*InputA1A3[[#This Row],[Omräkningsfaktor (A5.2) (ange värde), (vid behov)]])),0) -> 0 | CH40: =IF(OR(ISBLANK(InputA1A3[[#This Row],[Enhet för mängd (A5.2)]]),ISBLANK(InputA1A3[[#This Row],[*DU/FU (EF A5.2)]])),"",IF(OR(InputA1A3[[#This Row],[Enhet för mängd (A5.2)]]=InputA1A3[[#This Row],[*DU/FU (EF A5.2)]],AND(InputA1A3[[#This Row],[Enhet för mängd (A5.2)]]<>InputA1A3[[#This Row],[*DU/FU (EF A5.2)]],ISNUMBER(InputA1A3[[#This Row],[Omräkningsfaktor (A5.2) (ange värde), (vid behov)]]))),TRUE,FALSE)) ->  | CI40: =IF(InputA1A3[[#This Row],[Enhet för mängd (A5.2)]] = InputA1A3[[#This Row],[*DU/FU (EF A5.2)]], TRUE, FALSE) -> TRUE | CJ40: =IF(OR(ISBLANK(InputA1A3[[#This Row],[Kategori (egen kategorisering)]])=FALSE,ISBLANK(InputA1A3[[#This Row],[Anläggningsdel ]]))=FALSE,TRUE,FALSE) -> FALSE | CK40: =IF(ISBLANK(InputA1A3[[#This Row],[Anläggningsdel ]]),"",IF(KontrollTabell[[#This Row],[TRUE/FALSE om kategori saknas.]] =FALSE,InputA1A3[[#This Row],[Kategori (egen kategorisering)]],"Kategori saknas")) -> 
J41: =IF(ISBLANK(InputA1A3[[#This Row],[Anläggningsdel ]]),"",IF(KontrollTabell[[#This Row],[True/False A1A3 Enhet]]=TRUE, "", InputA1A3[[#This Row],[FU/DU (EF A1A3)]] & "/" & InputA1A3[[#This Row],[Enhet Mängd (A1A3)]])) ->  | O41: =IF(ISBLANK(InputA1A3[[#This Row],[EPD - EF A4]]),"",InputA1A3[[#This Row],[FU/DU (EF A1A3)]]) ->  | S41: =IFERROR(INDEX(TabellEFDrivmedel[],MATCH(InputA1A3[[#This Row],[Drivmedel (A4) (endast förval ur lista)]],TabellEFDrivmedel[Drivmedel],0),4),"") ->  | W41: =IF(InputA1A3[[#This Row],[*DU/FU (EF A4) för valt drivmedel (schablon)]]="","",IF(KontrollTabell[[#This Row],[True/False A4 Enhet - Alt2]]=TRUE,"",IF(ISBLANK(InputA1A3[[#This Row],[*DU/FU (EF A4) för valt drivmedel (schablon)]]),,InputA1A3[[#This Row],[Enhet (bränsleförbrukning per km)]]& "/" & InputA1A3[[#This Row],[*DU/FU (EF A4) för valt drivmedel (schablon)]]))) ->  | AE41: =IFERROR(INDEX(TabellEFDrivmedel[],MATCH(InputA1A3[[#This Row],[Drivmedel (A5.2)]],TabellEFDrivmedel[Drivmedel],0),2),"") ->  | AF41: =IFERROR(INDEX(TabellEFDrivmedel[],MATCH(InputA1A3[[#This Row],[Drivmedel (A5.2)]],TabellEFDrivmedel[Drivmedel],0),4),"") ->  | AG41: =IF(KontrollTabell[[#This Row],[True/False A5 Enhet]]=TRUE, "", InputA1A3[[#This Row],[*DU/FU (EF A5.2)]] & "/" & InputA1A3[[#This Row],[Enhet för mängd (A5.2)]]) ->  | BV41: =IF(ISBLANK(InputA1A3[[#This Row],[Anläggningsdel ]]),FALSE,TRUE) -> FALSE | BW41: =IF(ISBLANK(InputA1A3[[#This Row],[Anläggningsdel ]]),"",IF(InputA1A3[[#This Row],[Enhet Mängd (A1A3)]] = InputA1A3[[#This Row],[FU/DU (EF A1A3)]], TRUE, FALSE)) ->  | BX41: =IF(KontrollTabell[[#This Row],[Finns anläggningsdel-namn.]]=FALSE,"",IF(KontrollTabell[[#This Row],[True/False A1A3 Enhet]]=TRUE,TRUE,IF(ISBLANK(InputA1A3[[#This Row],[Omräkning till FU/DU (Skriv in värde, ej formel)]]),FALSE,TRUE))) ->  | BY41: =IF(KontrollTabell[[#This Row],[Finns anläggningsdel-namn.]]=FALSE,,IF(KontrollTabell[[#This Row],[True/False A1A3 Enhet]]=TRUE,InputA1A3[[#This Row],[Mängd A1A3]]*InputA1A3[[#This Row],[EF A1A3 '[kg CO₂-ekv.']]],IF(KontrollTabell[[#This Row],[True/False A1A3 om A1A3 kan beräknas]]=TRUE,InputA1A3[[#This Row],[Mängd A1A3]]*InputA1A3[[#This Row],[EF A1A3 '[kg CO₂-ekv.']]]*InputA1A3[[#This Row],[Omräkning till FU/DU (Skriv in värde, ej formel)]],"Värde Behövs"))) -> 0 | BZ41: =IF(ISBLANK(InputA1A3[[#This Row],[Anläggningsdel ]]),"",IF(ISBLANK(InputA1A3[[#This Row],[EPD - EF A4]]),FALSE,TRUE)) ->  | CA41: =IF(OR(ISBLANK(InputA1A3[[#This Row],[Enhet (bränsleförbrukning per km)]]),ISBLANK(InputA1A3[[#This Row],[*DU/FU (EF A4) för valt drivmedel (schablon)]])),"",IF(OR(InputA1A3[[#This Row],[Enhet (bränsleförbrukning per km)]]=InputA1A3[[#This Row],[*DU/FU (EF A4) för valt drivmedel (schablon)]],AND(InputA1A3[[#This Row],[Enhet (bränsleförbrukning per km)]]<>InputA1A3[[#This Row],[*DU/FU (EF A4) för valt drivmedel (schablon)]],ISNUMBER(InputA1A3[[#This Row],[Omräkningsfaktor (A4), (vid behov, värde eller formel)]]))),TRUE(),FALSE())) ->  | CB41: =IF(InputA1A3[[#This Row],[Enhet (bränsleförbrukning per km)]] =InputA1A3[[#This Row],[*DU/FU (EF A4) för valt drivmedel (schablon)]],TRUE,IF(ISBLANK(InputA1A3[[#This Row],[Omräkningsfaktor (A4), (vid behov, värde eller formel)]]),FALSE,TRUE)) -> TRUE | CC41: =IF(ISBLANK(InputA1A3[[#This Row],[EPD - EF A4]]),"",IF(ISBLANK(InputA1A3[[#This Row],[Omräkning till FU/DU (Skriv in värde, ej formel)]]),InputA1A3[[#This Row],[EPD - EF A4]]*InputA1A3[[#This Row],[Mängd A1A3]],InputA1A3[[#This Row],[Mängd A1A3]]*InputA1A3[[#This Row],[Omräkning till FU/DU (Skriv in värde, ej formel)]]*InputA1A3[[#This Row],[EPD - EF A4]])) ->  | CD41: =IF(ISBLANK(KontrollTabell[[#This Row],[True/False A4 - Alt 2]]),"",IF(KontrollTabell[[#This Row],[True/False A4 Enhet - Alt2]]=TRUE,InputA1A3[[#This Row],[Sträcka - totalt '[km'], (tur och retur, alla transporter)]]*InputA1A3[[#This Row],[(Bränsle-) Förbrukning per km]],"Sen då")) -> 0 | CE41: =SUM(KontrollTabell[[#This Row],[A4 - Resultat alt 1 '[kg']]:[A4 - Alt 2 - beräkning utsläpp]]) -> 0 | CF41: =IF(ISBLANK(InputA1A3[[#This Row],[EPD - EF A4]]),ISBLANK(#REF!),) -> FALSE | CG41: =IFERROR(IF(KontrollTabell[[#This Row],[True/False A5]]=FALSE(),"Enheter",IF(ISBLANK(InputA1A3[[#This Row],[Omräkningsfaktor (A5.2) (ange värde), (vid behov)]]),InputA1A3[[#This Row],[Mängd (A5.2)]]*InputA1A3[[#This Row],[*EF (A5.2) '[kg CO₂-ekv.']]],InputA1A3[[#This Row],[Mängd (A5.2)]]*InputA1A3[[#This Row],[*EF (A5.2) '[kg CO₂-ekv.']]]*InputA1A3[[#This Row],[Omräkningsfaktor (A5.2) (ange värde), (vid behov)]])),0) -> 0 | CH41: =IF(OR(ISBLANK(InputA1A3[[#This Row],[Enhet för mängd (A5.2)]]),ISBLANK(InputA1A3[[#This Row],[*DU/FU (EF A5.2)]])),"",IF(OR(InputA1A3[[#This Row],[Enhet för mängd (A5.2)]]=InputA1A3[[#This Row],[*DU/FU (EF A5.2)]],AND(InputA1A3[[#This Row],[Enhet för mängd (A5.2)]]<>InputA1A3[[#This Row],[*DU/FU (EF A5.2)]],ISNUMBER(InputA1A3[[#This Row],[Omräkningsfaktor (A5.2) (ange värde), (vid behov)]]))),TRUE,FALSE)) ->  | CI41: =IF(InputA1A3[[#This Row],[Enhet för mängd (A5.2)]] = InputA1A3[[#This Row],[*DU/FU (EF A5.2)]], TRUE, FALSE) -> TRUE | CJ41: =IF(OR(ISBLANK(InputA1A3[[#This Row],[Kategori (egen kategorisering)]])=FALSE,ISBLANK(InputA1A3[[#This Row],[Anläggningsdel ]]))=FALSE,TRUE,FALSE) -> FALSE | CK41: =IF(ISBLANK(InputA1A3[[#This Row],[Anläggningsdel ]]),"",IF(KontrollTabell[[#This Row],[TRUE/FALSE om kategori saknas.]] =FALSE,InputA1A3[[#This Row],[Kategori (egen kategorisering)]],"Kategori saknas")) -> 
J42: =IF(ISBLANK(InputA1A3[[#This Row],[Anläggningsdel ]]),"",IF(KontrollTabell[[#This Row],[True/False A1A3 Enhet]]=TRUE, "", InputA1A3[[#This Row],[FU/DU (EF A1A3)]] & "/" & InputA1A3[[#This Row],[Enhet Mängd (A1A3)]])) ->  | O42: =IF(ISBLANK(InputA1A3[[#This Row],[EPD - EF A4]]),"",InputA1A3[[#This Row],[FU/DU (EF A1A3)]]) ->  | S42: =IFERROR(INDEX(TabellEFDrivmedel[],MATCH(InputA1A3[[#This Row],[Drivmedel (A4) (endast förval ur lista)]],TabellEFDrivmedel[Drivmedel],0),4),"") ->  | W42: =IF(InputA1A3[[#This Row],[*DU/FU (EF A4) för valt drivmedel (schablon)]]="","",IF(KontrollTabell[[#This Row],[True/False A4 Enhet - Alt2]]=TRUE,"",IF(ISBLANK(InputA1A3[[#This Row],[*DU/FU (EF A4) för valt drivmedel (schablon)]]),,InputA1A3[[#This Row],[Enhet (bränsleförbrukning per km)]]& "/" & InputA1A3[[#This Row],[*DU/FU (EF A4) för valt drivmedel (schablon)]]))) ->  | AE42: =IFERROR(INDEX(TabellEFDrivmedel[],MATCH(InputA1A3[[#This Row],[Drivmedel (A5.2)]],TabellEFDrivmedel[Drivmedel],0),2),"") ->  | AF42: =IFERROR(INDEX(TabellEFDrivmedel[],MATCH(InputA1A3[[#This Row],[Drivmedel (A5.2)]],TabellEFDrivmedel[Drivmedel],0),4),"") ->  | AG42: =IF(KontrollTabell[[#This Row],[True/False A5 Enhet]]=TRUE, "", InputA1A3[[#This Row],[*DU/FU (EF A5.2)]] & "/" & InputA1A3[[#This Row],[Enhet för mängd (A5.2)]]) ->  | BV42: =IF(ISBLANK(InputA1A3[[#This Row],[Anläggningsdel ]]),FALSE,TRUE) -> FALSE | BW42: =IF(ISBLANK(InputA1A3[[#This Row],[Anläggningsdel ]]),"",IF(InputA1A3[[#This Row],[Enhet Mängd (A1A3)]] = InputA1A3[[#This Row],[FU/DU (EF A1A3)]], TRUE, FALSE)) ->  | BX42: =IF(KontrollTabell[[#This Row],[Finns anläggningsdel-namn.]]=FALSE,"",IF(KontrollTabell[[#This Row],[True/False A1A3 Enhet]]=TRUE,TRUE,IF(ISBLANK(InputA1A3[[#This Row],[Omräkning till FU/DU (Skriv in värde, ej formel)]]),FALSE,TRUE))) ->  | BY42: =IF(KontrollTabell[[#This Row],[Finns anläggningsdel-namn.]]=FALSE,,IF(KontrollTabell[[#This Row],[True/False A1A3 Enhet]]=TRUE,InputA1A3[[#This Row],[Mängd A1A3]]*InputA1A3[[#This Row],[EF A1A3 '[kg CO₂-ekv.']]],IF(KontrollTabell[[#This Row],[True/False A1A3 om A1A3 kan beräknas]]=TRUE,InputA1A3[[#This Row],[Mängd A1A3]]*InputA1A3[[#This Row],[EF A1A3 '[kg CO₂-ekv.']]]*InputA1A3[[#This Row],[Omräkning till FU/DU (Skriv in värde, ej formel)]],"Värde Behövs"))) -> 0 | BZ42: =IF(ISBLANK(InputA1A3[[#This Row],[Anläggningsdel ]]),"",IF(ISBLANK(InputA1A3[[#This Row],[EPD - EF A4]]),FALSE,TRUE)) ->  | CA42: =IF(OR(ISBLANK(InputA1A3[[#This Row],[Enhet (bränsleförbrukning per km)]]),ISBLANK(InputA1A3[[#This Row],[*DU/FU (EF A4) för valt drivmedel (schablon)]])),"",IF(OR(InputA1A3[[#This Row],[Enhet (bränsleförbrukning per km)]]=InputA1A3[[#This Row],[*DU/FU (EF A4) för valt drivmedel (schablon)]],AND(InputA1A3[[#This Row],[Enhet (bränsleförbrukning per km)]]<>InputA1A3[[#This Row],[*DU/FU (EF A4) för valt drivmedel (schablon)]],ISNUMBER(InputA1A3[[#This Row],[Omräkningsfaktor (A4), (vid behov, värde eller formel)]]))),TRUE(),FALSE())) ->  | CB42: =IF(InputA1A3[[#This Row],[Enhet (bränsleförbrukning per km)]] =InputA1A3[[#This Row],[*DU/FU (EF A4) för valt drivmedel (schablon)]],TRUE,IF(ISBLANK(InputA1A3[[#This Row],[Omräkningsfaktor (A4), (vid behov, värde eller formel)]]),FALSE,TRUE)) -> TRUE | CC42: =IF(ISBLANK(InputA1A3[[#This Row],[EPD - EF A4]]),"",IF(ISBLANK(InputA1A3[[#This Row],[Omräkning till FU/DU (Skriv in värde, ej formel)]]),InputA1A3[[#This Row],[EPD - EF A4]]*InputA1A3[[#This Row],[Mängd A1A3]],InputA1A3[[#This Row],[Mängd A1A3]]*InputA1A3[[#This Row],[Omräkning till FU/DU (Skriv in värde, ej formel)]]*InputA1A3[[#This Row],[EPD - EF A4]])) ->  | CD42: =IF(ISBLANK(KontrollTabell[[#This Row],[True/False A4 - Alt 2]]),"",IF(KontrollTabell[[#This Row],[True/False A4 Enhet - Alt2]]=TRUE,InputA1A3[[#This Row],[Sträcka - totalt '[km'], (tur och retur, alla transporter)]]*InputA1A3[[#This Row],[(Bränsle-) Förbrukning per km]],"Sen då")) -> 0 | CE42: =SUM(KontrollTabell[[#This Row],[A4 - Resultat alt 1 '[kg']]:[A4 - Alt 2 - beräkning utsläpp]]) -> 0 | CF42: =IF(ISBLANK(InputA1A3[[#This Row],[EPD - EF A4]]),ISBLANK(#REF!),) -> FALSE | CG42: =IFERROR(IF(KontrollTabell[[#This Row],[True/False A5]]=FALSE(),"Enheter",IF(ISBLANK(InputA1A3[[#This Row],[Omräkningsfaktor (A5.2) (ange värde), (vid behov)]]),InputA1A3[[#This Row],[Mängd (A5.2)]]*InputA1A3[[#This Row],[*EF (A5.2) '[kg CO₂-ekv.']]],InputA1A3[[#This Row],[Mängd (A5.2)]]*InputA1A3[[#This Row],[*EF (A5.2) '[kg CO₂-ekv.']]]*InputA1A3[[#This Row],[Omräkningsfaktor (A5.2) (ange värde), (vid behov)]])),0) -> 0 | CH42: =IF(OR(ISBLANK(InputA1A3[[#This Row],[Enhet för mängd (A5.2)]]),ISBLANK(InputA1A3[[#This Row],[*DU/FU (EF A5.2)]])),"",IF(OR(InputA1A3[[#This Row],[Enhet för mängd (A5.2)]]=InputA1A3[[#This Row],[*DU/FU (EF A5.2)]],AND(InputA1A3[[#This Row],[Enhet för mängd (A5.2)]]<>InputA1A3[[#This Row],[*DU/FU (EF A5.2)]],ISNUMBER(InputA1A3[[#This Row],[Omräkningsfaktor (A5.2) (ange värde), (vid behov)]]))),TRUE,FALSE)) ->  | CI42: =IF(InputA1A3[[#This Row],[Enhet för mängd (A5.2)]] = InputA1A3[[#This Row],[*DU/FU (EF A5.2)]], TRUE, FALSE) -> TRUE | CJ42: =IF(OR(ISBLANK(InputA1A3[[#This Row],[Kategori (egen kategorisering)]])=FALSE,ISBLANK(InputA1A3[[#This Row],[Anläggningsdel ]]))=FALSE,TRUE,FALSE) -> FALSE | CK42: =IF(ISBLANK(InputA1A3[[#This Row],[Anläggningsdel ]]),"",IF(KontrollTabell[[#This Row],[TRUE/FALSE om kategori saknas.]] =FALSE,InputA1A3[[#This Row],[Kategori (egen kategorisering)]],"Kategori saknas")) -> 
J43: =IF(ISBLANK(InputA1A3[[#This Row],[Anläggningsdel ]]),"",IF(KontrollTabell[[#This Row],[True/False A1A3 Enhet]]=TRUE, "", InputA1A3[[#This Row],[FU/DU (EF A1A3)]] & "/" & InputA1A3[[#This Row],[Enhet Mängd (A1A3)]])) ->  | O43: =IF(ISBLANK(InputA1A3[[#This Row],[EPD - EF A4]]),"",InputA1A3[[#This Row],[FU/DU (EF A1A3)]]) ->  | S43: =IFERROR(INDEX(TabellEFDrivmedel[],MATCH(InputA1A3[[#This Row],[Drivmedel (A4) (endast förval ur lista)]],TabellEFDrivmedel[Drivmedel],0),4),"") ->  | W43: =IF(InputA1A3[[#This Row],[*DU/FU (EF A4) för valt drivmedel (schablon)]]="","",IF(KontrollTabell[[#This Row],[True/False A4 Enhet - Alt2]]=TRUE,"",IF(ISBLANK(InputA1A3[[#This Row],[*DU/FU (EF A4) för valt drivmedel (schablon)]]),,InputA1A3[[#This Row],[Enhet (bränsleförbrukning per km)]]& "/" & InputA1A3[[#This Row],[*DU/FU (EF A4) för valt drivmedel (schablon)]]))) ->  | AE43: =IFERROR(INDEX(TabellEFDrivmedel[],MATCH(InputA1A3[[#This Row],[Drivmedel (A5.2)]],TabellEFDrivmedel[Drivmedel],0),2),"") ->  | AF43: =IFERROR(INDEX(TabellEFDrivmedel[],MATCH(InputA1A3[[#This Row],[Drivmedel (A5.2)]],TabellEFDrivmedel[Drivmedel],0),4),"") ->  | AG43: =IF(KontrollTabell[[#This Row],[True/False A5 Enhet]]=TRUE, "", InputA1A3[[#This Row],[*DU/FU (EF A5.2)]] & "/" & InputA1A3[[#This Row],[Enhet för mängd (A5.2)]]) ->  | BV43: =IF(ISBLANK(InputA1A3[[#This Row],[Anläggningsdel ]]),FALSE,TRUE) -> FALSE | BW43: =IF(ISBLANK(InputA1A3[[#This Row],[Anläggningsdel ]]),"",IF(InputA1A3[[#This Row],[Enhet Mängd (A1A3)]] = InputA1A3[[#This Row],[FU/DU (EF A1A3)]], TRUE, FALSE)) ->  | BX43: =IF(KontrollTabell[[#This Row],[Finns anläggningsdel-namn.]]=FALSE,"",IF(KontrollTabell[[#This Row],[True/False A1A3 Enhet]]=TRUE,TRUE,IF(ISBLANK(InputA1A3[[#This Row],[Omräkning till FU/DU (Skriv in värde, ej formel)]]),FALSE,TRUE))) ->  | BY43: =IF(KontrollTabell[[#This Row],[Finns anläggningsdel-namn.]]=FALSE,,IF(KontrollTabell[[#This Row],[True/False A1A3 Enhet]]=TRUE,InputA1A3[[#This Row],[Mängd A1A3]]*InputA1A3[[#This Row],[EF A1A3 '[kg CO₂-ekv.']]],IF(KontrollTabell[[#This Row],[True/False A1A3 om A1A3 kan beräknas]]=TRUE,InputA1A3[[#This Row],[Mängd A1A3]]*InputA1A3[[#This Row],[EF A1A3 '[kg CO₂-ekv.']]]*InputA1A3[[#This Row],[Omräkning till FU/DU (Skriv in värde, ej formel)]],"Värde Behövs"))) -> 0 | BZ43: =IF(ISBLANK(InputA1A3[[#This Row],[Anläggningsdel ]]),"",IF(ISBLANK(InputA1A3[[#This Row],[EPD - EF A4]]),FALSE,TRUE)) ->  | CA43: =IF(OR(ISBLANK(InputA1A3[[#This Row],[Enhet (bränsleförbrukning per km)]]),ISBLANK(InputA1A3[[#This Row],[*DU/FU (EF A4) för valt drivmedel (schablon)]])),"",IF(OR(InputA1A3[[#This Row],[Enhet (bränsleförbrukning per km)]]=InputA1A3[[#This Row],[*DU/FU (EF A4) för valt drivmedel (schablon)]],AND(InputA1A3[[#This Row],[Enhet (bränsleförbrukning per km)]]<>InputA1A3[[#This Row],[*DU/FU (EF A4) för valt drivmedel (schablon)]],ISNUMBER(InputA1A3[[#This Row],[Omräkningsfaktor (A4), (vid behov, värde eller formel)]]))),TRUE(),FALSE())) ->  | CB43: =IF(InputA1A3[[#This Row],[Enhet (bränsleförbrukning per km)]] =InputA1A3[[#This Row],[*DU/FU (EF A4) för valt drivmedel (schablon)]],TRUE,IF(ISBLANK(InputA1A3[[#This Row],[Omräkningsfaktor (A4), (vid behov, värde eller formel)]]),FALSE,TRUE)) -> TRUE | CC43: =IF(ISBLANK(InputA1A3[[#This Row],[EPD - EF A4]]),"",IF(ISBLANK(InputA1A3[[#This Row],[Omräkning till FU/DU (Skriv in värde, ej formel)]]),InputA1A3[[#This Row],[EPD - EF A4]]*InputA1A3[[#This Row],[Mängd A1A3]],InputA1A3[[#This Row],[Mängd A1A3]]*InputA1A3[[#This Row],[Omräkning till FU/DU (Skriv in värde, ej formel)]]*InputA1A3[[#This Row],[EPD - EF A4]])) ->  | CD43: =IF(ISBLANK(KontrollTabell[[#This Row],[True/False A4 - Alt 2]]),"",IF(KontrollTabell[[#This Row],[True/False A4 Enhet - Alt2]]=TRUE,InputA1A3[[#This Row],[Sträcka - totalt '[km'], (tur och retur, alla transporter)]]*InputA1A3[[#This Row],[(Bränsle-) Förbrukning per km]],"Sen då")) -> 0 | CE43: =SUM(KontrollTabell[[#This Row],[A4 - Resultat alt 1 '[kg']]:[A4 - Alt 2 - beräkning utsläpp]]) -> 0 | CF43: =IF(ISBLANK(InputA1A3[[#This Row],[EPD - EF A4]]),ISBLANK(#REF!),) -> FALSE | CG43: =IFERROR(IF(KontrollTabell[[#This Row],[True/False A5]]=FALSE(),"Enheter",IF(ISBLANK(InputA1A3[[#This Row],[Omräkningsfaktor (A5.2) (ange värde), (vid behov)]]),InputA1A3[[#This Row],[Mängd (A5.2)]]*InputA1A3[[#This Row],[*EF (A5.2) '[kg CO₂-ekv.']]],InputA1A3[[#This Row],[Mängd (A5.2)]]*InputA1A3[[#This Row],[*EF (A5.2) '[kg CO₂-ekv.']]]*InputA1A3[[#This Row],[Omräkningsfaktor (A5.2) (ange värde), (vid behov)]])),0) -> 0 | CH43: =IF(OR(ISBLANK(InputA1A3[[#This Row],[Enhet för mängd (A5.2)]]),ISBLANK(InputA1A3[[#This Row],[*DU/FU (EF A5.2)]])),"",IF(OR(InputA1A3[[#This Row],[Enhet för mängd (A5.2)]]=InputA1A3[[#This Row],[*DU/FU (EF A5.2)]],AND(InputA1A3[[#This Row],[Enhet för mängd (A5.2)]]<>InputA1A3[[#This Row],[*DU/FU (EF A5.2)]],ISNUMBER(InputA1A3[[#This Row],[Omräkningsfaktor (A5.2) (ange värde), (vid behov)]]))),TRUE,FALSE)) ->  | CI43: =IF(InputA1A3[[#This Row],[Enhet för mängd (A5.2)]] = InputA1A3[[#This Row],[*DU/FU (EF A5.2)]], TRUE, FALSE) -> TRUE | CJ43: =IF(OR(ISBLANK(InputA1A3[[#This Row],[Kategori (egen kategorisering)]])=FALSE,ISBLANK(InputA1A3[[#This Row],[Anläggningsdel ]]))=FALSE,TRUE,FALSE) -> FALSE | CK43: =IF(ISBLANK(InputA1A3[[#This Row],[Anläggningsdel ]]),"",IF(KontrollTabell[[#This Row],[TRUE/FALSE om kategori saknas.]] =FALSE,InputA1A3[[#This Row],[Kategori (egen kategorisering)]],"Kategori saknas")) -> 
J44: =IF(ISBLANK(InputA1A3[[#This Row],[Anläggningsdel ]]),"",IF(KontrollTabell[[#This Row],[True/False A1A3 Enhet]]=TRUE, "", InputA1A3[[#This Row],[FU/DU (EF A1A3)]] & "/" & InputA1A3[[#This Row],[Enhet Mängd (A1A3)]])) ->  | O44: =IF(ISBLANK(InputA1A3[[#This Row],[EPD - EF A4]]),"",InputA1A3[[#This Row],[FU/DU (EF A1A3)]]) ->  | S44: =IFERROR(INDEX(TabellEFDrivmedel[],MATCH(InputA1A3[[#This Row],[Drivmedel (A4) (endast förval ur lista)]],TabellEFDrivmedel[Drivmedel],0),4),"") ->  | W44: =IF(InputA1A3[[#This Row],[*DU/FU (EF A4) för valt drivmedel (schablon)]]="","",IF(KontrollTabell[[#This Row],[True/False A4 Enhet - Alt2]]=TRUE,"",IF(ISBLANK(InputA1A3[[#This Row],[*DU/FU (EF A4) för valt drivmedel (schablon)]]),,InputA1A3[[#This Row],[Enhet (bränsleförbrukning per km)]]& "/" & InputA1A3[[#This Row],[*DU/FU (EF A4) för valt drivmedel (schablon)]]))) ->  | AE44: =IFERROR(INDEX(TabellEFDrivmedel[],MATCH(InputA1A3[[#This Row],[Drivmedel (A5.2)]],TabellEFDrivmedel[Drivmedel],0),2),"") ->  | AF44: =IFERROR(INDEX(TabellEFDrivmedel[],MATCH(InputA1A3[[#This Row],[Drivmedel (A5.2)]],TabellEFDrivmedel[Drivmedel],0),4),"") ->  | AG44: =IF(KontrollTabell[[#This Row],[True/False A5 Enhet]]=TRUE, "", InputA1A3[[#This Row],[*DU/FU (EF A5.2)]] & "/" & InputA1A3[[#This Row],[Enhet för mängd (A5.2)]]) ->  | BV44: =IF(ISBLANK(InputA1A3[[#This Row],[Anläggningsdel ]]),FALSE,TRUE) -> FALSE | BW44: =IF(ISBLANK(InputA1A3[[#This Row],[Anläggningsdel ]]),"",IF(InputA1A3[[#This Row],[Enhet Mängd (A1A3)]] = InputA1A3[[#This Row],[FU/DU (EF A1A3)]], TRUE, FALSE)) ->  | BX44: =IF(KontrollTabell[[#This Row],[Finns anläggningsdel-namn.]]=FALSE,"",IF(KontrollTabell[[#This Row],[True/False A1A3 Enhet]]=TRUE,TRUE,IF(ISBLANK(InputA1A3[[#This Row],[Omräkning till FU/DU (Skriv in värde, ej formel)]]),FALSE,TRUE))) ->  | BY44: =IF(KontrollTabell[[#This Row],[Finns anläggningsdel-namn.]]=FALSE,,IF(KontrollTabell[[#This Row],[True/False A1A3 Enhet]]=TRUE,InputA1A3[[#This Row],[Mängd A1A3]]*InputA1A3[[#This Row],[EF A1A3 '[kg CO₂-ekv.']]],IF(KontrollTabell[[#This Row],[True/False A1A3 om A1A3 kan beräknas]]=TRUE,InputA1A3[[#This Row],[Mängd A1A3]]*InputA1A3[[#This Row],[EF A1A3 '[kg CO₂-ekv.']]]*InputA1A3[[#This Row],[Omräkning till FU/DU (Skriv in värde, ej formel)]],"Värde Behövs"))) -> 0 | BZ44: =IF(ISBLANK(InputA1A3[[#This Row],[Anläggningsdel ]]),"",IF(ISBLANK(InputA1A3[[#This Row],[EPD - EF A4]]),FALSE,TRUE)) ->  | CA44: =IF(OR(ISBLANK(InputA1A3[[#This Row],[Enhet (bränsleförbrukning per km)]]),ISBLANK(InputA1A3[[#This Row],[*DU/FU (EF A4) för valt drivmedel (schablon)]])),"",IF(OR(InputA1A3[[#This Row],[Enhet (bränsleförbrukning per km)]]=InputA1A3[[#This Row],[*DU/FU (EF A4) för valt drivmedel (schablon)]],AND(InputA1A3[[#This Row],[Enhet (bränsleförbrukning per km)]]<>InputA1A3[[#This Row],[*DU/FU (EF A4) för valt drivmedel (schablon)]],ISNUMBER(InputA1A3[[#This Row],[Omräkningsfaktor (A4), (vid behov, värde eller formel)]]))),TRUE(),FALSE())) ->  | CB44: =IF(InputA1A3[[#This Row],[Enhet (bränsleförbrukning per km)]] =InputA1A3[[#This Row],[*DU/FU (EF A4) för valt drivmedel (schablon)]],TRUE,IF(ISBLANK(InputA1A3[[#This Row],[Omräkningsfaktor (A4), (vid behov, värde eller formel)]]),FALSE,TRUE)) -> TRUE | CC44: =IF(ISBLANK(InputA1A3[[#This Row],[EPD - EF A4]]),"",IF(ISBLANK(InputA1A3[[#This Row],[Omräkning till FU/DU (Skriv in värde, ej formel)]]),InputA1A3[[#This Row],[EPD - EF A4]]*InputA1A3[[#This Row],[Mängd A1A3]],InputA1A3[[#This Row],[Mängd A1A3]]*InputA1A3[[#This Row],[Omräkning till FU/DU (Skriv in värde, ej formel)]]*InputA1A3[[#This Row],[EPD - EF A4]])) ->  | CD44: =IF(ISBLANK(KontrollTabell[[#This Row],[True/False A4 - Alt 2]]),"",IF(KontrollTabell[[#This Row],[True/False A4 Enhet - Alt2]]=TRUE,InputA1A3[[#This Row],[Sträcka - totalt '[km'], (tur och retur, alla transporter)]]*InputA1A3[[#This Row],[(Bränsle-) Förbrukning per km]],"Sen då")) -> 0 | CE44: =SUM(KontrollTabell[[#This Row],[A4 - Resultat alt 1 '[kg']]:[A4 - Alt 2 - beräkning utsläpp]]) -> 0 | CF44: =IF(ISBLANK(InputA1A3[[#This Row],[EPD - EF A4]]),ISBLANK(#REF!),) -> FALSE | CG44: =IFERROR(IF(KontrollTabell[[#This Row],[True/False A5]]=FALSE(),"Enheter",IF(ISBLANK(InputA1A3[[#This Row],[Omräkningsfaktor (A5.2) (ange värde), (vid behov)]]),InputA1A3[[#This Row],[Mängd (A5.2)]]*InputA1A3[[#This Row],[*EF (A5.2) '[kg CO₂-ekv.']]],InputA1A3[[#This Row],[Mängd (A5.2)]]*InputA1A3[[#This Row],[*EF (A5.2) '[kg CO₂-ekv.']]]*InputA1A3[[#This Row],[Omräkningsfaktor (A5.2) (ange värde), (vid behov)]])),0) -> 0 | CH44: =IF(OR(ISBLANK(InputA1A3[[#This Row],[Enhet för mängd (A5.2)]]),ISBLANK(InputA1A3[[#This Row],[*DU/FU (EF A5.2)]])),"",IF(OR(InputA1A3[[#This Row],[Enhet för mängd (A5.2)]]=InputA1A3[[#This Row],[*DU/FU (EF A5.2)]],AND(InputA1A3[[#This Row],[Enhet för mängd (A5.2)]]<>InputA1A3[[#This Row],[*DU/FU (EF A5.2)]],ISNUMBER(InputA1A3[[#This Row],[Omräkningsfaktor (A5.2) (ange värde), (vid behov)]]))),TRUE,FALSE)) ->  | CI44: =IF(InputA1A3[[#This Row],[Enhet för mängd (A5.2)]] = InputA1A3[[#This Row],[*DU/FU (EF A5.2)]], TRUE, FALSE) -> TRUE | CJ44: =IF(OR(ISBLANK(InputA1A3[[#This Row],[Kategori (egen kategorisering)]])=FALSE,ISBLANK(InputA1A3[[#This Row],[Anläggningsdel ]]))=FALSE,TRUE,FALSE) -> FALSE | CK44: =IF(ISBLANK(InputA1A3[[#This Row],[Anläggningsdel ]]),"",IF(KontrollTabell[[#This Row],[TRUE/FALSE om kategori saknas.]] =FALSE,InputA1A3[[#This Row],[Kategori (egen kategorisering)]],"Kategori saknas")) -> 
J45: =IF(ISBLANK(InputA1A3[[#This Row],[Anläggningsdel ]]),"",IF(KontrollTabell[[#This Row],[True/False A1A3 Enhet]]=TRUE, "", InputA1A3[[#This Row],[FU/DU (EF A1A3)]] & "/" & InputA1A3[[#This Row],[Enhet Mängd (A1A3)]])) ->  | O45: =IF(ISBLANK(InputA1A3[[#This Row],[EPD - EF A4]]),"",InputA1A3[[#This Row],[FU/DU (EF A1A3)]]) ->  | S45: =IFERROR(INDEX(TabellEFDrivmedel[],MATCH(InputA1A3[[#This Row],[Drivmedel (A4) (endast förval ur lista)]],TabellEFDrivmedel[Drivmedel],0),4),"") ->  | W45: =IF(InputA1A3[[#This Row],[*DU/FU (EF A4) för valt drivmedel (schablon)]]="","",IF(KontrollTabell[[#This Row],[True/False A4 Enhet - Alt2]]=TRUE,"",IF(ISBLANK(InputA1A3[[#This Row],[*DU/FU (EF A4) för valt drivmedel (schablon)]]),,InputA1A3[[#This Row],[Enhet (bränsleförbrukning per km)]]& "/" & InputA1A3[[#This Row],[*DU/FU (EF A4) för valt drivmedel (schablon)]]))) ->  | AE45: =IFERROR(INDEX(TabellEFDrivmedel[],MATCH(InputA1A3[[#This Row],[Drivmedel (A5.2)]],TabellEFDrivmedel[Drivmedel],0),2),"") ->  | AF45: =IFERROR(INDEX(TabellEFDrivmedel[],MATCH(InputA1A3[[#This Row],[Drivmedel (A5.2)]],TabellEFDrivmedel[Drivmedel],0),4),"") ->  | AG45: =IF(KontrollTabell[[#This Row],[True/False A5 Enhet]]=TRUE, "", InputA1A3[[#This Row],[*DU/FU (EF A5.2)]] & "/" & InputA1A3[[#This Row],[Enhet för mängd (A5.2)]]) ->  | BV45: =IF(ISBLANK(InputA1A3[[#This Row],[Anläggningsdel ]]),FALSE,TRUE) -> FALSE | BW45: =IF(ISBLANK(InputA1A3[[#This Row],[Anläggningsdel ]]),"",IF(InputA1A3[[#This Row],[Enhet Mängd (A1A3)]] = InputA1A3[[#This Row],[FU/DU (EF A1A3)]], TRUE, FALSE)) ->  | BX45: =IF(KontrollTabell[[#This Row],[Finns anläggningsdel-namn.]]=FALSE,"",IF(KontrollTabell[[#This Row],[True/False A1A3 Enhet]]=TRUE,TRUE,IF(ISBLANK(InputA1A3[[#This Row],[Omräkning till FU/DU (Skriv in värde, ej formel)]]),FALSE,TRUE))) ->  | BY45: =IF(KontrollTabell[[#This Row],[Finns anläggningsdel-namn.]]=FALSE,,IF(KontrollTabell[[#This Row],[True/False A1A3 Enhet]]=TRUE,InputA1A3[[#This Row],[Mängd A1A3]]*InputA1A3[[#This Row],[EF A1A3 '[kg CO₂-ekv.']]],IF(KontrollTabell[[#This Row],[True/False A1A3 om A1A3 kan beräknas]]=TRUE,InputA1A3[[#This Row],[Mängd A1A3]]*InputA1A3[[#This Row],[EF A1A3 '[kg CO₂-ekv.']]]*InputA1A3[[#This Row],[Omräkning till FU/DU (Skriv in värde, ej formel)]],"Värde Behövs"))) -> 0 | BZ45: =IF(ISBLANK(InputA1A3[[#This Row],[Anläggningsdel ]]),"",IF(ISBLANK(InputA1A3[[#This Row],[EPD - EF A4]]),FALSE,TRUE)) ->  | CA45: =IF(OR(ISBLANK(InputA1A3[[#This Row],[Enhet (bränsleförbrukning per km)]]),ISBLANK(InputA1A3[[#This Row],[*DU/FU (EF A4) för valt drivmedel (schablon)]])),"",IF(OR(InputA1A3[[#This Row],[Enhet (bränsleförbrukning per km)]]=InputA1A3[[#This Row],[*DU/FU (EF A4) för valt drivmedel (schablon)]],AND(InputA1A3[[#This Row],[Enhet (bränsleförbrukning per km)]]<>InputA1A3[[#This Row],[*DU/FU (EF A4) för valt drivmedel (schablon)]],ISNUMBER(InputA1A3[[#This Row],[Omräkningsfaktor (A4), (vid behov, värde eller formel)]]))),TRUE(),FALSE())) ->  | CB45: =IF(InputA1A3[[#This Row],[Enhet (bränsleförbrukning per km)]] =InputA1A3[[#This Row],[*DU/FU (EF A4) för valt drivmedel (schablon)]],TRUE,IF(ISBLANK(InputA1A3[[#This Row],[Omräkningsfaktor (A4), (vid behov, värde eller formel)]]),FALSE,TRUE)) -> TRUE | CC45: =IF(ISBLANK(InputA1A3[[#This Row],[EPD - EF A4]]),"",IF(ISBLANK(InputA1A3[[#This Row],[Omräkning till FU/DU (Skriv in värde, ej formel)]]),InputA1A3[[#This Row],[EPD - EF A4]]*InputA1A3[[#This Row],[Mängd A1A3]],InputA1A3[[#This Row],[Mängd A1A3]]*InputA1A3[[#This Row],[Omräkning till FU/DU (Skriv in värde, ej formel)]]*InputA1A3[[#This Row],[EPD - EF A4]])) ->  | CD45: =IF(ISBLANK(KontrollTabell[[#This Row],[True/False A4 - Alt 2]]),"",IF(KontrollTabell[[#This Row],[True/False A4 Enhet - Alt2]]=TRUE,InputA1A3[[#This Row],[Sträcka - totalt '[km'], (tur och retur, alla transporter)]]*InputA1A3[[#This Row],[(Bränsle-) Förbrukning per km]],"Sen då")) -> 0 | CE45: =SUM(KontrollTabell[[#This Row],[A4 - Resultat alt 1 '[kg']]:[A4 - Alt 2 - beräkning utsläpp]]) -> 0 | CF45: =IF(ISBLANK(InputA1A3[[#This Row],[EPD - EF A4]]),ISBLANK(#REF!),) -> FALSE | CG45: =IFERROR(IF(KontrollTabell[[#This Row],[True/False A5]]=FALSE(),"Enheter",IF(ISBLANK(InputA1A3[[#This Row],[Omräkningsfaktor (A5.2) (ange värde), (vid behov)]]),InputA1A3[[#This Row],[Mängd (A5.2)]]*InputA1A3[[#This Row],[*EF (A5.2) '[kg CO₂-ekv.']]],InputA1A3[[#This Row],[Mängd (A5.2)]]*InputA1A3[[#This Row],[*EF (A5.2) '[kg CO₂-ekv.']]]*InputA1A3[[#This Row],[Omräkningsfaktor (A5.2) (ange värde), (vid behov)]])),0) -> 0 | CH45: =IF(OR(ISBLANK(InputA1A3[[#This Row],[Enhet för mängd (A5.2)]]),ISBLANK(InputA1A3[[#This Row],[*DU/FU (EF A5.2)]])),"",IF(OR(InputA1A3[[#This Row],[Enhet för mängd (A5.2)]]=InputA1A3[[#This Row],[*DU/FU (EF A5.2)]],AND(InputA1A3[[#This Row],[Enhet för mängd (A5.2)]]<>InputA1A3[[#This Row],[*DU/FU (EF A5.2)]],ISNUMBER(InputA1A3[[#This Row],[Omräkningsfaktor (A5.2) (ange värde), (vid behov)]]))),TRUE,FALSE)) ->  | CI45: =IF(InputA1A3[[#This Row],[Enhet för mängd (A5.2)]] = InputA1A3[[#This Row],[*DU/FU (EF A5.2)]], TRUE, FALSE) -> TRUE | CJ45: =IF(OR(ISBLANK(InputA1A3[[#This Row],[Kategori (egen kategorisering)]])=FALSE,ISBLANK(InputA1A3[[#This Row],[Anläggningsdel ]]))=FALSE,TRUE,FALSE) -> FALSE | CK45: =IF(ISBLANK(InputA1A3[[#This Row],[Anläggningsdel ]]),"",IF(KontrollTabell[[#This Row],[TRUE/FALSE om kategori saknas.]] =FALSE,InputA1A3[[#This Row],[Kategori (egen kategorisering)]],"Kategori saknas")) -> 
J46: =IF(ISBLANK(InputA1A3[[#This Row],[Anläggningsdel ]]),"",IF(KontrollTabell[[#This Row],[True/False A1A3 Enhet]]=TRUE, "", InputA1A3[[#This Row],[FU/DU (EF A1A3)]] & "/" & InputA1A3[[#This Row],[Enhet Mängd (A1A3)]])) ->  | O46: =IF(ISBLANK(InputA1A3[[#This Row],[EPD - EF A4]]),"",InputA1A3[[#This Row],[FU/DU (EF A1A3)]]) ->  | S46: =IFERROR(INDEX(TabellEFDrivmedel[],MATCH(InputA1A3[[#This Row],[Drivmedel (A4) (endast förval ur lista)]],TabellEFDrivmedel[Drivmedel],0),4),"") ->  | W46: =IF(InputA1A3[[#This Row],[*DU/FU (EF A4) för valt drivmedel (schablon)]]="","",IF(KontrollTabell[[#This Row],[True/False A4 Enhet - Alt2]]=TRUE,"",IF(ISBLANK(InputA1A3[[#This Row],[*DU/FU (EF A4) för valt drivmedel (schablon)]]),,InputA1A3[[#This Row],[Enhet (bränsleförbrukning per km)]]& "/" & InputA1A3[[#This Row],[*DU/FU (EF A4) för valt drivmedel (schablon)]]))) ->  | AE46: =IFERROR(INDEX(TabellEFDrivmedel[],MATCH(InputA1A3[[#This Row],[Drivmedel (A5.2)]],TabellEFDrivmedel[Drivmedel],0),2),"") ->  | AF46: =IFERROR(INDEX(TabellEFDrivmedel[],MATCH(InputA1A3[[#This Row],[Drivmedel (A5.2)]],TabellEFDrivmedel[Drivmedel],0),4),"") ->  | AG46: =IF(KontrollTabell[[#This Row],[True/False A5 Enhet]]=TRUE, "", InputA1A3[[#This Row],[*DU/FU (EF A5.2)]] & "/" & InputA1A3[[#This Row],[Enhet för mängd (A5.2)]]) ->  | BV46: =IF(ISBLANK(InputA1A3[[#This Row],[Anläggningsdel ]]),FALSE,TRUE) -> FALSE | BW46: =IF(ISBLANK(InputA1A3[[#This Row],[Anläggningsdel ]]),"",IF(InputA1A3[[#This Row],[Enhet Mängd (A1A3)]] = InputA1A3[[#This Row],[FU/DU (EF A1A3)]], TRUE, FALSE)) ->  | BX46: =IF(KontrollTabell[[#This Row],[Finns anläggningsdel-namn.]]=FALSE,"",IF(KontrollTabell[[#This Row],[True/False A1A3 Enhet]]=TRUE,TRUE,IF(ISBLANK(InputA1A3[[#This Row],[Omräkning till FU/DU (Skriv in värde, ej formel)]]),FALSE,TRUE))) ->  | BY46: =IF(KontrollTabell[[#This Row],[Finns anläggningsdel-namn.]]=FALSE,,IF(KontrollTabell[[#This Row],[True/False A1A3 Enhet]]=TRUE,InputA1A3[[#This Row],[Mängd A1A3]]*InputA1A3[[#This Row],[EF A1A3 '[kg CO₂-ekv.']]],IF(KontrollTabell[[#This Row],[True/False A1A3 om A1A3 kan beräknas]]=TRUE,InputA1A3[[#This Row],[Mängd A1A3]]*InputA1A3[[#This Row],[EF A1A3 '[kg CO₂-ekv.']]]*InputA1A3[[#This Row],[Omräkning till FU/DU (Skriv in värde, ej formel)]],"Värde Behövs"))) -> 0 | BZ46: =IF(ISBLANK(InputA1A3[[#This Row],[Anläggningsdel ]]),"",IF(ISBLANK(InputA1A3[[#This Row],[EPD - EF A4]]),FALSE,TRUE)) ->  | CA46: =IF(OR(ISBLANK(InputA1A3[[#This Row],[Enhet (bränsleförbrukning per km)]]),ISBLANK(InputA1A3[[#This Row],[*DU/FU (EF A4) för valt drivmedel (schablon)]])),"",IF(OR(InputA1A3[[#This Row],[Enhet (bränsleförbrukning per km)]]=InputA1A3[[#This Row],[*DU/FU (EF A4) för valt drivmedel (schablon)]],AND(InputA1A3[[#This Row],[Enhet (bränsleförbrukning per km)]]<>InputA1A3[[#This Row],[*DU/FU (EF A4) för valt drivmedel (schablon)]],ISNUMBER(InputA1A3[[#This Row],[Omräkningsfaktor (A4), (vid behov, värde eller formel)]]))),TRUE(),FALSE())) ->  | CB46: =IF(InputA1A3[[#This Row],[Enhet (bränsleförbrukning per km)]] =InputA1A3[[#This Row],[*DU/FU (EF A4) för valt drivmedel (schablon)]],TRUE,IF(ISBLANK(InputA1A3[[#This Row],[Omräkningsfaktor (A4), (vid behov, värde eller formel)]]),FALSE,TRUE)) -> TRUE | CC46: =IF(ISBLANK(InputA1A3[[#This Row],[EPD - EF A4]]),"",IF(ISBLANK(InputA1A3[[#This Row],[Omräkning till FU/DU (Skriv in värde, ej formel)]]),InputA1A3[[#This Row],[EPD - EF A4]]*InputA1A3[[#This Row],[Mängd A1A3]],InputA1A3[[#This Row],[Mängd A1A3]]*InputA1A3[[#This Row],[Omräkning till FU/DU (Skriv in värde, ej formel)]]*InputA1A3[[#This Row],[EPD - EF A4]])) ->  | CD46: =IF(ISBLANK(KontrollTabell[[#This Row],[True/False A4 - Alt 2]]),"",IF(KontrollTabell[[#This Row],[True/False A4 Enhet - Alt2]]=TRUE,InputA1A3[[#This Row],[Sträcka - totalt '[km'], (tur och retur, alla transporter)]]*InputA1A3[[#This Row],[(Bränsle-) Förbrukning per km]],"Sen då")) -> 0 | CE46: =SUM(KontrollTabell[[#This Row],[A4 - Resultat alt 1 '[kg']]:[A4 - Alt 2 - beräkning utsläpp]]) -> 0 | CF46: =IF(ISBLANK(InputA1A3[[#This Row],[EPD - EF A4]]),ISBLANK(#REF!),) -> FALSE | CG46: =IFERROR(IF(KontrollTabell[[#This Row],[True/False A5]]=FALSE(),"Enheter",IF(ISBLANK(InputA1A3[[#This Row],[Omräkningsfaktor (A5.2) (ange värde), (vid behov)]]),InputA1A3[[#This Row],[Mängd (A5.2)]]*InputA1A3[[#This Row],[*EF (A5.2) '[kg CO₂-ekv.']]],InputA1A3[[#This Row],[Mängd (A5.2)]]*InputA1A3[[#This Row],[*EF (A5.2) '[kg CO₂-ekv.']]]*InputA1A3[[#This Row],[Omräkningsfaktor (A5.2) (ange värde), (vid behov)]])),0) -> 0 | CH46: =IF(OR(ISBLANK(InputA1A3[[#This Row],[Enhet för mängd (A5.2)]]),ISBLANK(InputA1A3[[#This Row],[*DU/FU (EF A5.2)]])),"",IF(OR(InputA1A3[[#This Row],[Enhet för mängd (A5.2)]]=InputA1A3[[#This Row],[*DU/FU (EF A5.2)]],AND(InputA1A3[[#This Row],[Enhet för mängd (A5.2)]]<>InputA1A3[[#This Row],[*DU/FU (EF A5.2)]],ISNUMBER(InputA1A3[[#This Row],[Omräkningsfaktor (A5.2) (ange värde), (vid behov)]]))),TRUE,FALSE)) ->  | CI46: =IF(InputA1A3[[#This Row],[Enhet för mängd (A5.2)]] = InputA1A3[[#This Row],[*DU/FU (EF A5.2)]], TRUE, FALSE) -> TRUE | CJ46: =IF(OR(ISBLANK(InputA1A3[[#This Row],[Kategori (egen kategorisering)]])=FALSE,ISBLANK(InputA1A3[[#This Row],[Anläggningsdel ]]))=FALSE,TRUE,FALSE) -> FALSE | CK46: =IF(ISBLANK(InputA1A3[[#This Row],[Anläggningsdel ]]),"",IF(KontrollTabell[[#This Row],[TRUE/FALSE om kategori saknas.]] =FALSE,InputA1A3[[#This Row],[Kategori (egen kategorisering)]],"Kategori saknas")) -> 
J47: =IF(ISBLANK(InputA1A3[[#This Row],[Anläggningsdel ]]),"",IF(KontrollTabell[[#This Row],[True/False A1A3 Enhet]]=TRUE, "", InputA1A3[[#This Row],[FU/DU (EF A1A3)]] & "/" & InputA1A3[[#This Row],[Enhet Mängd (A1A3)]])) ->  | O47: =IF(ISBLANK(InputA1A3[[#This Row],[EPD - EF A4]]),"",InputA1A3[[#This Row],[FU/DU (EF A1A3)]]) ->  | S47: =IFERROR(INDEX(TabellEFDrivmedel[],MATCH(InputA1A3[[#This Row],[Drivmedel (A4) (endast förval ur lista)]],TabellEFDrivmedel[Drivmedel],0),4),"") ->  | W47: =IF(InputA1A3[[#This Row],[*DU/FU (EF A4) för valt drivmedel (schablon)]]="","",IF(KontrollTabell[[#This Row],[True/False A4 Enhet - Alt2]]=TRUE,"",IF(ISBLANK(InputA1A3[[#This Row],[*DU/FU (EF A4) för valt drivmedel (schablon)]]),,InputA1A3[[#This Row],[Enhet (bränsleförbrukning per km)]]& "/" & InputA1A3[[#This Row],[*DU/FU (EF A4) för valt drivmedel (schablon)]]))) ->  | AE47: =IFERROR(INDEX(TabellEFDrivmedel[],MATCH(InputA1A3[[#This Row],[Drivmedel (A5.2)]],TabellEFDrivmedel[Drivmedel],0),2),"") ->  | AF47: =IFERROR(INDEX(TabellEFDrivmedel[],MATCH(InputA1A3[[#This Row],[Drivmedel (A5.2)]],TabellEFDrivmedel[Drivmedel],0),4),"") ->  | AG47: =IF(KontrollTabell[[#This Row],[True/False A5 Enhet]]=TRUE, "", InputA1A3[[#This Row],[*DU/FU (EF A5.2)]] & "/" & InputA1A3[[#This Row],[Enhet för mängd (A5.2)]]) ->  | BV47: =IF(ISBLANK(InputA1A3[[#This Row],[Anläggningsdel ]]),FALSE,TRUE) -> FALSE | BW47: =IF(ISBLANK(InputA1A3[[#This Row],[Anläggningsdel ]]),"",IF(InputA1A3[[#This Row],[Enhet Mängd (A1A3)]] = InputA1A3[[#This Row],[FU/DU (EF A1A3)]], TRUE, FALSE)) ->  | BX47: =IF(KontrollTabell[[#This Row],[Finns anläggningsdel-namn.]]=FALSE,"",IF(KontrollTabell[[#This Row],[True/False A1A3 Enhet]]=TRUE,TRUE,IF(ISBLANK(InputA1A3[[#This Row],[Omräkning till FU/DU (Skriv in värde, ej formel)]]),FALSE,TRUE))) ->  | BY47: =IF(KontrollTabell[[#This Row],[Finns anläggningsdel-namn.]]=FALSE,,IF(KontrollTabell[[#This Row],[True/False A1A3 Enhet]]=TRUE,InputA1A3[[#This Row],[Mängd A1A3]]*InputA1A3[[#This Row],[EF A1A3 '[kg CO₂-ekv.']]],IF(KontrollTabell[[#This Row],[True/False A1A3 om A1A3 kan beräknas]]=TRUE,InputA1A3[[#This Row],[Mängd A1A3]]*InputA1A3[[#This Row],[EF A1A3 '[kg CO₂-ekv.']]]*InputA1A3[[#This Row],[Omräkning till FU/DU (Skriv in värde, ej formel)]],"Värde Behövs"))) -> 0 | BZ47: =IF(ISBLANK(InputA1A3[[#This Row],[Anläggningsdel ]]),"",IF(ISBLANK(InputA1A3[[#This Row],[EPD - EF A4]]),FALSE,TRUE)) ->  | CA47: =IF(OR(ISBLANK(InputA1A3[[#This Row],[Enhet (bränsleförbrukning per km)]]),ISBLANK(InputA1A3[[#This Row],[*DU/FU (EF A4) för valt drivmedel (schablon)]])),"",IF(OR(InputA1A3[[#This Row],[Enhet (bränsleförbrukning per km)]]=InputA1A3[[#This Row],[*DU/FU (EF A4) för valt drivmedel (schablon)]],AND(InputA1A3[[#This Row],[Enhet (bränsleförbrukning per km)]]<>InputA1A3[[#This Row],[*DU/FU (EF A4) för valt drivmedel (schablon)]],ISNUMBER(InputA1A3[[#This Row],[Omräkningsfaktor (A4), (vid behov, värde eller formel)]]))),TRUE(),FALSE())) ->  | CB47: =IF(InputA1A3[[#This Row],[Enhet (bränsleförbrukning per km)]] =InputA1A3[[#This Row],[*DU/FU (EF A4) för valt drivmedel (schablon)]],TRUE,IF(ISBLANK(InputA1A3[[#This Row],[Omräkningsfaktor (A4), (vid behov, värde eller formel)]]),FALSE,TRUE)) -> TRUE | CC47: =IF(ISBLANK(InputA1A3[[#This Row],[EPD - EF A4]]),"",IF(ISBLANK(InputA1A3[[#This Row],[Omräkning till FU/DU (Skriv in värde, ej formel)]]),InputA1A3[[#This Row],[EPD - EF A4]]*InputA1A3[[#This Row],[Mängd A1A3]],InputA1A3[[#This Row],[Mängd A1A3]]*InputA1A3[[#This Row],[Omräkning till FU/DU (Skriv in värde, ej formel)]]*InputA1A3[[#This Row],[EPD - EF A4]])) ->  | CD47: =IF(ISBLANK(KontrollTabell[[#This Row],[True/False A4 - Alt 2]]),"",IF(KontrollTabell[[#This Row],[True/False A4 Enhet - Alt2]]=TRUE,InputA1A3[[#This Row],[Sträcka - totalt '[km'], (tur och retur, alla transporter)]]*InputA1A3[[#This Row],[(Bränsle-) Förbrukning per km]],"Sen då")) -> 0 | CE47: =SUM(KontrollTabell[[#This Row],[A4 - Resultat alt 1 '[kg']]:[A4 - Alt 2 - beräkning utsläpp]]) -> 0 | CF47: =IF(ISBLANK(InputA1A3[[#This Row],[EPD - EF A4]]),ISBLANK(#REF!),) -> FALSE | CG47: =IFERROR(IF(KontrollTabell[[#This Row],[True/False A5]]=FALSE(),"Enheter",IF(ISBLANK(InputA1A3[[#This Row],[Omräkningsfaktor (A5.2) (ange värde), (vid behov)]]),InputA1A3[[#This Row],[Mängd (A5.2)]]*InputA1A3[[#This Row],[*EF (A5.2) '[kg CO₂-ekv.']]],InputA1A3[[#This Row],[Mängd (A5.2)]]*InputA1A3[[#This Row],[*EF (A5.2) '[kg CO₂-ekv.']]]*InputA1A3[[#This Row],[Omräkningsfaktor (A5.2) (ange värde), (vid behov)]])),0) -> 0 | CH47: =IF(OR(ISBLANK(InputA1A3[[#This Row],[Enhet för mängd (A5.2)]]),ISBLANK(InputA1A3[[#This Row],[*DU/FU (EF A5.2)]])),"",IF(OR(InputA1A3[[#This Row],[Enhet för mängd (A5.2)]]=InputA1A3[[#This Row],[*DU/FU (EF A5.2)]],AND(InputA1A3[[#This Row],[Enhet för mängd (A5.2)]]<>InputA1A3[[#This Row],[*DU/FU (EF A5.2)]],ISNUMBER(InputA1A3[[#This Row],[Omräkningsfaktor (A5.2) (ange värde), (vid behov)]]))),TRUE,FALSE)) ->  | CI47: =IF(InputA1A3[[#This Row],[Enhet för mängd (A5.2)]] = InputA1A3[[#This Row],[*DU/FU (EF A5.2)]], TRUE, FALSE) -> TRUE | CJ47: =IF(OR(ISBLANK(InputA1A3[[#This Row],[Kategori (egen kategorisering)]])=FALSE,ISBLANK(InputA1A3[[#This Row],[Anläggningsdel ]]))=FALSE,TRUE,FALSE) -> FALSE | CK47: =IF(ISBLANK(InputA1A3[[#This Row],[Anläggningsdel ]]),"",IF(KontrollTabell[[#This Row],[TRUE/FALSE om kategori saknas.]] =FALSE,InputA1A3[[#This Row],[Kategori (egen kategorisering)]],"Kategori saknas")) -> 
AE48: =IFERROR(INDEX(TabellEFDrivmedel[],MATCH(InputA1A3[[#This Row],[Drivmedel (A5.2)]],TabellEFDrivmedel[Drivmedel],0),2),"") ->  | AF48: =IFERROR(INDEX(TabellEFDrivmedel[],MATCH(InputA1A3[[#This Row],[Drivmedel (A5.2)]],TabellEFDrivmedel[Drivmedel],0),4),"") -> 
B49: Fyll ej i sista raden i tabellen, lägg till rader först!
R54: =IFERROR(INDEX(TabellEFDrivmedel[],MATCH(InputA1A3[[#This Row],[Drivmedel (A4) (endast förval ur lista)]],TabellEFDrivmedel[Drivmedel],0),2),"") -> 
R55: =IFERROR(INDEX(TabellEFDrivmedel[],MATCH(InputA1A3[[#This Row],[Drivmedel (A4) (endast förval ur lista)]],TabellEFDrivmedel[Drivmedel],0),2),"") -> 
R56: =IFERROR(INDEX(TabellEFDrivmedel[],MATCH(InputA1A3[[#This Row],[Drivmedel (A4) (endast förval ur lista)]],TabellEFDrivmedel[Drivmedel],0),2),"") -> 

Sheet Kommentarer
B3: Här kan ange mer utförliggare kommentarer till anläggningsdelarna
B5: Färgförklaringar: | C5: Text med denna färg autofylls från input-fliken - ändra den inte.
B7: Anläggningsdel | C7: Kommentar | D7: Uförlig kommentar | E7: Kommentar ang omräkningsfaktorerna | F7: Kommentar ang emissionsfaktorer som används, t ex källa, m.m.
B8: =IF(INDEX(InputA1A3[Anläggningsdel ],ROW()-ROW(TblKommentar[#Headers]))="","",INDEX(InputA1A3[Anläggningsdel ], ROW()-ROW(TblKommentar[#Headers]))) -> tewwst | C8: =IF(INDEX(InputA1A3[Kommentar],ROW()-ROW(TblKommentar[#Headers]))="","",INDEX(InputA1A3[Kommentar], ROW()-ROW(TblKommentar[#Headers]))) -> test
B9: =IF(INDEX(InputA1A3[Anläggningsdel ],ROW()-ROW(TblKommentar[#Headers]))="","",INDEX(InputA1A3[Anläggningsdel ], ROW()-ROW(TblKommentar[#Headers]))) -> agrae | C9: =IF(INDEX(InputA1A3[Kommentar],ROW()-ROW(TblKommentar[#Headers]))="","",INDEX(InputA1A3[Kommentar], ROW()-ROW(TblKommentar[#Headers]))) -> test
B10: =IF(INDEX(InputA1A3[Anläggningsdel ],ROW()-ROW(TblKommentar[#Headers]))="","",INDEX(InputA1A3[Anläggningsdel ], ROW()-ROW(TblKommentar[#Headers]))) -> agreg | C10: =IF(INDEX(InputA1A3[Kommentar],ROW()-ROW(TblKommentar[#Headers]))="","",INDEX(InputA1A3[Kommentar], ROW()-ROW(TblKommentar[#Headers]))) -> test
B11: =IF(INDEX(InputA1A3[Anläggningsdel ],ROW()-ROW(TblKommentar[#Headers]))="","",INDEX(InputA1A3[Anläggningsdel ], ROW()-ROW(TblKommentar[#Headers]))) -> f | C11: =IF(INDEX(InputA1A3[Kommentar],ROW()-ROW(TblKommentar[#Headers]))="","",INDEX(InputA1A3[Kommentar], ROW()-ROW(TblKommentar[#Headers]))) -> 
B12: =IF(INDEX(InputA1A3[Anläggningsdel ],ROW()-ROW(TblKommentar[#Headers]))="","",INDEX(InputA1A3[Anläggningsdel ], ROW()-ROW(TblKommentar[#Headers]))) -> fg | C12: =IF(INDEX(InputA1A3[Kommentar],ROW()-ROW(TblKommentar[#Headers]))="","",INDEX(InputA1A3[Kommentar], ROW()-ROW(TblKommentar[#Headers]))) -> 
B13: =IF(INDEX(InputA1A3[Anläggningsdel ],ROW()-ROW(TblKommentar[#Headers]))="","",INDEX(InputA1A3[Anläggningsdel ], ROW()-ROW(TblKommentar[#Headers]))) -> agh | C13: =IF(INDEX(InputA1A3[Kommentar],ROW()-ROW(TblKommentar[#Headers]))="","",INDEX(InputA1A3[Kommentar], ROW()-ROW(TblKommentar[#Headers]))) -> 
B14: =IF(INDEX(InputA1A3[Anläggningsdel ],ROW()-ROW(TblKommentar[#Headers]))="","",INDEX(InputA1A3[Anläggningsdel ], ROW()-ROW(TblKommentar[#Headers]))) -> ggq | C14: =IF(INDEX(InputA1A3[Kommentar],ROW()-ROW(TblKommentar[#Headers]))="","",INDEX(InputA1A3[Kommentar], ROW()-ROW(TblKommentar[#Headers]))) -> 
B15: =IF(INDEX(InputA1A3[Anläggningsdel ],ROW()-ROW(TblKommentar[#Headers]))="","",INDEX(InputA1A3[Anläggningsdel ], ROW()-ROW(TblKommentar[#Headers]))) -> Test A4_1 | C15: =IF(INDEX(InputA1A3[Kommentar],ROW()-ROW(TblKommentar[#Headers]))="","",INDEX(InputA1A3[Kommentar], ROW()-ROW(TblKommentar[#Headers]))) -> 
B16: =IF(INDEX(InputA1A3[Anläggningsdel ],ROW()-ROW(TblKommentar[#Headers]))="","",INDEX(InputA1A3[Anläggningsdel ], ROW()-ROW(TblKommentar[#Headers]))) ->  | C16: =IF(INDEX(InputA1A3[Kommentar],ROW()-ROW(TblKommentar[#Headers]))="","",INDEX(InputA1A3[Kommentar], ROW()-ROW(TblKommentar[#Headers]))) -> 
B17: =IF(INDEX(InputA1A3[Anläggningsdel ],ROW()-ROW(TblKommentar[#Headers]))="","",INDEX(InputA1A3[Anläggningsdel ], ROW()-ROW(TblKommentar[#Headers]))) ->  | C17: =IF(INDEX(InputA1A3[Kommentar],ROW()-ROW(TblKommentar[#Headers]))="","",INDEX(InputA1A3[Kommentar], ROW()-ROW(TblKommentar[#Headers]))) -> 
B18: =IF(INDEX(InputA1A3[Anläggningsdel ],ROW()-ROW(TblKommentar[#Headers]))="","",INDEX(InputA1A3[Anläggningsdel ], ROW()-ROW(TblKommentar[#Headers]))) ->  | C18: =IF(INDEX(InputA1A3[Kommentar],ROW()-ROW(TblKommentar[#Headers]))="","",INDEX(InputA1A3[Kommentar], ROW()-ROW(TblKommentar[#Headers]))) -> 
B19: =IF(INDEX(InputA1A3[Anläggningsdel ],ROW()-ROW(TblKommentar[#Headers]))="","",INDEX(InputA1A3[Anläggningsdel ], ROW()-ROW(TblKommentar[#Headers]))) ->  | C19: =IF(INDEX(InputA1A3[Kommentar],ROW()-ROW(TblKommentar[#Headers]))="","",INDEX(InputA1A3[Kommentar], ROW()-ROW(TblKommentar[#Headers]))) -> 
B20: =IF(INDEX(InputA1A3[Anläggningsdel ],ROW()-ROW(TblKommentar[#Headers]))="","",INDEX(InputA1A3[Anläggningsdel ], ROW()-ROW(TblKommentar[#Headers]))) ->  | C20: =IF(INDEX(InputA1A3[Kommentar],ROW()-ROW(TblKommentar[#Headers]))="","",INDEX(InputA1A3[Kommentar], ROW()-ROW(TblKommentar[#Headers]))) -> 
B21: =IF(INDEX(InputA1A3[Anläggningsdel ],ROW()-ROW(TblKommentar[#Headers]))="","",INDEX(InputA1A3[Anläggningsdel ], ROW()-ROW(TblKommentar[#Headers]))) ->  | C21: =IF(INDEX(InputA1A3[Kommentar],ROW()-ROW(TblKommentar[#Headers]))="","",INDEX(InputA1A3[Kommentar], ROW()-ROW(TblKommentar[#Headers]))) -> 
B22: =IF(INDEX(InputA1A3[Anläggningsdel ],ROW()-ROW(TblKommentar[#Headers]))="","",INDEX(InputA1A3[Anläggningsdel ], ROW()-ROW(TblKommentar[#Headers]))) ->  | C22: =IF(INDEX(InputA1A3[Kommentar],ROW()-ROW(TblKommentar[#Headers]))="","",INDEX(InputA1A3[Kommentar], ROW()-ROW(TblKommentar[#Headers]))) -> 
B23: =IF(INDEX(InputA1A3[Anläggningsdel ],ROW()-ROW(TblKommentar[#Headers]))="","",INDEX(InputA1A3[Anläggningsdel ], ROW()-ROW(TblKommentar[#Headers]))) ->  | C23: =IF(INDEX(InputA1A3[Kommentar],ROW()-ROW(TblKommentar[#Headers]))="","",INDEX(InputA1A3[Kommentar], ROW()-ROW(TblKommentar[#Headers]))) -> 
B24: =IF(INDEX(InputA1A3[Anläggningsdel ],ROW()-ROW(TblKommentar[#Headers]))="","",INDEX(InputA1A3[Anläggningsdel ], ROW()-ROW(TblKommentar[#Headers]))) ->  | C24: =IF(INDEX(InputA1A3[Kommentar],ROW()-ROW(TblKommentar[#Headers]))="","",INDEX(InputA1A3[Kommentar], ROW()-ROW(TblKommentar[#Headers]))) -> 
B25: =IF(INDEX(InputA1A3[Anläggningsdel ],ROW()-ROW(TblKommentar[#Headers]))="","",INDEX(InputA1A3[Anläggningsdel ], ROW()-ROW(TblKommentar[#Headers]))) ->  | C25: =IF(INDEX(InputA1A3[Kommentar],ROW()-ROW(TblKommentar[#Headers]))="","",INDEX(InputA1A3[Kommentar], ROW()-ROW(TblKommentar[#Headers]))) -> 
B26: =IF(INDEX(InputA1A3[Anläggningsdel ],ROW()-ROW(TblKommentar[#Headers]))="","",INDEX(InputA1A3[Anläggningsdel ], ROW()-ROW(TblKommentar[#Headers]))) ->  | C26: =IF(INDEX(InputA1A3[Kommentar],ROW()-ROW(TblKommentar[#Headers]))="","",INDEX(InputA1A3[Kommentar], ROW()-ROW(TblKommentar[#Headers]))) -> 
B27: =IF(INDEX(InputA1A3[Anläggningsdel ],ROW()-ROW(TblKommentar[#Headers]))="","",INDEX(InputA1A3[Anläggningsdel ], ROW()-ROW(TblKommentar[#Headers]))) ->  | C27: =IF(INDEX(InputA1A3[Kommentar],ROW()-ROW(TblKommentar[#Headers]))="","",INDEX(InputA1A3[Kommentar], ROW()-ROW(TblKommentar[#Headers]))) -> 
B28: =IF(INDEX(InputA1A3[Anläggningsdel ],ROW()-ROW(TblKommentar[#Headers]))="","",INDEX(InputA1A3[Anläggningsdel ], ROW()-ROW(TblKommentar[#Headers]))) ->  | C28: =IF(INDEX(InputA1A3[Kommentar],ROW()-ROW(TblKommentar[#Headers]))="","",INDEX(InputA1A3[Kommentar], ROW()-ROW(TblKommentar[#Headers]))) -> 
B29: =IF(INDEX(InputA1A3[Anläggningsdel ],ROW()-ROW(TblKommentar[#Headers]))="","",INDEX(InputA1A3[Anläggningsdel ], ROW()-ROW(TblKommentar[#Headers]))) ->  | C29: =IF(INDEX(InputA1A3[Kommentar],ROW()-ROW(TblKommentar[#Headers]))="","",INDEX(InputA1A3[Kommentar], ROW()-ROW(TblKommentar[#Headers]))) -> 
B30: =IF(INDEX(InputA1A3[Anläggningsdel ],ROW()-ROW(TblKommentar[#Headers]))="","",INDEX(InputA1A3[Anläggningsdel ], ROW()-ROW(TblKommentar[#Headers]))) ->  | C30: =IF(INDEX(InputA1A3[Kommentar],ROW()-ROW(TblKommentar[#Headers]))="","",INDEX(InputA1A3[Kommentar], ROW()-ROW(TblKommentar[#Headers]))) -> 
B31: =IF(INDEX(InputA1A3[Anläggningsdel ],ROW()-ROW(TblKommentar[#Headers]))="","",INDEX(InputA1A3[Anläggningsdel ], ROW()-ROW(TblKommentar[#Headers]))) ->  | C31: =IF(INDEX(InputA1A3[Kommentar],ROW()-ROW(TblKommentar[#Headers]))="","",INDEX(InputA1A3[Kommentar], ROW()-ROW(TblKommentar[#Headers]))) -> 
B32: =IF(INDEX(InputA1A3[Anläggningsdel ],ROW()-ROW(TblKommentar[#Headers]))="","",INDEX(InputA1A3[Anläggningsdel ], ROW()-ROW(TblKommentar[#Headers]))) ->  | C32: =IF(INDEX(InputA1A3[Kommentar],ROW()-ROW(TblKommentar[#Headers]))="","",INDEX(InputA1A3[Kommentar], ROW()-ROW(TblKommentar[#Headers]))) -> 
B33: =IF(INDEX(InputA1A3[Anläggningsdel ],ROW()-ROW(TblKommentar[#Headers]))="","",INDEX(InputA1A3[Anläggningsdel ], ROW()-ROW(TblKommentar[#Headers]))) ->  | C33: =IF(INDEX(InputA1A3[Kommentar],ROW()-ROW(TblKommentar[#Headers]))="","",INDEX(InputA1A3[Kommentar], ROW()-ROW(TblKommentar[#Headers]))) -> 
B34: =IF(INDEX(InputA1A3[Anläggningsdel ],ROW()-ROW(TblKommentar[#Headers]))="","",INDEX(InputA1A3[Anläggningsdel ], ROW()-ROW(TblKommentar[#Headers]))) ->  | C34: =IF(INDEX(InputA1A3[Kommentar],ROW()-ROW(TblKommentar[#Headers]))="","",INDEX(InputA1A3[Kommentar], ROW()-ROW(TblKommentar[#Headers]))) -> 
B35: =IF(INDEX(InputA1A3[Anläggningsdel ],ROW()-ROW(TblKommentar[#Headers]))="","",INDEX(InputA1A3[Anläggningsdel ], ROW()-ROW(TblKommentar[#Headers]))) ->  | C35: =IF(INDEX(InputA1A3[Kommentar],ROW()-ROW(TblKommentar[#Headers]))="","",INDEX(InputA1A3[Kommentar], ROW()-ROW(TblKommentar[#Headers]))) -> 
B36: =IF(INDEX(InputA1A3[Anläggningsdel ],ROW()-ROW(TblKommentar[#Headers]))="","",INDEX(InputA1A3[Anläggningsdel ], ROW()-ROW(TblKommentar[#Headers]))) ->  | C36: =IF(INDEX(InputA1A3[Kommentar],ROW()-ROW(TblKommentar[#Headers]))="","",INDEX(InputA1A3[Kommentar], ROW()-ROW(TblKommentar[#Headers]))) -> 
B37: =IF(INDEX(InputA1A3[Anläggningsdel ],ROW()-ROW(TblKommentar[#Headers]))="","",INDEX(InputA1A3[Anläggningsdel ], ROW()-ROW(TblKommentar[#Headers]))) ->  | C37: =IF(INDEX(InputA1A3[Kommentar],ROW()-ROW(TblKommentar[#Headers]))="","",INDEX(InputA1A3[Kommentar], ROW()-ROW(TblKommentar[#Headers]))) -> 
B38: =IF(INDEX(InputA1A3[Anläggningsdel ],ROW()-ROW(TblKommentar[#Headers]))="","",INDEX(InputA1A3[Anläggningsdel ], ROW()-ROW(TblKommentar[#Headers]))) ->  | C38: =IF(INDEX(InputA1A3[Kommentar],ROW()-ROW(TblKommentar[#Headers]))="","",INDEX(InputA1A3[Kommentar], ROW()-ROW(TblKommentar[#Headers]))) -> 
B39: =IF(INDEX(InputA1A3[Anläggningsdel ],ROW()-ROW(TblKommentar[#Headers]))="","",INDEX(InputA1A3[Anläggningsdel ], ROW()-ROW(TblKommentar[#Headers]))) ->  | C39: =IF(INDEX(InputA1A3[Kommentar],ROW()-ROW(TblKommentar[#Headers]))="","",INDEX(InputA1A3[Kommentar], ROW()-ROW(TblKommentar[#Headers]))) -> 
B40: =IF(INDEX(InputA1A3[Anläggningsdel ],ROW()-ROW(TblKommentar[#Headers]))="","",INDEX(InputA1A3[Anläggningsdel ], ROW()-ROW(TblKommentar[#Headers]))) ->  | C40: =IF(INDEX(InputA1A3[Kommentar],ROW()-ROW(TblKommentar[#Headers]))="","",INDEX(InputA1A3[Kommentar], ROW()-ROW(TblKommentar[#Headers]))) -> 
B41: =IF(INDEX(InputA1A3[Anläggningsdel ],ROW()-ROW(TblKommentar[#Headers]))="","",INDEX(InputA1A3[Anläggningsdel ], ROW()-ROW(TblKommentar[#Headers]))) ->  | C41: =IF(INDEX(InputA1A3[Kommentar],ROW()-ROW(TblKommentar[#Headers]))="","",INDEX(InputA1A3[Kommentar], ROW()-ROW(TblKommentar[#Headers]))) -> 
B42: =IF(INDEX(InputA1A3[Anläggningsdel ],ROW()-ROW(TblKommentar[#Headers]))="","",INDEX(InputA1A3[Anläggningsdel ], ROW()-ROW(TblKommentar[#Headers]))) ->  | C42: =IF(INDEX(InputA1A3[Kommentar],ROW()-ROW(TblKommentar[#Headers]))="","",INDEX(InputA1A3[Kommentar], ROW()-ROW(TblKommentar[#Headers]))) -> 
B43: =IF(INDEX(InputA1A3[Anläggningsdel ],ROW()-ROW(TblKommentar[#Headers]))="","",INDEX(InputA1A3[Anläggningsdel ], ROW()-ROW(TblKommentar[#Headers]))) ->  | C43: =IF(INDEX(InputA1A3[Kommentar],ROW()-ROW(TblKommentar[#Headers]))="","",INDEX(InputA1A3[Kommentar], ROW()-ROW(TblKommentar[#Headers]))) -> 
B44: =IF(INDEX(InputA1A3[Anläggningsdel ],ROW()-ROW(TblKommentar[#Headers]))="","",INDEX(InputA1A3[Anläggningsdel ], ROW()-ROW(TblKommentar[#Headers]))) ->  | C44: =IF(INDEX(InputA1A3[Kommentar],ROW()-ROW(TblKommentar[#Headers]))="","",INDEX(InputA1A3[Kommentar], ROW()-ROW(TblKommentar[#Headers]))) -> 
B45: =IF(INDEX(InputA1A3[Anläggningsdel ],ROW()-ROW(TblKommentar[#Headers]))="","",INDEX(InputA1A3[Anläggningsdel ], ROW()-ROW(TblKommentar[#Headers]))) ->  | C45: =IF(INDEX(InputA1A3[Kommentar],ROW()-ROW(TblKommentar[#Headers]))="","",INDEX(InputA1A3[Kommentar], ROW()-ROW(TblKommentar[#Headers]))) -> 
B46: =IF(INDEX(InputA1A3[Anläggningsdel ],ROW()-ROW(TblKommentar[#Headers]))="","",INDEX(InputA1A3[Anläggningsdel ], ROW()-ROW(TblKommentar[#Headers]))) ->  | C46: =IF(INDEX(InputA1A3[Kommentar],ROW()-ROW(TblKommentar[#Headers]))="","",INDEX(InputA1A3[Kommentar], ROW()-ROW(TblKommentar[#Headers]))) -> 
B47: =IF(INDEX(InputA1A3[Anläggningsdel ],ROW()-ROW(TblKommentar[#Headers]))="","",INDEX(InputA1A3[Anläggningsdel ], ROW()-ROW(TblKommentar[#Headers]))) ->  | C47: =IF(INDEX(InputA1A3[Kommentar],ROW()-ROW(TblKommentar[#Headers]))="","",INDEX(InputA1A3[Kommentar], ROW()-ROW(TblKommentar[#Headers]))) -> 

Sheet Resultat - enskilt scenario
B2: Här presenteras resultatet, utsläppen av växthusgaser per anläggningsdel, i tabellen nedan.
B4: =IF(ISBLANK(ScenarioNamn),"Du har inte angett ett namn för scenariot","Resultat av scenario "&ScenarioNamn) -> Resultat av scenario 0
B5: ='Instruktion och Projektinfo'!O5 -> 0 | C5: ='Instruktion och Projektinfo'!N3:O3 -> Organisation: | D5: 0
B6: ='Instruktion och Projektinfo'!M5 -> 202X-XX-XX | C6: ='Instruktion och Projektinfo'!P3:Q3 -> Kontaktperson: | D6: 0 | E6: Utsläpp [ton CO₂-ekv.]
B7: Anläggningsdel | C7: Kategorisering | D7: Kommentar | E7: A1-A3 | F7: A4 | G7: A5 | H7: Totalt | I7: Procentandel av totala utsläppen
B8: =IF(INDEX(InputA1A3[Anläggningsdel ],ROW()-ROW(OutputScenario[#Headers]))="","",INDEX(InputA1A3[Anläggningsdel ], ROW()-ROW(OutputScenario[#Headers]))) -> tewwst | C8: =IF(INDEX(KontrollTabell[Kategorier],ROW()-ROW(OutputScenario[#Headers]))="","",INDEX(KontrollTabell[Kategorier], ROW()-ROW(OutputScenario[#Headers]))) -> Kat1 | D8: =IF(INDEX(InputA1A3[Kommentar],ROW()-ROW(OutputScenario[#Headers]))="","",INDEX(InputA1A3[Kommentar], ROW()-ROW(OutputScenario[#Headers]))) -> test | E8: =KontrollTabell[[#This Row],[Utsläpp A1A3 '[kg']]]/1000 -> 520 | F8: =KontrollTabell[[#This Row],[Utsläpp A2 '[kg'] (alt1 och alt2)]]/1000 -> 3648 | G8: =KontrollTabell[[#This Row],[Utsläpp A5'[kg']]]/1000 -> 0 | H8: =SUM(OutputScenario[[#This Row],[A1-A3]:[A5]]) -> 4168 | I8: =OutputScenario[[#This Row],[Totalt]]/OutputScenario[[#Totals],[Totalt]] -> 0.0404376463
B9: =IF(INDEX(InputA1A3[Anläggningsdel ],ROW()-ROW(OutputScenario[#Headers]))="","",INDEX(InputA1A3[Anläggningsdel ], ROW()-ROW(OutputScenario[#Headers]))) -> agrae | C9: =IF(INDEX(KontrollTabell[Kategorier],ROW()-ROW(OutputScenario[#Headers]))="","",INDEX(KontrollTabell[Kategorier], ROW()-ROW(OutputScenario[#Headers]))) -> kat2 | D9: =IF(INDEX(InputA1A3[Kommentar],ROW()-ROW(OutputScenario[#Headers]))="","",INDEX(InputA1A3[Kommentar], ROW()-ROW(OutputScenario[#Headers]))) -> test | E9: =KontrollTabell[[#This Row],[Utsläpp A1A3 '[kg']]]/1000 -> 56941.632 | F9: =KontrollTabell[[#This Row],[Utsläpp A2 '[kg'] (alt1 och alt2)]]/1000 -> 0 | G9: =KontrollTabell[[#This Row],[Utsläpp A5'[kg']]]/1000 -> 0.0876146 | H9: =SUM(OutputScenario[[#This Row],[A1-A3]:[A5]]) -> 56941.71961 | I9: =OutputScenario[[#This Row],[Totalt]]/OutputScenario[[#Totals],[Totalt]] -> 0.5524446059
B10: =IF(INDEX(InputA1A3[Anläggningsdel ],ROW()-ROW(OutputScenario[#Headers]))="","",INDEX(InputA1A3[Anläggningsdel ], ROW()-ROW(OutputScenario[#Headers]))) -> agreg | C10: =IF(INDEX(KontrollTabell[Kategorier],ROW()-ROW(OutputScenario[#Headers]))="","",INDEX(KontrollTabell[Kategorier], ROW()-ROW(OutputScenario[#Headers]))) -> kat1 | D10: =IF(INDEX(InputA1A3[Kommentar],ROW()-ROW(OutputScenario[#Headers]))="","",INDEX(InputA1A3[Kommentar], ROW()-ROW(OutputScenario[#Headers]))) -> test | E10: =KontrollTabell[[#This Row],[Utsläpp A1A3 '[kg']]]/1000 -> 1320.9 | F10: =KontrollTabell[[#This Row],[Utsläpp A2 '[kg'] (alt1 och alt2)]]/1000 -> 14.76 | G10: =KontrollTabell[[#This Row],[Utsläpp A5'[kg']]]/1000 -> 1.7471382 | H10: =SUM(OutputScenario[[#This Row],[A1-A3]:[A5]]) -> 1337.407138 | I10: =OutputScenario[[#This Row],[Totalt]]/OutputScenario[[#Totals],[Totalt]] -> 0.0129754311
B11: =IF(INDEX(InputA1A3[Anläggningsdel ],ROW()-ROW(OutputScenario[#Headers]))="","",INDEX(InputA1A3[Anläggningsdel ], ROW()-ROW(OutputScenario[#Headers]))) -> f | C11: =IF(INDEX(KontrollTabell[Kategorier],ROW()-ROW(OutputScenario[#Headers]))="","",INDEX(KontrollTabell[Kategorier], ROW()-ROW(OutputScenario[#Headers]))) -> kat3 | D11: =IF(INDEX(InputA1A3[Kommentar],ROW()-ROW(OutputScenario[#Headers]))="","",INDEX(InputA1A3[Kommentar], ROW()-ROW(OutputScenario[#Headers]))) ->  | E11: =KontrollTabell[[#This Row],[Utsläpp A1A3 '[kg']]]/1000 -> 24198.072 | F11: =KontrollTabell[[#This Row],[Utsläpp A2 '[kg'] (alt1 och alt2)]]/1000 -> 31.866 | G11: =KontrollTabell[[#This Row],[Utsläpp A5'[kg']]]/1000 -> 6770.54706 | H11: =SUM(OutputScenario[[#This Row],[A1-A3]:[A5]]) -> 31000.48506 | I11: =OutputScenario[[#This Row],[Totalt]]/OutputScenario[[#Totals],[Totalt]] -> 0.3007645513
B12: =IF(INDEX(InputA1A3[Anläggningsdel ],ROW()-ROW(OutputScenario[#Headers]))="","",INDEX(InputA1A3[Anläggningsdel ], ROW()-ROW(OutputScenario[#Headers]))) -> fg | C12: =IF(INDEX(KontrollTabell[Kategorier],ROW()-ROW(OutputScenario[#Headers]))="","",INDEX(KontrollTabell[Kategorier], ROW()-ROW(OutputScenario[#Headers]))) -> kat2 | D12: =IF(INDEX(InputA1A3[Kommentar],ROW()-ROW(OutputScenario[#Headers]))="","",INDEX(InputA1A3[Kommentar], ROW()-ROW(OutputScenario[#Headers]))) ->  | E12: =KontrollTabell[[#This Row],[Utsläpp A1A3 '[kg']]]/1000 -> 2328 | F12: =KontrollTabell[[#This Row],[Utsläpp A2 '[kg'] (alt1 och alt2)]]/1000 -> 0.188 | G12: =KontrollTabell[[#This Row],[Utsläpp A5'[kg']]]/1000 -> 0.0002466 | H12: =SUM(OutputScenario[[#This Row],[A1-A3]:[A5]]) -> 2328.188247 | I12: =OutputScenario[[#This Row],[Totalt]]/OutputScenario[[#Totals],[Totalt]] -> 0.02258792055
B13: =IF(INDEX(InputA1A3[Anläggningsdel ],ROW()-ROW(OutputScenario[#Headers]))="","",INDEX(InputA1A3[Anläggningsdel ], ROW()-ROW(OutputScenario[#Headers]))) -> agh | C13: =IF(INDEX(KontrollTabell[Kategorier],ROW()-ROW(OutputScenario[#Headers]))="","",INDEX(KontrollTabell[Kategorier], ROW()-ROW(OutputScenario[#Headers]))) -> övrigt | D13: =IF(INDEX(InputA1A3[Kommentar],ROW()-ROW(OutputScenario[#Headers]))="","",INDEX(InputA1A3[Kommentar], ROW()-ROW(OutputScenario[#Headers]))) ->  | E13: =KontrollTabell[[#This Row],[Utsläpp A1A3 '[kg']]]/1000 -> 6941.935 | F13: =KontrollTabell[[#This Row],[Utsläpp A2 '[kg'] (alt1 och alt2)]]/1000 -> 72 | G13: =KontrollTabell[[#This Row],[Utsläpp A5'[kg']]]/1000 -> 0 | H13: =SUM(OutputScenario[[#This Row],[A1-A3]:[A5]]) -> 7013.935 | I13: =OutputScenario[[#This Row],[Totalt]]/OutputScenario[[#Totals],[Totalt]] -> 0.06804870986
B14: =IF(INDEX(InputA1A3[Anläggningsdel ],ROW()-ROW(OutputScenario[#Headers]))="","",INDEX(InputA1A3[Anläggningsdel ], ROW()-ROW(OutputScenario[#Headers]))) -> ggq | C14: =IF(INDEX(KontrollTabell[Kategorier],ROW()-ROW(OutputScenario[#Headers]))="","",INDEX(KontrollTabell[Kategorier], ROW()-ROW(OutputScenario[#Headers]))) -> Kategori saknas | D14: =IF(INDEX(InputA1A3[Kommentar],ROW()-ROW(OutputScenario[#Headers]))="","",INDEX(InputA1A3[Kommentar], ROW()-ROW(OutputScenario[#Headers]))) ->  | E14: =KontrollTabell[[#This Row],[Utsläpp A1A3 '[kg']]]/1000 -> 35.1 | F14: =KontrollTabell[[#This Row],[Utsläpp A2 '[kg'] (alt1 och alt2)]]/1000 -> 246.285 | G14: =KontrollTabell[[#This Row],[Utsläpp A5'[kg']]]/1000 -> 0 | H14: =SUM(OutputScenario[[#This Row],[A1-A3]:[A5]]) -> 281.385 | I14: =OutputScenario[[#This Row],[Totalt]]/OutputScenario[[#Totals],[Totalt]] -> 0.002729977712
B15: =IF(INDEX(InputA1A3[Anläggningsdel ],ROW()-ROW(OutputScenario[#Headers]))="","",INDEX(InputA1A3[Anläggningsdel ], ROW()-ROW(OutputScenario[#Headers]))) -> Test A4_1 | C15: =IF(INDEX(KontrollTabell[Kategorier],ROW()-ROW(OutputScenario[#Headers]))="","",INDEX(KontrollTabell[Kategorier], ROW()-ROW(OutputScenario[#Headers]))) -> kat 3 | D15: =IF(INDEX(InputA1A3[Kommentar],ROW()-ROW(OutputScenario[#Headers]))="","",INDEX(InputA1A3[Kommentar], ROW()-ROW(OutputScenario[#Headers]))) ->  | E15: =KontrollTabell[[#This Row],[Utsläpp A1A3 '[kg']]]/1000 -> 0.65 | F15: =KontrollTabell[[#This Row],[Utsläpp A2 '[kg'] (alt1 och alt2)]]/1000 -> 0.5 | G15: =KontrollTabell[[#This Row],[Utsläpp A5'[kg']]]/1000 -> 0 | H15: =SUM(OutputScenario[[#This Row],[A1-A3]:[A5]]) -> 1.15 | I15: =OutputScenario[[#This Row],[Totalt]]/OutputScenario[[#Totals],[Totalt]] -> 1.115722007e-05
B16: =IF(INDEX(InputA1A3[Anläggningsdel ],ROW()-ROW(OutputScenario[#Headers]))="","",INDEX(InputA1A3[Anläggningsdel ], ROW()-ROW(OutputScenario[#Headers]))) ->  | C16: =IF(INDEX(KontrollTabell[Kategorier],ROW()-ROW(OutputScenario[#Headers]))="","",INDEX(KontrollTabell[Kategorier], ROW()-ROW(OutputScenario[#Headers]))) ->  | D16: =IF(INDEX(InputA1A3[Kommentar],ROW()-ROW(OutputScenario[#Headers]))="","",INDEX(InputA1A3[Kommentar], ROW()-ROW(OutputScenario[#Headers]))) ->  | E16: =KontrollTabell[[#This Row],[Utsläpp A1A3 '[kg']]]/1000 -> 0 | F16: =KontrollTabell[[#This Row],[Utsläpp A2 '[kg'] (alt1 och alt2)]]/1000 -> 0 | G16: =KontrollTabell[[#This Row],[Utsläpp A5'[kg']]]/1000 -> 0 | H16: =SUM(OutputScenario[[#This Row],[A1-A3]:[A5]]) -> 0 | I16: =OutputScenario[[#This Row],[Totalt]]/OutputScenario[[#Totals],[Totalt]] -> 0
B17: =IF(INDEX(InputA1A3[Anläggningsdel ],ROW()-ROW(OutputScenario[#Headers]))="","",INDEX(InputA1A3[Anläggningsdel ], ROW()-ROW(OutputScenario[#Headers]))) ->  | C17: =IF(INDEX(KontrollTabell[Kategorier],ROW()-ROW(OutputScenario[#Headers]))="","",INDEX(KontrollTabell[Kategorier], ROW()-ROW(OutputScenario[#Headers]))) ->  | D17: =IF(INDEX(InputA1A3[Kommentar],ROW()-ROW(OutputScenario[#Headers]))="","",INDEX(InputA1A3[Kommentar], ROW()-ROW(OutputScenario[#Headers]))) ->  | E17: =KontrollTabell[[#This Row],[Utsläpp A1A3 '[kg']]]/1000 -> 0 | F17: =KontrollTabell[[#This Row],[Utsläpp A2 '[kg'] (alt1 och alt2)]]/1000 -> 0 | G17: =KontrollTabell[[#This Row],[Utsläpp A5'[kg']]]/1000 -> 0 | H17: =SUM(OutputScenario[[#This Row],[A1-A3]:[A5]]) -> 0 | I17: =OutputScenario[[#This Row],[Totalt]]/OutputScenario[[#Totals],[Totalt]] -> 0
B18: =IF(INDEX(InputA1A3[Anläggningsdel ],ROW()-ROW(OutputScenario[#Headers]))="","",INDEX(InputA1A3[Anläggningsdel ], ROW()-ROW(OutputScenario[#Headers]))) ->  | C18: =IF(INDEX(KontrollTabell[Kategorier],ROW()-ROW(OutputScenario[#Headers]))="","",INDEX(KontrollTabell[Kategorier], ROW()-ROW(OutputScenario[#Headers]))) ->  | D18: =IF(INDEX(InputA1A3[Kommentar],ROW()-ROW(OutputScenario[#Headers]))="","",INDEX(InputA1A3[Kommentar], ROW()-ROW(OutputScenario[#Headers]))) ->  | E18: =KontrollTabell[[#This Row],[Utsläpp A1A3 '[kg']]]/1000 -> 0 | F18: =KontrollTabell[[#This Row],[Utsläpp A2 '[kg'] (alt1 och alt2)]]/1000 -> 0 | G18: =KontrollTabell[[#This Row],[Utsläpp A5'[kg']]]/1000 -> 0 | H18: =SUM(OutputScenario[[#This Row],[A1-A3]:[A5]]) -> 0 | I18: =OutputScenario[[#This Row],[Totalt]]/OutputScenario[[#Totals],[Totalt]] -> 0
B19: =IF(INDEX(InputA1A3[Anläggningsdel ],ROW()-ROW(OutputScenario[#Headers]))="","",INDEX(InputA1A3[Anläggningsdel ], ROW()-ROW(OutputScenario[#Headers]))) ->  | C19: =IF(INDEX(KontrollTabell[Kategorier],ROW()-ROW(OutputScenario[#Headers]))="","",INDEX(KontrollTabell[Kategorier], ROW()-ROW(OutputScenario[#Headers]))) ->  | D19: =IF(INDEX(InputA1A3[Kommentar],ROW()-ROW(OutputScenario[#Headers]))="","",INDEX(InputA1A3[Kommentar], ROW()-ROW(OutputScenario[#Headers]))) ->  | E19: =KontrollTabell[[#This Row],[Utsläpp A1A3 '[kg']]]/1000 -> 0 | F19: =KontrollTabell[[#This Row],[Utsläpp A2 '[kg'] (alt1 och alt2)]]/1000 -> 0 | G19: =KontrollTabell[[#This Row],[Utsläpp A5'[kg']]]/1000 -> 0 | H19: =SUM(OutputScenario[[#This Row],[A1-A3]:[A5]]) -> 0 | I19: =OutputScenario[[#This Row],[Totalt]]/OutputScenario[[#Totals],[Totalt]] -> 0
B20: =IF(INDEX(InputA1A3[Anläggningsdel ],ROW()-ROW(OutputScenario[#Headers]))="","",INDEX(InputA1A3[Anläggningsdel ], ROW()-ROW(OutputScenario[#Headers]))) ->  | C20: =IF(INDEX(KontrollTabell[Kategorier],ROW()-ROW(OutputScenario[#Headers]))="","",INDEX(KontrollTabell[Kategorier], ROW()-ROW(OutputScenario[#Headers]))) ->  | D20: =IF(INDEX(InputA1A3[Kommentar],ROW()-ROW(OutputScenario[#Headers]))="","",INDEX(InputA1A3[Kommentar], ROW()-ROW(OutputScenario[#Headers]))) ->  | E20: =KontrollTabell[[#This Row],[Utsläpp A1A3 '[kg']]]/1000 -> 0 | F20: =KontrollTabell[[#This Row],[Utsläpp A2 '[kg'] (alt1 och alt2)]]/1000 -> 0 | G20: =KontrollTabell[[#This Row],[Utsläpp A5'[kg']]]/1000 -> 0 | H20: =SUM(OutputScenario[[#This Row],[A1-A3]:[A5]]) -> 0 | I20: =OutputScenario[[#This Row],[Totalt]]/OutputScenario[[#Totals],[Totalt]] -> 0
B21: =IF(INDEX(InputA1A3[Anläggningsdel ],ROW()-ROW(OutputScenario[#Headers]))="","",INDEX(InputA1A3[Anläggningsdel ], ROW()-ROW(OutputScenario[#Headers]))) ->  | C21: =IF(INDEX(KontrollTabell[Kategorier],ROW()-ROW(OutputScenario[#Headers]))="","",INDEX(KontrollTabell[Kategorier], ROW()-ROW(OutputScenario[#Headers]))) ->  | D21: =IF(INDEX(InputA1A3[Kommentar],ROW()-ROW(OutputScenario[#Headers]))="","",INDEX(InputA1A3[Kommentar], ROW()-ROW(OutputScenario[#Headers]))) ->  | E21: =KontrollTabell[[#This Row],[Utsläpp A1A3 '[kg']]]/1000 -> 0 | F21: =KontrollTabell[[#This Row],[Utsläpp A2 '[kg'] (alt1 och alt2)]]/1000 -> 0 | G21: =KontrollTabell[[#This Row],[Utsläpp A5'[kg']]]/1000 -> 0 | H21: =SUM(OutputScenario[[#This Row],[A1-A3]:[A5]]) -> 0 | I21: =OutputScenario[[#This Row],[Totalt]]/OutputScenario[[#Totals],[Totalt]] -> 0
B22: =IF(INDEX(InputA1A3[Anläggningsdel ],ROW()-ROW(OutputScenario[#Headers]))="","",INDEX(InputA1A3[Anläggningsdel ], ROW()-ROW(OutputScenario[#Headers]))) ->  | C22: =IF(INDEX(KontrollTabell[Kategorier],ROW()-ROW(OutputScenario[#Headers]))="","",INDEX(KontrollTabell[Kategorier], ROW()-ROW(OutputScenario[#Headers]))) ->  | D22: =IF(INDEX(InputA1A3[Kommentar],ROW()-ROW(OutputScenario[#Headers]))="","",INDEX(InputA1A3[Kommentar], ROW()-ROW(OutputScenario[#Headers]))) ->  | E22: =KontrollTabell[[#This Row],[Utsläpp A1A3 '[kg']]]/1000 -> 0 | F22: =KontrollTabell[[#This Row],[Utsläpp A2 '[kg'] (alt1 och alt2)]]/1000 -> 0 | G22: =KontrollTabell[[#This Row],[Utsläpp A5'[kg']]]/1000 -> 0 | H22: =SUM(OutputScenario[[#This Row],[A1-A3]:[A5]]) -> 0 | I22: =OutputScenario[[#This Row],[Totalt]]/OutputScenario[[#Totals],[Totalt]] -> 0
B23: =IF(INDEX(InputA1A3[Anläggningsdel ],ROW()-ROW(OutputScenario[#Headers]))="","",INDEX(InputA1A3[Anläggningsdel ], ROW()-ROW(OutputScenario[#Headers]))) ->  | C23: =IF(INDEX(KontrollTabell[Kategorier],ROW()-ROW(OutputScenario[#Headers]))="","",INDEX(KontrollTabell[Kategorier], ROW()-ROW(OutputScenario[#Headers]))) ->  | D23: =IF(INDEX(InputA1A3[Kommentar],ROW()-ROW(OutputScenario[#Headers]))="","",INDEX(InputA1A3[Kommentar], ROW()-ROW(OutputScenario[#Headers]))) ->  | E23: =KontrollTabell[[#This Row],[Utsläpp A1A3 '[kg']]]/1000 -> 0 | F23: =KontrollTabell[[#This Row],[Utsläpp A2 '[kg'] (alt1 och alt2)]]/1000 -> 0 | G23: =KontrollTabell[[#This Row],[Utsläpp A5'[kg']]]/1000 -> 0 | H23: =SUM(OutputScenario[[#This Row],[A1-A3]:[A5]]) -> 0 | I23: =OutputScenario[[#This Row],[Totalt]]/OutputScenario[[#Totals],[Totalt]] -> 0
B24: =IF(INDEX(InputA1A3[Anläggningsdel ],ROW()-ROW(OutputScenario[#Headers]))="","",INDEX(InputA1A3[Anläggningsdel ], ROW()-ROW(OutputScenario[#Headers]))) ->  | C24: =IF(INDEX(KontrollTabell[Kategorier],ROW()-ROW(OutputScenario[#Headers]))="","",INDEX(KontrollTabell[Kategorier], ROW()-ROW(OutputScenario[#Headers]))) ->  | D24: =IF(INDEX(InputA1A3[Kommentar],ROW()-ROW(OutputScenario[#Headers]))="","",INDEX(InputA1A3[Kommentar], ROW()-ROW(OutputScenario[#Headers]))) ->  | E24: =KontrollTabell[[#This Row],[Utsläpp A1A3 '[kg']]]/1000 -> 0 | F24: =KontrollTabell[[#This Row],[Utsläpp A2 '[kg'] (alt1 och alt2)]]/1000 -> 0 | G24: =KontrollTabell[[#This Row],[Utsläpp A5'[kg']]]/1000 -> 0 | H24: =SUM(OutputScenario[[#This Row],[A1-A3]:[A5]]) -> 0 | I24: =OutputScenario[[#This Row],[Totalt]]/OutputScenario[[#Totals],[Totalt]] -> 0
B25: =IF(INDEX(InputA1A3[Anläggningsdel ],ROW()-ROW(OutputScenario[#Headers]))="","",INDEX(InputA1A3[Anläggningsdel ], ROW()-ROW(OutputScenario[#Headers]))) ->  | C25: =IF(INDEX(KontrollTabell[Kategorier],ROW()-ROW(OutputScenario[#Headers]))="","",INDEX(KontrollTabell[Kategorier], ROW()-ROW(OutputScenario[#Headers]))) ->  | D25: =IF(INDEX(InputA1A3[Kommentar],ROW()-ROW(OutputScenario[#Headers]))="","",INDEX(InputA1A3[Kommentar], ROW()-ROW(OutputScenario[#Headers]))) ->  | E25: =KontrollTabell[[#This Row],[Utsläpp A1A3 '[kg']]]/1000 -> 0 | F25: =KontrollTabell[[#This Row],[Utsläpp A2 '[kg'] (alt1 och alt2)]]/1000 -> 0 | G25: =KontrollTabell[[#This Row],[Utsläpp A5'[kg']]]/1000 -> 0 | H25: =SUM(OutputScenario[[#This Row],[A1-A3]:[A5]]) -> 0 | I25: =OutputScenario[[#This Row],[Totalt]]/OutputScenario[[#Totals],[Totalt]] -> 0
B26: =IF(INDEX(InputA1A3[Anläggningsdel ],ROW()-ROW(OutputScenario[#Headers]))="","",INDEX(InputA1A3[Anläggningsdel ], ROW()-ROW(OutputScenario[#Headers]))) ->  | C26: =IF(INDEX(KontrollTabell[Kategorier],ROW()-ROW(OutputScenario[#Headers]))="","",INDEX(KontrollTabell[Kategorier], ROW()-ROW(OutputScenario[#Headers]))) ->  | D26: =IF(INDEX(InputA1A3[Kommentar],ROW()-ROW(OutputScenario[#Headers]))="","",INDEX(InputA1A3[Kommentar], ROW()-ROW(OutputScenario[#Headers]))) ->  | E26: =KontrollTabell[[#This Row],[Utsläpp A1A3 '[kg']]]/1000 -> 0 | F26: =KontrollTabell[[#This Row],[Utsläpp A2 '[kg'] (alt1 och alt2)]]/1000 -> 0 | G26: =KontrollTabell[[#This Row],[Utsläpp A5'[kg']]]/1000 -> 0 | H26: =SUM(OutputScenario[[#This Row],[A1-A3]:[A5]]) -> 0 | I26: =OutputScenario[[#This Row],[Totalt]]/OutputScenario[[#Totals],[Totalt]] -> 0
B27: =IF(INDEX(InputA1A3[Anläggningsdel ],ROW()-ROW(OutputScenario[#Headers]))="","",INDEX(InputA1A3[Anläggningsdel ], ROW()-ROW(OutputScenario[#Headers]))) ->  | C27: =IF(INDEX(KontrollTabell[Kategorier],ROW()-ROW(OutputScenario[#Headers]))="","",INDEX(KontrollTabell[Kategorier], ROW()-ROW(OutputScenario[#Headers]))) ->  | D27: =IF(INDEX(InputA1A3[Kommentar],ROW()-ROW(OutputScenario[#Headers]))="","",INDEX(InputA1A3[Kommentar], ROW()-ROW(OutputScenario[#Headers]))) ->  | E27: =KontrollTabell[[#This Row],[Utsläpp A1A3 '[kg']]]/1000 -> 0 | F27: =KontrollTabell[[#This Row],[Utsläpp A2 '[kg'] (alt1 och alt2)]]/1000 -> 0 | G27: =KontrollTabell[[#This Row],[Utsläpp A5'[kg']]]/1000 -> 0 | H27: =SUM(OutputScenario[[#This Row],[A1-A3]:[A5]]) -> 0 | I27: =OutputScenario[[#This Row],[Totalt]]/OutputScenario[[#Totals],[Totalt]] -> 0
B28: =IF(INDEX(InputA1A3[Anläggningsdel ],ROW()-ROW(OutputScenario[#Headers]))="","",INDEX(InputA1A3[Anläggningsdel ], ROW()-ROW(OutputScenario[#Headers]))) ->  | C28: =IF(INDEX(KontrollTabell[Kategorier],ROW()-ROW(OutputScenario[#Headers]))="","",INDEX(KontrollTabell[Kategorier], ROW()-ROW(OutputScenario[#Headers]))) ->  | D28: =IF(INDEX(InputA1A3[Kommentar],ROW()-ROW(OutputScenario[#Headers]))="","",INDEX(InputA1A3[Kommentar], ROW()-ROW(OutputScenario[#Headers]))) ->  | E28: =KontrollTabell[[#This Row],[Utsläpp A1A3 '[kg']]]/1000 -> 0 | F28: =KontrollTabell[[#This Row],[Utsläpp A2 '[kg'] (alt1 och alt2)]]/1000 -> 0 | G28: =KontrollTabell[[#This Row],[Utsläpp A5'[kg']]]/1000 -> 0 | H28: =SUM(OutputScenario[[#This Row],[A1-A3]:[A5]]) -> 0 | I28: =OutputScenario[[#This Row],[Totalt]]/OutputScenario[[#Totals],[Totalt]] -> 0
B29: =IF(INDEX(InputA1A3[Anläggningsdel ],ROW()-ROW(OutputScenario[#Headers]))="","",INDEX(InputA1A3[Anläggningsdel ], ROW()-ROW(OutputScenario[#Headers]))) ->  | C29: =IF(INDEX(KontrollTabell[Kategorier],ROW()-ROW(OutputScenario[#Headers]))="","",INDEX(KontrollTabell[Kategorier], ROW()-ROW(OutputScenario[#Headers]))) ->  | D29: =IF(INDEX(InputA1A3[Kommentar],ROW()-ROW(OutputScenario[#Headers]))="","",INDEX(InputA1A3[Kommentar], ROW()-ROW(OutputScenario[#Headers]))) ->  | E29: =KontrollTabell[[#This Row],[Utsläpp A1A3 '[kg']]]/1000 -> 0 | F29: =KontrollTabell[[#This Row],[Utsläpp A2 '[kg'] (alt1 och alt2)]]/1000 -> 0 | G29: =KontrollTabell[[#This Row],[Utsläpp A5'[kg']]]/1000 -> 0 | H29: =SUM(OutputScenario[[#This Row],[A1-A3]:[A5]]) -> 0 | I29: =OutputScenario[[#This Row],[Totalt]]/OutputScenario[[#Totals],[Totalt]] -> 0
B30: =IF(INDEX(InputA1A3[Anläggningsdel ],ROW()-ROW(OutputScenario[#Headers]))="","",INDEX(InputA1A3[Anläggningsdel ], ROW()-ROW(OutputScenario[#Headers]))) ->  | C30: =IF(INDEX(KontrollTabell[Kategorier],ROW()-ROW(OutputScenario[#Headers]))="","",INDEX(KontrollTabell[Kategorier], ROW()-ROW(OutputScenario[#Headers]))) ->  | D30: =IF(INDEX(InputA1A3[Kommentar],ROW()-ROW(OutputScenario[#Headers]))="","",INDEX(InputA1A3[Kommentar], ROW()-ROW(OutputScenario[#Headers]))) ->  | E30: =KontrollTabell[[#This Row],[Utsläpp A1A3 '[kg']]]/1000 -> 0 | F30: =KontrollTabell[[#This Row],[Utsläpp A2 '[kg'] (alt1 och alt2)]]/1000 -> 0 | G30: =KontrollTabell[[#This Row],[Utsläpp A5'[kg']]]/1000 -> 0 | H30: =SUM(OutputScenario[[#This Row],[A1-A3]:[A5]]) -> 0 | I30: =OutputScenario[[#This Row],[Totalt]]/OutputScenario[[#Totals],[Totalt]] -> 0
B31: =IF(INDEX(InputA1A3[Anläggningsdel ],ROW()-ROW(OutputScenario[#Headers]))="","",INDEX(InputA1A3[Anläggningsdel ], ROW()-ROW(OutputScenario[#Headers]))) ->  | C31: =IF(INDEX(KontrollTabell[Kategorier],ROW()-ROW(OutputScenario[#Headers]))="","",INDEX(KontrollTabell[Kategorier], ROW()-ROW(OutputScenario[#Headers]))) ->  | D31: =IF(INDEX(InputA1A3[Kommentar],ROW()-ROW(OutputScenario[#Headers]))="","",INDEX(InputA1A3[Kommentar], ROW()-ROW(OutputScenario[#Headers]))) ->  | E31: =KontrollTabell[[#This Row],[Utsläpp A1A3 '[kg']]]/1000 -> 0 | F31: =KontrollTabell[[#This Row],[Utsläpp A2 '[kg'] (alt1 och alt2)]]/1000 -> 0 | G31: =KontrollTabell[[#This Row],[Utsläpp A5'[kg']]]/1000 -> 0 | H31: =SUM(OutputScenario[[#This Row],[A1-A3]:[A5]]) -> 0 | I31: =OutputScenario[[#This Row],[Totalt]]/OutputScenario[[#Totals],[Totalt]] -> 0
B32: =IF(INDEX(InputA1A3[Anläggningsdel ],ROW()-ROW(OutputScenario[#Headers]))="","",INDEX(InputA1A3[Anläggningsdel ], ROW()-ROW(OutputScenario[#Headers]))) ->  | C32: =IF(INDEX(KontrollTabell[Kategorier],ROW()-ROW(OutputScenario[#Headers]))="","",INDEX(KontrollTabell[Kategorier], ROW()-ROW(OutputScenario[#Headers]))) ->  | D32: =IF(INDEX(InputA1A3[Kommentar],ROW()-ROW(OutputScenario[#Headers]))="","",INDEX(InputA1A3[Kommentar], ROW()-ROW(OutputScenario[#Headers]))) ->  | E32: =KontrollTabell[[#This Row],[Utsläpp A1A3 '[kg']]]/1000 -> 0 | F32: =KontrollTabell[[#This Row],[Utsläpp A2 '[kg'] (alt1 och alt2)]]/1000 -> 0 | G32: =KontrollTabell[[#This Row],[Utsläpp A5'[kg']]]/1000 -> 0 | H32: =SUM(OutputScenario[[#This Row],[A1-A3]:[A5]]) -> 0 | I32: =OutputScenario[[#This Row],[Totalt]]/OutputScenario[[#Totals],[Totalt]] -> 0
B33: =IF(INDEX(InputA1A3[Anläggningsdel ],ROW()-ROW(OutputScenario[#Headers]))="","",INDEX(InputA1A3[Anläggningsdel ], ROW()-ROW(OutputScenario[#Headers]))) ->  | C33: =IF(INDEX(KontrollTabell[Kategorier],ROW()-ROW(OutputScenario[#Headers]))="","",INDEX(KontrollTabell[Kategorier], ROW()-ROW(OutputScenario[#Headers]))) ->  | D33: =IF(INDEX(InputA1A3[Kommentar],ROW()-ROW(OutputScenario[#Headers]))="","",INDEX(InputA1A3[Kommentar], ROW()-ROW(OutputScenario[#Headers]))) ->  | E33: =KontrollTabell[[#This Row],[Utsläpp A1A3 '[kg']]]/1000 -> 0 | F33: =KontrollTabell[[#This Row],[Utsläpp A2 '[kg'] (alt1 och alt2)]]/1000 -> 0 | G33: =KontrollTabell[[#This Row],[Utsläpp A5'[kg']]]/1000 -> 0 | H33: =SUM(OutputScenario[[#This Row],[A1-A3]:[A5]]) -> 0 | I33: =OutputScenario[[#This Row],[Totalt]]/OutputScenario[[#Totals],[Totalt]] -> 0
B34: =IF(INDEX(InputA1A3[Anläggningsdel ],ROW()-ROW(OutputScenario[#Headers]))="","",INDEX(InputA1A3[Anläggningsdel ], ROW()-ROW(OutputScenario[#Headers]))) ->  | C34: =IF(INDEX(KontrollTabell[Kategorier],ROW()-ROW(OutputScenario[#Headers]))="","",INDEX(KontrollTabell[Kategorier], ROW()-ROW(OutputScenario[#Headers]))) ->  | D34: =IF(INDEX(InputA1A3[Kommentar],ROW()-ROW(OutputScenario[#Headers]))="","",INDEX(InputA1A3[Kommentar], ROW()-ROW(OutputScenario[#Headers]))) ->  | E34: =KontrollTabell[[#This Row],[Utsläpp A1A3 '[kg']]]/1000 -> 0 | F34: =KontrollTabell[[#This Row],[Utsläpp A2 '[kg'] (alt1 och alt2)]]/1000 -> 0 | G34: =KontrollTabell[[#This Row],[Utsläpp A5'[kg']]]/1000 -> 0 | H34: =SUM(OutputScenario[[#This Row],[A1-A3]:[A5]]) -> 0 | I34: =OutputScenario[[#This Row],[Totalt]]/OutputScenario[[#Totals],[Totalt]] -> 0
B35: =IF(INDEX(InputA1A3[Anläggningsdel ],ROW()-ROW(OutputScenario[#Headers]))="","",INDEX(InputA1A3[Anläggningsdel ], ROW()-ROW(OutputScenario[#Headers]))) ->  | C35: =IF(INDEX(KontrollTabell[Kategorier],ROW()-ROW(OutputScenario[#Headers]))="","",INDEX(KontrollTabell[Kategorier], ROW()-ROW(OutputScenario[#Headers]))) ->  | D35: =IF(INDEX(InputA1A3[Kommentar],ROW()-ROW(OutputScenario[#Headers]))="","",INDEX(InputA1A3[Kommentar], ROW()-ROW(OutputScenario[#Headers]))) ->  | E35: =KontrollTabell[[#This Row],[Utsläpp A1A3 '[kg']]]/1000 -> 0 | F35: =KontrollTabell[[#This Row],[Utsläpp A2 '[kg'] (alt1 och alt2)]]/1000 -> 0 | G35: =KontrollTabell[[#This Row],[Utsläpp A5'[kg']]]/1000 -> 0 | H35: =SUM(OutputScenario[[#This Row],[A1-A3]:[A5]]) -> 0 | I35: =OutputScenario[[#This Row],[Totalt]]/OutputScenario[[#Totals],[Totalt]] -> 0
B36: =IF(INDEX(InputA1A3[Anläggningsdel ],ROW()-ROW(OutputScenario[#Headers]))="","",INDEX(InputA1A3[Anläggningsdel ], ROW()-ROW(OutputScenario[#Headers]))) ->  | C36: =IF(INDEX(KontrollTabell[Kategorier],ROW()-ROW(OutputScenario[#Headers]))="","",INDEX(KontrollTabell[Kategorier], ROW()-ROW(OutputScenario[#Headers]))) ->  | D36: =IF(INDEX(InputA1A3[Kommentar],ROW()-ROW(OutputScenario[#Headers]))="","",INDEX(InputA1A3[Kommentar], ROW()-ROW(OutputScenario[#Headers]))) ->  | E36: =KontrollTabell[[#This Row],[Utsläpp A1A3 '[kg']]]/1000 -> 0 | F36: =KontrollTabell[[#This Row],[Utsläpp A2 '[kg'] (alt1 och alt2)]]/1000 -> 0 | G36: =KontrollTabell[[#This Row],[Utsläpp A5'[kg']]]/1000 -> 0 | H36: =SUM(OutputScenario[[#This Row],[A1-A3]:[A5]]) -> 0 | I36: =OutputScenario[[#This Row],[Totalt]]/OutputScenario[[#Totals],[Totalt]] -> 0
B37: =IF(INDEX(InputA1A3[Anläggningsdel ],ROW()-ROW(OutputScenario[#Headers]))="","",INDEX(InputA1A3[Anläggningsdel ], ROW()-ROW(OutputScenario[#Headers]))) ->  | C37: =IF(INDEX(KontrollTabell[Kategorier],ROW()-ROW(OutputScenario[#Headers]))="","",INDEX(KontrollTabell[Kategorier], ROW()-ROW(OutputScenario[#Headers]))) ->  | D37: =IF(INDEX(InputA1A3[Kommentar],ROW()-ROW(OutputScenario[#Headers]))="","",INDEX(InputA1A3[Kommentar], ROW()-ROW(OutputScenario[#Headers]))) ->  | E37: =KontrollTabell[[#This Row],[Utsläpp A1A3 '[kg']]]/1000 -> 0 | F37: =KontrollTabell[[#This Row],[Utsläpp A2 '[kg'] (alt1 och alt2)]]/1000 -> 0 | G37: =KontrollTabell[[#This Row],[Utsläpp A5'[kg']]]/1000 -> 0 | H37: =SUM(OutputScenario[[#This Row],[A1-A3]:[A5]]) -> 0 | I37: =OutputScenario[[#This Row],[Totalt]]/OutputScenario[[#Totals],[Totalt]] -> 0
B38: =IF(INDEX(InputA1A3[Anläggningsdel ],ROW()-ROW(OutputScenario[#Headers]))="","",INDEX(InputA1A3[Anläggningsdel ], ROW()-ROW(OutputScenario[#Headers]))) ->  | C38: =IF(INDEX(KontrollTabell[Kategorier],ROW()-ROW(OutputScenario[#Headers]))="","",INDEX(KontrollTabell[Kategorier], ROW()-ROW(OutputScenario[#Headers]))) ->  | D38: =IF(INDEX(InputA1A3[Kommentar],ROW()-ROW(OutputScenario[#Headers]))="","",INDEX(InputA1A3[Kommentar], ROW()-ROW(OutputScenario[#Headers]))) ->  | E38: =KontrollTabell[[#This Row],[Utsläpp A1A3 '[kg']]]/1000 -> 0 | F38: =KontrollTabell[[#This Row],[Utsläpp A2 '[kg'] (alt1 och alt2)]]/1000 -> 0 | G38: =KontrollTabell[[#This Row],[Utsläpp A5'[kg']]]/1000 -> 0 | H38: =SUM(OutputScenario[[#This Row],[A1-A3]:[A5]]) -> 0 | I38: =OutputScenario[[#This Row],[Totalt]]/OutputScenario[[#Totals],[Totalt]] -> 0
B39: =IF(INDEX(InputA1A3[Anläggningsdel ],ROW()-ROW(OutputScenario[#Headers]))="","",INDEX(InputA1A3[Anläggningsdel ], ROW()-ROW(OutputScenario[#Headers]))) ->  | C39: =IF(INDEX(KontrollTabell[Kategorier],ROW()-ROW(OutputScenario[#Headers]))="","",INDEX(KontrollTabell[Kategorier], ROW()-ROW(OutputScenario[#Headers]))) ->  | D39: =IF(INDEX(InputA1A3[Kommentar],ROW()-ROW(OutputScenario[#Headers]))="","",INDEX(InputA1A3[Kommentar], ROW()-ROW(OutputScenario[#Headers]))) ->  | E39: =KontrollTabell[[#This Row],[Utsläpp A1A3 '[kg']]]/1000 -> 0 | F39: =KontrollTabell[[#This Row],[Utsläpp A2 '[kg'] (alt1 och alt2)]]/1000 -> 0 | G39: =KontrollTabell[[#This Row],[Utsläpp A5'[kg']]]/1000 -> 0 | H39: =SUM(OutputScenario[[#This Row],[A1-A3]:[A5]]) -> 0 | I39: =OutputScenario[[#This Row],[Totalt]]/OutputScenario[[#Totals],[Totalt]] -> 0
B40: =IF(INDEX(InputA1A3[Anläggningsdel ],ROW()-ROW(OutputScenario[#Headers]))="","",INDEX(InputA1A3[Anläggningsdel ], ROW()-ROW(OutputScenario[#Headers]))) ->  | C40: =IF(INDEX(KontrollTabell[Kategorier],ROW()-ROW(OutputScenario[#Headers]))="","",INDEX(KontrollTabell[Kategorier], ROW()-ROW(OutputScenario[#Headers]))) ->  | D40: =IF(INDEX(InputA1A3[Kommentar],ROW()-ROW(OutputScenario[#Headers]))="","",INDEX(InputA1A3[Kommentar], ROW()-ROW(OutputScenario[#Headers]))) ->  | E40: =KontrollTabell[[#This Row],[Utsläpp A1A3 '[kg']]]/1000 -> 0 | F40: =KontrollTabell[[#This Row],[Utsläpp A2 '[kg'] (alt1 och alt2)]]/1000 -> 0 | G40: =KontrollTabell[[#This Row],[Utsläpp A5'[kg']]]/1000 -> 0 | H40: =SUM(OutputScenario[[#This Row],[A1-A3]:[A5]]) -> 0 | I40: =OutputScenario[[#This Row],[Totalt]]/OutputScenario[[#Totals],[Totalt]] -> 0
B41: =IF(INDEX(InputA1A3[Anläggningsdel ],ROW()-ROW(OutputScenario[#Headers]))="","",INDEX(InputA1A3[Anläggningsdel ], ROW()-ROW(OutputScenario[#Headers]))) ->  | C41: =IF(INDEX(KontrollTabell[Kategorier],ROW()-ROW(OutputScenario[#Headers]))="","",INDEX(KontrollTabell[Kategorier], ROW()-ROW(OutputScenario[#Headers]))) ->  | D41: =IF(INDEX(InputA1A3[Kommentar],ROW()-ROW(OutputScenario[#Headers]))="","",INDEX(InputA1A3[Kommentar], ROW()-ROW(OutputScenario[#Headers]))) ->  | E41: =KontrollTabell[[#This Row],[Utsläpp A1A3 '[kg']]]/1000 -> 0 | F41: =KontrollTabell[[#This Row],[Utsläpp A2 '[kg'] (alt1 och alt2)]]/1000 -> 0 | G41: =KontrollTabell[[#This Row],[Utsläpp A5'[kg']]]/1000 -> 0 | H41: =SUM(OutputScenario[[#This Row],[A1-A3]:[A5]]) -> 0 | I41: =OutputScenario[[#This Row],[Totalt]]/OutputScenario[[#Totals],[Totalt]] -> 0
B42: =IF(INDEX(InputA1A3[Anläggningsdel ],ROW()-ROW(OutputScenario[#Headers]))="","",INDEX(InputA1A3[Anläggningsdel ], ROW()-ROW(OutputScenario[#Headers]))) ->  | C42: =IF(INDEX(KontrollTabell[Kategorier],ROW()-ROW(OutputScenario[#Headers]))="","",INDEX(KontrollTabell[Kategorier], ROW()-ROW(OutputScenario[#Headers]))) ->  | D42: =IF(INDEX(InputA1A3[Kommentar],ROW()-ROW(OutputScenario[#Headers]))="","",INDEX(InputA1A3[Kommentar], ROW()-ROW(OutputScenario[#Headers]))) ->  | E42: =KontrollTabell[[#This Row],[Utsläpp A1A3 '[kg']]]/1000 -> 0 | F42: =KontrollTabell[[#This Row],[Utsläpp A2 '[kg'] (alt1 och alt2)]]/1000 -> 0 | G42: =KontrollTabell[[#This Row],[Utsläpp A5'[kg']]]/1000 -> 0 | H42: =SUM(OutputScenario[[#This Row],[A1-A3]:[A5]]) -> 0 | I42: =OutputScenario[[#This Row],[Totalt]]/OutputScenario[[#Totals],[Totalt]] -> 0
B43: =IF(INDEX(InputA1A3[Anläggningsdel ],ROW()-ROW(OutputScenario[#Headers]))="","",INDEX(InputA1A3[Anläggningsdel ], ROW()-ROW(OutputScenario[#Headers]))) ->  | C43: =IF(INDEX(KontrollTabell[Kategorier],ROW()-ROW(OutputScenario[#Headers]))="","",INDEX(KontrollTabell[Kategorier], ROW()-ROW(OutputScenario[#Headers]))) ->  | D43: =IF(INDEX(InputA1A3[Kommentar],ROW()-ROW(OutputScenario[#Headers]))="","",INDEX(InputA1A3[Kommentar], ROW()-ROW(OutputScenario[#Headers]))) ->  | E43: =KontrollTabell[[#This Row],[Utsläpp A1A3 '[kg']]]/1000 -> 0 | F43: =KontrollTabell[[#This Row],[Utsläpp A2 '[kg'] (alt1 och alt2)]]/1000 -> 0 | G43: =KontrollTabell[[#This Row],[Utsläpp A5'[kg']]]/1000 -> 0 | H43: =SUM(OutputScenario[[#This Row],[A1-A3]:[A5]]) -> 0 | I43: =OutputScenario[[#This Row],[Totalt]]/OutputScenario[[#Totals],[Totalt]] -> 0
B44: =IF(INDEX(InputA1A3[Anläggningsdel ],ROW()-ROW(OutputScenario[#Headers]))="","",INDEX(InputA1A3[Anläggningsdel ], ROW()-ROW(OutputScenario[#Headers]))) ->  | C44: =IF(INDEX(KontrollTabell[Kategorier],ROW()-ROW(OutputScenario[#Headers]))="","",INDEX(KontrollTabell[Kategorier], ROW()-ROW(OutputScenario[#Headers]))) ->  | D44: =IF(INDEX(InputA1A3[Kommentar],ROW()-ROW(OutputScenario[#Headers]))="","",INDEX(InputA1A3[Kommentar], ROW()-ROW(OutputScenario[#Headers]))) ->  | E44: =KontrollTabell[[#This Row],[Utsläpp A1A3 '[kg']]]/1000 -> 0 | F44: =KontrollTabell[[#This Row],[Utsläpp A2 '[kg'] (alt1 och alt2)]]/1000 -> 0 | G44: =KontrollTabell[[#This Row],[Utsläpp A5'[kg']]]/1000 -> 0 | H44: =SUM(OutputScenario[[#This Row],[A1-A3]:[A5]]) -> 0 | I44: =OutputScenario[[#This Row],[Totalt]]/OutputScenario[[#Totals],[Totalt]] -> 0
B45: =IF(INDEX(InputA1A3[Anläggningsdel ],ROW()-ROW(OutputScenario[#Headers]))="","",INDEX(InputA1A3[Anläggningsdel ], ROW()-ROW(OutputScenario[#Headers]))) ->  | C45: =IF(INDEX(KontrollTabell[Kategorier],ROW()-ROW(OutputScenario[#Headers]))="","",INDEX(KontrollTabell[Kategorier], ROW()-ROW(OutputScenario[#Headers]))) ->  | D45: =IF(INDEX(InputA1A3[Kommentar],ROW()-ROW(OutputScenario[#Headers]))="","",INDEX(InputA1A3[Kommentar], ROW()-ROW(OutputScenario[#Headers]))) ->  | E45: =KontrollTabell[[#This Row],[Utsläpp A1A3 '[kg']]]/1000 -> 0 | F45: =KontrollTabell[[#This Row],[Utsläpp A2 '[kg'] (alt1 och alt2)]]/1000 -> 0 | G45: =KontrollTabell[[#This Row],[Utsläpp A5'[kg']]]/1000 -> 0 | H45: =SUM(OutputScenario[[#This Row],[A1-A3]:[A5]]) -> 0 | I45: =OutputScenario[[#This Row],[Totalt]]/OutputScenario[[#Totals],[Totalt]] -> 0
B46: =IF(INDEX(InputA1A3[Anläggningsdel ],ROW()-ROW(OutputScenario[#Headers]))="","",INDEX(InputA1A3[Anläggningsdel ], ROW()-ROW(OutputScenario[#Headers]))) ->  | C46: =IF(INDEX(KontrollTabell[Kategorier],ROW()-ROW(OutputScenario[#Headers]))="","",INDEX(KontrollTabell[Kategorier], ROW()-ROW(OutputScenario[#Headers]))) ->  | D46: =IF(INDEX(InputA1A3[Kommentar],ROW()-ROW(OutputScenario[#Headers]))="","",INDEX(InputA1A3[Kommentar], ROW()-ROW(OutputScenario[#Headers]))) ->  | E46: =KontrollTabell[[#This Row],[Utsläpp A1A3 '[kg']]]/1000 -> 0 | F46: =KontrollTabell[[#This Row],[Utsläpp A2 '[kg'] (alt1 och alt2)]]/1000 -> 0 | G46: =KontrollTabell[[#This Row],[Utsläpp A5'[kg']]]/1000 -> 0 | H46: =SUM(OutputScenario[[#This Row],[A1-A3]:[A5]]) -> 0 | I46: =OutputScenario[[#This Row],[Totalt]]/OutputScenario[[#Totals],[Totalt]] -> 0
B47: =IF(INDEX(InputA1A3[Anläggningsdel ],ROW()-ROW(OutputScenario[#Headers]))="","",INDEX(InputA1A3[Anläggningsdel ], ROW()-ROW(OutputScenario[#Headers]))) ->  | C47: =IF(INDEX(KontrollTabell[Kategorier],ROW()-ROW(OutputScenario[#Headers]))="","",INDEX(KontrollTabell[Kategorier], ROW()-ROW(OutputScenario[#Headers]))) ->  | D47: =IF(INDEX(InputA1A3[Kommentar],ROW()-ROW(OutputScenario[#Headers]))="","",INDEX(InputA1A3[Kommentar], ROW()-ROW(OutputScenario[#Headers]))) ->  | E47: =KontrollTabell[[#This Row],[Utsläpp A1A3 '[kg']]]/1000 -> 0 | F47: =KontrollTabell[[#This Row],[Utsläpp A2 '[kg'] (alt1 och alt2)]]/1000 -> 0 | G47: =KontrollTabell[[#This Row],[Utsläpp A5'[kg']]]/1000 -> 0 | H47: =SUM(OutputScenario[[#This Row],[A1-A3]:[A5]]) -> 0 | I47: =OutputScenario[[#This Row],[Totalt]]/OutputScenario[[#Totals],[Totalt]] -> 0
B48: Total | E48: =SUBTOTAL(109,OutputScenario[A1-A3]) -> 92286.289 | F48: =SUBTOTAL(109,OutputScenario[A4]) -> 4013.599 | G48: =SUBTOTAL(109,OutputScenario[A5]) -> 6772.382059 | H48: =SUBTOTAL(109,OutputScenario[Totalt]) -> 103072.2701

Sheet Stödtabeller (hidden)
A1: Rör, justera eller ändra inget i denna flik, även lägg inte till rader eller kolumner.
K2: Rött - beräknade från flik "Emissionsfaktorer - rör ej cellerna
I3: Här behöver scenarionamn sparas för de scenarion som sparas, och tas bort när de raderas - även från Excel NameManager!!!
A5: Enheter | B5: Enhet för omräkningsfaktor | D5: FU/DU | E5: Bränsleförbrukning | F5: Scenarier | G5: Fordon | H5: Fordon/Arbetsmaskiner | K5: Drivmedel | L5: Emissionsfaktor | M5: Emissionsfaktor - Enhet | N5: DU/FU | O5: Källa
A6: kg | B6: [kg/m³] | D6: [kg] | E6: [Liter (l)] | F6: Referensscenario | H6: Hjullastare | K6: Bensin MK1 | L6: =Emissionsfaktorer!F10*Emissionsfaktorer!G10 -> 2.8497 | M6: [kg CO₂-ekv./liter] | N6: [Liter (l)] | O6: Boverkets klimatdatabas
A7: Liter (l) | B7: [kg/Liter (l)] | D7: [ton] | E7: [MJ] | H7: Grävlastare | K7: Diesel MK1 | L7: =Emissionsfaktorer!F8*Emissionsfaktorer!G8 -> 2.5769 | M7: [kg CO₂-ekv./liter] | N7: [Liter (l)] | O7: Boverkets klimatdatabas
A8: m | B8: [kg/m] | D8: [m] | E8: [kWh] | H8: Bandgrävningsmaskin | K8: E85 Etanol | L8: =INDEX(TabellBoverketsKDB[],MATCH(TabellEFDrivmedel[[#This Row],[Drivmedel]],TabellBoverketsKDB[Produktnamn],0),6)*INDEX(TabellBoverketsKDB[],MATCH(TabellEFDrivmedel[[#This Row],[Drivmedel]],TabellBoverketsKDB[Produktnamn],0),7) -> 1.34082 | M8: [kg CO₂-ekv./liter] | N8: [Liter (l)] | O8: Boverkets klimatdatabas
A9: m² | B9: [kg/m²] | D9: [m²] | E9: [m³] | H9: Dumper | K9: ED95 | L9: =INDEX(TabellBoverketsKDB[],MATCH(TabellEFDrivmedel[[#This Row],[Drivmedel]],TabellBoverketsKDB[Produktnamn],0),6)*INDEX(TabellBoverketsKDB[],MATCH(TabellEFDrivmedel[[#This Row],[Drivmedel]],TabellBoverketsKDB[Produktnamn],0),7) -> 0.50225 | M9: [kg CO₂-ekv./liter] | N9: [Liter (l)] | O9: Boverkets klimatdatabas
A10: m³ | B10: [kg/m³] | D10: [m³] | H10: Hjulgrävsmaskin | K10: El - nordisk mix | L10: =93.2/1000 -> 0.0932 | M10: [kg CO₂-ekv./kWh] | N10: [kWh] | O10: SMED Rapport nr 4, 2021
A11: st | B11: [kg/st] | D11: [MJ] | H11: Kompaktlastare | K11: El - nordisk residualmix | L11: =468/1000 -> 0.468 | M11: kg CO₂/kWh] | N11: [kWh] | O11: Miljövärdering 2023, Energiföretagen - OBS, ej ekvivalenter
A12: ton | B12: [kg/ton] | D12: [kWh] | H12: Gruvtruck/Tipptruck | K12: El - svensk elmix | L12: =INDEX(TabellBoverketsKDB[],MATCH(TabellEFDrivmedel[[#This Row],[Drivmedel]],TabellBoverketsKDB[Produktnamn],0),6)*INDEX(TabellBoverketsKDB[],MATCH(TabellEFDrivmedel[[#This Row],[Drivmedel]],TabellBoverketsKDB[Produktnamn],0),7) -> 0.037 | M12: [kg CO₂-ekv./kWh] | N12: [kWh] | O12: Boverkets klimatdatabas
A13: MJ | B13: [kg/MJ] | D13: [Liter (l)] | H13: Mobilkran | K13: FAME100 | L13: =INDEX(TabellBoverketsKDB[],MATCH(TabellEFDrivmedel[[#This Row],[Drivmedel]],TabellBoverketsKDB[Produktnamn],0),6)*INDEX(TabellBoverketsKDB[],MATCH(TabellEFDrivmedel[[#This Row],[Drivmedel]],TabellBoverketsKDB[Produktnamn],0),7) -> 0.99358 | M13: [kg CO₂-ekv./MJ] | N13: [MJ] | O13: Boverkets klimatdatabas
A14: kWh | B14: [kg/kWh] | D14: [st] | H14: Truck | K14: Fordonsgas | L14: =57/1000*38 -> 2.166 | M14: [kg CO₂-ekv./km] | N14: [km] | O14: Energimyndigheten ER2020:26, värde 2019
D15: [km] | K15: HVO100 | L15: =INDEX(TabellBoverketsKDB[],MATCH(TabellEFDrivmedel[[#This Row],[Drivmedel]],TabellBoverketsKDB[Produktnamn],0),6)*INDEX(TabellBoverketsKDB[],MATCH(TabellEFDrivmedel[[#This Row],[Drivmedel]],TabellBoverketsKDB[Produktnamn],0),7) -> 0.5202 | M15: [kg CO₂-ekv./liter] | N15: [Liter (l)] | O15: Boverkets klimatdatabas
K16: El - grön el | L16: 0.0012 | M16: [kg CO₂-ekv./kWh] | N16: [kWh] | O16: Trafikverkets Klimakalkyl v.8

Sheet Emissionsfaktorer (hidden)
A1: Rör, justera eller ändra inget i denna flik, även lägg inte till rader eller kolumner.
A4: Emissionsfaktorer - Drivmedel | C4: Källa: | D4: Boverkets klimatdatabas v. 02.05.00
A6: ResursId | B6: Produktnamn | C6: Kategori | D6: Uppdaterad | E6: Enhet för klimatpåverkan | F6: Energislagets klimatpåverkan GWP-GHG, typiskt värde | G6: Omräkningsfaktor | H6: Enhet för omräkningsfaktor | I6: Produktstandard | J6: Komponentkod enligt BK04 | K6: Komponentnamn enligt BK04 | L6: Produktens användningsområde
A7: 6000000008 | B7: El - svensk elmix | C7: Energi och bränsle | D7: 2022-12-21T10:26:52.513 | E7: kg CO₂e/kWh | F7: 0.037 | G7: 1 | H7: kWh | I7: EN 15804 A1 | J7: 195 | K7: Elektricitet | L7: El köps från elnätet för flera olika ändamål.
A8: 6000000010 | B8: Diesel, reduktionsplikt (2021) | C8: Energi och bränsle | D8: 2022-12-21T13:44:46.991 | E8: kg CO₂e/MJ | F8: 0.073 | G8: 35.3 | H8: MJ/Liter | I8: EN 15804 A1 | J8: 19201 | K8: Bränsle | L8: Diesel köps och förbränns i olika maskiner och fordon, dvs omfattar WtW (Well to Wheel)
A9: 6000000011 | B9: Diesel, fossil | C9: Energi och bränsle | D9: 2022-12-21T13:45:09.253 | E9: kg CO₂e/MJ | F9: 0.0951 | G9: 35.2 | H9: MJ/Liter | I9: EN 15804 A1 | J9: 19201 | K9: Bränsle | L9: Diesel köps och förbränns i olika maskiner och fordon, dvs omfattar WtW (Well to Wheel).
A10: 6000000012 | B10: Bensin, reduktionsplikt (2021) | C10: Energi och bränsle | D10: 2022-12-21T13:40:28.168 | E10: kg CO₂e/MJ | F10: 0.0885 | G10: 32.2 | H10: MJ/Liter | I10: EN 15804 A1 | J10: 19201 | K10: Bränsle | L10: Diesel köps och förbränns i olika maskiner och fordon, dvs omfattar WtW (Well to Wheel).
A11: 6000000013 | B11: Bensin, fossil | C11: Energi och bränsle | D11: 2022-12-21T13:46:17.190 | E11: kg CO₂e/MJ | F11: 0.0933 | G11: 34.9 | H11: MJ/Liter | I11: EN 15804 A1 | J11: 19201 | K11: Bränsle | L11: Bensin köps och förbränns i olika maskiner och fordon, dvs omfattar WtW (Well to Wheel)
A12: 6000000017 | B12: HVO100 | C12: Energi och bränsle | D12: 2023-01-16T13:46:19.968 | E12: kg CO₂e/MJ | F12: 0.0153 | G12: 34 | H12: MJ/Liter | I12: EN 15804 A1 | J12: 19201 | K12: Bränsle | L12: HVO100 köps och förbränns i olika maskiner och fordon, dvs omfattar WtW (Well to Wheel).
A13: 6100000002 | B13: E85 etanol | C13: Energi och bränsle | D13: 2022-12-21T14:54:24.560 | E13: kg CO₂e/MJ | F13: 0.0573 | G13: 23.4 | H13: MJ/Liter | I13: EN15804 | J13: 19201 | K13: Bränsle | L13: E85 etanol köps och förbränns i olika maskiner och fordon, dvs omfattar WtW (Well to Wheel).
A14: 6100000003 | B14: Fordonsgas | C14: Energi och bränsle | D14: 2022-12-22T12:24:35.634 | E14: kg CO₂e/MJ | F14: 0.01 | H14: MJ/Liter | I14: EN15804 | J14: 19201 | K14: Bränsle | L14: Fordonsgas köps och förbränns i olika maskiner och fordon.
A15: 6100000006 | B15: FAME100 | C15: Energi och bränsle | D15: 2022-12-22T12:25:41.841 | E15: kg CO₂e/MJ | F15: 0.0302 | G15: 32.9 | H15: MJ/Liter | I15: EN15804 | J15: 19201 | K15: Bränsle | L15: FAME100 köps och förbränns i olika maskiner och fordon, dvs omfattar WtW (Well to Wheel).
A16: 6100000007 | B16: ED95 | C16: Energi och bränsle | D16: 2022-12-21T14:58:58.072 | E16: kg CO₂e/MJ | F16: 0.0205 | G16: 24.5 | H16: MJ/Liter | I16: EN15804 | J16: 19201 | K16: Bränsle | L16: Klimatdata är representativt för ED95 som köps i Sverige.

Sheet Hjalpflik (hidden)
A1: Rör, justera eller ändra inget i denna flik, även lägg inte till rader eller kolumner.
S4: Tabell för stacked kolumn-diagram anläggningsdel/MODUL | Z4: Tabell för stacked-kolumn-diagram för kategror/MODUL | AF4: Tabell för paj-diagram per anläggningsdel | AK4: Tabell för paj-diagram - kategori | AO4: Tabell för pajdiagram - MODUL
A5: Huvudtabell - skapar nödvändiga tabeller för diagrammen utifrån denna
A7: Anläggningsdel | B7: Kategorisering | C7: A1-A3 | D7: A4 | E7: A5 | F7: Totalt | J7: Anläggningsdel | K7: A1-A3 | L7: A4 | M7: A5 | N7: Totalt | S7: Anläggningsdel | T7: A1-A3 | U7: A4 | V7: A5 | W7: Totalt | Z7: Kategorisering | AA7: A1-A3 | AB7: A4 | AC7: A5 | AD7: Totalt | AF7: Anläggningsdel | AG7: Totalt | AJ7: Kategorisering | AK7: Totalt | AO7: Modul | AP7: Totalt
A8: tewwst | B8: Kat1 | C8: 520 | D8: 3648 | E8: 0 | F8: 4168 | J8: Övriga anläggningsdelar | K8: 3684.65 | L8: 261.733 | M8: 1.7473848 | N8: 3948.130385 | S8: tewwst | T8: 520 | U8: 3648 | V8: 0 | W8: 4168 | Z8: Kat1 | AA8: 1840.9 | AB8: 3662.76 | AC8: 1.7471382 | AD8: 5505.407138 | AF8: Övriga anläggningsdelar | AG8: 3948.130385 | AJ8: Kat1 | AK8: 5505.407138 | AO8: A4 | AP8: 92 286
A9: agrae | B9: kat2 | C9: 56941.632 | D9: 0 | E9: 0.0876146 | F9: 56941.71961 | J9: tewwst | K9: 520 | L9: 3648 | M9: 0 | N9: 4168 | S9: agrae | T9: 56941.632 | U9: 0 | V9: 0.0876146 | W9: 56941.71961 | Z9: kat2 | AA9: 59269.632 | AB9: 0.188 | AC9: 0.0878612 | AD9: 59269.90786 | AF9: tewwst | AG9: 4168 | AJ9: kat2 | AK9: 59269.90786 | AO9: A4 | AP9: 4 014
A10: agreg | B10: kat1 | C10: 1320.9 | D10: 14.76 | E10: 1.7471382 | F10: 1337.407138 | J10: agh | K10: 6941.935 | L10: 72 | M10: 0 | N10: 7013.935 | S10: agreg | T10: 1320.9 | U10: 14.76 | V10: 1.7471382 | W10: 1337.407138 | Z10: kat3 | AA10: 24198.072 | AB10: 31.866 | AC10: 6770.54706 | AD10: 31000.48506 | AF10: agh | AG10: 7013.935 | AJ10: kat3 | AK10: 31000.48506 | AO10: A5 | AP10: 6 772
A11: f | B11: kat3 | C11: 24198.072 | D11: 31.866 | E11: 6770.54706 | F11: 31000.48506 | J11: f | K11: 24198.072 | L11: 31.866 | M11: 6770.54706 | N11: 31000.48506 | S11: f | T11: 24198.072 | U11: 31.866 | V11: 6770.54706 | W11: 31000.48506 | Z11: övrigt | AA11: 6941.935 | AB11: 72 | AC11: 0 | AD11: 7013.935 | AF11: f | AG11: 31000.48506 | AJ11: övrigt | AK11: 7013.935
A12: fg | B12: kat2 | C12: 2328 | D12: 0.188 | E12: 0.0002466 | F12: 2328.188247 | J12: agrae | K12: 56941.632 | L12: 0 | M12: 0.0876146 | N12: 56941.71961 | S12: fg | T12: 2328 | U12: 0.188 | V12: 0.0002466 | W12: 2328.188247 | Z12: Kategori saknas | AA12: 35.1 | AB12: 246.285 | AC12: 0 | AD12: 281.385 | AF12: agrae | AG12: 56941.71961 | AJ12: Kategori saknas | AK12: 281.385
A13: agh | B13: övrigt | C13: 6941.935 | D13: 72 | E13: 0 | F13: 7013.935 | J13: Total | K13: =SUBTOTAL(109,OutputScenario18[A1-A3]) -> 92286.289 | L13: =SUBTOTAL(109,OutputScenario18[A4]) -> 4013.599 | M13: =SUBTOTAL(109,OutputScenario18[A5]) -> 6772.382059 | N13: =SUBTOTAL(109,OutputScenario18[Totalt]) -> 103072.2701 | S13: agh | T13: 6941.935 | U13: 72 | V13: 0 | W13: 7013.935 | Z13: kat 3 | AA13: 0.65 | AB13: 0.5 | AC13: 0 | AD13: 1.15 | AF13: Total | AG13: =SUBTOTAL(109,TblChartPie[Totalt]) -> 103072.2701 | AJ13: kat 3 | AK13: 1.15
A14: ggq | B14: Kategori saknas | C14: 35.1 | D14: 246.285 | E14: 0 | F14: 281.385 | S14: ggq | T14: 35.1 | U14: 246.285 | V14: 0 | W14: 281.385 | AA14: 92 286 | AB14: 4 014 | AC14: 6 772 | AD14: 103 072 | AK14: =SUBTOTAL(109,TblChartPieKat[Totalt]) -> 103072.2701 | AO14: =SUBTOTAL(109,TblChartPieMODUL[Modul]) -> 0 | AP14: =SUBTOTAL(109,TblChartPieMODUL[Totalt]) -> 0
A15: Test A4_1 | B15: kat 3 | C15: 0.65 | D15: 0.5 | E15: 0 | F15: 1.15 | S15: Test A4_1 | T15: 0.65 | U15: 0.5 | V15: 0 | W15: 1.15
A16: Total | C16: =SUBTOTAL(109,TblChartHuvud[A1-A3]) -> 92286.289 | D16: =SUBTOTAL(109,TblChartHuvud[A4]) -> 4013.599 | E16: =SUBTOTAL(109,TblChartHuvud[A5]) -> 6772.382059 | F16: =SUBTOTAL(109,TblChartHuvud[Totalt]) -> 103072.2701 | S16: Total | T16: =SUBTOTAL(109,TblChartKolumn[A1-A3]) -> 92286.289 | U16: =SUBTOTAL(109,TblChartKolumn[A4]) -> 4013.599 | V16: =SUBTOTAL(109,TblChartKolumn[A5]) -> 6772.382059 | W16: =SUBTOTAL(109,TblChartKolumn[Totalt]) -> 103072.2701
